Workbook

Sheet Documentation (hidden)
W2: https://www.workstats.dli.pa.gov/dashboards/Pages/Online-Job-Postings-by-WDA.aspx
K3: DO NOT CHANGE THE SORT IN ANY DATASETS IN THIS SPREADSHEET!!
P132: g

Sheet Release Schedule (hidden)
A1: Reference Month | B1: US Data | C1: PA Data | D1: Area Data | F1: JOLTS
A2: Time: | B2: 08:30:00 | C2: 08:30:00 | D2: 08:30:00 | F2: https://www.bls.gov/schedule/news_release/jolts.htm
A3: December '22 | B3: Friday, 01/06/2023 | C3: Friday, 01/20/2023 | D3: Tuesday, 01/31/2023 | F3: https://www.bls.gov/jlt/home.htm#data
A4: January '23 | B4: Friday, 02/03/2023 | C4: Friday, 03/10/2023 | D4: Thursday, 03/16/2023
A5: February | B5: Friday, 03/10/2023 | C5: Friday, 03/24/2023 | D5: Tuesday, 04/04/2023
A6: March | B6: Friday, 04/07/2023 | C6: Friday, 04/21/2023 | D6: Tuesday, 05/02/2023
A7: April | B7: Friday, 05/05/2023 | C7: Friday, 05/19/2023 | D7: Tuesday, 05/30/2023
A8: May | B8: Friday, 06/02/2023 | C8: Friday, 06/16/2023 | D8: Tuesday, 06/27/2023
A9: June | B9: Friday, 07/07/2023 | C9: Friday, 07/21/2023 | D9: Tuesday, 08/01/2023
A10: July | B10: Friday, 08/04/2023 | C10: Friday, 08/18/2023 | D10: Tuesday, 08/29/2023
A11: August | B11: Friday, 09/01/2023 | C11: Friday, 09/15/2023 | D11: Tuesday, 09/26/2023
A12: September | B12: Friday, 10/06/2023 | C12: Friday, 10/20/2023 | D12: Tuesday, 10/31/2023
A13: October | B13: Friday, 11/03/2023 | C13: Friday, 11/17/2023 | D13: Tuesday, 11/28/2023
A14: November | B14: Friday, 12/08/2023 | C14: Friday, 12/22/2023 | D14: Wednesday, 1/03/2024
A15: December | B15: Friday, 01/05/2024 | C15: Friday, 01/19/2024 | D15: Tuesday, 01/30/2024
A17: BLS
A18: Schedule of Releases for the Metropolitan Area Employment and Unemployment (Monthly)
A19: Reference Month | B19: Release Date | C19: Release Time
A20: 2022-10-01 | B20: Dec. 01, 2022 | C20: 10:00:00
A21: 2022-11-01 | B21: Dec. 29, 2022 | C21: 10:00:00
A22: 2022-12-01 | B22: Feb. 01, 2023 | C22: 10:00:00
A23: 2023-01-01 | B23: Mar. 17, 2023 | C23: 10:00:00
A24: 2023-02-01 | B24: Apr. 05, 2023 | C24: 10:00:00
A25: 2023-03-01 | B25: May. 03, 2023 | C25: 10:00:00
A26: 2023-04-01 | B26: May. 31, 2023 | C26: 10:00:00
A27: 2023-05-01 | B27: Jun. 28, 2023 | C27: 10:00:00
A28: 2023-06-01 | B28: Aug. 02, 2023 | C28: 10:00:00
A29: 2023-07-01 | B29: Aug. 30, 2023 | C29: 10:00:00
A30: 2023-08-01 | B30: Sep. 27, 2023 | C30: 10:00:00
A31: 2023-09-01 | B31: Nov. 01, 2023 | C31: 10:00:00
A32: 2023-10-01 | B32: Nov. 30, 2023 | C32: 10:00:00

Sheet Data Sources (hidden)
A1: Economy & Population (LV) | H1: LQ (Location Quotient): WDA Profile
A2: 1. BEA CAGDP2 Gross domestic product (GDP) by county and metropolitan area 1/
A3: https://apps.bea.gov/itable/iTable.cfm?ReqID=70&step=1&acrdn=5
A5: Every December 8th 8:30am | B5: https://www.bea.gov/news/schedule/full | F5: *GDP in Current dollars is Nominal GDP - BEA is known to update the numbers for the last several years so keep in mind
A26: Targeted Industry Sectors (LV)
A27: These don't change until we decide
A29: Employers (LV) - YYYY
A30: Establishments (in thousands) | B30: QCEW_by_WDA | D30: https://paworkstats.geosolinc.com/altentry.asp?action=lmiguest&whereto=QCEW | L30: (filter by Geography Type: LV Workforce Development Area, Industry Level: Total (000000); Sector(2 Digit), Select all Industry Groups and Codes, Time Period: Latest Quarter, Ownership: Aggregate of all types)
A31: Total Employees (in thousands) | B31: OES_Annual_Occupational Wages | D31: https://paworkstats.geosolinc.com/altentry.asp?action=lmiguest&whereto=OESWAGE | L31: (filter by - wage rate type: Annual wage or salary, Geography Type: LV Workforce Development Area, Occupation level: Major Groups, Occupation Family: Select all, Time Period: Annual (Latest Year), Ownership: Aggregate of all Types
A32: Avg Hourly Wage | B32: Occupational Wages by WDA | D32: https://paworkstats.geosolinc.com/vosnet/analyzer/resultsNew.aspx?session=oeswage&plang=E&pu=1&plang=E | L32: (filter by hourly wage, WDA = Lehigh Valley)
A34: https://www.workstats.dli.pa.gov/MediaCenter/Pages/ReleaseSchedule.aspx | D34: (you have to be logged into CWIA for the links to work properly)
A36: Top Occupations by Job Postings (LV)
A37: Online Job Postings by WDA - Top Occupations | B37: https://www.workstats.dli.pa.gov/dashboards/Pages/Online-Job-Postings-by-WDA.aspx | I37: (filter by LV WDA, all occupations -> Top Occupations (The last tab))
A38: https://www.workstats.dli.pa.gov/MediaCenter/Pages/ReleaseSchedule.aspx | D38: (you have to be logged into CWIA for the links to work properly)
A40: Online Job Postings (LV)
A41: The dashboard here ("https://www.workstats.dli.pa.gov/dashboards/Pages/Online-Job-Postings-by-WDA.aspx". NOTE: per the email thread below, remove SOC ending in "0000" as they are subtotals. Use "Totals" instead of "New" - "New" is based on create date within the specific month, Total is every posting within the month regardless of when they were created. See "Occupations_data_Feb_2022" in Google Drive - Workforce Data Dashboard -> Raw data -> Job Postings | I41: https://www.workstats.dli.pa.gov/dashboards/Pages/Online-Job-Postings-by-WDA.aspx
A50: Unemployment Statistics (LV)
A51: Labor Force Employment and Unemployment (LAUS) | C51: https://paworkstats.geosolinc.com/vosnet/analyzer/resultsNew.aspx?session=labforce&plang=E&pu=1&plang=E | L51: (filter by LV WDA, time period type: monthly, time period: latest month)
A52: https://www.workstats.dli.pa.gov/MediaCenter/Pages/ReleaseSchedule.aspx | D52: (you have to be logged into CWIA for the links to work properly)
A54: Unemployment Rates
A55: 1. CWIA - https://www.workstats.dli.pa.gov/Products/CivilianLabor/Pages/default.aspx. This is the first info to come out | M55: This is how you look-uped the values
A56: 2. CWIA - https://paworkstats.geosolinc.com/altentry.asp?action=lmiguest&whereto=LABFORCEDATA. This is the same data but takes some time to come out, use it for historical data | M56: https://www.extendoffice.com/documents/excel/3970-excel-find-nth-non-blank-cell.html
A57: Lehigh Valley Unemployment Rate | B57: (filter by LV WDA, time period type: monthly, time period: latest month) | M57: https://www.extendoffice.com/documents/excel/4781-excel-return-row-number-of-first-non-blank-cell.html#:~:text=Return%20the%20row%20number%20of%20the%20last%20non%20blank%20cell%3A&text=Enter%20the%20formula%3A%20%3DSUMPRODUCT(,that%20you%20want%20to%20use.
A58: Pennsylvania Unemployment Rate | B58: (filter by PA STATE, time period type: monthly, time period: latest month)
A59: U.S. Unemployment Rate | B59: (filter by US National, time period type: monthly, time period: latest month) | I59: LV and MSA both change
A60: MSA Unemployment Rate | B60: (filter by ABE MSA, time period type: monthly, time period: latest month)
A61: 3. BLS - see if no data is out on CWIA | B61: https://www.bls.gov/lau/
A63: Unemployment Continued Claims
A64: Lehigh County | B64: https://www.workstats.dli.pa.gov/dashboards/Pages/Weekly-UC.aspx | G64: (filter to continued claims, Lehigh County, and most recent week ending)
A65: Northampton County | B65: https://www.workstats.dli.pa.gov/dashboards/Pages/Weekly-UC.aspx | G65: (filter to continued claims, Northampton County, and most recent week ending)
A67: https://www.workstats.dli.pa.gov/MediaCenter/Pages/ReleaseSchedule.aspx | D67: (you have to be logged into CWIA for the links to work properly)
A69: Workforce Education Attainment (LV)
A70: https://qwiexplorer.ces.census.gov/static/explore.html#x=0&g=0 | C70: (filter Geography to Lehigh and Northampton counties, Indicator: Emp - Beginning of Quarter Employment: Count, Firm Ownership: All Ownership, Filter by Quarter, (Education, Age, Race), add most recent quarter)
A71: Every quarter, no definitive date schedule
A73: Education System (LV)
A74: School Districts | B74: https://www.education.pa.gov/DataAndReporting/Enrollment/Pages/PublicSchEnrReports.aspx | J74: <-- Verify School Year for Public School Enrollment vs Cohort Grad Rate
A75: Charter Schools | B75: https://www.education.pa.gov/DataAndReporting/Enrollment/Pages/PublicSchEnrReports.aspx
A76: Career and Technical Schools | B76: https://www.education.pa.gov/DataAndReporting/Enrollment/Pages/PublicSchEnrReports.aspx
A77: Community Colleges / 4-Year Institutes | B77: https://www.education.pa.gov/DataAndReporting/Enrollment/Pages/PublicSchEnrReports.aspx
A78: K-12 Student Enrollments | B78: https://www.education.pa.gov/DataAndReporting/Enrollment/Pages/PublicSchEnrReports.aspx
A79: High School Graduates | B79: https://www.education.pa.gov/DataAndReporting/Graduates/Pages/default.aspx | H79: <-- looks like these datasets are a little slower than the public school enrollment reports so most recent school year may differ between this education block
A80: 4 Year Graduation Rate % | B80: https://www.education.pa.gov/DataAndReporting/Graduates/Pages/default.aspx
A81: College Bound Students | B81: https://www.education.pa.gov/DataAndReporting/Graduates/Pages/default.aspx
A82: % College Bound of High School Graduates | B82: https://www.education.pa.gov/DataAndReporting/Graduates/Pages/default.aspx
A84: Every year, no definitive date schedule
A86: Demographics (LV)
A87: Lehigh County | B87: Census Annual Estimates of the Resident Population for Counties in Pennsylvania | H87: https://www.census.gov/data/tables/time-series/demo/popest/2020s-counties-total.html
A88: Northampton County | B88: Census Annual Estimates of the Resident Population for Counties in Pennsylvania | H88: https://www.census.gov/data/tables/time-series/demo/popest/2020s-counties-total.html
A89: Labor Force Participation Rate | B89: REMI Model, which gets their source from BLS. I grabbed it from REMI because it's easier (note below)
A104: Workforce Age/ Race / Ethnicity / Gender (LV) | G104: Note: Sometimes Census updates historical quarters, I would update them as well
A105: Filter by Indicator: Emp - Beginning of Quarter Employment: Count, filter to Lehigh and Northampton Counties, by age, Firm Ownership: All Ownership
A107: https://qwiexplorer.ces.census.gov/static/explore.html#x=0&g=0
A108: Quarterly
A109: Workforce Commuting
A110: https://onthemap.ces.census.gov/
A111: Choose 070 Lehigh Valley WIA (Workforce Investment Area)
A168: CWIA QCEW Annual Averages
A169: https://paworkstats.geosolinc.com/altentry.asp?action=lmiguest&whereto=QCEW
A170: QCEW_by_WDA | B170: ----> https://paworkstats.geosolinc.com/altentry.asp?action=lmiguest&whereto=QCEW (filter by Geography Type: LV Workforce Development Area, Industry Level: Total (000000); Sector(2 Digit), Select all Industry Groups and Codes, Time Period: Annual, Ownership: Aggregate of all types)
B171: (you have to be logged into CWIA for the links to work properly)
A173: https://www.workstats.dli.pa.gov/LearningCenter/Summaries_FAQs/FAQs/Pages/QCEW.aspx
A174: https://www.bls.gov/opub/hom/cew/archive/20210818/concepts.htm
A191: JOLTS
A192: https://www.bls.gov/schedule/news_release/jolts.htm
A193: https://www.bls.gov/jlt/home.htm#data

Sheet Dashboard
A1: Interactive Workforce Data Dashboard
A6: Economy (LV)1,2 | D6: ="Unemployment Statistics (LV) - ("&LOOKUP(2,1/(CWIA_LAUS_by_Month_Season_Adj!$K$2:$K$1048576<>""),CWIA_LAUS_by_Month_Season_Adj!$K$2:$K$1048576)&" "&LOOKUP(2,1/(CWIA_LAUS_by_Month_Season_Adj!$L$2:$L$1048576<>""),CWIA_LAUS_by_Month_Season_Adj!$L$2:$L$1048576)&")" -> Unemployment Statistics (LV) - (March 2023) | G6: Demographics (LV)9 | J6: ="CWIA QCEW Annual Averages"&" ("&LOOKUP(2,1/(CWIA_QCEW_by_WDA!$B:$B<>""),CWIA_QCEW_by_WDA!$B:$B)&")" -> CWIA QCEW Annual Averages (2021)
A7: ="Total Nominal GDP ($B)"&" - "&'BEA - nominal_GDP'!$M$1 -> Total Nominal GDP ($B) - 2021 | B7: =SUM(B8:B9) -> 43.856789 | D7: Labor Force (in thousands)6 | E7: =LOOKUP(2,1/(CWIA_LAUS_by_Month_Season_Adj!$C$2:$C$1048576<>""),CWIA_LAUS_by_Month_Season_Adj!$C$2:$C$1048576)/1000 -> 362.3 | G7: ="Total Population Est."&" "&"("&LOOKUP(9999999,'Census-ESTYYYY-POP-42'!$4:$4)&")" -> Total Population Est. (2021) | H7: =SUM(H8:H9) -> 689.167 | J7: Industry (NAICS)12 | K7: Employment | L7: Employment % | M7: Avg Annual Wages | N7: sort1 | O7: sort2
A8: Lehigh County | B8: =LOOKUP(2,1/('BEA - nominal_GDP'!$B:$B<>""),'BEA - nominal_GDP'!$B:$B)/1000000 -> 26.390816 | D8: Employed (in thousands)6 | E8: =LOOKUP(2,1/(CWIA_LAUS_by_Month_Season_Adj!$D$2:$D$1048576<>""),CWIA_LAUS_by_Month_Season_Adj!$D$2:$D$1048576)/1000 -> 349 | G8: Lehigh County (in thousands) | H8: =INDEX('Census-ESTYYYY-POP-42'!$5:$1048576,MATCH(".Lehigh County, Pennsylvania",'Census-ESTYYYY-POP-42'!$A$5:$A$1048576,1),MATCH(LOOKUP(9999999,'Census-ESTYYYY-POP-42'!$4:$4),'Census-ESTYYYY-POP-42'!$4:$4,1))/1000 -> 375.539 | J8: 62-Health Care and Social Assistance | K8: =IFERROR(IF(INDEX(CWIA_QCEW_by_WDA!$J$2:$J$1048576,MATCH(1, ($J8=CWIA_QCEW_by_WDA!$O$2:$O$1048576)*(2021=CWIA_QCEW_by_WDA!$B$2:$B$1048576),0))="Confidential","N/A",INDEX(CWIA_QCEW_by_WDA!$J$2:$J$1048576,MATCH(1, ($J8=CWIA_QCEW_by_WDA!$O$2:$O$1048576)*(2021=CWIA_QCEW_by_WDA!$B$2:$B$1048576),0))),"N/A") -> 58535 | L8: =IFERROR($K8/SUM($K$8:$K$41),"N/A") -> 0.1921656429 | M8: =IFERROR(IF(INDEX(CWIA_QCEW_by_WDA!$K$2:$K$1048576,MATCH(1, ($J8=CWIA_QCEW_by_WDA!$O$2:$O$1048576)*(2021=CWIA_QCEW_by_WDA!$B$2:$B$1048576),0))="Confidential","N/A",(INDEX(CWIA_QCEW_by_WDA!$K$2:$K$1048576,MATCH(1, ($J8=CWIA_QCEW_by_WDA!$O$2:$O$1048576)*(2021=CWIA_QCEW_by_WDA!$B$2:$B$1048576),0)))/($K8)),"N/A") -> 65244.78357 | N8: =IF($K8<>"N/A",$K8,0) -> 58535 | O8: =IF($M8<>"N/A",$M8,0) -> 65244.78357
A9: Northampton County | B9: =LOOKUP(2,1/('BEA - nominal_GDP'!$C:$C<>""),'BEA - nominal_GDP'!$C:$C)/1000000 -> 17.465973 | D9: Unemployed (in thousands)6 | E9: =LOOKUP(2,1/(CWIA_LAUS_by_Month_Season_Adj!$E$2:$E$1048576<>""),CWIA_LAUS_by_Month_Season_Adj!$E$2:$E$1048576)/1000 -> 13.3 | G9: Northampton County (in thousands) | H9: =INDEX('Census-ESTYYYY-POP-42'!$5:$1048576,MATCH(".Northampton County, Pennsylvania",'Census-ESTYYYY-POP-42'!$A$5:$A$1048576,1),MATCH(LOOKUP(9999999,'Census-ESTYYYY-POP-42'!$4:$4),'Census-ESTYYYY-POP-42'!$4:$4,1))/1000 -> 313.628 | J9: 48-49-Transportation and Warehousing | K9: =IFERROR(IF(INDEX(CWIA_QCEW_by_WDA!$J$2:$J$1048576,MATCH(1, ($J9=CWIA_QCEW_by_WDA!$O$2:$O$1048576)*(2021=CWIA_QCEW_by_WDA!$B$2:$B$1048576),0))="Confidential","N/A",INDEX(CWIA_QCEW_by_WDA!$J$2:$J$1048576,MATCH(1, ($J9=CWIA_QCEW_by_WDA!$O$2:$O$1048576)*(2021=CWIA_QCEW_by_WDA!$B$2:$B$1048576),0))),"N/A") -> 36311 | L9: 0.119206059 | M9: =IFERROR(IF(INDEX(CWIA_QCEW_by_WDA!$K$2:$K$1048576,MATCH(1, ($J9=CWIA_QCEW_by_WDA!$O$2:$O$1048576)*(2021=CWIA_QCEW_by_WDA!$B$2:$B$1048576),0))="Confidential","N/A",(INDEX(CWIA_QCEW_by_WDA!$K$2:$K$1048576,MATCH(1, ($J9=CWIA_QCEW_by_WDA!$O$2:$O$1048576)*(2021=CWIA_QCEW_by_WDA!$B$2:$B$1048576),0)))/($K9)),"N/A") -> 52180.09702 | N9: 36311 | O9: 52180.09702
G10: ="Labor Force Participation Rate"&" ("&LOOKUP(2,1/('Participation Rate_LV'!$A:$A<>""),'Participation Rate_LV'!$A:$A)&")" -> Labor Force Participation Rate (2020) | H10: =LOOKUP(2,1/('Participation Rate_LV'!$B$2:$B$1048576<>""),'Participation Rate_LV'!$B$2:$B$1048576) -> 0.639 | J10: 31-33-Manufacturing | K10: =IFERROR(IF(INDEX(CWIA_QCEW_by_WDA!$J$2:$J$1048576,MATCH(1, ($J10=CWIA_QCEW_by_WDA!$O$2:$O$1048576)*(2021=CWIA_QCEW_by_WDA!$B$2:$B$1048576),0))="Confidential","N/A",INDEX(CWIA_QCEW_by_WDA!$J$2:$J$1048576,MATCH(1, ($J10=CWIA_QCEW_by_WDA!$O$2:$O$1048576)*(2021=CWIA_QCEW_by_WDA!$B$2:$B$1048576),0))),"N/A") -> 34500 | L10: 0.1132606933 | M10: =IFERROR(IF(INDEX(CWIA_QCEW_by_WDA!$K$2:$K$1048576,MATCH(1, ($J10=CWIA_QCEW_by_WDA!$O$2:$O$1048576)*(2021=CWIA_QCEW_by_WDA!$B$2:$B$1048576),0))="Confidential","N/A",(INDEX(CWIA_QCEW_by_WDA!$K$2:$K$1048576,MATCH(1, ($J10=CWIA_QCEW_by_WDA!$O$2:$O$1048576)*(2021=CWIA_QCEW_by_WDA!$B$2:$B$1048576),0)))/($K10)),"N/A") -> 75361.75403 | N10: 34500 | O10: 75361.75403
A11: ="Total Real GDP ($B)"&" - "&'BEA - real GDP'!$M$1 -> Total Real GDP ($B) - 2021 | B11: =SUM(B12:B13) -> 36.7773 | D11: Unemployment Rates - (Seasonally Adjusted)6 | J11: 44-45-Retail Trade | K11: =IFERROR(IF(INDEX(CWIA_QCEW_by_WDA!$J$2:$J$1048576,MATCH(1, ($J11=CWIA_QCEW_by_WDA!$O$2:$O$1048576)*(2021=CWIA_QCEW_by_WDA!$B$2:$B$1048576),0))="Confidential","N/A",INDEX(CWIA_QCEW_by_WDA!$J$2:$J$1048576,MATCH(1, ($J11=CWIA_QCEW_by_WDA!$O$2:$O$1048576)*(2021=CWIA_QCEW_by_WDA!$B$2:$B$1048576),0))),"N/A") -> 31251 | L11: 0.1025944906 | M11: =IFERROR(IF(INDEX(CWIA_QCEW_by_WDA!$K$2:$K$1048576,MATCH(1, ($J11=CWIA_QCEW_by_WDA!$O$2:$O$1048576)*(2021=CWIA_QCEW_by_WDA!$B$2:$B$1048576),0))="Confidential","N/A",(INDEX(CWIA_QCEW_by_WDA!$K$2:$K$1048576,MATCH(1, ($J11=CWIA_QCEW_by_WDA!$O$2:$O$1048576)*(2021=CWIA_QCEW_by_WDA!$B$2:$B$1048576),0)))/($K11)),"N/A") -> 34512.74327 | N11: 31251 | O11: 34512.74327
A12: Lehigh County | B12: =LOOKUP(2,1/('BEA - real GDP'!$B:$B<>""),'BEA - real GDP'!$B:$B)/1000000 -> 22.48316 | D12: ="Lehigh Valley - ("&LOOKUP(2,1/(CWIA_LAUS_by_Month_Season_Adj!$K$2:$K$1048576<>""),CWIA_LAUS_by_Month_Season_Adj!$K$2:$K$1048576)&" "&LOOKUP(2,1/(CWIA_LAUS_by_Month_Season_Adj!$L$2:$L$1048576<>""),CWIA_LAUS_by_Month_Season_Adj!$L$2:$L$1048576)&")" -> Lehigh Valley - (March 2023) | E12: =LOOKUP(2,1/(CWIA_LAUS_by_Month_Season_Adj!$F$2:$F$1048576<>""),CWIA_LAUS_by_Month_Season_Adj!$F$2:$F$1048576) -> 0.037 | G12: ="Workforce Age (LV)"&" "&"("&LOOKUP(2,1/(QWI_Workforce_Age!$A$2:$A$1048576<>""),QWI_Workforce_Age!$A$2:$A$1048576)&")" -> Workforce Age (LV) (2022 Q1) | H12: 10 | J12: 61-Educational Services | K12: =IFERROR(IF(INDEX(CWIA_QCEW_by_WDA!$J$2:$J$1048576,MATCH(1, ($J12=CWIA_QCEW_by_WDA!$O$2:$O$1048576)*(2021=CWIA_QCEW_by_WDA!$B$2:$B$1048576),0))="Confidential","N/A",INDEX(CWIA_QCEW_by_WDA!$J$2:$J$1048576,MATCH(1, ($J12=CWIA_QCEW_by_WDA!$O$2:$O$1048576)*(2021=CWIA_QCEW_by_WDA!$B$2:$B$1048576),0))),"N/A") -> 24149 | L12: 0.07927920238 | M12: =IFERROR(IF(INDEX(CWIA_QCEW_by_WDA!$K$2:$K$1048576,MATCH(1, ($J12=CWIA_QCEW_by_WDA!$O$2:$O$1048576)*(2021=CWIA_QCEW_by_WDA!$B$2:$B$1048576),0))="Confidential","N/A",(INDEX(CWIA_QCEW_by_WDA!$K$2:$K$1048576,MATCH(1, ($J12=CWIA_QCEW_by_WDA!$O$2:$O$1048576)*(2021=CWIA_QCEW_by_WDA!$B$2:$B$1048576),0)))/($K12)),"N/A") -> 58074.51352 | N12: 24149 | O12: 58074.51352
A13: Northampton County | B13: =LOOKUP(2,1/('BEA - real GDP'!$C:$C<>""),'BEA - real GDP'!$C:$C)/1000000 -> 14.29414 | D13: Month over Month Change | E13: =LOOKUP(2,1/(CWIA_LAUS_by_Month_Season_Adj!$F$2:$F$1048576<>""),CWIA_LAUS_by_Month_Season_Adj!$F$2:$F$1048576) - (INDEX(CWIA_LAUS_by_Month_Season_Adj!$F$2:$F$1048576,SMALL(ROW(CWIA_LAUS_by_Month_Season_Adj!$F$2:$F$1048576)+(100*(CWIA_LAUS_by_Month_Season_Adj!$F$2:$F$1048576="")),MAX((CWIA_LAUS_by_Month_Season_Adj!$F$2:$F$1048576<>"")*ROW(CWIA_LAUS_by_Month_Season_Adj!$F$2:$F$1048576))-3))&"") -> -0.006 | G13: 14-18 | H13: =HLOOKUP($G13,QWI_Workforce_Age!$B:$I,COUNTA(INDEX(QWI_Workforce_Age!$B:$I,,MATCH(Dashboard!$G13,QWI_Workforce_Age!$B$1:$I$1,0))),0)/(HLOOKUP("Total",QWI_Workforce_Age!$B:$J,COUNTA(INDEX(QWI_Workforce_Age!$B:$J,,MATCH("Total",QWI_Workforce_Age!$B$1:$J$1,0))),0)) -> 0.02958487565 | J13: 72-Accommodation and Food Services | K13: =IFERROR(IF(INDEX(CWIA_QCEW_by_WDA!$J$2:$J$1048576,MATCH(1, ($J13=CWIA_QCEW_by_WDA!$O$2:$O$1048576)*(2021=CWIA_QCEW_by_WDA!$B$2:$B$1048576),0))="Confidential","N/A",INDEX(CWIA_QCEW_by_WDA!$J$2:$J$1048576,MATCH(1, ($J13=CWIA_QCEW_by_WDA!$O$2:$O$1048576)*(2021=CWIA_QCEW_by_WDA!$B$2:$B$1048576),0))),"N/A") -> 21340 | L13: 0.07005748391 | M13: =IFERROR(IF(INDEX(CWIA_QCEW_by_WDA!$K$2:$K$1048576,MATCH(1, ($J13=CWIA_QCEW_by_WDA!$O$2:$O$1048576)*(2021=CWIA_QCEW_by_WDA!$B$2:$B$1048576),0))="Confidential","N/A",(INDEX(CWIA_QCEW_by_WDA!$K$2:$K$1048576,MATCH(1, ($J13=CWIA_QCEW_by_WDA!$O$2:$O$1048576)*(2021=CWIA_QCEW_by_WDA!$B$2:$B$1048576),0)))/($K13)),"N/A") -> 24174.77413 | N13: 21340 | O13: 24174.77413
A14: Year over Year % Change (Real GDP)2,3 | B14: =(B11-VLOOKUP('BEA - real GDP'!$M$1-1,'BEA - real GDP'!$A:$D,4,FALSE)/1000000)/(VLOOKUP('BEA - real GDP'!$M$1-1,'BEA - real GDP'!$A:$D,4,FALSE)/1000000) -> 0.06315546373 | G14: 19-21 | H14: =HLOOKUP($G14,QWI_Workforce_Age!$B:$I,COUNTA(INDEX(QWI_Workforce_Age!$B:$I,,MATCH(Dashboard!$G14,QWI_Workforce_Age!$B$1:$I$1,0))),0)/(HLOOKUP("Total",QWI_Workforce_Age!$B:$J,COUNTA(INDEX(QWI_Workforce_Age!$B:$J,,MATCH("Total",QWI_Workforce_Age!$B$1:$J$1,0))),0)) -> 0.04458992322 | J14: 56-Administrative and Waste Services | K14: =IFERROR(IF(INDEX(CWIA_QCEW_by_WDA!$J$2:$J$1048576,MATCH(1, ($J14=CWIA_QCEW_by_WDA!$O$2:$O$1048576)*(2021=CWIA_QCEW_by_WDA!$B$2:$B$1048576),0))="Confidential","N/A",INDEX(CWIA_QCEW_by_WDA!$J$2:$J$1048576,MATCH(1, ($J14=CWIA_QCEW_by_WDA!$O$2:$O$1048576)*(2021=CWIA_QCEW_by_WDA!$B$2:$B$1048576),0))),"N/A") -> 20122 | L14: 0.06605888899 | M14: =IFERROR(IF(INDEX(CWIA_QCEW_by_WDA!$K$2:$K$1048576,MATCH(1, ($J14=CWIA_QCEW_by_WDA!$O$2:$O$1048576)*(2021=CWIA_QCEW_by_WDA!$B$2:$B$1048576),0))="Confidential","N/A",(INDEX(CWIA_QCEW_by_WDA!$K$2:$K$1048576,MATCH(1, ($J14=CWIA_QCEW_by_WDA!$O$2:$O$1048576)*(2021=CWIA_QCEW_by_WDA!$B$2:$B$1048576),0)))/($K14)),"N/A") -> 44718.30892 | N14: 20122 | O14: 44718.30892
D15: ="Pennsylvania - ("&LOOKUP(2,1/('LAUS by Month PA Season Adj'!$K$2:$K$1048576<>""),'LAUS by Month PA Season Adj'!$K$2:$K$1048576)&" "&LOOKUP(2,1/('LAUS by Month PA Season Adj'!$L$2:$L$1048576<>""),'LAUS by Month PA Season Adj'!$L$2:$L$1048576)&")" -> Pennsylvania - (April 2023) | E15: =LOOKUP(2,1/('LAUS by Month PA Season Adj'!$F$2:$F$1048576<>""),'LAUS by Month PA Season Adj'!$F$2:$F$1048576) -> 0.041 | G15: 22-24 | H15: =HLOOKUP($G15,QWI_Workforce_Age!$B:$I,COUNTA(INDEX(QWI_Workforce_Age!$B:$I,,MATCH(Dashboard!$G15,QWI_Workforce_Age!$B$1:$I$1,0))),0)/(HLOOKUP("Total",QWI_Workforce_Age!$B:$J,COUNTA(INDEX(QWI_Workforce_Age!$B:$J,,MATCH("Total",QWI_Workforce_Age!$B$1:$J$1,0))),0)) -> 0.05458105173 | J15: 54-Professional and Technical Services | K15: =IFERROR(IF(INDEX(CWIA_QCEW_by_WDA!$J$2:$J$1048576,MATCH(1, ($J15=CWIA_QCEW_by_WDA!$O$2:$O$1048576)*(2021=CWIA_QCEW_by_WDA!$B$2:$B$1048576),0))="Confidential","N/A",INDEX(CWIA_QCEW_by_WDA!$J$2:$J$1048576,MATCH(1, ($J15=CWIA_QCEW_by_WDA!$O$2:$O$1048576)*(2021=CWIA_QCEW_by_WDA!$B$2:$B$1048576),0))),"N/A") -> 12760 | L15: 0.04189004192 | M15: =IFERROR(IF(INDEX(CWIA_QCEW_by_WDA!$K$2:$K$1048576,MATCH(1, ($J15=CWIA_QCEW_by_WDA!$O$2:$O$1048576)*(2021=CWIA_QCEW_by_WDA!$B$2:$B$1048576),0))="Confidential","N/A",(INDEX(CWIA_QCEW_by_WDA!$K$2:$K$1048576,MATCH(1, ($J15=CWIA_QCEW_by_WDA!$O$2:$O$1048576)*(2021=CWIA_QCEW_by_WDA!$B$2:$B$1048576),0)))/($K15)),"N/A") -> 86093.58879 | N15: 12760 | O15: 86093.58879
A16: Targeted Industry Sectors (LV) | D16: ="U.S. - ("&LOOKUP(2,1/('LAUS by Month US Season Adj '!$K$2:$K$1048576<>""),'LAUS by Month US Season Adj '!$K$2:$K$1048576)&" "&LOOKUP(2,1/('LAUS by Month US Season Adj '!$L$2:$L$1048576<>""),'LAUS by Month US Season Adj '!$L$2:$L$1048576)&")" -> U.S. - (April 2023) | E16: =LOOKUP(2,1/('LAUS by Month US Season Adj '!$F$2:$F$1048576<>""),'LAUS by Month US Season Adj '!$F$2:$F$1048576) -> 0.034 | G16: 25-34 | H16: =HLOOKUP($G16,QWI_Workforce_Age!$B:$I,COUNTA(INDEX(QWI_Workforce_Age!$B:$I,,MATCH(Dashboard!$G16,QWI_Workforce_Age!$B$1:$I$1,0))),0)/HLOOKUP("Total",QWI_Workforce_Age!$B:$J,COUNTA(INDEX(QWI_Workforce_Age!$B:$J,,MATCH("Total",QWI_Workforce_Age!$B$1:$J$1,0))),0) -> 0.2126556334 | J16: 42-Wholesale Trade | K16: =IFERROR(IF(INDEX(CWIA_QCEW_by_WDA!$J$2:$J$1048576,MATCH(1, ($J16=CWIA_QCEW_by_WDA!$O$2:$O$1048576)*(2021=CWIA_QCEW_by_WDA!$B$2:$B$1048576),0))="Confidential","N/A",INDEX(CWIA_QCEW_by_WDA!$J$2:$J$1048576,MATCH(1, ($J16=CWIA_QCEW_by_WDA!$O$2:$O$1048576)*(2021=CWIA_QCEW_by_WDA!$B$2:$B$1048576),0))),"N/A") -> 11596 | L16: 0.03806872462 | M16: =IFERROR(IF(INDEX(CWIA_QCEW_by_WDA!$K$2:$K$1048576,MATCH(1, ($J16=CWIA_QCEW_by_WDA!$O$2:$O$1048576)*(2021=CWIA_QCEW_by_WDA!$B$2:$B$1048576),0))="Confidential","N/A",(INDEX(CWIA_QCEW_by_WDA!$K$2:$K$1048576,MATCH(1, ($J16=CWIA_QCEW_by_WDA!$O$2:$O$1048576)*(2021=CWIA_QCEW_by_WDA!$B$2:$B$1048576),0)))/($K16)),"N/A") -> 85486.07942 | N16: 11596 | O16: 85486.07942
A17: Health Care & Social Assistance | D17: ="Metropolitan Statistical Area (MSA)"&" - ("&LOOKUP(2,1/(LAUS_by_MSA_Season_Adj!$K$2:$K$1048576<>""),LAUS_by_MSA_Season_Adj!$K$2:$K$1048576)&" "&LOOKUP(2,1/(LAUS_by_MSA_Season_Adj!$L$2:$L$1048576<>""),LAUS_by_MSA_Season_Adj!$L$2:$L$1048576)&")" -> Metropolitan Statistical Area (MSA) - (February 2023) | E17: =LOOKUP(2,1/(LAUS_by_MSA_Season_Adj!$F$2:$F$1048576<>""),LAUS_by_MSA_Season_Adj!$F$2:$F$1048576) -> 0.039 | G17: 35-44 | H17: =HLOOKUP($G17,QWI_Workforce_Age!$B:$I,COUNTA(INDEX(QWI_Workforce_Age!$B:$I,,MATCH(Dashboard!$G17,QWI_Workforce_Age!$B$1:$I$1,0))),0)/HLOOKUP("Total",QWI_Workforce_Age!$B:$J,COUNTA(INDEX(QWI_Workforce_Age!$B:$J,,MATCH("Total",QWI_Workforce_Age!$B$1:$J$1,0))),0) -> 0.2052494723 | J17: 23-Construction | K17: =IFERROR(IF(INDEX(CWIA_QCEW_by_WDA!$J$2:$J$1048576,MATCH(1, ($J17=CWIA_QCEW_by_WDA!$O$2:$O$1048576)*(2021=CWIA_QCEW_by_WDA!$B$2:$B$1048576),0))="Confidential","N/A",INDEX(CWIA_QCEW_by_WDA!$J$2:$J$1048576,MATCH(1, ($J17=CWIA_QCEW_by_WDA!$O$2:$O$1048576)*(2021=CWIA_QCEW_by_WDA!$B$2:$B$1048576),0))),"N/A") -> 11149 | L17: 0.03660125998 | M17: =IFERROR(IF(INDEX(CWIA_QCEW_by_WDA!$K$2:$K$1048576,MATCH(1, ($J17=CWIA_QCEW_by_WDA!$O$2:$O$1048576)*(2021=CWIA_QCEW_by_WDA!$B$2:$B$1048576),0))="Confidential","N/A",(INDEX(CWIA_QCEW_by_WDA!$K$2:$K$1048576,MATCH(1, ($J17=CWIA_QCEW_by_WDA!$O$2:$O$1048576)*(2021=CWIA_QCEW_by_WDA!$B$2:$B$1048576),0)))/($K17)),"N/A") -> 71712.14817 | N17: 11149 | O17: 71712.14817
A18: Transportation & Warehousing | G18: 45-54 | H18: =HLOOKUP($G18,QWI_Workforce_Age!$B:$I,COUNTA(INDEX(QWI_Workforce_Age!$B:$I,,MATCH(Dashboard!$G18,QWI_Workforce_Age!$B$1:$I$1,0))),0)/HLOOKUP("Total",QWI_Workforce_Age!$B:$J,COUNTA(INDEX(QWI_Workforce_Age!$B:$J,,MATCH("Total",QWI_Workforce_Age!$B$1:$J$1,0))),0) -> 0.1976750589 | J18: 81-Other Services, Ex. Public Admin | K18: =IFERROR(IF(INDEX(CWIA_QCEW_by_WDA!$J$2:$J$1048576,MATCH(1, ($J18=CWIA_QCEW_by_WDA!$O$2:$O$1048576)*(2021=CWIA_QCEW_by_WDA!$B$2:$B$1048576),0))="Confidential","N/A",INDEX(CWIA_QCEW_by_WDA!$J$2:$J$1048576,MATCH(1, ($J18=CWIA_QCEW_by_WDA!$O$2:$O$1048576)*(2021=CWIA_QCEW_by_WDA!$B$2:$B$1048576),0))),"N/A") -> 8250 | L18: 0.02708407883 | M18: =IFERROR(IF(INDEX(CWIA_QCEW_by_WDA!$K$2:$K$1048576,MATCH(1, ($J18=CWIA_QCEW_by_WDA!$O$2:$O$1048576)*(2021=CWIA_QCEW_by_WDA!$B$2:$B$1048576),0))="Confidential","N/A",(INDEX(CWIA_QCEW_by_WDA!$K$2:$K$1048576,MATCH(1, ($J18=CWIA_QCEW_by_WDA!$O$2:$O$1048576)*(2021=CWIA_QCEW_by_WDA!$B$2:$B$1048576),0)))/($K18)),"N/A") -> 37936.58121 | N18: 8250 | O18: 37936.58121
A19: Manufacturing | D19: Unemployment Continued Claims7 | G19: 55-64 | H19: =HLOOKUP($G19,QWI_Workforce_Age!$B:$I,COUNTA(INDEX(QWI_Workforce_Age!$B:$I,,MATCH(Dashboard!$G19,QWI_Workforce_Age!$B$1:$I$1,0))),0)/HLOOKUP("Total",QWI_Workforce_Age!$B:$J,COUNTA(INDEX(QWI_Workforce_Age!$B:$J,,MATCH("Total",QWI_Workforce_Age!$B$1:$J$1,0))),0) -> 0.1855486555 | J19: 52-Finance and Insurance | K19: =IFERROR(IF(INDEX(CWIA_QCEW_by_WDA!$J$2:$J$1048576,MATCH(1, ($J19=CWIA_QCEW_by_WDA!$O$2:$O$1048576)*(2021=CWIA_QCEW_by_WDA!$B$2:$B$1048576),0))="Confidential","N/A",INDEX(CWIA_QCEW_by_WDA!$J$2:$J$1048576,MATCH(1, ($J19=CWIA_QCEW_by_WDA!$O$2:$O$1048576)*(2021=CWIA_QCEW_by_WDA!$B$2:$B$1048576),0))),"N/A") -> 8027 | L19: 0.02635198797 | M19: =IFERROR(IF(INDEX(CWIA_QCEW_by_WDA!$K$2:$K$1048576,MATCH(1, ($J19=CWIA_QCEW_by_WDA!$O$2:$O$1048576)*(2021=CWIA_QCEW_by_WDA!$B$2:$B$1048576),0))="Confidential","N/A",(INDEX(CWIA_QCEW_by_WDA!$K$2:$K$1048576,MATCH(1, ($J19=CWIA_QCEW_by_WDA!$O$2:$O$1048576)*(2021=CWIA_QCEW_by_WDA!$B$2:$B$1048576),0)))/($K19)),"N/A") -> 98355.85387 | N19: 8027 | O19: 98355.85387
A20: Professional & Technical Services | D20: ="Lehigh County"&" "&"(WE "&LOOKUP(2,1/('CC by County and Week'!$G$158:$G$1048576<>""),'CC by County and Week'!$G$158:$G$1048576)&")" -> Lehigh County (WE 5/13/23) | E20: =LOOKUP(2,1/('CC by County and Week'!$B$158:$B$1048576<>""),'CC by County and Week'!$B$158:$B$1048576) -> 2545 | G20: 65-99 | H20: =1-SUM(H13:H19) -> 0.07011532932 | J20: 92-Public Administration | K20: =IFERROR(IF(INDEX(CWIA_QCEW_by_WDA!$J$2:$J$1048576,MATCH(1, ($J20=CWIA_QCEW_by_WDA!$O$2:$O$1048576)*(2021=CWIA_QCEW_by_WDA!$B$2:$B$1048576),0))="Confidential","N/A",INDEX(CWIA_QCEW_by_WDA!$J$2:$J$1048576,MATCH(1, ($J20=CWIA_QCEW_by_WDA!$O$2:$O$1048576)*(2021=CWIA_QCEW_by_WDA!$B$2:$B$1048576),0))),"N/A") -> 7523 | L20: 0.02469739697 | M20: =IFERROR(IF(INDEX(CWIA_QCEW_by_WDA!$K$2:$K$1048576,MATCH(1, ($J20=CWIA_QCEW_by_WDA!$O$2:$O$1048576)*(2021=CWIA_QCEW_by_WDA!$B$2:$B$1048576),0))="Confidential","N/A",(INDEX(CWIA_QCEW_by_WDA!$K$2:$K$1048576,MATCH(1, ($J20=CWIA_QCEW_by_WDA!$O$2:$O$1048576)*(2021=CWIA_QCEW_by_WDA!$B$2:$B$1048576),0)))/($K20)),"N/A") -> 63188.11923 | N20: 7523 | O20: 63188.11923
A21: Finance & Insurance | D21: ="Northampton County"&" "&"(WE "&LOOKUP(2,1/('CC by County and Week'!$G$158:$G$1048576<>""),'CC by County and Week'!$G$158:$G$1048576)&")" -> Northampton County (WE 5/13/23) | E21: =LOOKUP(2,1/('CC by County and Week'!$C$158:$C$1048576<>""),'CC by County and Week'!$C$158:$C$1048576) -> 1684 | J21: 55-Management of Companies and Enterprises | K21: =IFERROR(IF(INDEX(CWIA_QCEW_by_WDA!$J$2:$J$1048576,MATCH(1, ($J21=CWIA_QCEW_by_WDA!$O$2:$O$1048576)*(2021=CWIA_QCEW_by_WDA!$B$2:$B$1048576),0))="Confidential","N/A",INDEX(CWIA_QCEW_by_WDA!$J$2:$J$1048576,MATCH(1, ($J21=CWIA_QCEW_by_WDA!$O$2:$O$1048576)*(2021=CWIA_QCEW_by_WDA!$B$2:$B$1048576),0))),"N/A") -> 6955 | L21: 0.02283269918 | M21: =IFERROR(IF(INDEX(CWIA_QCEW_by_WDA!$K$2:$K$1048576,MATCH(1, ($J21=CWIA_QCEW_by_WDA!$O$2:$O$1048576)*(2021=CWIA_QCEW_by_WDA!$B$2:$B$1048576),0))="Confidential","N/A",(INDEX(CWIA_QCEW_by_WDA!$K$2:$K$1048576,MATCH(1, ($J21=CWIA_QCEW_by_WDA!$O$2:$O$1048576)*(2021=CWIA_QCEW_by_WDA!$B$2:$B$1048576),0)))/($K21)),"N/A") -> 151007.0786 | N21: 6955 | O21: 151007.0786
D22: ="Total Lehigh Valley"&" "&"(WE "&LOOKUP(2,1/('CC by County and Week'!$G$158:$G$1048576<>""),'CC by County and Week'!$G$158:$G$1048576)&")" -> Total Lehigh Valley (WE 5/13/23) | E22: =SUM(E20:E21) -> 4229 | G22: ="Workforce Race (LV)"&" "&"("&LOOKUP(2,1/(QWI_Race!$A$2:$A$1048576<>""),QWI_Race!$A$2:$A$1048576)&")" -> Workforce Race (LV) (2022 Q1) | H22: 10 | J22: 71-Arts, Entertainment, and Recreation | K22: =IFERROR(IF(INDEX(CWIA_QCEW_by_WDA!$J$2:$J$1048576,MATCH(1, ($J22=CWIA_QCEW_by_WDA!$O$2:$O$1048576)*(2021=CWIA_QCEW_by_WDA!$B$2:$B$1048576),0))="Confidential","N/A",INDEX(CWIA_QCEW_by_WDA!$J$2:$J$1048576,MATCH(1, ($J22=CWIA_QCEW_by_WDA!$O$2:$O$1048576)*(2021=CWIA_QCEW_by_WDA!$B$2:$B$1048576),0))),"N/A") -> 4530 | L22: 0.01487162147 | M22: =IFERROR(IF(INDEX(CWIA_QCEW_by_WDA!$K$2:$K$1048576,MATCH(1, ($J22=CWIA_QCEW_by_WDA!$O$2:$O$1048576)*(2021=CWIA_QCEW_by_WDA!$B$2:$B$1048576),0))="Confidential","N/A",(INDEX(CWIA_QCEW_by_WDA!$K$2:$K$1048576,MATCH(1, ($J22=CWIA_QCEW_by_WDA!$O$2:$O$1048576)*(2021=CWIA_QCEW_by_WDA!$B$2:$B$1048576),0)))/($K22)),"N/A") -> 26227.91766 | N22: 4530 | O22: 26227.91766
A23: ="Employers (LV)"&" - "&LOOKUP(2,1/('OEWS_Annual_Occupational Wages'!$B$2:$B$1048576<>""),'OEWS_Annual_Occupational Wages'!$B$2:$B$1048576) -> Employers (LV) - 2021 | G23: White Alone | H23: =HLOOKUP(Dashboard!$G23,QWI_Race!$B:$G,COUNTA(INDEX(QWI_Race!$B:$G,,MATCH(Dashboard!$G23,QWI_Race!$B$1:$G$1,0))),0)/(HLOOKUP("Total",QWI_Race!$B:$N,COUNTA(INDEX(QWI_Race!$B:$N,,MATCH("Total",QWI_Race!$B$1:$N$1,0))),0)) -> 0.839287954 | J23: 51-Information | K23: =IFERROR(IF(INDEX(CWIA_QCEW_by_WDA!$J$2:$J$1048576,MATCH(1, ($J23=CWIA_QCEW_by_WDA!$O$2:$O$1048576)*(2021=CWIA_QCEW_by_WDA!$B$2:$B$1048576),0))="Confidential","N/A",INDEX(CWIA_QCEW_by_WDA!$J$2:$J$1048576,MATCH(1, ($J23=CWIA_QCEW_by_WDA!$O$2:$O$1048576)*(2021=CWIA_QCEW_by_WDA!$B$2:$B$1048576),0))),"N/A") -> 3341 | L23: 0.0109682312 | M23: =IFERROR(IF(INDEX(CWIA_QCEW_by_WDA!$K$2:$K$1048576,MATCH(1, ($J23=CWIA_QCEW_by_WDA!$O$2:$O$1048576)*(2021=CWIA_QCEW_by_WDA!$B$2:$B$1048576),0))="Confidential","N/A",(INDEX(CWIA_QCEW_by_WDA!$K$2:$K$1048576,MATCH(1, ($J23=CWIA_QCEW_by_WDA!$O$2:$O$1048576)*(2021=CWIA_QCEW_by_WDA!$B$2:$B$1048576),0)))/($K23)),"N/A") -> 73089.83478 | N23: 3341 | O23: 73089.83478
A24: Establishments (in thousands) 3, 4 | B24: =SUMIF(CWIA_QCEW_by_WDA!$B$2:$B$1048576,LOOKUP(2,1/(CWIA_QCEW_by_WDA!$B$2:$B$1048576<>""),CWIA_QCEW_by_WDA!$B$2:$B$1048576),CWIA_QCEW_by_WDA!$F$2:$F$1048576)/1000 -> 15.689 | D24: ="Workforce Education Attainment (LV) -"&" ("&LOOKUP(2,1/(QWI_Educ_Attainment!$A$2:$A$1048576<>""),QWI_Educ_Attainment!$A$2:$A$1048576)&")" -> Workforce Education Attainment (LV) - (2022 Q1) | G24: Black or African American Alone | H24: =HLOOKUP(Dashboard!$G24,QWI_Race!$B:$G,COUNTA(INDEX(QWI_Race!$B:$G,,MATCH(Dashboard!$G24,QWI_Race!$B$1:$G$1,0))),0)/(HLOOKUP("Total",QWI_Race!$B:$N,COUNTA(INDEX(QWI_Race!$B:$N,,MATCH("Total",QWI_Race!$B$1:$N$1,0))),0)) -> 0.09962097226 | J24: 53-Real Estate and Rental and Leasing | K24: =IFERROR(IF(INDEX(CWIA_QCEW_by_WDA!$J$2:$J$1048576,MATCH(1, ($J24=CWIA_QCEW_by_WDA!$O$2:$O$1048576)*(2021=CWIA_QCEW_by_WDA!$B$2:$B$1048576),0))="Confidential","N/A",INDEX(CWIA_QCEW_by_WDA!$J$2:$J$1048576,MATCH(1, ($J24=CWIA_QCEW_by_WDA!$O$2:$O$1048576)*(2021=CWIA_QCEW_by_WDA!$B$2:$B$1048576),0))),"N/A") -> 2951 | L24: 0.009687892924 | M24: =IFERROR(IF(INDEX(CWIA_QCEW_by_WDA!$K$2:$K$1048576,MATCH(1, ($J24=CWIA_QCEW_by_WDA!$O$2:$O$1048576)*(2021=CWIA_QCEW_by_WDA!$B$2:$B$1048576),0))="Confidential","N/A",(INDEX(CWIA_QCEW_by_WDA!$K$2:$K$1048576,MATCH(1, ($J24=CWIA_QCEW_by_WDA!$O$2:$O$1048576)*(2021=CWIA_QCEW_by_WDA!$B$2:$B$1048576),0)))/($K24)),"N/A") -> 56999.52152 | N24: 2951 | O24: 56999.52152
A25: Total Employees (in thousands)4 | B25: =SUMIF('OEWS_Annual_Occupational Wages'!$B$2:$B$1048576,LOOKUP(2,1/('OEWS_Annual_Occupational Wages'!$B$2:$B$1048576<>""),'OEWS_Annual_Occupational Wages'!$B$2:$B$1048576),'OEWS_Annual_Occupational Wages'!$F$2:$F$1048576)/1000 -> 301.76 | D25: Less than high school | E25: =HLOOKUP($D25,QWI_Educ_Attainment!$B:$G,COUNTA(INDEX(QWI_Educ_Attainment!$B:$G,,MATCH($D25, QWI_Educ_Attainment!$B$1:$G$1,0))),0)/HLOOKUP("Total",QWI_Educ_Attainment!$B:$G,COUNTA(INDEX(QWI_Educ_Attainment!$B:$G,,MATCH("Total",QWI_Educ_Attainment!$B$1:$G$1,0))),0) -> 0.1104533955 | G25: American Indian or Alaska Native Alone | H25: =HLOOKUP(Dashboard!$G25,QWI_Race!$B:$G,COUNTA(INDEX(QWI_Race!$B:$G,,MATCH(Dashboard!$G25,QWI_Race!$B$1:$G$1,0))),0)/(HLOOKUP("Total",QWI_Race!$B:$N,COUNTA(INDEX(QWI_Race!$B:$N,,MATCH("Total",QWI_Race!$B$1:$N$1,0))),0)) -> 0.005362676627 | J25: 22-Utilities | K25: =IFERROR(IF(INDEX(CWIA_QCEW_by_WDA!$J$2:$J$1048576,MATCH(1, ($J25=CWIA_QCEW_by_WDA!$O$2:$O$1048576)*(2021=CWIA_QCEW_by_WDA!$B$2:$B$1048576),0))="Confidential","N/A",INDEX(CWIA_QCEW_by_WDA!$J$2:$J$1048576,MATCH(1, ($J25=CWIA_QCEW_by_WDA!$O$2:$O$1048576)*(2021=CWIA_QCEW_by_WDA!$B$2:$B$1048576),0))),"N/A") -> 1317 | L25: 0.004323603857 | M25: =IFERROR(IF(INDEX(CWIA_QCEW_by_WDA!$K$2:$K$1048576,MATCH(1, ($J25=CWIA_QCEW_by_WDA!$O$2:$O$1048576)*(2021=CWIA_QCEW_by_WDA!$B$2:$B$1048576),0))="Confidential","N/A",(INDEX(CWIA_QCEW_by_WDA!$K$2:$K$1048576,MATCH(1, ($J25=CWIA_QCEW_by_WDA!$O$2:$O$1048576)*(2021=CWIA_QCEW_by_WDA!$B$2:$B$1048576),0)))/($K25)),"N/A") -> 100180.2172 | N25: 1317 | O25: 100180.2172
A26: Avg Employees per Establishment | B26: =IFERROR(B25/B24,"") -> 19.23385812 | D26: High school or equivalent, no college | E26: =HLOOKUP($D26,QWI_Educ_Attainment!$B:$G,COUNTA(INDEX(QWI_Educ_Attainment!$B:$G,,MATCH($D26, QWI_Educ_Attainment!$B$1:$G$1,0))),0)/HLOOKUP("Total",QWI_Educ_Attainment!$B:$G,COUNTA(INDEX(QWI_Educ_Attainment!$B:$G,,MATCH("Total",QWI_Educ_Attainment!$B$1:$G$1,0))),0) -> 0.2445661983 | G26: Asian Alone | H26: =HLOOKUP(Dashboard!$G26,QWI_Race!$B:$G,COUNTA(INDEX(QWI_Race!$B:$G,,MATCH(Dashboard!$G26,QWI_Race!$B$1:$G$1,0))),0)/(HLOOKUP("Total",QWI_Race!$B:$N,COUNTA(INDEX(QWI_Race!$B:$N,,MATCH("Total",QWI_Race!$B$1:$N$1,0))),0)) -> 0.03564818639 | J26: 11-Agriculture, Forestry, Fishing & Hunting | K26: =IFERROR(IF(INDEX(CWIA_QCEW_by_WDA!$J$2:$J$1048576,MATCH(1, ($J26=CWIA_QCEW_by_WDA!$O$2:$O$1048576)*(2021=CWIA_QCEW_by_WDA!$B$2:$B$1048576),0))="Confidential","N/A",INDEX(CWIA_QCEW_by_WDA!$J$2:$J$1048576,MATCH(1, ($J26=CWIA_QCEW_by_WDA!$O$2:$O$1048576)*(2021=CWIA_QCEW_by_WDA!$B$2:$B$1048576),0))),"N/A") -> N/A | L26: N/A | M26: =IFERROR(IF(INDEX(CWIA_QCEW_by_WDA!$K$2:$K$1048576,MATCH(1, ($J26=CWIA_QCEW_by_WDA!$O$2:$O$1048576)*(2021=CWIA_QCEW_by_WDA!$B$2:$B$1048576),0))="Confidential","N/A",(INDEX(CWIA_QCEW_by_WDA!$K$2:$K$1048576,MATCH(1, ($J26=CWIA_QCEW_by_WDA!$O$2:$O$1048576)*(2021=CWIA_QCEW_by_WDA!$B$2:$B$1048576),0)))/($K26)),"N/A") -> N/A | N26: 0 | O26: 0
A27: ="Avg Hourly Wage"&" - "&OEWS_Occupational_Hourly_totals!$R$1 -> Avg Hourly Wage - 2021 | B27: =LOOKUP(2,1/(OEWS_Occupational_Hourly_totals!$K$2:$K$1048576<>""),OEWS_Occupational_Hourly_totals!$K$2:$K$1048576) -> 25.76 | D27: Some college or Associate degree | E27: =HLOOKUP($D27,QWI_Educ_Attainment!$B:$G,COUNTA(INDEX(QWI_Educ_Attainment!$B:$G,,MATCH($D27, QWI_Educ_Attainment!$B$1:$G$1,0))),0)/HLOOKUP("Total",QWI_Educ_Attainment!$B:$G,COUNTA(INDEX(QWI_Educ_Attainment!$B:$G,,MATCH("Total",QWI_Educ_Attainment!$B$1:$G$1,0))),0) -> 0.272358507 | G27: Native Hawaiian or Other Pacific Islander Alone | H27: =HLOOKUP(Dashboard!$G27,QWI_Race!$B:$G,COUNTA(INDEX(QWI_Race!$B:$G,,MATCH(Dashboard!$G27,QWI_Race!$B$1:$G$1,0))),0)/(HLOOKUP("Total",QWI_Race!$B:$N,COUNTA(INDEX(QWI_Race!$B:$N,,MATCH("Total",QWI_Race!$B$1:$N$1,0))),0)) -> 0.001502038918 | J27: 21-Mining, Quarrying, and Oil and Gas Extraction | K27: =IFERROR(IF(INDEX(CWIA_QCEW_by_WDA!$J$2:$J$1048576,MATCH(1, ($J27=CWIA_QCEW_by_WDA!$O$2:$O$1048576)*(2021=CWIA_QCEW_by_WDA!$B$2:$B$1048576),0))="Confidential","N/A",INDEX(CWIA_QCEW_by_WDA!$J$2:$J$1048576,MATCH(1, ($J27=CWIA_QCEW_by_WDA!$O$2:$O$1048576)*(2021=CWIA_QCEW_by_WDA!$B$2:$B$1048576),0))),"N/A") -> N/A | L27: N/A | M27: =IFERROR(IF(INDEX(CWIA_QCEW_by_WDA!$K$2:$K$1048576,MATCH(1, ($J27=CWIA_QCEW_by_WDA!$O$2:$O$1048576)*(2021=CWIA_QCEW_by_WDA!$B$2:$B$1048576),0))="Confidential","N/A",(INDEX(CWIA_QCEW_by_WDA!$K$2:$K$1048576,MATCH(1, ($J27=CWIA_QCEW_by_WDA!$O$2:$O$1048576)*(2021=CWIA_QCEW_by_WDA!$B$2:$B$1048576),0)))/($K27)),"N/A") -> N/A | N27: 0 | O27: 0
A28: Year over Year Hourly Wage % Change | B28: =(HLOOKUP(OEWS_Occupational_Hourly_totals!$K$1,OEWS_Occupational_Hourly_totals!$A:$N,ROW(OFFSET(OEWS_Occupational_Hourly_totals!$K$2,COUNTA(OEWS_Occupational_Hourly_totals!$K$2:$K$1048576)-1,0)),FALSE) - HLOOKUP(OEWS_Occupational_Hourly_totals!$K$1,OEWS_Occupational_Hourly_totals!$A:$N,ROW(OFFSET(OEWS_Occupational_Hourly_totals!$K$2,COUNTA(OEWS_Occupational_Hourly_totals!$K$2:$K$1048576)-2,0)),FALSE))/(HLOOKUP(OEWS_Occupational_Hourly_totals!$K$1,OEWS_Occupational_Hourly_totals!$A:$N,ROW(OFFSET(OEWS_Occupational_Hourly_totals!$K$2,COUNTA(OEWS_Occupational_Hourly_totals!$K$2:$K$1048576)-2,0)),FALSE)) -> 0.04672897196 | D28: Bachelor's degree or advanced degree | E28: =HLOOKUP($D28,QWI_Educ_Attainment!$B:$G,COUNTA(INDEX(QWI_Educ_Attainment!$B:$G,,MATCH($D28, QWI_Educ_Attainment!$B$1:$G$1,0))),0)/HLOOKUP("Total",QWI_Educ_Attainment!$B:$G,COUNTA(INDEX(QWI_Educ_Attainment!$B:$G,,MATCH("Total",QWI_Educ_Attainment!$B$1:$G$1,0))),0) -> 0.2438656547 | G28: Two or More Race Groups | H28: =HLOOKUP(Dashboard!$G28,QWI_Race!$B:$G,COUNTA(INDEX(QWI_Race!$B:$G,,MATCH(Dashboard!$G28,QWI_Race!$B$1:$G$1,0))),0)/(HLOOKUP("Total",QWI_Race!$B:$N,COUNTA(INDEX(QWI_Race!$B:$N,,MATCH("Total",QWI_Race!$B$1:$N$1,0))),0)) -> 0.0185781718
D29: Educational attainment not available | E29: =HLOOKUP($D29,QWI_Educ_Attainment!$B:$G,COUNTA(INDEX(QWI_Educ_Attainment!$B:$G,,MATCH($D29, QWI_Educ_Attainment!$B$1:$G$1,0))),0)/HLOOKUP("Total",QWI_Educ_Attainment!$B:$G,COUNTA(INDEX(QWI_Educ_Attainment!$B:$G,,MATCH("Total",QWI_Educ_Attainment!$B$1:$G$1,0))),0) -> 0.1287562445
A30: ="Top Occupations by Job Postings (LV)"&" - "&"("&INDEX(Growing_occupations[#Headers],,COLUMNS(Growing_occupations[]))&")" -> Top Occupations by Job Postings (LV) - (Feb-23) | G30: Hispanic/Latino | H30: =HLOOKUP($G30,QWI_Ethnicity!$B:$F,COUNTA(INDEX(QWI_Ethnicity!$B:$F,,MATCH(Dashboard!$G30,QWI_Ethnicity!$B$1:$F$1,0))),0) / HLOOKUP("Total",QWI_Ethnicity!$B:$F,COUNTA(INDEX(QWI_Ethnicity!$B:$F,,MATCH("Total",QWI_Ethnicity!$B$1:$F$1,0))),0) -> 0.158757254
A31: ="1."&IF(LEN(INDEX('Growing Occu. Postings'!$C$2:$C$1048576,MATCH(LARGE(INDEX(Growing_occupations[],,COLUMNS(Growing_occupations[])),1),INDEX(Growing_occupations[],,COLUMNS(Growing_occupations[])),0)))>35, INDEX('Growing Occu. Postings'!$B$2:$B$1048576,MATCH(LARGE(INDEX(Growing_occupations[],,COLUMNS(Growing_occupations[])),1),INDEX(Growing_occupations[],,COLUMNS(Growing_occupations[])),0)), INDEX('Growing Occu. Postings'!$C$2:$C$1048576,MATCH(LARGE(INDEX(Growing_occupations[],,COLUMNS(Growing_occupations[])),1),INDEX(Growing_occupations[],,COLUMNS(Growing_occupations[])),0))) -> 1.Registered Nurses | D31: Education System (LV)8 | G31: Not Hispanic/Latino | H31: =HLOOKUP($G31,QWI_Ethnicity!$B:$F,COUNTA(INDEX(QWI_Ethnicity!$B:$F,,MATCH(Dashboard!$G31,QWI_Ethnicity!$B$1:$F$1,0))),0) / HLOOKUP("Total",QWI_Ethnicity!$B:$F,COUNTA(INDEX(QWI_Ethnicity!$B:$F,,MATCH("Total",QWI_Ethnicity!$B$1:$F$1,0))),0) -> 0.841242746
A32: ="2."&IF(LEN(INDEX('Growing Occu. Postings'!$C$2:$C$1048576,MATCH(LARGE(INDEX(Growing_occupations[],,COLUMNS(Growing_occupations[])),2),INDEX(Growing_occupations[],,COLUMNS(Growing_occupations[])),0)))>35, INDEX('Growing Occu. Postings'!$B$2:$B$1048576,MATCH(LARGE(INDEX(Growing_occupations[],,COLUMNS(Growing_occupations[])),2),INDEX(Growing_occupations[],,COLUMNS(Growing_occupations[])),0)), INDEX('Growing Occu. Postings'!$C$2:$C$1048576,MATCH(LARGE(INDEX(Growing_occupations[],,COLUMNS(Growing_occupations[])),2),INDEX(Growing_occupations[],,COLUMNS(Growing_occupations[])),0))) -> 2.Retail Salespersons | D32: ="School Districts"&" "&"("&'Enrollments LEA_21_22'!$C$3&")" -> School Districts (2021-2022) | E32: =SUM(COUNTIFS('Enrollments LEA_21_22'!$E$6:$E$1048576,{"Lehigh","Northampton"},'Enrollments LEA_21_22'!$D$6:$D$1048576,"School Districts")) -> 17
A33: ="3."&IF(LEN(INDEX('Growing Occu. Postings'!$C$2:$C$1048576,MATCH(LARGE(INDEX(Growing_occupations[],,COLUMNS(Growing_occupations[])),3),INDEX(Growing_occupations[],,COLUMNS(Growing_occupations[])),0)))>35, INDEX('Growing Occu. Postings'!$B$2:$B$1048576,MATCH(LARGE(INDEX(Growing_occupations[],,COLUMNS(Growing_occupations[])),3),INDEX(Growing_occupations[],,COLUMNS(Growing_occupations[])),0)), INDEX('Growing Occu. Postings'!$C$2:$C$1048576,MATCH(LARGE(INDEX(Growing_occupations[],,COLUMNS(Growing_occupations[])),3),INDEX(Growing_occupations[],,COLUMNS(Growing_occupations[])),0))) -> 3.Manufacturing Sales | D33: ="Charter Schools"&" "&"("&'Enrollments LEA_21_22'!$C$3&")" -> Charter Schools (2021-2022) | E33: =SUM(COUNTIFS('Enrollments LEA_21_22'!$E$6:$E$1048576,{"Lehigh","Northampton"},'Enrollments LEA_21_22'!$D$6:$D$1048576,"Charter Schools")) -> 12 | G33: Female | H33: =HLOOKUP($G33,QWI_Gender!$B:$F,COUNTA(INDEX(QWI_Gender!$B:$F,,MATCH(Dashboard!$G33,QWI_Gender!$B$1:$F$1,0))),0)/(HLOOKUP("Total",QWI_Gender!$B:$F,COUNTA(INDEX(QWI_Gender!$B:$F,,MATCH("Total",QWI_Gender!$B$1:$F$1))),0)) -> 0.5067071697
A34: ="4."&IF(LEN(INDEX('Growing Occu. Postings'!$C$2:$C$1048576,MATCH(LARGE(INDEX(Growing_occupations[],,COLUMNS(Growing_occupations[])),4),INDEX(Growing_occupations[],,COLUMNS(Growing_occupations[])),0)))>35, INDEX('Growing Occu. Postings'!$B$2:$B$1048576,MATCH(LARGE(INDEX(Growing_occupations[],,COLUMNS(Growing_occupations[])),4),INDEX(Growing_occupations[],,COLUMNS(Growing_occupations[])),0)), INDEX('Growing Occu. Postings'!$C$2:$C$1048576,MATCH(LARGE(INDEX(Growing_occupations[],,COLUMNS(Growing_occupations[])),4),INDEX(Growing_occupations[],,COLUMNS(Growing_occupations[])),0))) -> 4.Customer Service Representatives | D34: ="Career and Technical Schools"&" "&"("&'Enrollments LEA_21_22'!$C$3&")" -> Career and Technical Schools (2021-2022) | E34: =SUM(COUNTIFS('Enrollments LEA_21_22'!$E$6:$E$1048576,{"Lehigh","Northampton"},'Enrollments LEA_21_22'!$D$6:$D$1048576,"Career and Technical Schools")) -> 3 | G34: Male | H34: =HLOOKUP($G34,QWI_Gender!$B:$F,COUNTA(INDEX(QWI_Gender!$B:$F,,MATCH(Dashboard!$G34,QWI_Gender!$B$1:$F$1,0))),0)/(HLOOKUP("Total",QWI_Gender!$B:$F,COUNTA(INDEX(QWI_Gender!$B:$F,,MATCH("Total",QWI_Gender!$B$1:$F$1))),0)) -> 0.4932928303
A35: ="5."&IF(LEN(INDEX('Growing Occu. Postings'!$C$2:$C$1048576,MATCH(LARGE(INDEX(Growing_occupations[],,COLUMNS(Growing_occupations[])),5),INDEX(Growing_occupations[],,COLUMNS(Growing_occupations[])),0)))>35, INDEX('Growing Occu. Postings'!$B$2:$B$1048576,MATCH(LARGE(INDEX(Growing_occupations[],,COLUMNS(Growing_occupations[])),5),INDEX(Growing_occupations[],,COLUMNS(Growing_occupations[])),0)), INDEX('Growing Occu. Postings'!$C$2:$C$1048576,MATCH(LARGE(INDEX(Growing_occupations[],,COLUMNS(Growing_occupations[])),5),INDEX(Growing_occupations[],,COLUMNS(Growing_occupations[])),0))) -> 5.Retail Sales Supervisor | D35: Community Colleges / 4-Year Institutes | E35: =SUM(COUNTIFS('PA Colleges by County'!$C$2:$C$1048576,{"Lehigh","Northampton"})) -> 13
D36: ="PreK-12 Student Enrollments"&" "&"("&"In Thousands"&")"&" "&"("&LOOKUP(2,1/(Enrollments_LV!$A$5:$A$1048576<>""),Enrollments_LV!$A$5:$A$1048576)&")" -> PreK-12 Student Enrollments (In Thousands) (2021-2022) | E36: =LOOKUP(2,1/(Enrollments_LV!$W$5:$W$1048576<>""),Enrollments_LV!$W$5:$W$1048576)/1000 -> 101.014 | G36: ="Workforce Commuting"&" "&"("&LOOKUP(2,1/(Workforce_Commuting_Time_Series!$A$13:$A$1048576<>""),Workforce_Commuting_Time_Series!$A$13:$A$1048576)&")" -> Workforce Commuting (2020) | H36: 11
A37: Online Job Postings (LV) - (In thousands)5 | D37: ="High School Graduates"&" "&"(In Thousands)"&" "&"("&LOOKUP(2,1/(CollegeBound_by_County!$A$6:$A$1048576<>""),CollegeBound_by_County!$A$6:$A$1048576)&")" -> High School Graduates (In Thousands) (2020-2021) | E37: =(SUMIF(CollegeBound_LV!$A$4:$A$1048576,LOOKUP(2,1/(CollegeBound_LV!$A$4:$A$1048576<>""),CollegeBound_LV!$A$4:$A$1048576),CollegeBound_LV!$B$4:$B$1048576))/1000 -> 7.236 | G37: Commute Out, Live in LV | H37: =LOOKUP(2,1/(Workforce_Commuting_Time_Series!$B$13:$B$1048576<>""),Workforce_Commuting_Time_Series!$B$13:$B$1048576) -> 99986
A38: =INDEX(Growing_occupations[#Headers],,COLUMNS(Growing_occupations[])) -> Feb-23 | B38: =INDEX(Growing_occupations[#Totals],,COLUMNS(Growing_occupations[]))/1000 -> 9.318 | D38: ="4 Year Graduation Rate %"&" "&"("&LOOKUP(2,1/(Grad_Rate_by_County!$A$19:$A$1048576<>""),Grad_Rate_by_County!$A$19:$A$1048576)&")" -> 4 Year Graduation Rate % (2020-2021) | E38: =LOOKUP(2,1/(Grad_Rate_LV!$D:$D<>""),Grad_Rate_LV!$D:$D) -> 0.8990106939 | G38: Commute In, Live Outside LV | H38: =LOOKUP(2,1/(Workforce_Commuting_Time_Series!$C$13:$C$1048576<>""),Workforce_Commuting_Time_Series!$C$13:$C$1048576) -> 101646
A39: =TEXT(TEXT(A38-(365),"mm")*28,"mmm")&"-"&TEXT(A38-(365),"yy") -> Feb-22 | B39: =INDEX(Growing_occupations[#Totals],,COLUMNS(Growing_occupations[])-1)/1000 -> 17.542 | D39: ="College Bound Students"&" "&"("&"In Thousands"&")"&" "&"("&LOOKUP(2,1/(CollegeBound_by_County!$A$4:$A$1048576<>""),CollegeBound_by_County!$A$4:$A$1048576)&")" -> College Bound Students (In Thousands) (2020-2021) | E39: =(SUMIF(CollegeBound_LV!$A$4:$A$1048576,LOOKUP(2,1/(CollegeBound_LV!$A$4:$A$1048576<>""),CollegeBound_LV!$A$4:$A$1048576),CollegeBound_LV!$C$4:$C$1048576))/1000 -> 4.848 | G39: Work and Live in LV | H39: =LOOKUP(2,1/(Workforce_Commuting_Time_Series!$D$13:$D$1048576<>""),Workforce_Commuting_Time_Series!$D$13:$D$1048576) -> 186093
A40: YoY Percentage Change | B40: =(($B$38-$B$39)/($B$39)) -> -0.4688176947 | D40: ="% College Bound of High School Graduates"&" "&"("&LOOKUP(2,1/(CollegeBound_LV!$A$4:$A$1048576<>""),CollegeBound_LV!$A$4:$A$1048576)&")" -> % College Bound of High School Graduates (2020-2021) | E40: =LOOKUP(2,1/(CollegeBound_LV!$D$4:$D$1048576<>""),CollegeBound_LV!$D$4:$D$1048576) -> 0.6699834163
A42: Data Sources:
A43: 1Bureau of Economic Analysis (BEA). Nominal GDP numbers are not normalized for changes in prices. Each year prices of goods and services may fluctuate, which affect these numbers and may not accurately reflect the growth of the economy. (E.g. Supply chain issues may cause higher prices and may indicate higher GDP growth, but does not represent economic growth). See footnote #2. Lehigh Valley Economic Development Corporation (LVEDC) uses Allentown-Bethlehem-Easton-NJ MSA GDP numbers so these two county total will not tie.
A44: 2Bureau of Economic Analysis (BEA). Real GDP normalizes for changes in prices by using 2012 prices, therefore is a better indicator of the growth of the economy. Through this method, fluctuations in prices of goods are controlled for.
A45: 3GDP numbers from 2019 to 2020 were negatively influenced by the COVID-19 pandemic
A46: 4 Quarterly Census of Employment and Wages (QCEW) data provided by the Center for Workforce Information & Analysis (CWIA). Totals include multiple company locations.
A47: 5 Job Postings include the top 100 growing occupations as defined by the Center for Workforce Information & Analysis (CWIA)
A48: 6 Census Local Area Unemployment Statistics (LAUS) Report. Numbers are seasonally adjusted
A49: 7 Center for Workforce Information & Analysis (CWIA) Weekly Unemployment Continued Compensation Claims
A50: 8 Pennsylvania Department of Education Public School Enrollment and 4-Year Cohort Graduation School Year Reports
A51: 9 Population Estimates per the U.S. Census. Labor Force Participation Rates are retrieved from REMI (Regional Economic Modeling Inc.), which are based off of BLS Local Area Unemployment Statistics (LAUS) data.
A52: 10 Census Quarterly Workforce Indicators (QWI)
A53: 11 U.S. on theMap Inflow/Outflow Analysis for Lehigh Valley Workforce Investment Area - Primary Jobs (https://onthemap.ces.census.gov/)
A54: 12 CWIA Quarterly Census of Employment and Wages (QCEW). Per CWIA, due to the smaller size of industries 11 and 21 in the Lehigh Valley and privacy laws - numbers were not provided.

Sheet Enrollments LEA_20_21 (hidden)
A1: October 1 Enrollment by LEA
A3: Year: 2020-2021
A5: AUN | B5: LEA Name | C5: LEA Type | D5: County | E5: PKA | F5: PKP | G5: PKF | H5: K4A | I5: K4P | J5: K4F | K5: K5A | L5: K5P | M5: K5F | N5: 001 | O5: 002 | P5: 003 | Q5: 004 | R5: 005 | S5: 006 | T5: 007 | U5: 008 | V5: 009 | W5: 010 | X5: 011 | Y5: 012 | Z5: Total
A6: 124150002 | B6: 21st Century Cyber CS | C6: CS | D6: Chester | E6: 0 | F6: 0 | G6: 0 | H6: 0 | I6: 0 | J6: 0 | K6: 0 | L6: 0 | M6: 0 | N6: 0 | O6: 0 | P6: 0 | Q6: 0 | R6: 0 | S6: 247 | T6: 305 | U6: 407 | V6: 447 | W6: 404 | X6: 372 | Y6: 321 | Z6: 2503
A7: 103020407 | B7: A W Beattie Career Center | C7: OCCCTC | D7: Allegheny | E7: 0 | F7: 0 | G7: 0 | H7: 0 | I7: 0 | J7: 0 | K7: 0 | L7: 0 | M7: 0 | N7: 0 | O7: 0 | P7: 0 | Q7: 0 | R7: 0 | S7: 0 | T7: 0 | U7: 0 | V7: 0 | W7: 196 | X7: 350 | Y7: 276 | Z7: 822
A8: 128000000 | B8: ARIN IU 28 | C8: IU | D8: Indiana | E8: 0 | F8: 0 | G8: 0 | H8: 0 | I8: 0 | J8: 0 | K8: 0 | L8: 0 | M8: 0 | N8: 1 | O8: 1 | P8: 3 | Q8: 4 | R8: 0 | S8: 2 | T8: 2 | U8: 8 | V8: 0 | W8: 6 | X8: 1 | Y8: 6 | Z8: 34
A9: 181519176 | B9: ASPIRA Bilingual Cyber CS | C9: CS | D9: Philadelphia | E9: 0 | F9: 0 | G9: 0 | H9: 0 | I9: 0 | J9: 0 | K9: 0 | L9: 0 | M9: 32 | N9: 15 | O9: 17 | P9: 23 | Q9: 30 | R9: 19 | S9: 38 | T9: 30 | U9: 32 | V9: 54 | W9: 56 | X9: 52 | Y9: 52 | Z9: 450
A10: 119350303 | B10: Abington Heights SD | C10: SD | D10: Lackawanna | E10: 0 | F10: 0 | G10: 0 | H10: 0 | I10: 0 | J10: 0 | K10: 112 | L10: 102 | M10: 0 | N10: 259 | O10: 236 | P10: 223 | Q10: 273 | R10: 254 | S10: 257 | T10: 291 | U10: 280 | V10: 249 | W10: 311 | X10: 238 | Y10: 266 | Z10: 3351
A11: 123460302 | B11: Abington SD | C11: SD | D11: Montgomery | E11: 0 | F11: 0 | G11: 0 | H11: 0 | I11: 0 | J11: 0 | K11: 0 | L11: 0 | M11: 513 | N11: 579 | O11: 654 | P11: 647 | Q11: 708 | R11: 620 | S11: 681 | T11: 702 | U11: 679 | V11: 659 | W11: 634 | X11: 648 | Y11: 635 | Z11: 8359
A12: 125230001 | B12: Achievement House CS | C12: CS | D12: Chester | E12: 0 | F12: 0 | G12: 0 | H12: 0 | I12: 0 | J12: 0 | K12: 0 | L12: 0 | M12: 0 | N12: 0 | O12: 0 | P12: 0 | Q12: 0 | R12: 0 | S12: 0 | T12: 61 | U12: 122 | V12: 175 | W12: 182 | X12: 198 | Y12: 190 | Z12: 928
A13: 126510015 | B13: Ad Prima CS | C13: CS | D13: Philadelphia | E13: 0 | F13: 0 | G13: 0 | H13: 0 | I13: 0 | J13: 0 | K13: 0 | L13: 0 | M13: 80 | N13: 61 | O13: 62 | P13: 63 | Q13: 58 | R13: 89 | S13: 79 | T13: 77 | U13: 82 | V13: 0 | W13: 0 | X13: 0 | Y13: 0 | Z13: 651
A14: 112015106 | B14: Adams County Technical Institute | C14: OCCCTC | D14: Adams | E14: 0 | F14: 0 | G14: 0 | H14: 0 | I14: 0 | J14: 0 | K14: 0 | L14: 0 | M14: 0 | N14: 0 | O14: 0 | P14: 0 | Q14: 0 | R14: 0 | S14: 0 | T14: 0 | U14: 0 | V14: 0 | W14: 0 | X14: 135 | Y14: 111 | Z14: 246
A15: 108110307 | B15: Admiral Peary AVTS | C15: OCCCTC | D15: Cambria | E15: 0 | F15: 0 | G15: 0 | H15: 0 | I15: 0 | J15: 0 | K15: 0 | L15: 0 | M15: 0 | N15: 0 | O15: 0 | P15: 0 | Q15: 0 | R15: 0 | S15: 0 | T15: 0 | U15: 0 | V15: 7 | W15: 173 | X15: 219 | Y15: 181 | Z15: 580
A16: 126510020 | B16: Agora Cyber CS | C16: CS | D16: Montgomery | E16: 0 | F16: 0 | G16: 0 | H16: 0 | I16: 0 | J16: 0 | K16: 0 | L16: 0 | M16: 379 | N16: 370 | O16: 412 | P16: 424 | Q16: 425 | R16: 462 | S16: 638 | T16: 670 | U16: 671 | V16: 985 | W16: 724 | X16: 627 | Y16: 558 | Z16: 7345
A17: 101260303 | B17: Albert Gallatin Area SD | C17: SD | D17: Fayette | E17: 0 | F17: 0 | G17: 0 | H17: 0 | I17: 0 | J17: 0 | K17: 0 | L17: 0 | M17: 210 | N17: 237 | O17: 223 | P17: 216 | Q17: 241 | R17: 236 | S17: 248 | T17: 231 | U17: 214 | V17: 282 | W17: 269 | X17: 242 | Y17: 239 | Z17: 3088
A18: 127040503 | B18: Aliquippa SD | C18: SD | D18: Beaver | E18: 0 | F18: 0 | G18: 0 | H18: 0 | I18: 0 | J18: 0 | K18: 0 | L18: 0 | M18: 65 | N18: 68 | O18: 79 | P18: 84 | Q18: 67 | R18: 74 | S18: 79 | T18: 80 | U18: 72 | V18: 70 | W18: 69 | X18: 61 | Y18: 72 | Z18: 940
A19: 103000000 | B19: Allegheny IU 3 | C19: IU | D19: Allegheny | E19: 0 | F19: 0 | G19: 0 | H19: 0 | I19: 0 | J19: 0 | K19: 0 | L19: 81 | M19: 6 | N19: 16 | O19: 8 | P19: 20 | Q19: 16 | R19: 20 | S19: 20 | T19: 23 | U19: 26 | V19: 47 | W19: 41 | X19: 51 | Y19: 143 | Z19: 518
A20: 103020603 | B20: Allegheny Valley SD | C20: SD | D20: Allegheny | E20: 7 | F20: 8 | G20: 0 | H20: 0 | I20: 0 | J20: 0 | K20: 0 | L20: 0 | M20: 76 | N20: 75 | O20: 63 | P20: 60 | Q20: 78 | R20: 66 | S20: 59 | T20: 71 | U20: 64 | V20: 70 | W20: 55 | X20: 70 | Y20: 69 | Z20: 891
A21: 106160303 | B21: Allegheny-Clarion Valley SD | C21: SD | D21: Clarion | E21: 0 | F21: 0 | G21: 0 | H21: 0 | I21: 0 | J21: 0 | K21: 0 | L21: 0 | M21: 47 | N21: 49 | O21: 44 | P21: 48 | Q21: 47 | R21: 43 | S21: 60 | T21: 47 | U21: 38 | V21: 54 | W21: 37 | X21: 54 | Y21: 48 | Z21: 616
A22: 121390302 | B22: Allentown City SD | C22: SD | D22: Lehigh | E22: 0 | F22: 0 | G22: 0 | H22: 0 | I22: 0 | J22: 0 | K22: 0 | L22: 0 | M22: 1027 | N22: 1243 | O22: 1271 | P22: 1208 | Q22: 1241 | R22: 1312 | S22: 1283 | T22: 1306 | U22: 1254 | V22: 1250 | W22: 1409 | X22: 1261 | Y22: 1166 | Z22: 16231
A23: 126512990 | B23: Alliance for Progress CS | C23: CS | D23: Philadelphia | E23: 0 | F23: 0 | G23: 0 | H23: 0 | I23: 0 | J23: 0 | K23: 0 | L23: 0 | M23: 69 | N23: 70 | O23: 79 | P23: 77 | Q23: 52 | R23: 53 | S23: 46 | T23: 50 | U23: 44 | V23: 0 | W23: 0 | X23: 0 | Y23: 0 | Z23: 540
A24: 108070502 | B24: Altoona Area SD | C24: SD | D24: Blair | E24: 0 | F24: 0 | G24: 0 | H24: 0 | I24: 0 | J24: 0 | K24: 0 | L24: 0 | M24: 506 | N24: 570 | O24: 538 | P24: 542 | Q24: 565 | R24: 539 | S24: 590 | T24: 592 | U24: 577 | V24: 603 | W24: 524 | X24: 529 | Y24: 552 | Z24: 7227
A25: 127040703 | B25: Ambridge Area SD | C25: SD | D25: Beaver | E25: 0 | F25: 0 | G25: 68 | H25: 0 | I25: 0 | J25: 0 | K25: 0 | L25: 0 | M25: 179 | N25: 160 | O25: 166 | P25: 160 | Q25: 139 | R25: 149 | S25: 160 | T25: 196 | U25: 189 | V25: 180 | W25: 187 | X25: 169 | Y25: 206 | Z25: 2308
A26: 113380303 | B26: Annville-Cleona SD | C26: SD | D26: Lebanon | E26: 0 | F26: 0 | G26: 0 | H26: 0 | I26: 0 | J26: 0 | K26: 45 | L26: 57 | M26: 0 | N26: 120 | O26: 102 | P26: 111 | Q26: 98 | R26: 97 | S26: 103 | T26: 122 | U26: 119 | V26: 110 | W26: 144 | X26: 109 | Y26: 115 | Z26: 1452
A27: 114060503 | B27: Antietam SD | C27: SD | D27: Berks | E27: 0 | F27: 0 | G27: 0 | H27: 0 | I27: 0 | J27: 0 | K27: 0 | L27: 0 | M27: 71 | N27: 87 | O27: 63 | P27: 85 | Q27: 78 | R27: 93 | S27: 94 | T27: 100 | U27: 89 | V27: 98 | W27: 84 | X27: 85 | Y27: 63 | Z27: 1090
A28: 104510394 | B28: Antonia Pantoja Community CS | C28: CS | D28: Philadelphia | E28: 0 | F28: 0 | G28: 0 | H28: 0 | I28: 0 | J28: 0 | K28: 0 | L28: 0 | M28: 67 | N28: 96 | O28: 85 | P28: 96 | Q28: 63 | R28: 89 | S28: 79 | T28: 67 | U28: 56 | V28: 0 | W28: 0 | X28: 0 | Y28: 0 | Z28: 698
A29: 128030603 | B29: Apollo-Ridge SD | C29: SD | D29: Armstrong | E29: 0 | F29: 0 | G29: 19 | H29: 0 | I29: 0 | J29: 0 | K29: 0 | L29: 0 | M29: 88 | N29: 85 | O29: 83 | P29: 66 | Q29: 85 | R29: 97 | S29: 94 | T29: 95 | U29: 89 | V29: 100 | W29: 79 | X29: 74 | Y29: 84 | Z29: 1138
A30: 108000000 | B30: Appalachia IU 8 | C30: IU | D30: Blair | E30: 0 | F30: 0 | G30: 0 | H30: 0 | I30: 0 | J30: 0 | K30: 0 | L30: 0 | M30: 0 | N30: 3 | O30: 6 | P30: 3 | Q30: 6 | R30: 7 | S30: 9 | T30: 17 | U30: 14 | V30: 17 | W30: 29 | X30: 18 | Y30: 42 | Z30: 171
A31: 128030852 | B31: Armstrong SD | C31: SD | D31: Armstrong | E31: 0 | F31: 0 | G31: 0 | H31: 0 | I31: 0 | J31: 0 | K31: 0 | L31: 0 | M31: 307 | N31: 331 | O31: 384 | P31: 385 | Q31: 392 | R31: 404 | S31: 366 | T31: 409 | U31: 444 | V31: 454 | W31: 396 | X31: 259 | Y31: 267 | Z31: 4798
A32: 121395927 | B32: Arts Academy CS | C32: CS | D32: Lehigh | E32: 0 | F32: 0 | G32: 0 | H32: 0 | I32: 0 | J32: 0 | K32: 0 | L32: 0 | M32: 0 | N32: 0 | O32: 0 | P32: 0 | Q32: 0 | R32: 30 | S32: 96 | T32: 116 | U32: 92 | V32: 0 | W32: 0 | X32: 0 | Y32: 0 | Z32: 334
A33: 121399898 | B33: Arts Academy Elementary CS | C33: CS | D33: Lehigh | E33: 0 | F33: 0 | G33: 0 | H33: 0 | I33: 0 | J33: 0 | K33: 0 | L33: 0 | M33: 78 | N33: 69 | O33: 84 | P33: 72 | Q33: 72 | R33: 57 | S33: 0 | T33: 0 | U33: 0 | V33: 0 | W33: 0 | X33: 0 | Y33: 0 | Z33: 432
A34: 117080503 | B34: Athens Area SD | C34: SD | D34: Bradford | E34: 0 | F34: 0 | G34: 0 | H34: 0 | I34: 0 | J34: 0 | K34: 0 | L34: 0 | M34: 151 | N34: 146 | O34: 138 | P34: 156 | Q34: 152 | R34: 133 | S34: 155 | T34: 167 | U34: 170 | V34: 168 | W34: 170 | X34: 183 | Y34: 146 | Z34: 2035
A35: 109530304 | B35: Austin Area SD | C35: SD | D35: Potter | E35: 0 | F35: 0 | G35: 11 | H35: 0 | I35: 0 | J35: 0 | K35: 0 | L35: 0 | M35: 13 | N35: 12 | O35: 16 | P35: 10 | Q35: 8 | R35: 14 | S35: 13 | T35: 16 | U35: 17 | V35: 13 | W35: 17 | X35: 13 | Y35: 15 | Z35: 188
A36: 101630504 | B36: Avella Area SD | C36: SD | D36: Washington | E36: 0 | F36: 0 | G36: 0 | H36: 0 | I36: 0 | J36: 0 | K36: 0 | L36: 0 | M36: 48 | N36: 27 | O36: 37 | P36: 34 | Q36: 38 | R36: 47 | S36: 36 | T36: 39 | U36: 33 | V36: 49 | W36: 41 | X36: 42 | Y36: 47 | Z36: 518
A37: 124150003 | B37: Avon Grove CS | C37: CS | D37: Chester | E37: 0 | F37: 0 | G37: 0 | H37: 0 | I37: 0 | J37: 0 | K37: 0 | L37: 0 | M37: 177 | N37: 174 | O37: 170 | P37: 177 | Q37: 158 | R37: 152 | S37: 162 | T37: 144 | U37: 139 | V37: 113 | W37: 112 | X37: 102 | Y37: 66 | Z37: 1846
A38: 124150503 | B38: Avon Grove SD | C38: SD | D38: Chester | E38: 0 | F38: 0 | G38: 0 | H38: 0 | I38: 0 | J38: 0 | K38: 0 | L38: 0 | M38: 276 | N38: 339 | O38: 318 | P38: 336 | Q38: 347 | R38: 352 | S38: 387 | T38: 411 | U38: 418 | V38: 462 | W38: 428 | X38: 431 | Y38: 429 | Z38: 4934
A39: 103020753 | B39: Avonworth SD | C39: SD | D39: Allegheny | E39: 0 | F39: 0 | G39: 0 | H39: 0 | I39: 0 | J39: 0 | K39: 0 | L39: 0 | M39: 153 | N39: 161 | O39: 159 | P39: 149 | Q39: 127 | R39: 156 | S39: 135 | T39: 147 | U39: 135 | V39: 159 | W39: 114 | X39: 121 | Y39: 137 | Z39: 1853
A40: 117000000 | B40: BLaST IU 17 | C40: IU | D40: Lycoming | E40: 0 | F40: 0 | G40: 0 | H40: 0 | I40: 0 | J40: 0 | K40: 31 | L40: 0 | M40: 13 | N40: 21 | O40: 19 | P40: 25 | Q40: 21 | R40: 13 | S40: 25 | T40: 28 | U40: 29 | V40: 24 | W40: 21 | X40: 18 | Y40: 25 | Z40: 313
A41: 127046517 | B41: Baden Academy CS | C41: CS | D41: Beaver | E41: 0 | F41: 0 | G41: 0 | H41: 0 | I41: 0 | J41: 0 | K41: 0 | L41: 0 | M41: 88 | N41: 83 | O41: 87 | P41: 88 | Q41: 81 | R41: 77 | S41: 73 | T41: 0 | U41: 0 | V41: 0 | W41: 0 | X41: 0 | Y41: 0 | Z41: 577
A42: 110141003 | B42: Bald Eagle Area SD | C42: SD | D42: Centre | E42: 0 | F42: 0 | G42: 0 | H42: 0 | I42: 0 | J42: 0 | K42: 0 | L42: 0 | M42: 112 | N42: 100 | O42: 116 | P42: 114 | Q42: 112 | R42: 116 | S42: 110 | T42: 126 | U42: 117 | V42: 135 | W42: 116 | X42: 129 | Y42: 125 | Z42: 1528
A43: 103021102 | B43: Baldwin-Whitehall SD | C43: SD | D43: Allegheny | E43: 0 | F43: 0 | G43: 0 | H43: 0 | I43: 0 | J43: 0 | K43: 211 | L43: 154 | M43: 0 | N43: 344 | O43: 372 | P43: 324 | Q43: 305 | R43: 322 | S43: 337 | T43: 308 | U43: 313 | V43: 353 | W43: 371 | X43: 376 | Y43: 376 | Z43: 4466
A44: 120480803 | B44: Bangor Area SD | C44: SD | D44: Northampton | E44: 0 | F44: 0 | G44: 0 | H44: 0 | I44: 0 | J44: 0 | K44: 0 | L44: 0 | M44: 172 | N44: 199 | O44: 199 | P44: 200 | Q44: 203 | R44: 202 | S44: 214 | T44: 210 | U44: 230 | V44: 225 | W44: 221 | X44: 247 | Y44: 233 | Z44: 2755
A45: 118400001 | B45: Bear Creek Community CS | C45: CS | D45: Luzerne | E45: 0 | F45: 0 | G45: 0 | H45: 0 | I45: 0 | J45: 0 | K45: 0 | L45: 0 | M45: 52 | N45: 52 | O45: 52 | P45: 52 | Q45: 52 | R45: 52 | S45: 52 | T45: 52 | U45: 50 | V45: 0 | W45: 0 | X45: 0 | Y45: 0 | Z45: 466
A46: 127041203 | B46: Beaver Area SD | C46: SD | D46: Beaver | E46: 0 | F46: 0 | G46: 0 | H46: 0 | I46: 0 | J46: 0 | K46: 0 | L46: 0 | M46: 142 | N46: 151 | O46: 154 | P46: 128 | Q46: 128 | R46: 153 | S46: 141 | T46: 145 | U46: 145 | V46: 160 | W46: 175 | X46: 184 | Y46: 166 | Z46: 1972
A47: 127041307 | B47: Beaver County CTC | C47: OCCCTC | D47: Beaver | E47: 0 | F47: 0 | G47: 0 | H47: 0 | I47: 0 | J47: 0 | K47: 0 | L47: 0 | M47: 0 | N47: 0 | O47: 0 | P47: 0 | Q47: 0 | R47: 0 | S47: 0 | T47: 0 | U47: 0 | V47: 0 | W47: 60 | X47: 302 | Y47: 265 | Z47: 627
A48: 127000000 | B48: Beaver Valley IU 27 | C48: IU | D48: Beaver | E48: 0 | F48: 0 | G48: 0 | H48: 0 | I48: 0 | J48: 0 | K48: 11 | L48: 0 | M48: 1 | N48: 4 | O48: 9 | P48: 18 | Q48: 12 | R48: 8 | S48: 14 | T48: 12 | U48: 13 | V48: 10 | W48: 12 | X48: 13 | Y48: 34 | Z48: 171
A49: 108051003 | B49: Bedford Area SD | C49: SD | D49: Bedford | E49: 0 | F49: 0 | G49: 0 | H49: 0 | I49: 0 | J49: 0 | K49: 0 | L49: 0 | M49: 120 | N49: 119 | O49: 123 | P49: 123 | Q49: 138 | R49: 121 | S49: 126 | T49: 124 | U49: 138 | V49: 141 | W49: 138 | X49: 143 | Y49: 151 | Z49: 1705
A50: 108051307 | B50: Bedford County Technical Center | C50: OCCCTC | D50: Bedford | E50: 0 | F50: 0 | G50: 0 | H50: 0 | I50: 0 | J50: 0 | K50: 0 | L50: 0 | M50: 0 | N50: 0 | O50: 0 | P50: 0 | Q50: 0 | R50: 0 | S50: 0 | T50: 0 | U50: 0 | V50: 0 | W50: 99 | X50: 110 | Y50: 90 | Z50: 299
A51: 107650603 | B51: Belle Vernon Area SD | C51: SD | D51: Westmoreland | E51: 0 | F51: 0 | G51: 0 | H51: 0 | I51: 0 | J51: 0 | K51: 0 | L51: 0 | M51: 196 | N51: 153 | O51: 171 | P51: 177 | Q51: 177 | R51: 156 | S51: 153 | T51: 181 | U51: 179 | V51: 212 | W51: 172 | X51: 208 | Y51: 195 | Z51: 2330
A52: 110141103 | B52: Bellefonte Area SD | C52: SD | D52: Centre | E52: 0 | F52: 0 | G52: 0 | H52: 0 | I52: 0 | J52: 0 | K52: 0 | L52: 0 | M52: 192 | N52: 192 | O52: 179 | P52: 221 | Q52: 176 | R52: 188 | S52: 191 | T52: 193 | U52: 235 | V52: 210 | W52: 216 | X52: 234 | Y52: 237 | Z52: 2664
A53: 108071003 | B53: Bellwood-Antis SD | C53: SD | D53: Blair | E53: 0 | F53: 0 | G53: 0 | H53: 0 | I53: 0 | J53: 0 | K53: 0 | L53: 0 | M53: 76 | N53: 86 | O53: 82 | P53: 84 | Q53: 98 | R53: 92 | S53: 96 | T53: 98 | U53: 106 | V53: 105 | W53: 107 | X53: 84 | Y53: 98 | Z53: 1212
A54: 126510010 | B54: Belmont CS | C54: CS | D54: Philadelphia | E54: 0 | F54: 0 | G54: 0 | H54: 0 | I54: 0 | J54: 0 | K54: 0 | L54: 0 | M54: 63 | N54: 87 | O54: 73 | P54: 88 | Q54: 67 | R54: 84 | S54: 70 | T54: 71 | U54: 75 | V54: 81 | W54: 72 | X54: 69 | Y54: 73 | Z54: 973
A55: 122091002 | B55: Bensalem Township SD | C55: SD | D55: Bucks | E55: 0 | F55: 0 | G55: 0 | H55: 0 | I55: 0 | J55: 0 | K55: 0 | L55: 0 | M55: 414 | N55: 459 | O55: 431 | P55: 460 | Q55: 456 | R55: 467 | S55: 544 | T55: 524 | U55: 509 | V55: 464 | W55: 497 | X55: 490 | Y55: 540 | Z55: 6255
A56: 116191004 | B56: Benton Area SD | C56: SD | D56: Columbia | E56: 0 | F56: 0 | G56: 0 | H56: 0 | I56: 0 | J56: 0 | K56: 0 | L56: 0 | M56: 41 | N56: 50 | O56: 35 | P56: 54 | Q56: 58 | R56: 62 | S56: 51 | T56: 65 | U56: 46 | V56: 59 | W56: 41 | X56: 50 | Y56: 41 | Z56: 653
A57: 101630903 | B57: Bentworth SD | C57: SD | D57: Washington | E57: 0 | F57: 0 | G57: 0 | H57: 0 | I57: 0 | J57: 0 | K57: 0 | L57: 0 | M57: 92 | N57: 66 | O57: 66 | P57: 72 | Q57: 75 | R57: 79 | S57: 90 | T57: 87 | U57: 84 | V57: 101 | W57: 87 | X57: 81 | Y57: 89 | Z57: 1069
A58: 114060557 | B58: Berks CTC | C58: OCCCTC | D58: Berks | E58: 0 | F58: 0 | G58: 0 | H58: 0 | I58: 0 | J58: 0 | K58: 0 | L58: 0 | M58: 0 | N58: 0 | O58: 0 | P58: 0 | Q58: 0 | R58: 0 | S58: 0 | T58: 0 | U58: 0 | V58: 37 | W58: 576 | X58: 516 | Y58: 540 | Z58: 1669
A59: 114000000 | B59: Berks County IU 14 | C59: IU | D59: Berks | E59: 0 | F59: 0 | G59: 0 | H59: 0 | I59: 0 | J59: 0 | K59: 0 | L59: 0 | M59: 68 | N59: 0 | O59: 1 | P59: 0 | Q59: 2 | R59: 0 | S59: 0 | T59: 12 | U59: 3 | V59: 8 | W59: 6 | X59: 16 | Y59: 26 | Z59: 142
A60: 108561003 | B60: Berlin Brothersvalley SD | C60: SD | D60: Somerset | E60: 0 | F60: 0 | G60: 0 | H60: 0 | I60: 0 | J60: 0 | K60: 0 | L60: 0 | M60: 58 | N60: 59 | O60: 59 | P60: 57 | Q60: 38 | R60: 58 | S60: 69 | T60: 56 | U60: 53 | V60: 48 | W60: 43 | X60: 53 | Y60: 74 | Z60: 725
A61: 112011103 | B61: Bermudian Springs SD | C61: SD | D61: Adams | E61: 0 | F61: 0 | G61: 0 | H61: 0 | I61: 0 | J61: 0 | K61: 0 | L61: 0 | M61: 112 | N61: 118 | O61: 128 | P61: 118 | Q61: 144 | R61: 136 | S61: 123 | T61: 145 | U61: 151 | V61: 168 | W61: 125 | X61: 164 | Y61: 154 | Z61: 1786
A62: 116191103 | B62: Berwick Area SD | C62: SD | D62: Columbia | E62: 0 | F62: 0 | G62: 0 | H62: 0 | I62: 0 | J62: 0 | K62: 0 | L62: 0 | M62: 189 | N62: 206 | O62: 218 | P62: 190 | Q62: 200 | R62: 211 | S62: 197 | T62: 218 | U62: 242 | V62: 190 | W62: 197 | X62: 165 | Y62: 213 | Z62: 2636
A63: 103021252 | B63: Bethel Park SD | C63: SD | D63: Allegheny | E63: 0 | F63: 0 | G63: 0 | H63: 0 | I63: 0 | J63: 0 | K63: 151 | L63: 111 | M63: 0 | N63: 277 | O63: 281 | P63: 272 | Q63: 292 | R63: 244 | S63: 259 | T63: 338 | U63: 295 | V63: 352 | W63: 346 | X63: 321 | Y63: 363 | Z63: 3902
A64: 120481107 | B64: Bethlehem AVTS | C64: OCCCTC | D64: Northampton | E64: 0 | F64: 0 | G64: 0 | H64: 0 | I64: 0 | J64: 0 | K64: 0 | L64: 0 | M64: 0 | N64: 0 | O64: 0 | P64: 0 | Q64: 0 | R64: 0 | S64: 0 | T64: 0 | U64: 0 | V64: 0 | W64: 442 | X64: 493 | Y64: 440 | Z64: 1375
A65: 120481002 | B65: Bethlehem Area SD | C65: SD | D65: Northampton | E65: 0 | F65: 0 | G65: 99 | H65: 0 | I65: 0 | J65: 0 | K65: 0 | L65: 0 | M65: 754 | N65: 827 | O65: 908 | P65: 884 | Q65: 972 | R65: 956 | S65: 980 | T65: 969 | U65: 1093 | V65: 1160 | W65: 1196 | X65: 1097 | Y65: 1110 | Z65: 13005
A66: 101631003 | B66: Bethlehem-Center SD | C66: SD | D66: Washington | E66: 0 | F66: 0 | G66: 0 | H66: 0 | I66: 0 | J66: 0 | K66: 0 | L66: 0 | M66: 71 | N66: 79 | O66: 64 | P66: 67 | Q66: 73 | R66: 76 | S66: 72 | T66: 85 | U66: 72 | V66: 74 | W66: 83 | X66: 95 | Y66: 81 | Z66: 992
A67: 127041503 | B67: Big Beaver Falls Area SD | C67: SD | D67: Beaver | E67: 0 | F67: 0 | G67: 32 | H67: 0 | I67: 0 | J67: 0 | K67: 0 | L67: 0 | M67: 121 | N67: 130 | O67: 120 | P67: 110 | Q67: 138 | R67: 132 | S67: 138 | T67: 131 | U67: 128 | V67: 132 | W67: 121 | X67: 114 | Y67: 118 | Z67: 1665
A68: 115210503 | B68: Big Spring SD | C68: SD | D68: Cumberland | E68: 0 | F68: 0 | G68: 0 | H68: 0 | I68: 0 | J68: 0 | K68: 0 | L68: 0 | M68: 164 | N68: 211 | O68: 182 | P68: 171 | Q68: 174 | R68: 180 | S68: 213 | T68: 164 | U68: 211 | V68: 199 | W68: 177 | X68: 210 | Y68: 179 | Z68: 2435
A69: 127041603 | B69: Blackhawk SD | C69: SD | D69: Beaver | E69: 0 | F69: 0 | G69: 0 | H69: 0 | I69: 0 | J69: 0 | K69: 0 | L69: 0 | M69: 156 | N69: 160 | O69: 171 | P69: 168 | Q69: 161 | R69: 154 | S69: 183 | T69: 189 | U69: 210 | V69: 180 | W69: 193 | X69: 174 | Y69: 193 | Z69: 2292
A70: 108110603 | B70: Blacklick Valley SD | C70: SD | D70: Cambria | E70: 10 | F70: 7 | G70: 0 | H70: 0 | I70: 0 | J70: 0 | K70: 0 | L70: 0 | M70: 45 | N70: 40 | O70: 40 | P70: 52 | Q70: 40 | R70: 31 | S70: 51 | T70: 52 | U70: 57 | V70: 58 | W70: 59 | X70: 55 | Y70: 44 | Z70: 641
A71: 128321103 | B71: Blairsville-Saltsburg SD | C71: SD | D71: Indiana | E71: 0 | F71: 0 | G71: 0 | H71: 0 | I71: 0 | J71: 0 | K71: 0 | L71: 0 | M71: 104 | N71: 97 | O71: 103 | P71: 110 | Q71: 99 | R71: 105 | S71: 96 | T71: 112 | U71: 95 | V71: 105 | W71: 113 | X71: 98 | Y71: 123 | Z71: 1360
A72: 116191203 | B72: Bloomsburg Area SD | C72: SD | D72: Columbia | E72: 0 | F72: 0 | G72: 0 | H72: 0 | I72: 0 | J72: 0 | K72: 0 | L72: 0 | M72: 131 | N72: 126 | O72: 117 | P72: 114 | Q72: 125 | R72: 120 | S72: 104 | T72: 125 | U72: 124 | V72: 118 | W72: 127 | X72: 92 | Y72: 122 | Z72: 1545
A73: 129540803 | B73: Blue Mountain SD | C73: SD | D73: Schuylkill | E73: 0 | F73: 0 | G73: 0 | H73: 0 | I73: 0 | J73: 0 | K73: 0 | L73: 0 | M73: 165 | N73: 168 | O73: 177 | P73: 168 | Q73: 168 | R73: 175 | S73: 191 | T73: 207 | U73: 176 | V73: 219 | W73: 200 | X73: 204 | Y73: 241 | Z73: 2459
A74: 119581003 | B74: Blue Ridge SD | C74: SD | D74: Susquehanna | E74: 0 | F74: 0 | G74: 0 | H74: 21 | I74: 19 | J74: 0 | K74: 0 | L74: 0 | M74: 59 | N74: 76 | O74: 68 | P74: 73 | Q74: 64 | R74: 76 | S74: 78 | T74: 66 | U74: 76 | V74: 74 | W74: 68 | X74: 65 | Y74: 74 | Z74: 957
A75: 114060753 | B75: Boyertown Area SD | C75: SD | D75: Berks | E75: 0 | F75: 0 | G75: 30 | H75: 0 | I75: 0 | J75: 0 | K75: 159 | L75: 202 | M75: 0 | N75: 430 | O75: 460 | P75: 493 | Q75: 485 | R75: 482 | S75: 544 | T75: 539 | U75: 521 | V75: 598 | W75: 528 | X75: 502 | Y75: 557 | Z75: 6530
A76: 185515523 | B76: Boys Latin of Philadelphia CS | C76: CS | D76: Philadelphia | E76: 0 | F76: 0 | G76: 0 | H76: 0 | I76: 0 | J76: 0 | K76: 0 | L76: 0 | M76: 0 | N76: 0 | O76: 0 | P76: 0 | Q76: 0 | R76: 0 | S76: 118 | T76: 123 | U76: 117 | V76: 149 | W76: 146 | X76: 99 | Y76: 91 | Z76: 843
A77: 109420803 | B77: Bradford Area SD | C77: SD | D77: McKean | E77: 0 | F77: 0 | G77: 63 | H77: 0 | I77: 0 | J77: 0 | K77: 0 | L77: 0 | M77: 168 | N77: 196 | O77: 162 | P77: 171 | Q77: 185 | R77: 182 | S77: 198 | T77: 204 | U77: 187 | V77: 222 | W77: 200 | X77: 193 | Y77: 196 | Z77: 2527
A78: 114060853 | B78: Brandywine Heights Area SD | C78: SD | D78: Berks | E78: 0 | F78: 0 | G78: 0 | H78: 0 | I78: 0 | J78: 0 | K78: 0 | L78: 0 | M78: 92 | N78: 91 | O78: 100 | P78: 93 | Q78: 104 | R78: 104 | S78: 109 | T78: 87 | U78: 119 | V78: 115 | W78: 128 | X78: 123 | Y78: 100 | Z78: 1365
A79: 103021453 | B79: Brentwood Borough SD | C79: SD | D79: Allegheny | E79: 0 | F79: 0 | G79: 0 | H79: 0 | I79: 0 | J79: 0 | K79: 0 | L79: 0 | M79: 91 | N79: 76 | O79: 86 | P79: 74 | Q79: 88 | R79: 89 | S79: 92 | T79: 77 | U79: 78 | V79: 93 | W79: 104 | X79: 85 | Y79: 91 | Z79: 1124
A80: 122091303 | B80: Bristol Borough SD | C80: SD | D80: Bucks | E80: 0 | F80: 0 | G80: 0 | H80: 0 | I80: 0 | J80: 0 | K80: 0 | L80: 0 | M80: 69 | N80: 100 | O80: 95 | P80: 95 | Q80: 98 | R80: 95 | S80: 101 | T80: 110 | U80: 112 | V80: 97 | W80: 90 | X80: 77 | Y80: 60 | Z80: 1199
A81: 122091352 | B81: Bristol Township SD | C81: SD | D81: Bucks | E81: 0 | F81: 0 | G81: 0 | H81: 0 | I81: 0 | J81: 0 | K81: 0 | L81: 0 | M81: 421 | N81: 508 | O81: 477 | P81: 480 | Q81: 478 | R81: 486 | S81: 523 | T81: 509 | U81: 518 | V81: 474 | W81: 364 | X81: 421 | Y81: 361 | Z81: 6020
A82: 106330703 | B82: Brockway Area SD | C82: SD | D82: Jefferson | E82: 0 | F82: 0 | G82: 0 | H82: 0 | I82: 0 | J82: 0 | K82: 0 | L82: 0 | M82: 64 | N82: 68 | O82: 50 | P82: 78 | Q82: 68 | R82: 78 | S82: 72 | T82: 87 | U82: 80 | V82: 68 | W82: 69 | X82: 82 | Y82: 73 | Z82: 937
A83: 106330803 | B83: Brookville Area SD | C83: SD | D83: Jefferson | E83: 0 | F83: 0 | G83: 0 | H83: 0 | I83: 0 | J83: 0 | K83: 0 | L83: 0 | M83: 119 | N83: 81 | O83: 109 | P83: 116 | Q83: 110 | R83: 115 | S83: 94 | T83: 133 | U83: 120 | V83: 83 | W83: 107 | X83: 108 | Y83: 101 | Z83: 1396
A84: 101260803 | B84: Brownsville Area SD | C84: SD | D84: Fayette | E84: 0 | F84: 0 | G84: 0 | H84: 0 | I84: 0 | J84: 0 | K84: 0 | L84: 0 | M84: 110 | N84: 135 | O84: 124 | P84: 124 | Q84: 101 | R84: 110 | S84: 121 | T84: 111 | U84: 116 | V84: 119 | W84: 106 | X84: 107 | Y84: 99 | Z84: 1483
A85: 122000000 | B85: Bucks County IU 22 | C85: IU | D85: Bucks | E85: 0 | F85: 0 | G85: 0 | H85: 0 | I85: 0 | J85: 0 | K85: 0 | L85: 0 | M85: 20 | N85: 36 | O85: 35 | P85: 43 | Q85: 44 | R85: 45 | S85: 45 | T85: 54 | U85: 44 | V85: 17 | W85: 31 | X85: 39 | Y85: 112 | Z85: 565
A86: 122093460 | B86: Bucks County Montessori CS | C86: CS | D86: Bucks | E86: 0 | F86: 0 | G86: 0 | H86: 0 | I86: 0 | J86: 0 | K86: 0 | L86: 0 | M86: 25 | N86: 24 | O86: 32 | P86: 30 | Q86: 25 | R86: 30 | S86: 15 | T86: 0 | U86: 0 | V86: 0 | W86: 0 | X86: 0 | Y86: 0 | Z86: 181
A87: 122091457 | B87: Bucks County Technical High School | C87: COMCTC | D87: Bucks | E87: 0 | F87: 0 | G87: 0 | H87: 0 | I87: 0 | J87: 0 | K87: 0 | L87: 0 | M87: 0 | N87: 0 | O87: 0 | P87: 0 | Q87: 0 | R87: 0 | S87: 0 | T87: 0 | U87: 0 | V87: 405 | W87: 397 | X87: 346 | Y87: 317 | Z87: 1465
A88: 101631203 | B88: Burgettstown Area SD | C88: SD | D88: Washington | E88: 0 | F88: 0 | G88: 0 | H88: 0 | I88: 0 | J88: 0 | K88: 0 | L88: 0 | M88: 70 | N88: 77 | O88: 77 | P88: 73 | Q88: 86 | R88: 80 | S88: 74 | T88: 87 | U88: 84 | V88: 88 | W88: 75 | X88: 75 | Y88: 75 | Z88: 1021
A89: 107650703 | B89: Burrell SD | C89: SD | D89: Westmoreland | E89: 0 | F89: 0 | G89: 0 | H89: 0 | I89: 0 | J89: 0 | K89: 0 | L89: 0 | M89: 114 | N89: 130 | O89: 122 | P89: 126 | Q89: 142 | R89: 132 | S89: 135 | T89: 141 | U89: 149 | V89: 155 | W89: 152 | X89: 142 | Y89: 147 | Z89: 1787
A90: 104101252 | B90: Butler Area SD | C90: SD | D90: Butler | E90: 0 | F90: 0 | G90: 0 | H90: 0 | I90: 0 | J90: 0 | K90: 0 | L90: 0 | M90: 391 | N90: 452 | O90: 424 | P90: 441 | Q90: 388 | R90: 439 | S90: 466 | T90: 524 | U90: 519 | V90: 526 | W90: 515 | X90: 513 | Y90: 488 | Z90: 6086
A91: 104101307 | B91: Butler County AVTS | C91: OCCCTC | D91: Butler | E91: 0 | F91: 0 | G91: 0 | H91: 0 | I91: 0 | J91: 0 | K91: 0 | L91: 0 | M91: 0 | N91: 0 | O91: 0 | P91: 0 | Q91: 0 | R91: 0 | S91: 0 | T91: 0 | U91: 0 | V91: 0 | W91: 271 | X91: 331 | Y91: 309 | Z91: 911
A92: 119354207 | B92: CTC of Lackawanna County | C92: OCCCTC | D92: Lackawanna | E92: 0 | F92: 0 | G92: 0 | H92: 0 | I92: 0 | J92: 0 | K92: 0 | L92: 0 | M92: 0 | N92: 0 | O92: 0 | P92: 0 | Q92: 0 | R92: 0 | S92: 0 | T92: 0 | U92: 0 | V92: 0 | W92: 293 | X92: 260 | Y92: 234 | Z92: 787
A93: 101631503 | B93: California Area SD | C93: SD | D93: Washington | E93: 0 | F93: 0 | G93: 0 | H93: 0 | I93: 0 | J93: 0 | K93: 0 | L93: 0 | M93: 60 | N93: 68 | O93: 59 | P93: 71 | Q93: 65 | R93: 53 | S93: 73 | T93: 72 | U93: 62 | V93: 63 | W93: 75 | X93: 66 | Y93: 60 | Z93: 847
A94: 108111203 | B94: Cambria Heights SD | C94: SD | D94: Cambria | E94: 0 | F94: 0 | G94: 0 | H94: 0 | I94: 0 | J94: 0 | K94: 0 | L94: 0 | M94: 79 | N94: 102 | O94: 88 | P94: 73 | Q94: 97 | R94: 95 | S94: 106 | T94: 101 | U94: 119 | V94: 107 | W94: 112 | X94: 102 | Y94: 115 | Z94: 1296
A95: 109122703 | B95: Cameron County SD | C95: SD | D95: Cameron | E95: 0 | F95: 0 | G95: 0 | H95: 0 | I95: 0 | J95: 0 | K95: 0 | L95: 0 | M95: 50 | N95: 47 | O95: 33 | P95: 54 | Q95: 39 | R95: 31 | S95: 41 | T95: 41 | U95: 40 | V95: 37 | W95: 32 | X95: 37 | Y95: 37 | Z95: 519
A96: 115211003 | B96: Camp Hill SD | C96: SD | D96: Cumberland | E96: 0 | F96: 0 | G96: 0 | H96: 0 | I96: 0 | J96: 0 | K96: 38 | L96: 38 | M96: 0 | N96: 66 | O96: 85 | P96: 78 | Q96: 99 | R96: 91 | S96: 81 | T96: 97 | U96: 119 | V96: 101 | W96: 104 | X96: 109 | Y96: 108 | Z96: 1214
A97: 101631703 | B97: Canon-McMillan SD | C97: SD | D97: Washington | E97: 0 | F97: 0 | G97: 0 | H97: 0 | I97: 0 | J97: 0 | K97: 208 | L97: 156 | M97: 2 | N97: 370 | O97: 418 | P97: 393 | Q97: 420 | R97: 380 | S97: 403 | T97: 464 | U97: 405 | V97: 438 | W97: 404 | X97: 439 | Y97: 450 | Z97: 5350
A98: 117081003 | B98: Canton Area SD | C98: SD | D98: Bradford | E98: 0 | F98: 0 | G98: 0 | H98: 0 | I98: 0 | J98: 0 | K98: 0 | L98: 0 | M98: 48 | N98: 81 | O98: 70 | P98: 67 | Q98: 62 | R98: 53 | S98: 67 | T98: 61 | U98: 63 | V98: 69 | W98: 87 | X98: 63 | Y98: 65 | Z98: 856
A99: 115000000 | B99: Capital Area IU 15 | C99: IU | D99: Cumberland | E99: 0 | F99: 0 | G99: 0 | H99: 0 | I99: 0 | J99: 0 | K99: 94 | L99: 0 | M99: 9 | N99: 20 | O99: 14 | P99: 13 | Q99: 15 | R99: 18 | S99: 14 | T99: 20 | U99: 18 | V99: 24 | W99: 22 | X99: 29 | Y99: 45 | Z99: 355
A100: 115227010 | B100: Capital Area School for the Arts CS | C100: CS | D100: Dauphin | E100: 0 | F100: 0 | G100: 0 | H100: 0 | I100: 0 | J100: 0 | K100: 0 | L100: 0 | M100: 0 | N100: 0 | O100: 0 | P100: 0 | Q100: 0 | R100: 0 | S100: 0 | T100: 0 | U100: 0 | V100: 31 | W100: 59 | X100: 51 | Y100: 53 | Z100: 194
A101: 121131507 | B101: Carbon Career & Technical Institute | C101: COMCTC | D101: Carbon | E101: 0 | F101: 0 | G101: 0 | H101: 0 | I101: 0 | J101: 0 | K101: 0 | L101: 0 | M101: 0 | N101: 0 | O101: 0 | P101: 0 | Q101: 0 | R101: 0 | S101: 0 | T101: 0 | U101: 0 | V101: 69 | W101: 108 | X101: 124 | Y101: 99 | Z101: 400
A102: 121000000 | B102: Carbon-Lehigh IU 21 | C102: IU | D102: Lehigh | E102: 0 | F102: 0 | G102: 0 | H102: 0 | I102: 0 | J102: 0 | K102: 39 | L102: 5 | M102: 23 | N102: 20 | O102: 28 | P102: 20 | Q102: 30 | R102: 28 | S102: 35 | T102: 27 | U102: 43 | V102: 32 | W102: 27 | X102: 43 | Y102: 106 | Z102: 506
A103: 119351303 | B103: Carbondale Area SD | C103: SD | D103: Lackawanna | E103: 0 | F103: 0 | G103: 0 | H103: 0 | I103: 0 | J103: 0 | K103: 0 | L103: 0 | M103: 121 | N103: 88 | O103: 69 | P103: 99 | Q103: 104 | R103: 110 | S103: 128 | T103: 124 | U103: 144 | V103: 117 | W103: 115 | X103: 128 | Y103: 115 | Z103: 1462
A104: 120483007 | B104: Career Institute of Technology | C104: OCCCTC | D104: Northampton | E104: 0 | F104: 0 | G104: 0 | H104: 0 | I104: 0 | J104: 0 | K104: 0 | L104: 0 | M104: 0 | N104: 0 | O104: 0 | P104: 0 | Q104: 0 | R104: 0 | S104: 0 | T104: 0 | U104: 0 | V104: 0 | W104: 175 | X104: 220 | Y104: 210 | Z104: 605
A105: 115211103 | B105: Carlisle Area SD | C105: SD | D105: Cumberland | E105: 0 | F105: 0 | G105: 0 | H105: 0 | I105: 0 | J105: 0 | K105: 0 | L105: 0 | M105: 372 | N105: 356 | O105: 385 | P105: 358 | Q105: 378 | R105: 370 | S105: 352 | T105: 397 | U105: 378 | V105: 402 | W105: 414 | X105: 344 | Y105: 385 | Z105: 4891
A106: 103021603 | B106: Carlynton SD | C106: SD | D106: Allegheny | E106: 0 | F106: 0 | G106: 0 | H106: 0 | I106: 0 | J106: 0 | K106: 0 | L106: 0 | M106: 98 | N106: 107 | O106: 96 | P106: 99 | Q106: 93 | R106: 108 | S106: 104 | T106: 122 | U106: 99 | V106: 104 | W106: 97 | X106: 94 | Y106: 93 | Z106: 1314
A107: 101301303 | B107: Carmichaels Area SD | C107: SD | D107: Greene | E107: 0 | F107: 0 | G107: 33 | H107: 0 | I107: 0 | J107: 0 | K107: 0 | L107: 0 | M107: 60 | N107: 57 | O107: 70 | P107: 67 | Q107: 76 | R107: 83 | S107: 74 | T107: 69 | U107: 80 | V107: 71 | W107: 90 | X107: 77 | Y107: 90 | Z107: 997
A108: 102024758 | B108: Catalyst Academy CS | C108: CS | D108: Allegheny | E108: 0 | F108: 0 | G108: 0 | H108: 0 | I108: 0 | J108: 0 | K108: 0 | L108: 0 | M108: 69 | N108: 26 | O108: 0 | P108: 0 | Q108: 0 | R108: 0 | S108: 0 | T108: 0 | U108: 0 | V108: 0 | W108: 0 | X108: 0 | Y108: 0 | Z108: 95
A109: 121391303 | B109: Catasauqua Area SD | C109: SD | D109: Lehigh | E109: 0 | F109: 0 | G109: 0 | H109: 0 | I109: 0 | J109: 0 | K109: 0 | L109: 0 | M109: 83 | N109: 111 | O109: 100 | P109: 109 | Q109: 113 | R109: 104 | S109: 101 | T109: 131 | U109: 109 | V109: 134 | W109: 118 | X109: 122 | Y109: 117 | Z109: 1452
A110: 122092002 | B110: Centennial SD | C110: SD | D110: Bucks | E110: 0 | F110: 0 | G110: 0 | H110: 0 | I110: 0 | J110: 0 | K110: 0 | L110: 0 | M110: 306 | N110: 399 | O110: 336 | P110: 400 | Q110: 398 | R110: 379 | S110: 396 | T110: 403 | U110: 417 | V110: 487 | W110: 420 | X110: 480 | Y110: 464 | Z110: 5285
A111: 122090001 | B111: Center for Student Learning CS at Pennsb | C111: CS | D111: Bucks | E111: 0 | F111: 0 | G111: 0 | H111: 0 | I111: 0 | J111: 0 | K111: 0 | L111: 0 | M111: 0 | N111: 0 | O111: 0 | P111: 0 | Q111: 0 | R111: 0 | S111: 10 | T111: 14 | U111: 29 | V111: 20 | W111: 31 | X111: 29 | Y111: 21 | Z111: 154
A112: 122092102 | B112: Central Bucks SD | C112: SD | D112: Bucks | E112: 0 | F112: 0 | G112: 0 | H112: 0 | I112: 0 | J112: 0 | K112: 460 | L112: 338 | M112: 15 | N112: 1126 | O112: 1198 | P112: 1277 | Q112: 1293 | R112: 1302 | S112: 1373 | T112: 1446 | U112: 1486 | V112: 1481 | W112: 1536 | X112: 1602 | Y112: 1638 | Z112: 17571
A113: 108111303 | B113: Central Cambria SD | C113: SD | D113: Cambria | E113: 0 | F113: 0 | G113: 0 | H113: 0 | I113: 0 | J113: 0 | K113: 0 | L113: 0 | M113: 103 | N113: 105 | O113: 108 | P113: 111 | Q113: 114 | R113: 122 | S113: 118 | T113: 117 | U113: 134 | V113: 132 | W113: 144 | X113: 147 | Y113: 119 | Z113: 1574
A114: 116191503 | B114: Central Columbia SD | C114: SD | D114: Columbia | E114: 0 | F114: 0 | G114: 0 | H114: 0 | I114: 0 | J114: 0 | K114: 0 | L114: 0 | M114: 139 | N114: 137 | O114: 145 | P114: 118 | Q114: 139 | R114: 159 | S114: 142 | T114: 156 | U114: 162 | V114: 157 | W114: 147 | X114: 149 | Y114: 143 | Z114: 1893
A115: 115221402 | B115: Central Dauphin SD | C115: SD | D115: Dauphin | E115: 0 | F115: 0 | G115: 0 | H115: 0 | I115: 0 | J115: 0 | K115: 454 | L115: 307 | M115: 0 | N115: 971 | O115: 937 | P115: 946 | Q115: 943 | R115: 964 | S115: 985 | T115: 1038 | U115: 963 | V115: 885 | W115: 841 | X115: 826 | Y115: 834 | Z115: 11894
A116: 111291304 | B116: Central Fulton SD | C116: SD | D116: Fulton | E116: 0 | F116: 0 | G116: 0 | H116: 46 | I116: 0 | J116: 0 | K116: 0 | L116: 0 | M116: 57 | N116: 69 | O116: 78 | P116: 67 | Q116: 57 | R116: 80 | S116: 78 | T116: 86 | U116: 67 | V116: 77 | W116: 70 | X116: 42 | Y116: 56 | Z116: 930
A117: 101301403 | B117: Central Greene SD | C117: SD | D117: Greene | E117: 0 | F117: 0 | G117: 0 | H117: 0 | I117: 0 | J117: 0 | K117: 0 | L117: 0 | M117: 112 | N117: 111 | O117: 111 | P117: 96 | Q117: 103 | R117: 109 | S117: 118 | T117: 120 | U117: 109 | V117: 132 | W117: 135 | X117: 133 | Y117: 116 | Z117: 1505
A118: 110000000 | B118: Central IU 10 | C118: IU | D118: Clearfield | E118: 0 | F118: 0 | G118: 0 | H118: 1 | I118: 3 | J118: 0 | K118: 18 | L118: 3 | M118: 2 | N118: 2 | O118: 4 | P118: 2 | Q118: 0 | R118: 0 | S118: 0 | T118: 1 | U118: 0 | V118: 1 | W118: 0 | X118: 0 | Y118: 3 | Z118: 40
A119: 123460957 | B119: Central Montco Technical High School | C119: OCCCTC | D119: Montgomery | E119: 0 | F119: 0 | G119: 0 | H119: 0 | I119: 0 | J119: 0 | K119: 0 | L119: 0 | M119: 0 | N119: 0 | O119: 0 | P119: 0 | Q119: 0 | R119: 0 | S119: 0 | T119: 0 | U119: 0 | V119: 1 | W119: 299 | X119: 324 | Y119: 307 | Z119: 931
A120: 108070001 | B120: Central PA Digital Learning Foundation C | C120: CS | D120: Blair | E120: 0 | F120: 0 | G120: 0 | H120: 0 | I120: 0 | J120: 0 | K120: 0 | L120: 0 | M120: 11 | N120: 9 | O120: 5 | P120: 10 | Q120: 12 | R120: 8 | S120: 11 | T120: 28 | U120: 19 | V120: 19 | W120: 16 | X120: 21 | Y120: 13 | Z120: 182
A121: 110141607 | B121: Central PA Institute of Science & Techno | C121: OCCCTC | D121: Centre | E121: 0 | F121: 0 | G121: 0 | H121: 0 | I121: 0 | J121: 0 | K121: 0 | L121: 0 | M121: 0 | N121: 0 | O121: 0 | P121: 0 | Q121: 0 | R121: 0 | S121: 0 | T121: 0 | U121: 0 | V121: 41 | W121: 132 | X121: 152 | Y121: 121 | Z121: 446
A122: 116000000 | B122: Central Susquehanna IU 16 | C122: IU | D122: Union | E122: 0 | F122: 0 | G122: 151 | H122: 0 | I122: 0 | J122: 0 | K122: 0 | L122: 0 | M122: 28 | N122: 4 | O122: 3 | P122: 7 | Q122: 6 | R122: 11 | S122: 17 | T122: 15 | U122: 17 | V122: 27 | W122: 32 | X122: 29 | Y122: 49 | Z122: 396
A123: 127042003 | B123: Central Valley SD | C123: SD | D123: Beaver | E123: 0 | F123: 0 | G123: 0 | H123: 0 | I123: 0 | J123: 0 | K123: 71 | L123: 63 | M123: 0 | N123: 170 | O123: 159 | P123: 165 | Q123: 170 | R123: 182 | S123: 164 | T123: 183 | U123: 182 | V123: 178 | W123: 191 | X123: 190 | Y123: 153 | Z123: 2221
A124: 107651207 | B124: Central Westmoreland CTC | C124: OCCCTC | D124: Westmoreland | E124: 0 | F124: 0 | G124: 0 | H124: 0 | I124: 0 | J124: 0 | K124: 0 | L124: 0 | M124: 0 | N124: 0 | O124: 0 | P124: 0 | Q124: 0 | R124: 0 | S124: 0 | T124: 0 | U124: 0 | V124: 2 | W124: 372 | X124: 381 | Y124: 353 | Z124: 1108
A125: 112671303 | B125: Central York SD | C125: SD | D125: York | E125: 0 | F125: 0 | G125: 0 | H125: 0 | I125: 0 | J125: 0 | K125: 0 | L125: 0 | M125: 381 | N125: 377 | O125: 436 | P125: 376 | Q125: 412 | R125: 424 | S125: 428 | T125: 474 | U125: 466 | V125: 490 | W125: 448 | X125: 444 | Y125: 427 | Z125: 5583
A126: 110143060 | B126: Centre Learning Community CS | C126: CS | D126: Centre | E126: 0 | F126: 0 | G126: 0 | H126: 0 | I126: 0 | J126: 0 | K126: 0 | L126: 0 | M126: 0 | N126: 0 | O126: 0 | P126: 0 | Q126: 0 | R126: 9 | S126: 15 | T126: 20 | U126: 23 | V126: 0 | W126: 0 | X126: 0 | Y126: 0 | Z126: 67
A127: 112281302 | B127: Chambersburg Area SD | C127: SD | D127: Franklin | E127: 0 | F127: 0 | G127: 0 | H127: 0 | I127: 0 | J127: 0 | K127: 0 | L127: 0 | M127: 584 | N127: 676 | O127: 635 | P127: 698 | Q127: 673 | R127: 693 | S127: 692 | T127: 730 | U127: 749 | V127: 758 | W127: 711 | X127: 722 | Y127: 718 | Z127: 9039
A128: 101631803 | B128: Charleroi SD | C128: SD | D128: Washington | E128: 0 | F128: 0 | G128: 0 | H128: 0 | I128: 0 | J128: 0 | K128: 1 | L128: 0 | M128: 85 | N128: 94 | O128: 92 | P128: 105 | Q128: 106 | R128: 115 | S128: 118 | T128: 117 | U128: 113 | V128: 139 | W128: 122 | X128: 110 | Y128: 96 | Z128: 1413
A129: 103021752 | B129: Chartiers Valley SD | C129: SD | D129: Allegheny | E129: 0 | F129: 0 | G129: 0 | H129: 0 | I129: 0 | J129: 0 | K129: 0 | L129: 0 | M129: 275 | N129: 284 | O129: 286 | P129: 274 | Q129: 249 | R129: 254 | S129: 224 | T129: 241 | U129: 231 | V129: 243 | W129: 259 | X129: 239 | Y129: 243 | Z129: 3302
A130: 101631903 | B130: Chartiers-Houston SD | C130: SD | D130: Washington | E130: 0 | F130: 0 | G130: 0 | H130: 0 | I130: 0 | J130: 0 | K130: 0 | L130: 0 | M130: 82 | N130: 88 | O130: 91 | P130: 96 | Q130: 87 | R130: 99 | S130: 83 | T130: 85 | U130: 83 | V130: 89 | W130: 73 | X130: 94 | Y130: 90 | Z130: 1140
A131: 123461302 | B131: Cheltenham SD | C131: SD | D131: Montgomery | E131: 0 | F131: 0 | G131: 0 | H131: 0 | I131: 0 | J131: 0 | K131: 0 | L131: 0 | M131: 257 | N131: 275 | O131: 275 | P131: 285 | Q131: 314 | R131: 323 | S131: 333 | T131: 373 | U131: 357 | V131: 357 | W131: 330 | X131: 348 | Y131: 341 | Z131: 4168
A132: 125236827 | B132: Chester Charter Scholars Academy CS | C132: CS | D132: Delaware | E132: 0 | F132: 0 | G132: 0 | H132: 0 | I132: 0 | J132: 0 | K132: 0 | L132: 0 | M132: 52 | N132: 54 | O132: 55 | P132: 54 | Q132: 54 | R132: 53 | S132: 54 | T132: 54 | U132: 54 | V132: 54 | W132: 54 | X132: 53 | Y132: 48 | Z132: 693
A133: 124152880 | B133: Chester Co Family Academy CS | C133: CS | D133: Chester | E133: 0 | F133: 0 | G133: 0 | H133: 0 | I133: 0 | J133: 0 | K133: 0 | L133: 0 | M133: 28 | N133: 24 | O133: 20 | P133: 0 | Q133: 0 | R133: 0 | S133: 0 | T133: 0 | U133: 0 | V133: 0 | W133: 0 | X133: 0 | Y133: 0 | Z133: 72
A134: 125232950 | B134: Chester Community CS | C134: CS | D134: Delaware | E134: 0 | F134: 0 | G134: 0 | H134: 0 | I134: 0 | J134: 0 | K134: 0 | L134: 0 | M134: 375 | N134: 544 | O134: 537 | P134: 535 | Q134: 573 | R134: 510 | S134: 534 | T134: 475 | U134: 390 | V134: 0 | W134: 0 | X134: 0 | Y134: 0 | Z134: 4473
A135: 124000000 | B135: Chester County IU 24 | C135: IU | D135: Chester | E135: 0 | F135: 0 | G135: 0 | H135: 0 | I135: 0 | J135: 0 | K135: 21 | L135: 0 | M135: 30 | N135: 11 | O135: 17 | P135: 28 | Q135: 31 | R135: 46 | S135: 49 | T135: 47 | U135: 61 | V135: 64 | W135: 77 | X135: 97 | Y135: 244 | Z135: 823
A136: 124151607 | B136: Chester County Technical College HS | C136: OCCCTC | D136: Chester | E136: 0 | F136: 0 | G136: 0 | H136: 0 | I136: 0 | J136: 0 | K136: 0 | L136: 0 | M136: 0 | N136: 0 | O136: 0 | P136: 0 | Q136: 0 | R136: 0 | S136: 0 | T136: 0 | U136: 0 | V136: 16 | W136: 472 | X136: 681 | Y136: 1032 | Z136: 2201
A137: 125231232 | B137: Chester-Upland SD | C137: SD | D137: Delaware | E137: 0 | F137: 0 | G137: 99 | H137: 0 | I137: 0 | J137: 0 | K137: 0 | L137: 0 | M137: 108 | N137: 161 | O137: 148 | P137: 159 | Q137: 156 | R137: 127 | S137: 128 | T137: 131 | U137: 145 | V137: 361 | W137: 334 | X137: 313 | Y137: 251 | Z137: 2621
A138: 108051503 | B138: Chestnut Ridge SD | C138: SD | D138: Bedford | E138: 0 | F138: 0 | G138: 35 | H138: 0 | I138: 0 | J138: 0 | K138: 0 | L138: 0 | M138: 79 | N138: 96 | O138: 73 | P138: 91 | Q138: 80 | R138: 94 | S138: 86 | T138: 107 | U138: 100 | V138: 118 | W138: 99 | X138: 98 | Y138: 100 | Z138: 1256
A139: 125231303 | B139: Chichester SD | C139: SD | D139: Delaware | E139: 0 | F139: 0 | G139: 0 | H139: 0 | I139: 0 | J139: 0 | K139: 0 | L139: 0 | M139: 193 | N139: 234 | O139: 215 | P139: 215 | Q139: 239 | R139: 251 | S139: 259 | T139: 249 | U139: 247 | V139: 258 | W139: 239 | X139: 220 | Y139: 199 | Z139: 3018
A140: 126513160 | B140: Christopher Columbus CS | C140: CS | D140: Philadelphia | E140: 0 | F140: 0 | G140: 0 | H140: 0 | I140: 0 | J140: 0 | K140: 0 | L140: 0 | M140: 91 | N140: 109 | O140: 99 | P140: 100 | Q140: 109 | R140: 101 | S140: 103 | T140: 93 | U140: 95 | V140: 0 | W140: 0 | X140: 0 | Y140: 0 | Z140: 900
A141: 121394017 | B141: Circle of Seasons CS | C141: CS | D141: Lehigh | E141: 0 | F141: 0 | G141: 0 | H141: 0 | I141: 0 | J141: 0 | K141: 0 | L141: 0 | M141: 48 | N141: 50 | O141: 50 | P141: 48 | Q141: 50 | R141: 47 | S141: 43 | T141: 45 | U141: 37 | V141: 0 | W141: 0 | X141: 0 | Y141: 0 | Z141: 418
A142: 102020001 | B142: City CHS | C142: CS | D142: Allegheny | E142: 0 | F142: 0 | G142: 0 | H142: 0 | I142: 0 | J142: 0 | K142: 0 | L142: 0 | M142: 0 | N142: 0 | O142: 0 | P142: 0 | Q142: 0 | R142: 0 | S142: 0 | T142: 0 | U142: 0 | V142: 117 | W142: 149 | X142: 152 | Y142: 89 | Z142: 507
A143: 103021903 | B143: Clairton City SD | C143: SD | D143: Allegheny | E143: 0 | F143: 0 | G143: 0 | H143: 0 | I143: 0 | J143: 0 | K143: 0 | L143: 0 | M143: 66 | N143: 60 | O143: 63 | P143: 64 | Q143: 56 | R143: 53 | S143: 71 | T143: 67 | U143: 59 | V143: 64 | W143: 61 | X143: 68 | Y143: 44 | Z143: 796
A144: 106161203 | B144: Clarion Area SD | C144: SD | D144: Clarion | E144: 0 | F144: 0 | G144: 0 | H144: 0 | I144: 0 | J144: 0 | K144: 0 | L144: 0 | M144: 58 | N144: 47 | O144: 48 | P144: 48 | Q144: 66 | R144: 55 | S144: 59 | T144: 70 | U144: 62 | V144: 61 | W144: 42 | X144: 64 | Y144: 67 | Z144: 747
A145: 106161357 | B145: Clarion County Career Center | C145: OCCCTC | D145: Clarion | E145: 0 | F145: 0 | G145: 0 | H145: 0 | I145: 0 | J145: 0 | K145: 0 | L145: 0 | M145: 0 | N145: 0 | O145: 0 | P145: 0 | Q145: 0 | R145: 0 | S145: 0 | T145: 0 | U145: 0 | V145: 2 | W145: 113 | X145: 120 | Y145: 105 | Z145: 340
A146: 106161703 | B146: Clarion-Limestone Area SD | C146: SD | D146: Clarion | E146: 0 | F146: 0 | G146: 0 | H146: 0 | I146: 0 | J146: 0 | K146: 0 | L146: 0 | M146: 69 | N146: 60 | O146: 63 | P146: 66 | Q146: 62 | R146: 64 | S146: 56 | T146: 61 | U146: 61 | V146: 72 | W146: 51 | X146: 72 | Y146: 61 | Z146: 818
A147: 108071504 | B147: Claysburg-Kimmel SD | C147: SD | D147: Blair | E147: 0 | F147: 0 | G147: 0 | H147: 0 | I147: 0 | J147: 0 | K147: 0 | L147: 0 | M147: 65 | N147: 44 | O147: 54 | P147: 51 | Q147: 48 | R147: 75 | S147: 59 | T147: 69 | U147: 67 | V147: 54 | W147: 72 | X147: 66 | Y147: 75 | Z147: 799
A148: 110171003 | B148: Clearfield Area SD | C148: SD | D148: Clearfield | E148: 0 | F148: 0 | G148: 0 | H148: 0 | I148: 0 | J148: 0 | K148: 0 | L148: 0 | M148: 159 | N148: 158 | O148: 136 | P148: 133 | Q148: 153 | R148: 148 | S148: 170 | T148: 166 | U148: 176 | V148: 174 | W148: 168 | X148: 184 | Y148: 178 | Z148: 2103
A149: 110171607 | B149: Clearfield County CTC | C149: OCCCTC | D149: Clearfield | E149: 0 | F149: 0 | G149: 0 | H149: 0 | I149: 0 | J149: 0 | K149: 0 | L149: 0 | M149: 0 | N149: 0 | O149: 0 | P149: 0 | Q149: 0 | R149: 0 | S149: 0 | T149: 0 | U149: 0 | V149: 5 | W149: 18 | X149: 204 | Y149: 148 | Z149: 375
A150: 124151902 | B150: Coatesville Area SD | C150: SD | D150: Chester | E150: 0 | F150: 0 | G150: 0 | H150: 0 | I150: 0 | J150: 0 | K150: 0 | L150: 0 | M150: 376 | N150: 386 | O150: 374 | P150: 375 | Q150: 386 | R150: 371 | S150: 388 | T150: 408 | U150: 397 | V150: 449 | W150: 479 | X150: 491 | Y150: 442 | Z150: 5322
A151: 113361303 | B151: Cocalico SD | C151: SD | D151: Lancaster | E151: 0 | F151: 0 | G151: 0 | H151: 0 | I151: 0 | J151: 0 | K151: 129 | L151: 92 | M151: 0 | N151: 188 | O151: 217 | P151: 181 | Q151: 195 | R151: 211 | S151: 245 | T151: 250 | U151: 220 | V151: 267 | W151: 252 | X151: 248 | Y151: 236 | Z151: 2931
A152: 124153320 | B152: Collegium CS | C152: CS | D152: Chester | E152: 0 | F152: 0 | G152: 0 | H152: 0 | I152: 0 | J152: 0 | K152: 0 | L152: 0 | M152: 272 | N152: 279 | O152: 273 | P152: 256 | Q152: 288 | R152: 281 | S152: 270 | T152: 267 | U152: 225 | V152: 205 | W152: 167 | X152: 146 | Y152: 112 | Z152: 3041
A153: 120000000 | B153: Colonial IU 20 | C153: IU | D153: Northampton | E153: 31 | F153: 10 | G153: 0 | H153: 0 | I153: 0 | J153: 0 | K153: 0 | L153: 0 | M153: 67 | N153: 93 | O153: 92 | P153: 105 | Q153: 104 | R153: 95 | S153: 109 | T153: 116 | U153: 112 | V153: 120 | W153: 112 | X153: 118 | Y153: 189 | Z153: 1473
A154: 123461602 | B154: Colonial SD | C154: SD | D154: Montgomery | E154: 0 | F154: 0 | G154: 0 | H154: 0 | I154: 0 | J154: 0 | K154: 0 | L154: 0 | M154: 402 | N154: 430 | O154: 408 | P154: 415 | Q154: 441 | R154: 388 | S154: 381 | T154: 408 | U154: 404 | V154: 375 | W154: 367 | X154: 368 | Y154: 396 | Z154: 5183
A155: 113361503 | B155: Columbia Borough SD | C155: SD | D155: Lancaster | E155: 0 | F155: 0 | G155: 0 | H155: 0 | I155: 0 | J155: 0 | K155: 0 | L155: 0 | M155: 92 | N155: 98 | O155: 95 | P155: 95 | Q155: 97 | R155: 107 | S155: 94 | T155: 95 | U155: 105 | V155: 119 | W155: 93 | X155: 94 | Y155: 78 | Z155: 1262
A156: 116191757 | B156: Columbia-Montour AVTS | C156: COMCTC | D156: Columbia | E156: 0 | F156: 0 | G156: 0 | H156: 0 | I156: 0 | J156: 0 | K156: 0 | L156: 0 | M156: 0 | N156: 0 | O156: 0 | P156: 0 | Q156: 0 | R156: 0 | S156: 0 | T156: 0 | U156: 0 | V156: 166 | W156: 158 | X156: 147 | Y156: 143 | Z156: 614
A157: 104431304 | B157: Commodore Perry SD | C157: SD | D157: Mercer | E157: 0 | F157: 0 | G157: 0 | H157: 0 | I157: 0 | J157: 0 | K157: 0 | L157: 0 | M157: 33 | N157: 41 | O157: 43 | P157: 27 | Q157: 37 | R157: 37 | S157: 34 | T157: 40 | U157: 28 | V157: 36 | W157: 23 | X157: 36 | Y157: 42 | Z157: 457
A158: 115220002 | B158: Commonwealth Charter Academy CS | C158: CS | D158: Dauphin | E158: 0 | F158: 0 | G158: 0 | H158: 0 | I158: 0 | J158: 0 | K158: 0 | L158: 0 | M158: 852 | N158: 964 | O158: 1017 | P158: 1063 | Q158: 1158 | R158: 1251 | S158: 1322 | T158: 1504 | U158: 1550 | V158: 1968 | W158: 1441 | X158: 1117 | Y158: 1212 | Z158: 16419
A159: 126512840 | B159: Community Academy of Philadelphia CS | C159: CS | D159: Philadelphia | E159: 0 | F159: 0 | G159: 0 | H159: 0 | I159: 0 | J159: 0 | K159: 0 | L159: 0 | M159: 89 | N159: 59 | O159: 61 | P159: 92 | Q159: 89 | R159: 63 | S159: 60 | T159: 62 | U159: 62 | V159: 152 | W159: 148 | X159: 151 | Y159: 139 | Z159: 1227
A160: 108561803 | B160: Conemaugh Township Area SD | C160: SD | D160: Somerset | E160: 0 | F160: 0 | G160: 0 | H160: 0 | I160: 0 | J160: 0 | K160: 0 | L160: 0 | M160: 60 | N160: 56 | O160: 50 | P160: 66 | Q160: 68 | R160: 65 | S160: 63 | T160: 74 | U160: 77 | V160: 63 | W160: 67 | X160: 91 | Y160: 73 | Z160: 873
A161: 108111403 | B161: Conemaugh Valley SD | C161: SD | D161: Cambria | E161: 0 | F161: 0 | G161: 0 | H161: 0 | I161: 0 | J161: 0 | K161: 0 | L161: 0 | M161: 45 | N161: 57 | O161: 52 | P161: 66 | Q161: 49 | R161: 57 | S161: 54 | T161: 56 | U161: 56 | V161: 56 | W161: 51 | X161: 37 | Y161: 52 | Z161: 688
A162: 113361703 | B162: Conestoga Valley SD | C162: SD | D162: Lancaster | E162: 0 | F162: 0 | G162: 0 | H162: 0 | I162: 0 | J162: 0 | K162: 0 | L162: 0 | M162: 256 | N162: 288 | O162: 286 | P162: 298 | Q162: 298 | R162: 314 | S162: 343 | T162: 324 | U162: 324 | V162: 326 | W162: 300 | X162: 341 | Y162: 315 | Z162: 4013
A163: 112011603 | B163: Conewago Valley SD | C163: SD | D163: Adams | E163: 0 | F163: 0 | G163: 0 | H163: 0 | I163: 0 | J163: 0 | K163: 0 | L163: 0 | M163: 241 | N163: 250 | O163: 272 | P163: 262 | Q163: 247 | R163: 269 | S163: 273 | T163: 301 | U163: 278 | V163: 301 | W163: 273 | X163: 291 | Y163: 294 | Z163: 3552
A164: 105201033 | B164: Conneaut SD | C164: SD | D164: Crawford | E164: 0 | F164: 0 | G164: 0 | H164: 0 | I164: 0 | J164: 0 | K164: 0 | L164: 0 | M164: 130 | N164: 136 | O164: 105 | P164: 141 | Q164: 131 | R164: 143 | S164: 139 | T164: 153 | U164: 157 | V164: 154 | W164: 161 | X164: 138 | Y164: 152 | Z164: 1840
A165: 101266007 | B165: Connellsville Area Career & Technical Ce | C165: COMCTC | D165: Fayette | E165: 0 | F165: 0 | G165: 0 | H165: 0 | I165: 0 | J165: 0 | K165: 0 | L165: 0 | M165: 0 | N165: 0 | O165: 0 | P165: 0 | Q165: 0 | R165: 0 | S165: 0 | T165: 0 | U165: 0 | V165: 142 | W165: 153 | X165: 97 | Y165: 123 | Z165: 515
A166: 101261302 | B166: Connellsville Area SD | C166: SD | D166: Fayette | E166: 0 | F166: 0 | G166: 0 | H166: 0 | I166: 0 | J166: 0 | K166: 0 | L166: 0 | M166: 308 | N166: 302 | O166: 292 | P166: 284 | Q166: 286 | R166: 318 | S166: 287 | T166: 354 | U166: 349 | V166: 365 | W166: 333 | X166: 208 | Y166: 233 | Z166: 3919
A167: 114061103 | B167: Conrad Weiser Area SD | C167: SD | D167: Berks | E167: 0 | F167: 0 | G167: 0 | H167: 0 | I167: 0 | J167: 0 | K167: 0 | L167: 0 | M167: 158 | N167: 175 | O167: 183 | P167: 146 | Q167: 183 | R167: 185 | S167: 171 | T167: 219 | U167: 232 | V167: 214 | W167: 216 | X167: 193 | Y167: 224 | Z167: 2499
A168: 103022103 | B168: Cornell SD | C168: SD | D168: Allegheny | E168: 0 | F168: 0 | G168: 0 | H168: 0 | I168: 0 | J168: 0 | K168: 0 | L168: 0 | M168: 37 | N168: 44 | O168: 40 | P168: 41 | Q168: 38 | R168: 39 | S168: 56 | T168: 40 | U168: 47 | V168: 39 | W168: 38 | X168: 42 | Y168: 47 | Z168: 548
A169: 113381303 | B169: Cornwall-Lebanon SD | C169: SD | D169: Lebanon | E169: 0 | F169: 0 | G169: 0 | H169: 0 | I169: 0 | J169: 0 | K169: 0 | L169: 0 | M169: 272 | N169: 334 | O169: 350 | P169: 362 | Q169: 406 | R169: 369 | S169: 415 | T169: 392 | U169: 406 | V169: 401 | W169: 388 | X169: 381 | Y169: 378 | Z169: 4854
A170: 105251453 | B170: Corry Area SD | C170: SD | D170: Erie | E170: 0 | F170: 0 | G170: 31 | H170: 0 | I170: 0 | J170: 0 | K170: 0 | L170: 0 | M170: 106 | N170: 134 | O170: 124 | P170: 137 | Q170: 141 | R170: 139 | S170: 118 | T170: 158 | U170: 161 | V170: 164 | W170: 146 | X170: 150 | Y170: 151 | Z170: 1860
A171: 109531304 | B171: Coudersport Area SD | C171: SD | D171: Potter | E171: 0 | F171: 0 | G171: 0 | H171: 0 | I171: 0 | J171: 0 | K171: 0 | L171: 0 | M171: 58 | N171: 45 | O171: 47 | P171: 46 | Q171: 72 | R171: 59 | S171: 44 | T171: 53 | U171: 56 | V171: 68 | W171: 64 | X171: 54 | Y171: 62 | Z171: 728
A172: 122092353 | B172: Council Rock SD | C172: SD | D172: Bucks | E172: 0 | F172: 0 | G172: 0 | H172: 0 | I172: 0 | J172: 0 | K172: 259 | L172: 209 | M172: 14 | N172: 663 | O172: 717 | P172: 751 | Q172: 797 | R172: 866 | S172: 842 | T172: 879 | U172: 890 | V172: 872 | W172: 889 | X172: 927 | Y172: 919 | Z172: 10494
A173: 106611303 | B173: Cranberry Area SD | C173: SD | D173: Venango | E173: 0 | F173: 0 | G173: 0 | H173: 0 | I173: 0 | J173: 0 | K173: 0 | L173: 0 | M173: 75 | N173: 66 | O173: 89 | P173: 71 | Q173: 99 | R173: 83 | S173: 100 | T173: 98 | U173: 84 | V173: 86 | W173: 90 | X173: 80 | Y173: 77 | Z173: 1098
A174: 105201352 | B174: Crawford Central SD | C174: SD | D174: Crawford | E174: 0 | F174: 0 | G174: 0 | H174: 0 | I174: 0 | J174: 0 | K174: 0 | L174: 0 | M174: 213 | N174: 247 | O174: 261 | P174: 228 | Q174: 208 | R174: 223 | S174: 250 | T174: 247 | U174: 282 | V174: 270 | W174: 236 | X174: 255 | Y174: 280 | Z174: 3200
A175: 105201407 | B175: Crawford County CTC | C175: OCCCTC | D175: Crawford | E175: 0 | F175: 0 | G175: 0 | H175: 0 | I175: 0 | J175: 0 | K175: 0 | L175: 0 | M175: 0 | N175: 0 | O175: 0 | P175: 0 | Q175: 0 | R175: 0 | S175: 0 | T175: 0 | U175: 0 | V175: 0 | W175: 115 | X175: 175 | Y175: 159 | Z175: 449
A176: 118401403 | B176: Crestwood SD | C176: SD | D176: Luzerne | E176: 0 | F176: 0 | G176: 0 | H176: 0 | I176: 0 | J176: 0 | K176: 0 | L176: 0 | M176: 153 | N176: 203 | O176: 215 | P176: 199 | Q176: 200 | R176: 200 | S176: 240 | T176: 208 | U176: 245 | V176: 201 | W176: 260 | X176: 246 | Y176: 242 | Z176: 2812
A177: 112673300 | B177: Crispus Attucks CS | C177: CS | D177: York | E177: 0 | F177: 0 | G177: 0 | H177: 0 | I177: 0 | J177: 0 | K177: 0 | L177: 0 | M177: 0 | N177: 0 | O177: 0 | P177: 0 | Q177: 0 | R177: 0 | S177: 0 | T177: 0 | U177: 0 | V177: 0 | W177: 0 | X177: 0 | Y177: 71 | Z177: 71
A178: 115211657 | B178: Cumberland Perry AVTS | C178: OCCCTC | D178: Cumberland | E178: 0 | F178: 0 | G178: 0 | H178: 0 | I178: 0 | J178: 0 | K178: 0 | L178: 0 | M178: 0 | N178: 0 | O178: 0 | P178: 0 | Q178: 0 | R178: 0 | S178: 0 | T178: 0 | U178: 0 | V178: 56 | W178: 403 | X178: 373 | Y178: 319 | Z178: 1151
A179: 115211603 | B179: Cumberland Valley SD | C179: SD | D179: Cumberland | E179: 0 | F179: 0 | G179: 0 | H179: 0 | I179: 0 | J179: 0 | K179: 301 | L179: 270 | M179: 54 | N179: 722 | O179: 707 | P179: 732 | Q179: 779 | R179: 728 | S179: 762 | T179: 760 | U179: 754 | V179: 721 | W179: 731 | X179: 728 | Y179: 654 | Z179: 9403
A180: 110171803 | B180: Curwensville Area SD | C180: SD | D180: Clearfield | E180: 0 | F180: 0 | G180: 0 | H180: 0 | I180: 0 | J180: 0 | K180: 0 | L180: 0 | M180: 93 | N180: 87 | O180: 83 | P180: 83 | Q180: 56 | R180: 53 | S180: 80 | T180: 75 | U180: 83 | V180: 73 | W180: 89 | X180: 92 | Y180: 74 | Z180: 1021
A181: 118401603 | B181: Dallas SD | C181: SD | D181: Luzerne | E181: 0 | F181: 0 | G181: 0 | H181: 0 | I181: 0 | J181: 0 | K181: 87 | L181: 62 | M181: 3 | N181: 167 | O181: 162 | P181: 191 | Q181: 187 | R181: 196 | S181: 190 | T181: 189 | U181: 195 | V181: 200 | W181: 208 | X181: 186 | Y181: 202 | Z181: 2425
A182: 112671603 | B182: Dallastown Area SD | C182: SD | D182: York | E182: 0 | F182: 0 | G182: 0 | H182: 0 | I182: 0 | J182: 0 | K182: 0 | L182: 0 | M182: 398 | N182: 470 | O182: 464 | P182: 439 | Q182: 500 | R182: 489 | S182: 512 | T182: 558 | U182: 549 | V182: 475 | W182: 514 | X182: 481 | Y182: 476 | Z182: 6325
A183: 114061503 | B183: Daniel Boone Area SD | C183: SD | D183: Berks | E183: 0 | F183: 0 | G183: 0 | H183: 0 | I183: 0 | J183: 0 | K183: 74 | L183: 74 | M183: 43 | N183: 193 | O183: 206 | P183: 211 | Q183: 229 | R183: 222 | S183: 238 | T183: 257 | U183: 248 | V183: 269 | W183: 272 | X183: 272 | Y183: 277 | Z183: 3085
A184: 116471803 | B184: Danville Area SD | C184: SD | D184: Montour | E184: 0 | F184: 0 | G184: 0 | H184: 0 | I184: 0 | J184: 0 | K184: 0 | L184: 0 | M184: 177 | N184: 161 | O184: 180 | P184: 163 | Q184: 173 | R184: 171 | S184: 157 | T184: 167 | U184: 173 | V184: 146 | W184: 147 | X184: 162 | Y184: 186 | Z184: 2163
A185: 116471111 | B185: Danville Ctr Adolescent Female | C185: SJCI | D185: Montour | E185: 0 | F185: 0 | G185: 0 | H185: 0 | I185: 0 | J185: 0 | K185: 0 | L185: 0 | M185: 0 | N185: 0 | O185: 0 | P185: 0 | Q185: 0 | R185: 0 | S185: 0 | T185: 0 | U185: 4 | V185: 7 | W185: 5 | X185: 8 | Y185: 8 | Z185: 32
A186: 115221607 | B186: Dauphin County Technical School | C186: COMCTC | D186: Dauphin | E186: 0 | F186: 0 | G186: 0 | H186: 0 | I186: 0 | J186: 0 | K186: 0 | L186: 0 | M186: 0 | N186: 0 | O186: 0 | P186: 0 | Q186: 0 | R186: 0 | S186: 0 | T186: 0 | U186: 0 | V186: 293 | W186: 251 | X186: 235 | Y186: 232 | Z186: 1011
A187: 126516724 | B187: Deep Roots CS | C187: CS | D187: Philadelphia | E187: 0 | F187: 0 | G187: 0 | H187: 0 | I187: 0 | J187: 0 | K187: 0 | L187: 0 | M187: 46 | N187: 50 | O187: 58 | P187: 53 | Q187: 54 | R187: 53 | S187: 51 | T187: 0 | U187: 0 | V187: 0 | W187: 0 | X187: 0 | Y187: 0 | Z187: 365
A188: 103022253 | B188: Deer Lakes SD | C188: SD | D188: Allegheny | E188: 0 | F188: 0 | G188: 0 | H188: 0 | I188: 0 | J188: 0 | K188: 0 | L188: 0 | M188: 118 | N188: 106 | O188: 131 | P188: 135 | Q188: 132 | R188: 154 | S188: 149 | T188: 170 | U188: 135 | V188: 158 | W188: 140 | X188: 161 | Y188: 152 | Z188: 1841
A189: 125000000 | B189: Delaware County IU 25 | C189: IU | D189: Delaware | E189: 0 | F189: 0 | G189: 0 | H189: 0 | I189: 0 | J189: 0 | K189: 0 | L189: 0 | M189: 1 | N189: 14 | O189: 17 | P189: 24 | Q189: 22 | R189: 19 | S189: 18 | T189: 19 | U189: 32 | V189: 22 | W189: 49 | X189: 28 | Y189: 88 | Z189: 353
A190: 125232407 | B190: Delaware County Technical High School | C190: OCCCTC | D190: Delaware | E190: 0 | F190: 0 | G190: 0 | H190: 0 | I190: 0 | J190: 0 | K190: 0 | L190: 0 | M190: 0 | N190: 0 | O190: 0 | P190: 0 | Q190: 0 | R190: 0 | S190: 0 | T190: 0 | U190: 0 | V190: 3 | W190: 211 | X190: 404 | Y190: 584 | Z190: 1202
A191: 120522003 | B191: Delaware Valley SD | C191: SD | D191: Pike | E191: 29 | F191: 6 | G191: 0 | H191: 0 | I191: 0 | J191: 0 | K191: 0 | L191: 0 | M191: 285 | N191: 266 | O191: 283 | P191: 308 | Q191: 298 | R191: 311 | S191: 333 | T191: 321 | U191: 366 | V191: 380 | W191: 330 | X191: 357 | Y191: 414 | Z191: 4287
A192: 107651603 | B192: Derry Area SD | C192: SD | D192: Westmoreland | E192: 0 | F192: 0 | G192: 0 | H192: 0 | I192: 0 | J192: 0 | K192: 0 | L192: 0 | M192: 103 | N192: 115 | O192: 143 | P192: 136 | Q192: 143 | R192: 139 | S192: 156 | T192: 151 | U192: 168 | V192: 155 | W192: 130 | X192: 152 | Y192: 146 | Z192: 1837
A193: 115221753 | B193: Derry Township SD | C193: SD | D193: Dauphin | E193: 0 | F193: 0 | G193: 0 | H193: 0 | I193: 0 | J193: 0 | K193: 0 | L193: 0 | M193: 201 | N193: 236 | O193: 234 | P193: 237 | Q193: 232 | R193: 234 | S193: 261 | T193: 291 | U193: 269 | V193: 288 | W193: 292 | X193: 307 | Y193: 333 | Z193: 3415
A194: 126510011 | B194: Discovery CS | C194: CS | D194: Philadelphia | E194: 0 | F194: 0 | G194: 0 | H194: 0 | I194: 0 | J194: 0 | K194: 0 | L194: 0 | M194: 59 | N194: 66 | O194: 58 | P194: 68 | Q194: 63 | R194: 80 | S194: 85 | T194: 98 | U194: 57 | V194: 0 | W194: 0 | X194: 0 | Y194: 0 | Z194: 634
A195: 113362203 | B195: Donegal SD | C195: SD | D195: Lancaster | E195: 0 | F195: 0 | G195: 0 | H195: 0 | I195: 0 | J195: 0 | K195: 74 | L195: 79 | M195: 0 | N195: 200 | O195: 213 | P195: 205 | Q195: 217 | R195: 216 | S195: 232 | T195: 243 | U195: 227 | V195: 228 | W195: 232 | X195: 240 | Y195: 212 | Z195: 2818
A196: 112671803 | B196: Dover Area SD | C196: SD | D196: York | E196: 0 | F196: 0 | G196: 0 | H196: 0 | I196: 0 | J196: 0 | K196: 0 | L196: 0 | M196: 225 | N196: 237 | O196: 264 | P196: 250 | Q196: 247 | R196: 300 | S196: 284 | T196: 293 | U196: 273 | V196: 287 | W196: 281 | X196: 234 | Y196: 243 | Z196: 3418
A197: 124152003 | B197: Downingtown Area SD | C197: SD | D197: Chester | E197: 0 | F197: 0 | G197: 0 | H197: 0 | I197: 0 | J197: 0 | K197: 382 | L197: 239 | M197: 122 | N197: 793 | O197: 891 | P197: 945 | Q197: 967 | R197: 963 | S197: 1079 | T197: 1048 | U197: 1083 | V197: 1154 | W197: 1082 | X197: 1049 | Y197: 1112 | Z197: 12909
A198: 107653040 | B198: Dr Robert Ketterer CS Inc | C198: CS | D198: Westmoreland | E198: 0 | F198: 0 | G198: 0 | H198: 0 | I198: 0 | J198: 0 | K198: 0 | L198: 0 | M198: 0 | N198: 0 | O198: 0 | P198: 0 | Q198: 0 | R198: 0 | S198: 0 | T198: 8 | U198: 17 | V198: 29 | W198: 37 | X198: 45 | Y198: 36 | Z198: 172
A199: 106172003 | B199: Dubois Area SD | C199: SD | D199: Clearfield | E199: 0 | F199: 0 | G199: 0 | H199: 0 | I199: 0 | J199: 0 | K199: 0 | L199: 0 | M199: 249 | N199: 282 | O199: 273 | P199: 246 | Q199: 258 | R199: 274 | S199: 267 | T199: 293 | U199: 288 | V199: 216 | W199: 253 | X199: 255 | Y199: 284 | Z199: 3438
A200: 119352203 | B200: Dunmore SD | C200: SD | D200: Lackawanna | E200: 0 | F200: 0 | G200: 0 | H200: 0 | I200: 0 | J200: 0 | K200: 0 | L200: 0 | M200: 100 | N200: 95 | O200: 94 | P200: 126 | Q200: 126 | R200: 88 | S200: 108 | T200: 132 | U200: 128 | V200: 104 | W200: 116 | X200: 112 | Y200: 126 | Z200: 1455
A201: 103022503 | B201: Duquesne City SD | C201: SD | D201: Allegheny | E201: 0 | F201: 0 | G201: 13 | H201: 0 | I201: 0 | J201: 0 | K201: 0 | L201: 0 | M201: 47 | N201: 59 | O201: 49 | P201: 43 | Q201: 54 | R201: 51 | S201: 41 | T201: 0 | U201: 0 | V201: 0 | W201: 0 | X201: 0 | Y201: 0 | Z201: 357
A202: 103022803 | B202: East Allegheny SD | C202: SD | D202: Allegheny | E202: 0 | F202: 0 | G202: 0 | H202: 0 | I202: 0 | J202: 0 | K202: 0 | L202: 0 | M202: 97 | N202: 114 | O202: 93 | P202: 121 | Q202: 111 | R202: 115 | S202: 100 | T202: 115 | U202: 129 | V202: 127 | W202: 125 | X202: 114 | Y202: 104 | Z202: 1465
... 591 more rows

Sheet Enrollments LEA_19_20 (hidden)
A1: October 1 Enrollment by LEA
A3: Year: 2019-2020
A5: AUN | B5: LEA Name | C5: LEA Type | D5: County | E5: PKA | F5: PKP | G5: PKF | H5: K4A | I5: K4P | J5: K4F | K5: K5A | L5: K5P | M5: K5F | N5: 001 | O5: 002 | P5: 003 | Q5: 004 | R5: 005 | S5: 006 | T5: 007 | U5: 008 | V5: 009 | W5: 010 | X5: 011 | Y5: 012 | Z5: Total
A6: 124150002 | B6: 21st Century Cyber CS | C6: CS | D6: Chester | E6: 0 | F6: 0 | G6: 0 | H6: 0 | I6: 0 | J6: 0 | K6: 0 | L6: 0 | M6: 0 | N6: 0 | O6: 0 | P6: 0 | Q6: 0 | R6: 0 | S6: 61 | T6: 123 | U6: 177 | V6: 236 | W6: 219 | X6: 237 | Y6: 217 | Z6: 1270
A7: 103020407 | B7: A W Beattie Career Center | C7: OCCCTC | D7: Allegheny | E7: 0 | F7: 0 | G7: 0 | H7: 0 | I7: 0 | J7: 0 | K7: 0 | L7: 0 | M7: 0 | N7: 0 | O7: 0 | P7: 0 | Q7: 0 | R7: 0 | S7: 0 | T7: 0 | U7: 0 | V7: 0 | W7: 222 | X7: 304 | Y7: 266 | Z7: 792
A8: 128000000 | B8: ARIN IU 28 | C8: IU | D8: Indiana | E8: 0 | F8: 0 | G8: 0 | H8: 0 | I8: 0 | J8: 0 | K8: 0 | L8: 0 | M8: 1 | N8: 1 | O8: 2 | P8: 3 | Q8: 0 | R8: 3 | S8: 2 | T8: 7 | U8: 0 | V8: 9 | W8: 3 | X8: 6 | Y8: 9 | Z8: 46
A9: 181519176 | B9: ASPIRA Bilingual Cyber Charter School | C9: CS | D9: Philadelphia | E9: 0 | F9: 0 | G9: 0 | H9: 0 | I9: 0 | J9: 0 | K9: 0 | L9: 0 | M9: 2 | N9: 10 | O9: 12 | P9: 20 | Q9: 12 | R9: 23 | S9: 26 | T9: 23 | U9: 46 | V9: 37 | W9: 44 | X9: 49 | Y9: 41 | Z9: 345
A10: 119350303 | B10: Abington Heights SD | C10: SD | D10: Lackawanna | E10: 0 | F10: 0 | G10: 0 | H10: 0 | I10: 0 | J10: 0 | K10: 120 | L10: 110 | M10: 0 | N10: 253 | O10: 227 | P10: 282 | Q10: 251 | R10: 263 | S10: 286 | T10: 285 | U10: 266 | V10: 306 | W10: 248 | X10: 268 | Y10: 260 | Z10: 3425
A11: 123460302 | B11: Abington SD | C11: SD | D11: Montgomery | E11: 0 | F11: 0 | G11: 0 | H11: 0 | I11: 0 | J11: 0 | K11: 0 | L11: 0 | M11: 594 | N11: 666 | O11: 658 | P11: 721 | Q11: 632 | R11: 676 | S11: 693 | T11: 684 | U11: 674 | V11: 645 | W11: 657 | X11: 615 | Y11: 619 | Z11: 8534
A12: 125230001 | B12: Achievement House CS | C12: CS | D12: Chester | E12: 0 | F12: 0 | G12: 0 | H12: 0 | I12: 0 | J12: 0 | K12: 0 | L12: 0 | M12: 0 | N12: 0 | O12: 0 | P12: 0 | Q12: 0 | R12: 0 | S12: 0 | T12: 23 | U12: 60 | V12: 110 | W12: 125 | X12: 145 | Y12: 125 | Z12: 588
A13: 126510015 | B13: Ad Prima CS | C13: CS | D13: Philadelphia | E13: 0 | F13: 0 | G13: 0 | H13: 0 | I13: 0 | J13: 0 | K13: 0 | L13: 0 | M13: 56 | N13: 65 | O13: 64 | P13: 59 | Q13: 91 | R13: 95 | S13: 86 | T13: 90 | U13: 59 | V13: 0 | W13: 0 | X13: 0 | Y13: 0 | Z13: 665
A14: 108110307 | B14: Admiral Peary AVTS | C14: OCCCTC | D14: Cambria | E14: 0 | F14: 0 | G14: 0 | H14: 0 | I14: 0 | J14: 0 | K14: 0 | L14: 0 | M14: 0 | N14: 0 | O14: 0 | P14: 0 | Q14: 0 | R14: 0 | S14: 0 | T14: 0 | U14: 0 | V14: 8 | W14: 147 | X14: 192 | Y14: 194 | Z14: 541
A15: 126510020 | B15: Agora Cyber CS | C15: CS | D15: Montgomery | E15: 0 | F15: 0 | G15: 0 | H15: 0 | I15: 0 | J15: 0 | K15: 0 | L15: 0 | M15: 139 | N15: 158 | O15: 174 | P15: 173 | Q15: 188 | R15: 287 | S15: 405 | T15: 461 | U15: 530 | V15: 729 | W15: 681 | X15: 598 | Y15: 620 | Z15: 5143
A16: 101260303 | B16: Albert Gallatin Area SD | C16: SD | D16: Fayette | E16: 0 | F16: 0 | G16: 0 | H16: 0 | I16: 0 | J16: 0 | K16: 0 | L16: 0 | M16: 270 | N16: 250 | O16: 223 | P16: 243 | Q16: 252 | R16: 266 | S16: 244 | T16: 227 | U16: 272 | V16: 289 | W16: 248 | X16: 254 | Y16: 250 | Z16: 3288
A17: 127040503 | B17: Aliquippa SD | C17: SD | D17: Beaver | E17: 0 | F17: 0 | G17: 0 | H17: 0 | I17: 0 | J17: 0 | K17: 0 | L17: 0 | M17: 92 | N17: 77 | O17: 90 | P17: 66 | Q17: 79 | R17: 78 | S17: 73 | T17: 77 | U17: 69 | V17: 75 | W17: 59 | X17: 74 | Y17: 51 | Z17: 960
A18: 103000000 | B18: Allegheny IU 3 | C18: IU | D18: Allegheny | E18: 0 | F18: 0 | G18: 0 | H18: 0 | I18: 0 | J18: 0 | K18: 0 | L18: 92 | M18: 16 | N18: 11 | O18: 15 | P18: 15 | Q18: 17 | R18: 24 | S18: 19 | T18: 21 | U18: 28 | V18: 46 | W18: 45 | X18: 51 | Y18: 138 | Z18: 538
A19: 103020603 | B19: Allegheny Valley SD | C19: SD | D19: Allegheny | E19: 18 | F19: 18 | G19: 0 | H19: 0 | I19: 0 | J19: 0 | K19: 0 | L19: 0 | M19: 78 | N19: 72 | O19: 62 | P19: 76 | Q19: 70 | R19: 60 | S19: 75 | T19: 68 | U19: 75 | V19: 54 | W19: 74 | X19: 72 | Y19: 68 | Z19: 940
A20: 106160303 | B20: Allegheny-Clarion Valley SD | C20: SD | D20: Clarion | E20: 0 | F20: 0 | G20: 0 | H20: 0 | I20: 0 | J20: 0 | K20: 0 | L20: 0 | M20: 49 | N20: 50 | O20: 49 | P20: 49 | Q20: 43 | R20: 61 | S20: 41 | T20: 44 | U20: 55 | V20: 44 | W20: 56 | X20: 54 | Y20: 51 | Z20: 646
A21: 121390302 | B21: Allentown City SD | C21: SD | D21: Lehigh | E21: 0 | F21: 0 | G21: 0 | H21: 0 | I21: 0 | J21: 0 | K21: 0 | L21: 0 | M21: 1267 | N21: 1284 | O21: 1225 | P21: 1271 | Q21: 1365 | R21: 1415 | S21: 1352 | T21: 1289 | U21: 1178 | V21: 1534 | W21: 1287 | X21: 1155 | Y21: 1108 | Z21: 16730
A22: 126512990 | B22: Alliance for Progress CS | C22: CS | D22: Philadelphia | E22: 0 | F22: 0 | G22: 0 | H22: 0 | I22: 0 | J22: 0 | K22: 0 | L22: 0 | M22: 71 | N22: 76 | O22: 75 | P22: 51 | Q22: 57 | R22: 47 | S22: 52 | T22: 45 | U22: 43 | V22: 0 | W22: 0 | X22: 0 | Y22: 0 | Z22: 517
A23: 108070502 | B23: Altoona Area SD | C23: SD | D23: Blair | E23: 0 | F23: 0 | G23: 0 | H23: 0 | I23: 0 | J23: 0 | K23: 0 | L23: 0 | M23: 606 | N23: 553 | O23: 559 | P23: 593 | Q23: 561 | R23: 619 | S23: 610 | T23: 578 | U23: 592 | V23: 542 | W23: 577 | X23: 577 | Y23: 519 | Z23: 7486
A24: 127040703 | B24: Ambridge Area SD | C24: SD | D24: Beaver | E24: 0 | F24: 0 | G24: 81 | H24: 0 | I24: 0 | J24: 0 | K24: 0 | L24: 0 | M24: 172 | N24: 177 | O24: 162 | P24: 148 | Q24: 160 | R24: 164 | S24: 182 | T24: 202 | U24: 171 | V24: 188 | W24: 175 | X24: 197 | Y24: 211 | Z24: 2390
A25: 113380303 | B25: Annville-Cleona SD | C25: SD | D25: Lebanon | E25: 0 | F25: 0 | G25: 0 | H25: 0 | I25: 0 | J25: 0 | K25: 44 | L25: 57 | M25: 8 | N25: 95 | O25: 116 | P25: 102 | Q25: 94 | R25: 105 | S25: 113 | T25: 119 | U25: 105 | V25: 139 | W25: 112 | X25: 120 | Y25: 110 | Z25: 1439
A26: 114060503 | B26: Antietam SD | C26: SD | D26: Berks | E26: 0 | F26: 0 | G26: 0 | H26: 0 | I26: 0 | J26: 0 | K26: 0 | L26: 0 | M26: 83 | N26: 70 | O26: 87 | P26: 79 | Q26: 92 | R26: 91 | S26: 94 | T26: 82 | U26: 93 | V26: 94 | W26: 93 | X26: 67 | Y26: 74 | Z26: 1099
A27: 104510394 | B27: Antonia Pantoja Community Charter School | C27: CS | D27: Philadelphia | E27: 0 | F27: 0 | G27: 0 | H27: 0 | I27: 0 | J27: 0 | K27: 0 | L27: 0 | M27: 101 | N27: 90 | O27: 98 | P27: 65 | Q27: 92 | R27: 85 | S27: 69 | T27: 56 | U27: 63 | V27: 0 | W27: 0 | X27: 0 | Y27: 0 | Z27: 719
A28: 128030603 | B28: Apollo-Ridge SD | C28: SD | D28: Armstrong | E28: 0 | F28: 0 | G28: 20 | H28: 0 | I28: 0 | J28: 0 | K28: 0 | L28: 0 | M28: 92 | N28: 83 | O28: 67 | P28: 87 | Q28: 89 | R28: 98 | S28: 91 | T28: 98 | U28: 101 | V28: 85 | W28: 99 | X28: 84 | Y28: 67 | Z28: 1161
A29: 108000000 | B29: Appalachia IU 8 | C29: IU | D29: Blair | E29: 0 | F29: 0 | G29: 0 | H29: 0 | I29: 0 | J29: 0 | K29: 0 | L29: 0 | M29: 2 | N29: 4 | O29: 3 | P29: 4 | Q29: 5 | R29: 11 | S29: 12 | T29: 15 | U29: 14 | V29: 23 | W29: 23 | X29: 22 | Y29: 66 | Z29: 204
A30: 128030852 | B30: Armstrong SD | C30: SD | D30: Armstrong | E30: 0 | F30: 0 | G30: 0 | H30: 0 | I30: 0 | J30: 0 | K30: 0 | L30: 0 | M30: 345 | N30: 395 | O30: 384 | P30: 405 | Q30: 413 | R30: 366 | S30: 411 | T30: 459 | U30: 445 | V30: 408 | W30: 425 | X30: 261 | Y30: 248 | Z30: 4965
A31: 121395927 | B31: Arts Academy CS | C31: CS | D31: Lehigh | E31: 0 | F31: 0 | G31: 0 | H31: 0 | I31: 0 | J31: 0 | K31: 0 | L31: 0 | M31: 0 | N31: 0 | O31: 0 | P31: 0 | Q31: 0 | R31: 29 | S31: 122 | T31: 97 | U31: 113 | V31: 0 | W31: 0 | X31: 0 | Y31: 0 | Z31: 361
A32: 121399898 | B32: Arts Academy Elementary Charter School | C32: CS | D32: Lehigh | E32: 0 | F32: 0 | G32: 0 | H32: 0 | I32: 0 | J32: 0 | K32: 0 | L32: 0 | M32: 69 | N32: 78 | O32: 70 | P32: 72 | Q32: 70 | R32: 66 | S32: 0 | T32: 0 | U32: 0 | V32: 0 | W32: 0 | X32: 0 | Y32: 0 | Z32: 425
A33: 117080503 | B33: Athens Area SD | C33: SD | D33: Bradford | E33: 0 | F33: 0 | G33: 0 | H33: 0 | I33: 0 | J33: 0 | K33: 0 | L33: 0 | M33: 142 | N33: 156 | O33: 161 | P33: 156 | Q33: 134 | R33: 156 | S33: 177 | T33: 178 | U33: 179 | V33: 169 | W33: 183 | X33: 144 | Y33: 151 | Z33: 2086
A34: 109530304 | B34: Austin Area SD | C34: SD | D34: Potter | E34: 0 | F34: 0 | G34: 0 | H34: 0 | I34: 0 | J34: 17 | K34: 0 | L34: 0 | M34: 11 | N34: 17 | O34: 10 | P34: 9 | Q34: 14 | R34: 12 | S34: 15 | T34: 20 | U34: 14 | V34: 18 | W34: 12 | X34: 15 | Y34: 12 | Z34: 196
A35: 101630504 | B35: Avella Area SD | C35: SD | D35: Washington | E35: 0 | F35: 0 | G35: 0 | H35: 0 | I35: 0 | J35: 0 | K35: 0 | L35: 0 | M35: 27 | N35: 34 | O35: 32 | P35: 35 | Q35: 42 | R35: 35 | S35: 41 | T35: 34 | U35: 49 | V35: 40 | W35: 44 | X35: 47 | Y35: 37 | Z35: 497
A36: 124150003 | B36: Avon Grove CS | C36: CS | D36: Chester | E36: 0 | F36: 0 | G36: 0 | H36: 0 | I36: 0 | J36: 0 | K36: 0 | L36: 0 | M36: 179 | N36: 169 | O36: 180 | P36: 176 | Q36: 155 | R36: 179 | S36: 152 | T36: 140 | U36: 130 | V36: 128 | W36: 105 | X36: 70 | Y36: 85 | Z36: 1848
A37: 124150503 | B37: Avon Grove SD | C37: SD | D37: Chester | E37: 0 | F37: 0 | G37: 0 | H37: 0 | I37: 0 | J37: 0 | K37: 0 | L37: 0 | M37: 331 | N37: 334 | O37: 334 | P37: 333 | Q37: 360 | R37: 385 | S37: 406 | T37: 418 | U37: 440 | V37: 454 | W37: 424 | X37: 427 | Y37: 438 | Z37: 5084
A38: 103020753 | B38: Avonworth SD | C38: SD | D38: Allegheny | E38: 0 | F38: 0 | G38: 0 | H38: 0 | I38: 0 | J38: 0 | K38: 0 | L38: 0 | M38: 167 | N38: 166 | O38: 151 | P38: 136 | Q38: 157 | R38: 142 | S38: 147 | T38: 140 | U38: 159 | V38: 117 | W38: 122 | X38: 130 | Y38: 129 | Z38: 1863
A39: 117000000 | B39: BLaST IU 17 | C39: IU | D39: Lycoming | E39: 0 | F39: 0 | G39: 0 | H39: 0 | I39: 0 | J39: 0 | K39: 0 | L39: 0 | M39: 17 | N39: 22 | O39: 26 | P39: 27 | Q39: 28 | R39: 23 | S39: 24 | T39: 24 | U39: 33 | V39: 31 | W39: 21 | X39: 25 | Y39: 24 | Z39: 325
A40: 127046517 | B40: Baden Academy CS | C40: CS | D40: Beaver | E40: 0 | F40: 0 | G40: 0 | H40: 0 | I40: 0 | J40: 0 | K40: 0 | L40: 0 | M40: 90 | N40: 88 | O40: 88 | P40: 88 | Q40: 88 | R40: 85 | S40: 70 | T40: 0 | U40: 0 | V40: 0 | W40: 0 | X40: 0 | Y40: 0 | Z40: 597
A41: 110141003 | B41: Bald Eagle Area SD | C41: SD | D41: Centre | E41: 0 | F41: 0 | G41: 0 | H41: 0 | I41: 0 | J41: 0 | K41: 0 | L41: 0 | M41: 101 | N41: 113 | O41: 111 | P41: 108 | Q41: 116 | R41: 107 | S41: 118 | T41: 117 | U41: 132 | V41: 120 | W41: 124 | X41: 129 | Y41: 132 | Z41: 1528
A42: 103021102 | B42: Baldwin-Whitehall SD | C42: SD | D42: Allegheny | E42: 0 | F42: 0 | G42: 0 | H42: 0 | I42: 0 | J42: 0 | K42: 0 | L42: 0 | M42: 382 | N42: 396 | O42: 327 | P42: 321 | Q42: 327 | R42: 347 | S42: 302 | T42: 309 | U42: 329 | V42: 371 | W42: 387 | X42: 364 | Y42: 394 | Z42: 4556
A43: 120480803 | B43: Bangor Area SD | C43: SD | D43: Northampton | E43: 0 | F43: 0 | G43: 0 | H43: 0 | I43: 0 | J43: 0 | K43: 0 | L43: 0 | M43: 203 | N43: 203 | O43: 213 | P43: 213 | Q43: 221 | R43: 231 | S43: 229 | T43: 250 | U43: 225 | V43: 241 | W43: 257 | X43: 234 | Y43: 249 | Z43: 2969
A44: 118400001 | B44: Bear Creek Community CS | C44: CS | D44: Luzerne | E44: 0 | F44: 0 | G44: 0 | H44: 0 | I44: 0 | J44: 0 | K44: 0 | L44: 0 | M44: 52 | N44: 52 | O44: 52 | P44: 52 | Q44: 52 | R44: 52 | S44: 52 | T44: 52 | U44: 49 | V44: 0 | W44: 0 | X44: 0 | Y44: 0 | Z44: 465
A45: 127041203 | B45: Beaver Area SD | C45: SD | D45: Beaver | E45: 0 | F45: 0 | G45: 0 | H45: 0 | I45: 0 | J45: 0 | K45: 0 | L45: 0 | M45: 163 | N45: 157 | O45: 133 | P45: 138 | Q45: 157 | R45: 147 | S45: 148 | T45: 149 | U45: 153 | V45: 188 | W45: 197 | X45: 163 | Y45: 146 | Z45: 2039
A46: 127041307 | B46: Beaver County CTC | C46: OCCCTC | D46: Beaver | E46: 0 | F46: 0 | G46: 0 | H46: 0 | I46: 0 | J46: 0 | K46: 0 | L46: 0 | M46: 0 | N46: 0 | O46: 0 | P46: 0 | Q46: 0 | R46: 0 | S46: 0 | T46: 0 | U46: 0 | V46: 0 | W46: 119 | X46: 280 | Y46: 264 | Z46: 663
A47: 127000000 | B47: Beaver Valley IU 27 | C47: IU | D47: Beaver | E47: 0 | F47: 0 | G47: 0 | H47: 0 | I47: 0 | J47: 0 | K47: 24 | L47: 0 | M47: 2 | N47: 7 | O47: 18 | P47: 12 | Q47: 8 | R47: 10 | S47: 10 | T47: 11 | U47: 11 | V47: 11 | W47: 11 | X47: 10 | Y47: 34 | Z47: 179
A48: 108051003 | B48: Bedford Area SD | C48: SD | D48: Bedford | E48: 0 | F48: 0 | G48: 0 | H48: 0 | I48: 0 | J48: 0 | K48: 0 | L48: 0 | M48: 126 | N48: 119 | O48: 118 | P48: 144 | Q48: 128 | R48: 126 | S48: 123 | T48: 149 | U48: 145 | V48: 146 | W48: 151 | X48: 140 | Y48: 162 | Z48: 1777
A49: 108051307 | B49: Bedford County Technical Center | C49: OCCCTC | D49: Bedford | E49: 0 | F49: 0 | G49: 0 | H49: 0 | I49: 0 | J49: 0 | K49: 0 | L49: 0 | M49: 0 | N49: 0 | O49: 0 | P49: 0 | Q49: 0 | R49: 0 | S49: 0 | T49: 0 | U49: 0 | V49: 0 | W49: 155 | X49: 115 | Y49: 111 | Z49: 381
A50: 107650603 | B50: Belle Vernon Area SD | C50: SD | D50: Westmoreland | E50: 0 | F50: 0 | G50: 0 | H50: 0 | I50: 0 | J50: 0 | K50: 0 | L50: 0 | M50: 162 | N50: 188 | O50: 197 | P50: 184 | Q50: 181 | R50: 157 | S50: 179 | T50: 191 | U50: 197 | V50: 195 | W50: 197 | X50: 204 | Y50: 175 | Z50: 2407
A51: 110141103 | B51: Bellefonte Area SD | C51: SD | D51: Centre | E51: 0 | F51: 0 | G51: 0 | H51: 0 | I51: 0 | J51: 0 | K51: 0 | L51: 0 | M51: 199 | N51: 183 | O51: 227 | P51: 176 | Q51: 189 | R51: 191 | S51: 197 | T51: 231 | U51: 206 | V51: 215 | W51: 242 | X51: 230 | Y51: 195 | Z51: 2681
A52: 108071003 | B52: Bellwood-Antis SD | C52: SD | D52: Blair | E52: 0 | F52: 0 | G52: 0 | H52: 0 | I52: 0 | J52: 0 | K52: 0 | L52: 0 | M52: 86 | N52: 88 | O52: 85 | P52: 96 | Q52: 100 | R52: 94 | S52: 96 | T52: 109 | U52: 104 | V52: 105 | W52: 87 | X52: 95 | Y52: 102 | Z52: 1247
A53: 126510010 | B53: Belmont Charter School | C53: CS | D53: Philadelphia | E53: 0 | F53: 0 | G53: 0 | H53: 0 | I53: 0 | J53: 0 | K53: 0 | L53: 0 | M53: 90 | N53: 79 | O53: 84 | P53: 69 | Q53: 89 | R53: 66 | S53: 74 | T53: 86 | U53: 69 | V53: 84 | W53: 74 | X53: 74 | Y53: 0 | Z53: 938
A54: 122091002 | B54: Bensalem Township SD | C54: SD | D54: Bucks | E54: 0 | F54: 0 | G54: 0 | H54: 0 | I54: 0 | J54: 0 | K54: 0 | L54: 0 | M54: 444 | N54: 447 | O54: 464 | P54: 472 | Q54: 480 | R54: 552 | S54: 538 | T54: 529 | U54: 505 | V54: 499 | W54: 489 | X54: 503 | Y54: 540 | Z54: 6462
A55: 116191004 | B55: Benton Area SD | C55: SD | D55: Columbia | E55: 0 | F55: 0 | G55: 0 | H55: 0 | I55: 0 | J55: 0 | K55: 0 | L55: 0 | M55: 50 | N55: 39 | O55: 54 | P55: 60 | Q55: 61 | R55: 45 | S55: 65 | T55: 49 | U55: 63 | V55: 36 | W55: 52 | X55: 38 | Y55: 56 | Z55: 668
A56: 101630903 | B56: Bentworth SD | C56: SD | D56: Washington | E56: 0 | F56: 0 | G56: 0 | H56: 0 | I56: 0 | J56: 0 | K56: 0 | L56: 0 | M56: 67 | N56: 66 | O56: 83 | P56: 71 | Q56: 82 | R56: 96 | S56: 92 | T56: 91 | U56: 97 | V56: 85 | W56: 88 | X56: 84 | Y56: 88 | Z56: 1090
A57: 114060557 | B57: Berks CTC | C57: OCCCTC | D57: Berks | E57: 0 | F57: 0 | G57: 0 | H57: 0 | I57: 0 | J57: 0 | K57: 0 | L57: 0 | M57: 0 | N57: 0 | O57: 0 | P57: 0 | Q57: 0 | R57: 0 | S57: 0 | T57: 0 | U57: 0 | V57: 57 | W57: 554 | X57: 490 | Y57: 560 | Z57: 1661
A58: 114000000 | B58: Berks County IU 14 | C58: IU | D58: Berks | E58: 0 | F58: 0 | G58: 0 | H58: 0 | I58: 0 | J58: 0 | K58: 0 | L58: 0 | M58: 45 | N58: 1 | O58: 0 | P58: 2 | Q58: 0 | R58: 0 | S58: 3 | T58: 5 | U58: 5 | V58: 17 | W58: 17 | X58: 19 | Y58: 34 | Z58: 148
A59: 108561003 | B59: Berlin Brothersvalley SD | C59: SD | D59: Somerset | E59: 0 | F59: 0 | G59: 0 | H59: 0 | I59: 0 | J59: 0 | K59: 0 | L59: 0 | M59: 56 | N59: 62 | O59: 58 | P59: 40 | Q59: 60 | R59: 66 | S59: 53 | T59: 50 | U59: 50 | V59: 45 | W59: 53 | X59: 72 | Y59: 43 | Z59: 708
A60: 112011103 | B60: Bermudian Springs SD | C60: SD | D60: Adams | E60: 0 | F60: 0 | G60: 0 | H60: 0 | I60: 0 | J60: 0 | K60: 0 | L60: 0 | M60: 126 | N60: 145 | O60: 130 | P60: 156 | Q60: 147 | R60: 127 | S60: 162 | T60: 156 | U60: 167 | V60: 132 | W60: 168 | X60: 154 | Y60: 143 | Z60: 1913
A61: 116191103 | B61: Berwick Area SD | C61: SD | D61: Columbia | E61: 10 | F61: 13 | G61: 0 | H61: 0 | I61: 0 | J61: 0 | K61: 0 | L61: 0 | M61: 206 | N61: 212 | O61: 199 | P61: 206 | Q61: 216 | R61: 204 | S61: 230 | T61: 245 | U61: 254 | V61: 200 | W61: 166 | X61: 209 | Y61: 187 | Z61: 2757
A62: 103021252 | B62: Bethel Park SD | C62: SD | D62: Allegheny | E62: 0 | F62: 0 | G62: 0 | H62: 0 | I62: 0 | J62: 0 | K62: 162 | L62: 121 | M62: 0 | N62: 281 | O62: 288 | P62: 302 | Q62: 251 | R62: 273 | S62: 341 | T62: 293 | U62: 339 | V62: 351 | W62: 320 | X62: 363 | Y62: 347 | Z62: 4032
A63: 120481107 | B63: Bethlehem AVTS | C63: OCCCTC | D63: Northampton | E63: 0 | F63: 0 | G63: 0 | H63: 0 | I63: 0 | J63: 0 | K63: 0 | L63: 0 | M63: 0 | N63: 0 | O63: 0 | P63: 0 | Q63: 0 | R63: 0 | S63: 0 | T63: 0 | U63: 0 | V63: 0 | W63: 468 | X63: 420 | Y63: 423 | Z63: 1311
A64: 120481002 | B64: Bethlehem Area SD | C64: SD | D64: Northampton | E64: 0 | F64: 0 | G64: 99 | H64: 0 | I64: 0 | J64: 0 | K64: 0 | L64: 0 | M64: 855 | N64: 937 | O64: 918 | P64: 981 | Q64: 962 | R64: 996 | S64: 984 | T64: 1080 | U64: 1052 | V64: 1213 | W64: 1197 | X64: 1063 | Y64: 1087 | Z64: 13424
A65: 101631003 | B65: Bethlehem-Center SD | C65: SD | D65: Washington | E65: 0 | F65: 0 | G65: 0 | H65: 0 | I65: 0 | J65: 0 | K65: 0 | L65: 0 | M65: 85 | N65: 71 | O65: 81 | P65: 83 | Q65: 85 | R65: 85 | S65: 88 | T65: 85 | U65: 79 | V65: 85 | W65: 102 | X65: 81 | Y65: 118 | Z65: 1128
A66: 127041503 | B66: Big Beaver Falls Area SD | C66: SD | D66: Beaver | E66: 0 | F66: 0 | G66: 40 | H66: 0 | I66: 0 | J66: 0 | K66: 0 | L66: 0 | M66: 141 | N66: 139 | O66: 117 | P66: 142 | Q66: 129 | R66: 153 | S66: 129 | T66: 123 | U66: 120 | V66: 117 | W66: 123 | X66: 125 | Y66: 103 | Z66: 1701
A67: 115210503 | B67: Big Spring SD | C67: SD | D67: Cumberland | E67: 0 | F67: 0 | G67: 0 | H67: 0 | I67: 0 | J67: 0 | K67: 0 | L67: 0 | M67: 230 | N67: 189 | O67: 170 | P67: 192 | Q67: 190 | R67: 219 | S67: 172 | T67: 207 | U67: 191 | V67: 188 | W67: 216 | X67: 181 | Y67: 209 | Z67: 2554
A68: 127041603 | B68: Blackhawk SD | C68: SD | D68: Beaver | E68: 0 | F68: 0 | G68: 0 | H68: 0 | I68: 0 | J68: 0 | K68: 0 | L68: 0 | M68: 166 | N68: 173 | O68: 166 | P68: 164 | Q68: 153 | R68: 187 | S68: 193 | T68: 209 | U68: 177 | V68: 190 | W68: 178 | X68: 190 | Y68: 180 | Z68: 2326
A69: 108110603 | B69: Blacklick Valley SD | C69: SD | D69: Cambria | E69: 13 | F69: 9 | G69: 0 | H69: 0 | I69: 0 | J69: 0 | K69: 0 | L69: 0 | M69: 50 | N69: 41 | O69: 54 | P69: 45 | Q69: 31 | R69: 54 | S69: 52 | T69: 59 | U69: 61 | V69: 61 | W69: 56 | X69: 41 | Y69: 48 | Z69: 675
A70: 128321103 | B70: Blairsville-Saltsburg SD | C70: SD | D70: Indiana | E70: 0 | F70: 0 | G70: 39 | H70: 0 | I70: 0 | J70: 0 | K70: 0 | L70: 0 | M70: 114 | N70: 117 | O70: 117 | P70: 112 | Q70: 118 | R70: 95 | S70: 124 | T70: 113 | U70: 109 | V70: 115 | W70: 110 | X70: 121 | Y70: 107 | Z70: 1511
A71: 116191203 | B71: Bloomsburg Area SD | C71: SD | D71: Columbia | E71: 0 | F71: 0 | G71: 0 | H71: 0 | I71: 0 | J71: 0 | K71: 0 | L71: 0 | M71: 131 | N71: 128 | O71: 108 | P71: 124 | Q71: 118 | R71: 100 | S71: 118 | T71: 130 | U71: 122 | V71: 116 | W71: 104 | X71: 111 | Y71: 88 | Z71: 1498
A72: 129540803 | B72: Blue Mountain SD | C72: SD | D72: Schuylkill | E72: 0 | F72: 0 | G72: 0 | H72: 0 | I72: 0 | J72: 0 | K72: 0 | L72: 0 | M72: 181 | N72: 180 | O72: 179 | P72: 170 | Q72: 177 | R72: 194 | S72: 213 | T72: 169 | U72: 229 | V72: 196 | W72: 216 | X72: 247 | Y72: 213 | Z72: 2564
A73: 119581003 | B73: Blue Ridge SD | C73: SD | D73: Susquehanna | E73: 0 | F73: 0 | G73: 0 | H73: 27 | I73: 25 | J73: 0 | K73: 0 | L73: 0 | M73: 80 | N73: 69 | O73: 70 | P73: 62 | Q73: 81 | R73: 81 | S73: 73 | T73: 74 | U73: 80 | V73: 72 | W73: 65 | X73: 74 | Y73: 67 | Z73: 1000
A74: 114060753 | B74: Boyertown Area SD | C74: SD | D74: Berks | E74: 37 | F74: 14 | G74: 0 | H74: 0 | I74: 0 | J74: 0 | K74: 197 | L74: 264 | M74: 0 | N74: 489 | O74: 516 | P74: 500 | Q74: 500 | R74: 560 | S74: 554 | T74: 539 | U74: 592 | V74: 564 | W74: 541 | X74: 539 | Y74: 508 | Z74: 6914
A75: 185515523 | B75: Boys Latin of Philadelphia CS | C75: CS | D75: Philadelphia | E75: 0 | F75: 0 | G75: 0 | H75: 0 | I75: 0 | J75: 0 | K75: 0 | L75: 0 | M75: 0 | N75: 0 | O75: 0 | P75: 0 | Q75: 0 | R75: 0 | S75: 120 | T75: 118 | U75: 119 | V75: 163 | W75: 114 | X75: 101 | Y75: 90 | Z75: 825
A76: 109420803 | B76: Bradford Area SD | C76: SD | D76: McKean | E76: 0 | F76: 0 | G76: 101 | H76: 0 | I76: 0 | J76: 0 | K76: 0 | L76: 0 | M76: 204 | N76: 172 | O76: 177 | P76: 192 | Q76: 181 | R76: 208 | S76: 211 | T76: 189 | U76: 213 | V76: 210 | W76: 207 | X76: 183 | Y76: 187 | Z76: 2635
A77: 114060853 | B77: Brandywine Heights Area SD | C77: SD | D77: Berks | E77: 0 | F77: 0 | G77: 0 | H77: 0 | I77: 0 | J77: 0 | K77: 0 | L77: 0 | M77: 95 | N77: 105 | O77: 97 | P77: 113 | Q77: 104 | R77: 107 | S77: 86 | T77: 122 | U77: 114 | V77: 137 | W77: 124 | X77: 96 | Y77: 127 | Z77: 1427
A78: 103021453 | B78: Brentwood Borough SD | C78: SD | D78: Allegheny | E78: 0 | F78: 0 | G78: 0 | H78: 0 | I78: 0 | J78: 0 | K78: 0 | L78: 0 | M78: 87 | N78: 95 | O78: 83 | P78: 93 | Q78: 103 | R78: 98 | S78: 83 | T78: 90 | U78: 100 | V78: 113 | W78: 91 | X78: 91 | Y78: 88 | Z78: 1215
A79: 122091303 | B79: Bristol Borough SD | C79: SD | D79: Bucks | E79: 0 | F79: 0 | G79: 0 | H79: 0 | I79: 0 | J79: 0 | K79: 0 | L79: 0 | M79: 111 | N79: 100 | O79: 95 | P79: 105 | Q79: 108 | R79: 109 | S79: 117 | T79: 109 | U79: 116 | V79: 95 | W79: 87 | X79: 54 | Y79: 58 | Z79: 1264
A80: 122091352 | B80: Bristol Township SD | C80: SD | D80: Bucks | E80: 0 | F80: 0 | G80: 0 | H80: 0 | I80: 0 | J80: 0 | K80: 0 | L80: 0 | M80: 532 | N80: 499 | O80: 503 | P80: 503 | Q80: 500 | R80: 570 | S80: 531 | T80: 541 | U80: 553 | V80: 415 | W80: 441 | X80: 377 | Y80: 377 | Z80: 6342
A81: 106330703 | B81: Brockway Area SD | C81: SD | D81: Jefferson | E81: 0 | F81: 0 | G81: 0 | H81: 0 | I81: 0 | J81: 0 | K81: 0 | L81: 0 | M81: 72 | N81: 52 | O81: 78 | P81: 69 | Q81: 79 | R81: 75 | S81: 91 | T81: 80 | U81: 74 | V81: 68 | W81: 79 | X81: 75 | Y81: 74 | Z81: 966
A82: 106330803 | B82: Brookville Area SD | C82: SD | D82: Jefferson | E82: 0 | F82: 0 | G82: 0 | H82: 0 | I82: 0 | J82: 0 | K82: 0 | L82: 0 | M82: 96 | N82: 118 | O82: 119 | P82: 112 | Q82: 119 | R82: 97 | S82: 135 | T82: 124 | U82: 109 | V82: 110 | W82: 111 | X82: 103 | Y82: 110 | Z82: 1463
A83: 101260803 | B83: Brownsville Area SD | C83: SD | D83: Fayette | E83: 0 | F83: 0 | G83: 0 | H83: 0 | I83: 0 | J83: 0 | K83: 0 | L83: 0 | M83: 152 | N83: 121 | O83: 123 | P83: 106 | Q83: 113 | R83: 124 | S83: 112 | T83: 121 | U83: 110 | V83: 155 | W83: 116 | X83: 91 | Y83: 102 | Z83: 1546
A84: 122000000 | B84: Bucks County IU 22 | C84: IU | D84: Bucks | E84: 0 | F84: 0 | G84: 0 | H84: 0 | I84: 0 | J84: 0 | K84: 2 | L84: 0 | M84: 21 | N84: 34 | O84: 51 | P84: 48 | Q84: 49 | R84: 43 | S84: 65 | T84: 47 | U84: 32 | V84: 47 | W84: 53 | X84: 51 | Y84: 170 | Z84: 713
A85: 122093460 | B85: Bucks County Montessori CS | C85: CS | D85: Bucks | E85: 0 | F85: 0 | G85: 0 | H85: 0 | I85: 0 | J85: 0 | K85: 0 | L85: 0 | M85: 24 | N85: 31 | O85: 33 | P85: 29 | Q85: 37 | R85: 28 | S85: 23 | T85: 0 | U85: 0 | V85: 0 | W85: 0 | X85: 0 | Y85: 0 | Z85: 205
A86: 122091457 | B86: Bucks County Technical High School | C86: COMCTC | D86: Bucks | E86: 0 | F86: 0 | G86: 0 | H86: 0 | I86: 0 | J86: 0 | K86: 0 | L86: 0 | M86: 0 | N86: 0 | O86: 0 | P86: 0 | Q86: 0 | R86: 0 | S86: 0 | T86: 0 | U86: 0 | V86: 415 | W86: 361 | X86: 321 | Y86: 362 | Z86: 1459
A87: 101631203 | B87: Burgettstown Area SD | C87: SD | D87: Washington | E87: 0 | F87: 0 | G87: 0 | H87: 0 | I87: 0 | J87: 0 | K87: 0 | L87: 0 | M87: 83 | N87: 82 | O87: 72 | P87: 90 | Q87: 80 | R87: 73 | S87: 88 | T87: 81 | U87: 91 | V87: 75 | W87: 81 | X87: 76 | Y87: 81 | Z87: 1053
A88: 107650703 | B88: Burrell SD | C88: SD | D88: Westmoreland | E88: 0 | F88: 0 | G88: 0 | H88: 0 | I88: 0 | J88: 0 | K88: 0 | L88: 0 | M88: 123 | N88: 122 | O88: 122 | P88: 141 | Q88: 136 | R88: 133 | S88: 139 | T88: 139 | U88: 158 | V88: 161 | W88: 145 | X88: 149 | Y88: 149 | Z88: 1817
A89: 104101252 | B89: Butler Area SD | C89: SD | D89: Butler | E89: 0 | F89: 0 | G89: 0 | H89: 0 | I89: 0 | J89: 0 | K89: 0 | L89: 0 | M89: 486 | N89: 438 | O89: 446 | P89: 407 | Q89: 446 | R89: 474 | S89: 522 | T89: 535 | U89: 487 | V89: 533 | W89: 546 | X89: 479 | Y89: 486 | Z89: 6285
A90: 104101307 | B90: Butler County AVTS | C90: OCCCTC | D90: Butler | E90: 0 | F90: 0 | G90: 0 | H90: 0 | I90: 0 | J90: 0 | K90: 0 | L90: 0 | M90: 0 | N90: 0 | O90: 0 | P90: 0 | Q90: 0 | R90: 0 | S90: 0 | T90: 0 | U90: 0 | V90: 0 | W90: 252 | X90: 359 | Y90: 325 | Z90: 936
A91: 119354207 | B91: CTC of Lackawanna County | C91: OCCCTC | D91: Lackawanna | E91: 0 | F91: 0 | G91: 0 | H91: 0 | I91: 0 | J91: 0 | K91: 0 | L91: 0 | M91: 0 | N91: 0 | O91: 0 | P91: 0 | Q91: 0 | R91: 0 | S91: 0 | T91: 0 | U91: 0 | V91: 0 | W91: 286 | X91: 248 | Y91: 192 | Z91: 726
A92: 101631503 | B92: California Area SD | C92: SD | D92: Washington | E92: 0 | F92: 0 | G92: 0 | H92: 0 | I92: 0 | J92: 0 | K92: 0 | L92: 0 | M92: 70 | N92: 62 | O92: 72 | P92: 67 | Q92: 60 | R92: 74 | S92: 71 | T92: 60 | U92: 58 | V92: 70 | W92: 71 | X92: 63 | Y92: 72 | Z92: 870
A93: 108111203 | B93: Cambria Heights SD | C93: SD | D93: Cambria | E93: 0 | F93: 0 | G93: 0 | H93: 0 | I93: 0 | J93: 0 | K93: 0 | L93: 0 | M93: 103 | N93: 85 | O93: 77 | P93: 98 | Q93: 99 | R93: 103 | S93: 102 | T93: 118 | U93: 107 | V93: 116 | W93: 99 | X93: 118 | Y93: 107 | Z93: 1332
A94: 109122703 | B94: Cameron County SD | C94: SD | D94: Cameron | E94: 0 | F94: 0 | G94: 0 | H94: 0 | I94: 0 | J94: 0 | K94: 0 | L94: 0 | M94: 45 | N94: 37 | O94: 55 | P94: 40 | Q94: 32 | R94: 46 | S94: 44 | T94: 41 | U94: 39 | V94: 32 | W94: 41 | X94: 34 | Y94: 39 | Z94: 525
A95: 115211003 | B95: Camp Hill SD | C95: SD | D95: Cumberland | E95: 0 | F95: 0 | G95: 0 | H95: 0 | I95: 0 | J95: 0 | K95: 36 | L95: 35 | M95: 0 | N95: 91 | O95: 87 | P95: 105 | Q95: 94 | R95: 86 | S95: 112 | T95: 129 | U95: 108 | V95: 102 | W95: 106 | X95: 109 | Y95: 103 | Z95: 1303
A96: 101631703 | B96: Canon-McMillan SD | C96: SD | D96: Washington | E96: 0 | F96: 0 | G96: 0 | H96: 0 | I96: 0 | J96: 0 | K96: 156 | L96: 154 | M96: 40 | N96: 422 | O96: 395 | P96: 448 | Q96: 371 | R96: 403 | S96: 452 | T96: 419 | U96: 423 | V96: 423 | W96: 443 | X96: 464 | Y96: 381 | Z96: 5394
A97: 117081003 | B97: Canton Area SD | C97: SD | D97: Bradford | E97: 0 | F97: 0 | G97: 0 | H97: 0 | I97: 0 | J97: 0 | K97: 0 | L97: 0 | M97: 88 | N97: 65 | O97: 68 | P97: 67 | Q97: 56 | R97: 70 | S97: 64 | T97: 66 | U97: 72 | V97: 89 | W97: 67 | X97: 67 | Y97: 78 | Z97: 917
A98: 115000000 | B98: Capital Area IU 15 | C98: IU | D98: Cumberland | E98: 0 | F98: 0 | G98: 0 | H98: 0 | I98: 0 | J98: 0 | K98: 72 | L98: 0 | M98: 15 | N98: 17 | O98: 15 | P98: 15 | Q98: 22 | R98: 17 | S98: 14 | T98: 15 | U98: 17 | V98: 17 | W98: 23 | X98: 33 | Y98: 43 | Z98: 335
A99: 115227010 | B99: Capital Area School for the Arts Charter | C99: CS | D99: Dauphin | E99: 0 | F99: 0 | G99: 0 | H99: 0 | I99: 0 | J99: 0 | K99: 0 | L99: 0 | M99: 0 | N99: 0 | O99: 0 | P99: 0 | Q99: 0 | R99: 0 | S99: 0 | T99: 0 | U99: 0 | V99: 51 | W99: 46 | X99: 53 | Y99: 50 | Z99: 200
A100: 121131507 | B100: Carbon Career & Technical Institute | C100: COMCTC | D100: Carbon | E100: 0 | F100: 0 | G100: 0 | H100: 0 | I100: 0 | J100: 0 | K100: 0 | L100: 0 | M100: 0 | N100: 0 | O100: 0 | P100: 0 | Q100: 0 | R100: 0 | S100: 0 | T100: 0 | U100: 0 | V100: 75 | W100: 127 | X100: 106 | Y100: 110 | Z100: 418
A101: 121000000 | B101: Carbon-Lehigh IU 21 | C101: IU | D101: Lehigh | E101: 0 | F101: 0 | G101: 0 | H101: 0 | I101: 0 | J101: 0 | K101: 0 | L101: 0 | M101: 15 | N101: 28 | O101: 25 | P101: 29 | Q101: 35 | R101: 37 | S101: 30 | T101: 42 | U101: 29 | V101: 30 | W101: 41 | X101: 47 | Y101: 107 | Z101: 495
A102: 119351303 | B102: Carbondale Area SD | C102: SD | D102: Lackawanna | E102: 0 | F102: 0 | G102: 2 | H102: 0 | I102: 0 | J102: 0 | K102: 0 | L102: 0 | M102: 93 | N102: 78 | O102: 103 | P102: 110 | Q102: 113 | R102: 127 | S102: 120 | T102: 130 | U102: 129 | V102: 116 | W102: 135 | X102: 108 | Y102: 110 | Z102: 1474
A103: 120483007 | B103: Career Institute of Technology | C103: OCCCTC | D103: Northampton | E103: 0 | F103: 0 | G103: 0 | H103: 0 | I103: 0 | J103: 0 | K103: 0 | L103: 0 | M103: 0 | N103: 0 | O103: 0 | P103: 0 | Q103: 0 | R103: 0 | S103: 0 | T103: 0 | U103: 0 | V103: 6 | W103: 223 | X103: 228 | Y103: 219 | Z103: 676
A104: 115211103 | B104: Carlisle Area SD | C104: SD | D104: Cumberland | E104: 0 | F104: 0 | G104: 0 | H104: 0 | I104: 0 | J104: 0 | K104: 0 | L104: 0 | M104: 389 | N104: 406 | O104: 388 | P104: 395 | Q104: 393 | R104: 364 | S104: 429 | T104: 398 | U104: 402 | V104: 435 | W104: 380 | X104: 398 | Y104: 372 | Z104: 5149
A105: 103021603 | B105: Carlynton SD | C105: SD | D105: Allegheny | E105: 0 | F105: 0 | G105: 0 | H105: 0 | I105: 0 | J105: 0 | K105: 0 | L105: 0 | M105: 115 | N105: 98 | O105: 100 | P105: 100 | Q105: 114 | R105: 112 | S105: 123 | T105: 109 | U105: 110 | V105: 105 | W105: 92 | X105: 92 | Y105: 97 | Z105: 1367
A106: 101301303 | B106: Carmichaels Area SD | C106: SD | D106: Greene | E106: 0 | F106: 0 | G106: 30 | H106: 0 | I106: 0 | J106: 0 | K106: 0 | L106: 0 | M106: 72 | N106: 78 | O106: 75 | P106: 83 | Q106: 86 | R106: 75 | S106: 66 | T106: 79 | U106: 68 | V106: 90 | W106: 75 | X106: 95 | Y106: 92 | Z106: 1064
A107: 121391303 | B107: Catasauqua Area SD | C107: SD | D107: Lehigh | E107: 0 | F107: 0 | G107: 0 | H107: 0 | I107: 0 | J107: 0 | K107: 0 | L107: 0 | M107: 117 | N107: 101 | O107: 113 | P107: 119 | Q107: 112 | R107: 102 | S107: 128 | T107: 116 | U107: 131 | V107: 124 | W107: 131 | X107: 115 | Y107: 101 | Z107: 1510
A108: 122092002 | B108: Centennial SD | C108: SD | D108: Bucks | E108: 0 | F108: 0 | G108: 0 | H108: 0 | I108: 0 | J108: 0 | K108: 0 | L108: 0 | M108: 408 | N108: 349 | O108: 411 | P108: 403 | Q108: 392 | R108: 416 | S108: 410 | T108: 429 | U108: 476 | V108: 425 | W108: 495 | X108: 439 | Y108: 418 | Z108: 5471
A109: 122090001 | B109: Center for Student Learning CS at Pennsb | C109: CS | D109: Bucks | E109: 0 | F109: 0 | G109: 0 | H109: 0 | I109: 0 | J109: 0 | K109: 0 | L109: 0 | M109: 0 | N109: 0 | O109: 0 | P109: 0 | Q109: 0 | R109: 0 | S109: 5 | T109: 26 | U109: 21 | V109: 22 | W109: 33 | X109: 24 | Y109: 31 | Z109: 162
A110: 122092102 | B110: Central Bucks SD | C110: SD | D110: Bucks | E110: 0 | F110: 0 | G110: 0 | H110: 0 | I110: 0 | J110: 0 | K110: 476 | L110: 377 | M110: 40 | N110: 1195 | O110: 1276 | P110: 1288 | Q110: 1299 | R110: 1362 | S110: 1445 | T110: 1491 | U110: 1514 | V110: 1541 | W110: 1598 | X110: 1587 | Y110: 1615 | Z110: 18104
A111: 108111303 | B111: Central Cambria SD | C111: SD | D111: Cambria | E111: 0 | F111: 0 | G111: 0 | H111: 0 | I111: 0 | J111: 0 | K111: 0 | L111: 0 | M111: 109 | N111: 106 | O111: 111 | P111: 112 | Q111: 120 | R111: 118 | S111: 114 | T111: 128 | U111: 127 | V111: 138 | W111: 145 | X111: 118 | Y111: 131 | Z111: 1577
A112: 116191503 | B112: Central Columbia SD | C112: SD | D112: Columbia | E112: 0 | F112: 0 | G112: 0 | H112: 0 | I112: 0 | J112: 0 | K112: 0 | L112: 0 | M112: 144 | N112: 151 | O112: 124 | P112: 131 | Q112: 165 | R112: 148 | S112: 148 | T112: 168 | U112: 162 | V112: 149 | W112: 150 | X112: 145 | Y112: 127 | Z112: 1912
A113: 115221402 | B113: Central Dauphin SD | C113: SD | D113: Dauphin | E113: 0 | F113: 0 | G113: 0 | H113: 0 | I113: 0 | J113: 0 | K113: 502 | L113: 415 | M113: 1 | N113: 951 | O113: 949 | P113: 962 | Q113: 967 | R113: 1025 | S113: 1085 | T113: 976 | U113: 987 | V113: 904 | W113: 817 | X113: 802 | Y113: 871 | Z113: 12214
A114: 111291304 | B114: Central Fulton SD | C114: SD | D114: Fulton | E114: 0 | F114: 0 | G114: 0 | H114: 50 | I114: 0 | J114: 0 | K114: 0 | L114: 0 | M114: 74 | N114: 83 | O114: 71 | P114: 58 | Q114: 81 | R114: 75 | S114: 84 | T114: 82 | U114: 83 | V114: 88 | W114: 47 | X114: 63 | Y114: 70 | Z114: 1009
A115: 101301403 | B115: Central Greene SD | C115: SD | D115: Greene | E115: 0 | F115: 0 | G115: 0 | H115: 0 | I115: 0 | J115: 0 | K115: 0 | L115: 0 | M115: 121 | N115: 121 | O115: 100 | P115: 117 | Q115: 126 | R115: 123 | S115: 139 | T115: 124 | U115: 135 | V115: 140 | W115: 132 | X115: 134 | Y115: 120 | Z115: 1632
A116: 110000000 | B116: Central IU 10 | C116: IU | D116: Clearfield | E116: 0 | F116: 0 | G116: 0 | H116: 1 | I116: 4 | J116: 0 | K116: 8 | L116: 5 | M116: 2 | N116: 8 | O116: 3 | P116: 0 | Q116: 0 | R116: 1 | S116: 0 | T116: 1 | U116: 0 | V116: 3 | W116: 3 | X116: 3 | Y116: 3 | Z116: 45
A117: 123460957 | B117: Central Montco Technical High School | C117: OCCCTC | D117: Montgomery | E117: 0 | F117: 0 | G117: 0 | H117: 0 | I117: 0 | J117: 0 | K117: 0 | L117: 0 | M117: 0 | N117: 0 | O117: 0 | P117: 0 | Q117: 0 | R117: 0 | S117: 0 | T117: 0 | U117: 0 | V117: 0 | W117: 343 | X117: 258 | Y117: 222 | Z117: 823
A118: 108070001 | B118: Central PA Digital Learning Foundation C | C118: CS | D118: Blair | E118: 0 | F118: 0 | G118: 0 | H118: 0 | I118: 0 | J118: 0 | K118: 0 | L118: 0 | M118: 5 | N118: 1 | O118: 3 | P118: 6 | Q118: 2 | R118: 5 | S118: 8 | T118: 11 | U118: 10 | V118: 12 | W118: 20 | X118: 19 | Y118: 40 | Z118: 142
A119: 110141607 | B119: Central PA Institute of Science & Techno | C119: OCCCTC | D119: Centre | E119: 0 | F119: 0 | G119: 0 | H119: 0 | I119: 0 | J119: 0 | K119: 0 | L119: 0 | M119: 0 | N119: 0 | O119: 0 | P119: 0 | Q119: 0 | R119: 0 | S119: 0 | T119: 0 | U119: 0 | V119: 55 | W119: 165 | X119: 121 | Y119: 122 | Z119: 463
A120: 116000000 | B120: Central Susquehanna IU 16 | C120: IU | D120: Union | E120: 0 | F120: 0 | G120: 178 | H120: 0 | I120: 0 | J120: 0 | K120: 0 | L120: 0 | M120: 29 | N120: 5 | O120: 4 | P120: 6 | Q120: 13 | R120: 14 | S120: 10 | T120: 10 | U120: 26 | V120: 35 | W120: 36 | X120: 25 | Y120: 54 | Z120: 445
A121: 127042003 | B121: Central Valley SD | C121: SD | D121: Beaver | E121: 0 | F121: 0 | G121: 0 | H121: 0 | I121: 0 | J121: 0 | K121: 1 | L121: 170 | M121: 0 | N121: 170 | O121: 166 | P121: 176 | Q121: 181 | R121: 176 | S121: 185 | T121: 187 | U121: 184 | V121: 203 | W121: 187 | X121: 154 | Y121: 174 | Z121: 2314
A122: 107651207 | B122: Central Westmoreland CTC | C122: OCCCTC | D122: Westmoreland | E122: 0 | F122: 0 | G122: 0 | H122: 0 | I122: 0 | J122: 0 | K122: 0 | L122: 0 | M122: 0 | N122: 0 | O122: 0 | P122: 0 | Q122: 0 | R122: 0 | S122: 0 | T122: 0 | U122: 0 | V122: 2 | W122: 345 | X122: 409 | Y122: 311 | Z122: 1067
A123: 112671303 | B123: Central York SD | C123: SD | D123: York | E123: 0 | F123: 0 | G123: 0 | H123: 0 | I123: 0 | J123: 0 | K123: 0 | L123: 0 | M123: 401 | N123: 431 | O123: 381 | P123: 433 | Q123: 426 | R123: 432 | S123: 482 | T123: 467 | U123: 473 | V123: 460 | W123: 466 | X123: 427 | Y123: 467 | Z123: 5746
A124: 110143060 | B124: Centre Learning Community CS | C124: CS | D124: Centre | E124: 0 | F124: 0 | G124: 0 | H124: 0 | I124: 0 | J124: 0 | K124: 0 | L124: 0 | M124: 0 | N124: 0 | O124: 0 | P124: 0 | Q124: 0 | R124: 11 | S124: 19 | T124: 28 | U124: 21 | V124: 0 | W124: 0 | X124: 0 | Y124: 0 | Z124: 79
A125: 112281302 | B125: Chambersburg Area SD | C125: SD | D125: Franklin | E125: 0 | F125: 0 | G125: 0 | H125: 0 | I125: 0 | J125: 0 | K125: 0 | L125: 0 | M125: 718 | N125: 675 | O125: 752 | P125: 700 | Q125: 728 | R125: 728 | S125: 761 | T125: 793 | U125: 745 | V125: 741 | W125: 717 | X125: 692 | Y125: 706 | Z125: 9456
A126: 101631803 | B126: Charleroi SD | C126: SD | D126: Washington | E126: 0 | F126: 0 | G126: 0 | H126: 0 | I126: 0 | J126: 0 | K126: 0 | L126: 0 | M126: 93 | N126: 102 | O126: 99 | P126: 108 | Q126: 106 | R126: 126 | S126: 128 | T126: 107 | U126: 129 | V126: 125 | W126: 104 | X126: 103 | Y126: 102 | Z126: 1432
A127: 126513190 | B127: Charter High School for Architecture and | C127: CS | D127: Philadelphia | E127: 0 | F127: 0 | G127: 0 | H127: 0 | I127: 0 | J127: 0 | K127: 0 | L127: 0 | M127: 0 | N127: 0 | O127: 0 | P127: 0 | Q127: 0 | R127: 0 | S127: 0 | T127: 0 | U127: 0 | V127: 100 | W127: 160 | X127: 157 | Y127: 135 | Z127: 552
A128: 103021752 | B128: Chartiers Valley SD | C128: SD | D128: Allegheny | E128: 0 | F128: 0 | G128: 0 | H128: 0 | I128: 0 | J128: 0 | K128: 0 | L128: 0 | M128: 282 | N128: 301 | O128: 280 | P128: 259 | Q128: 266 | R128: 224 | S128: 242 | T128: 222 | U128: 246 | V128: 252 | W128: 240 | X128: 245 | Y128: 264 | Z128: 3323
A129: 101631903 | B129: Chartiers-Houston SD | C129: SD | D129: Washington | E129: 0 | F129: 0 | G129: 0 | H129: 0 | I129: 0 | J129: 0 | K129: 0 | L129: 0 | M129: 96 | N129: 90 | O129: 105 | P129: 91 | Q129: 92 | R129: 82 | S129: 81 | T129: 86 | U129: 94 | V129: 81 | W129: 100 | X129: 87 | Y129: 84 | Z129: 1169
A130: 123461302 | B130: Cheltenham SD | C130: SD | D130: Montgomery | E130: 0 | F130: 0 | G130: 0 | H130: 0 | I130: 0 | J130: 0 | K130: 0 | L130: 0 | M130: 277 | N130: 288 | O130: 321 | P130: 311 | Q130: 341 | R130: 334 | S130: 397 | T130: 373 | U130: 361 | V130: 347 | W130: 354 | X130: 354 | Y130: 338 | Z130: 4396
A131: 125236827 | B131: Chester Charter Scholars Academy CS | C131: CS | D131: Delaware | E131: 0 | F131: 0 | G131: 0 | H131: 0 | I131: 0 | J131: 0 | K131: 0 | L131: 0 | M131: 51 | N131: 52 | O131: 53 | P131: 53 | Q131: 52 | R131: 52 | S131: 53 | T131: 52 | U131: 51 | V131: 55 | W131: 53 | X131: 50 | Y131: 50 | Z131: 677
A132: 124152880 | B132: Chester Co Family Academy CS | C132: CS | D132: Chester | E132: 0 | F132: 0 | G132: 0 | H132: 0 | I132: 0 | J132: 0 | K132: 0 | L132: 0 | M132: 27 | N132: 27 | O132: 25 | P132: 0 | Q132: 0 | R132: 0 | S132: 0 | T132: 0 | U132: 0 | V132: 0 | W132: 0 | X132: 0 | Y132: 0 | Z132: 79
A133: 125232950 | B133: Chester Community CS | C133: CS | D133: Delaware | E133: 0 | F133: 0 | G133: 0 | H133: 0 | I133: 0 | J133: 0 | K133: 0 | L133: 0 | M133: 546 | N133: 573 | O133: 524 | P133: 570 | Q133: 537 | R133: 546 | S133: 481 | T133: 397 | U133: 285 | V133: 0 | W133: 0 | X133: 0 | Y133: 0 | Z133: 4459
A134: 124000000 | B134: Chester County IU 24 | C134: IU | D134: Chester | E134: 0 | F134: 0 | G134: 0 | H134: 0 | I134: 0 | J134: 0 | K134: 0 | L134: 0 | M134: 47 | N134: 21 | O134: 23 | P134: 25 | Q134: 46 | R134: 46 | S134: 46 | T134: 52 | U134: 61 | V134: 65 | W134: 103 | X134: 123 | Y134: 253 | Z134: 911
A135: 124151607 | B135: Chester County Technical College HS | C135: OCCCTC | D135: Chester | E135: 0 | F135: 0 | G135: 0 | H135: 0 | I135: 0 | J135: 0 | K135: 0 | L135: 0 | M135: 0 | N135: 0 | O135: 0 | P135: 0 | Q135: 0 | R135: 0 | S135: 0 | T135: 0 | U135: 0 | V135: 27 | W135: 513 | X135: 726 | Y135: 986 | Z135: 2252
A136: 125231232 | B136: Chester-Upland SD | C136: SD | D136: Delaware | E136: 0 | F136: 0 | G136: 120 | H136: 0 | I136: 0 | J136: 0 | K136: 0 | L136: 0 | M136: 148 | N136: 159 | O136: 163 | P136: 178 | Q136: 132 | R136: 163 | S136: 140 | T136: 148 | U136: 169 | V136: 391 | W136: 347 | X136: 293 | Y136: 238 | Z136: 2789
A137: 108051503 | B137: Chestnut Ridge SD | C137: SD | D137: Bedford | E137: 0 | F137: 0 | G137: 38 | H137: 0 | I137: 0 | J137: 0 | K137: 0 | L137: 1 | M137: 94 | N137: 73 | O137: 96 | P137: 78 | Q137: 94 | R137: 87 | S137: 111 | T137: 106 | U137: 119 | V137: 104 | W137: 102 | X137: 106 | Y137: 107 | Z137: 1316
A138: 125231303 | B138: Chichester SD | C138: SD | D138: Delaware | E138: 0 | F138: 0 | G138: 0 | H138: 0 | I138: 0 | J138: 0 | K138: 0 | L138: 0 | M138: 250 | N138: 237 | O138: 225 | P138: 262 | Q138: 271 | R138: 265 | S138: 262 | T138: 259 | U138: 243 | V138: 263 | W138: 218 | X138: 235 | Y138: 210 | Z138: 3200
A139: 126513160 | B139: Christopher Columbus CS | C139: CS | D139: Philadelphia | E139: 0 | F139: 0 | G139: 0 | H139: 0 | I139: 0 | J139: 0 | K139: 0 | L139: 0 | M139: 107 | N139: 107 | O139: 103 | P139: 113 | Q139: 109 | R139: 108 | S139: 103 | T139: 109 | U139: 89 | V139: 0 | W139: 0 | X139: 0 | Y139: 0 | Z139: 948
A140: 121394017 | B140: Circle of Seasons Charter School | C140: CS | D140: Lehigh | E140: 0 | F140: 0 | G140: 0 | H140: 0 | I140: 0 | J140: 0 | K140: 0 | L140: 0 | M140: 46 | N140: 52 | O140: 52 | P140: 51 | Q140: 51 | R140: 52 | S140: 49 | T140: 42 | U140: 19 | V140: 0 | W140: 0 | X140: 0 | Y140: 0 | Z140: 414
A141: 102020001 | B141: City CHS | C141: CS | D141: Allegheny | E141: 0 | F141: 0 | G141: 0 | H141: 0 | I141: 0 | J141: 0 | K141: 0 | L141: 0 | M141: 0 | N141: 0 | O141: 0 | P141: 0 | Q141: 0 | R141: 0 | S141: 0 | T141: 0 | U141: 0 | V141: 161 | W141: 163 | X141: 105 | Y141: 123 | Z141: 552
A142: 103021903 | B142: Clairton City SD | C142: SD | D142: Allegheny | E142: 0 | F142: 0 | G142: 0 | H142: 0 | I142: 0 | J142: 0 | K142: 0 | L142: 0 | M142: 59 | N142: 67 | O142: 63 | P142: 61 | Q142: 53 | R142: 66 | S142: 65 | T142: 59 | U142: 57 | V142: 55 | W142: 62 | X142: 44 | Y142: 34 | Z142: 745
A143: 106161203 | B143: Clarion Area SD | C143: SD | D143: Clarion | E143: 0 | F143: 0 | G143: 0 | H143: 0 | I143: 0 | J143: 0 | K143: 0 | L143: 0 | M143: 48 | N143: 47 | O143: 46 | P143: 68 | Q143: 58 | R143: 54 | S143: 68 | T143: 59 | U143: 59 | V143: 38 | W143: 58 | X143: 72 | Y143: 55 | Z143: 730
A144: 106161357 | B144: Clarion County Career Center | C144: OCCCTC | D144: Clarion | E144: 0 | F144: 0 | G144: 0 | H144: 0 | I144: 0 | J144: 0 | K144: 0 | L144: 0 | M144: 0 | N144: 0 | O144: 0 | P144: 0 | Q144: 0 | R144: 0 | S144: 0 | T144: 0 | U144: 0 | V144: 6 | W144: 123 | X144: 123 | Y144: 80 | Z144: 332
A145: 106161703 | B145: Clarion-Limestone Area SD | C145: SD | D145: Clarion | E145: 0 | F145: 0 | G145: 0 | H145: 0 | I145: 0 | J145: 0 | K145: 0 | L145: 0 | M145: 70 | N145: 64 | O145: 71 | P145: 65 | Q145: 66 | R145: 56 | S145: 55 | T145: 60 | U145: 70 | V145: 55 | W145: 76 | X145: 67 | Y145: 57 | Z145: 832
A146: 108071504 | B146: Claysburg-Kimmel SD | C146: SD | D146: Blair | E146: 0 | F146: 0 | G146: 0 | H146: 0 | I146: 0 | J146: 0 | K146: 0 | L146: 0 | M146: 58 | N146: 56 | O146: 54 | P146: 49 | Q146: 75 | R146: 58 | S146: 67 | T146: 69 | U146: 58 | V146: 74 | W146: 74 | X146: 70 | Y146: 56 | Z146: 818
A147: 110171003 | B147: Clearfield Area SD | C147: SD | D147: Clearfield | E147: 0 | F147: 0 | G147: 0 | H147: 0 | I147: 0 | J147: 0 | K147: 0 | L147: 0 | M147: 156 | N147: 150 | O147: 146 | P147: 162 | Q147: 152 | R147: 177 | S147: 168 | T147: 171 | U147: 175 | V147: 180 | W147: 182 | X147: 171 | Y147: 158 | Z147: 2148
A148: 110171607 | B148: Clearfield County CTC | C148: OCCCTC | D148: Clearfield | E148: 0 | F148: 0 | G148: 0 | H148: 0 | I148: 0 | J148: 0 | K148: 0 | L148: 0 | M148: 0 | N148: 0 | O148: 0 | P148: 0 | Q148: 0 | R148: 0 | S148: 0 | T148: 0 | U148: 0 | V148: 5 | W148: 25 | X148: 178 | Y148: 149 | Z148: 357
A149: 124151902 | B149: Coatesville Area SD | C149: SD | D149: Chester | E149: 0 | F149: 0 | G149: 0 | H149: 0 | I149: 0 | J149: 0 | K149: 0 | L149: 0 | M149: 409 | N149: 402 | O149: 400 | P149: 411 | Q149: 383 | R149: 402 | S149: 410 | T149: 402 | U149: 383 | V149: 482 | W149: 468 | X149: 465 | Y149: 466 | Z149: 5483
A150: 113361303 | B150: Cocalico SD | C150: SD | D150: Lancaster | E150: 0 | F150: 0 | G150: 0 | H150: 0 | I150: 0 | J150: 0 | K150: 88 | L150: 109 | M150: 0 | N150: 222 | O150: 183 | P150: 207 | Q150: 225 | R150: 259 | S150: 258 | T150: 219 | U150: 257 | V150: 258 | W150: 250 | X150: 239 | Y150: 205 | Z150: 2979
A151: 124153320 | B151: Collegium CS | C151: CS | D151: Chester | E151: 0 | F151: 0 | G151: 0 | H151: 0 | I151: 0 | J151: 0 | K151: 0 | L151: 0 | M151: 347 | N151: 281 | O151: 272 | P151: 311 | Q151: 298 | R151: 309 | S151: 283 | T151: 241 | U151: 220 | V151: 186 | W151: 162 | X151: 121 | Y151: 97 | Z151: 3128
A152: 120000000 | B152: Colonial IU 20 | C152: IU | D152: Northampton | E152: 10 | F152: 13 | G152: 0 | H152: 0 | I152: 0 | J152: 0 | K152: 0 | L152: 0 | M152: 72 | N152: 86 | O152: 101 | P152: 109 | Q152: 93 | R152: 111 | S152: 116 | T152: 105 | U152: 128 | V152: 112 | W152: 133 | X152: 103 | Y152: 200 | Z152: 1492
A153: 123461602 | B153: Colonial SD | C153: SD | D153: Montgomery | E153: 0 | F153: 0 | G153: 0 | H153: 0 | I153: 0 | J153: 0 | K153: 0 | L153: 0 | M153: 441 | N153: 423 | O153: 423 | P153: 459 | Q153: 385 | R153: 389 | S153: 405 | T153: 422 | U153: 354 | V153: 365 | W153: 371 | X153: 391 | Y153: 397 | Z153: 5225
A154: 113361503 | B154: Columbia Borough SD | C154: SD | D154: Lancaster | E154: 0 | F154: 0 | G154: 0 | H154: 0 | I154: 0 | J154: 0 | K154: 0 | L154: 0 | M154: 130 | N154: 97 | O154: 109 | P154: 99 | Q154: 107 | R154: 106 | S154: 91 | T154: 106 | U154: 105 | V154: 109 | W154: 105 | X154: 88 | Y154: 102 | Z154: 1354
A155: 116191757 | B155: Columbia-Montour AVTS | C155: COMCTC | D155: Columbia | E155: 0 | F155: 0 | G155: 0 | H155: 0 | I155: 0 | J155: 0 | K155: 0 | L155: 0 | M155: 0 | N155: 0 | O155: 0 | P155: 0 | Q155: 0 | R155: 0 | S155: 0 | T155: 0 | U155: 0 | V155: 166 | W155: 170 | X155: 158 | Y155: 150 | Z155: 644
A156: 104431304 | B156: Commodore Perry SD | C156: SD | D156: Mercer | E156: 0 | F156: 0 | G156: 0 | H156: 0 | I156: 0 | J156: 0 | K156: 0 | L156: 0 | M156: 40 | N156: 39 | O156: 26 | P156: 36 | Q156: 38 | R156: 31 | S156: 40 | T156: 29 | U156: 36 | V156: 21 | W156: 34 | X156: 39 | Y156: 45 | Z156: 454
A157: 115220002 | B157: Commonwealth Charter Academy CS | C157: CS | D157: Dauphin | E157: 0 | F157: 0 | G157: 0 | H157: 0 | I157: 0 | J157: 0 | K157: 0 | L157: 0 | M157: 276 | N157: 270 | O157: 308 | P157: 377 | Q157: 431 | R157: 500 | S157: 621 | T157: 868 | U157: 956 | V157: 1445 | W157: 1145 | X157: 976 | Y157: 1121 | Z157: 9294
A158: 126512840 | B158: Community Academy of Philadelphia CS | C158: CS | D158: Philadelphia | E158: 0 | F158: 0 | G158: 0 | H158: 0 | I158: 0 | J158: 0 | K158: 0 | L158: 0 | M158: 63 | N158: 60 | O158: 90 | P158: 90 | Q158: 64 | R158: 64 | S158: 63 | T158: 63 | U158: 64 | V158: 162 | W158: 160 | X158: 147 | Y158: 130 | Z158: 1220
A159: 108561803 | B159: Conemaugh Township Area SD | C159: SD | D159: Somerset | E159: 0 | F159: 0 | G159: 0 | H159: 0 | I159: 0 | J159: 0 | K159: 0 | L159: 0 | M159: 64 | N159: 52 | O159: 67 | P159: 64 | Q159: 65 | R159: 65 | S159: 81 | T159: 78 | U159: 67 | V159: 65 | W159: 87 | X159: 72 | Y159: 67 | Z159: 894
A160: 108111403 | B160: Conemaugh Valley SD | C160: SD | D160: Cambria | E160: 0 | F160: 0 | G160: 0 | H160: 0 | I160: 0 | J160: 0 | K160: 0 | L160: 0 | M160: 55 | N160: 51 | O160: 64 | P160: 50 | Q160: 58 | R160: 52 | S160: 54 | T160: 55 | U160: 58 | V160: 49 | W160: 41 | X160: 54 | Y160: 46 | Z160: 687
A161: 113361703 | B161: Conestoga Valley SD | C161: SD | D161: Lancaster | E161: 0 | F161: 0 | G161: 0 | H161: 0 | I161: 0 | J161: 0 | K161: 0 | L161: 0 | M161: 303 | N161: 301 | O161: 311 | P161: 301 | Q161: 311 | R161: 359 | S161: 342 | T161: 327 | U161: 322 | V161: 309 | W161: 338 | X161: 324 | Y161: 310 | Z161: 4158
A162: 112011603 | B162: Conewago Valley SD | C162: SD | D162: Adams | E162: 0 | F162: 0 | G162: 0 | H162: 0 | I162: 0 | J162: 0 | K162: 0 | L162: 0 | M162: 270 | N162: 302 | O162: 290 | P162: 279 | Q162: 285 | R162: 307 | S162: 315 | T162: 312 | U162: 322 | V162: 297 | W162: 327 | X162: 310 | Y162: 305 | Z162: 3921
A163: 105201033 | B163: Conneaut SD | C163: SD | D163: Crawford | E163: 0 | F163: 0 | G163: 0 | H163: 0 | I163: 0 | J163: 0 | K163: 0 | L163: 0 | M163: 138 | N163: 101 | O163: 142 | P163: 131 | Q163: 148 | R163: 140 | S163: 149 | T163: 151 | U163: 146 | V163: 157 | W163: 145 | X163: 168 | Y163: 145 | Z163: 1861
A164: 101266007 | B164: Connellsville Area Career & Technical Ce | C164: COMCTC | D164: Fayette | E164: 0 | F164: 0 | G164: 0 | H164: 0 | I164: 0 | J164: 0 | K164: 0 | L164: 0 | M164: 0 | N164: 0 | O164: 0 | P164: 0 | Q164: 0 | R164: 0 | S164: 0 | T164: 0 | U164: 0 | V164: 168 | W164: 118 | X164: 132 | Y164: 105 | Z164: 523
A165: 101261302 | B165: Connellsville Area SD | C165: SD | D165: Fayette | E165: 0 | F165: 0 | G165: 0 | H165: 0 | I165: 0 | J165: 0 | K165: 0 | L165: 0 | M165: 311 | N165: 303 | O165: 294 | P165: 305 | Q165: 315 | R165: 296 | S165: 357 | T165: 360 | U165: 354 | V165: 349 | W165: 310 | X165: 247 | Y165: 269 | Z165: 4070
A166: 114061103 | B166: Conrad Weiser Area SD | C166: SD | D166: Berks | E166: 0 | F166: 0 | G166: 0 | H166: 0 | I166: 0 | J166: 0 | K166: 0 | L166: 0 | M166: 185 | N166: 183 | O166: 157 | P166: 179 | Q166: 194 | R166: 168 | S166: 223 | T166: 228 | U166: 213 | V166: 227 | W166: 198 | X166: 227 | Y166: 239 | Z166: 2621
A167: 103022103 | B167: Cornell SD | C167: SD | D167: Allegheny | E167: 0 | F167: 0 | G167: 0 | H167: 0 | I167: 0 | J167: 0 | K167: 0 | L167: 0 | M167: 44 | N167: 40 | O167: 50 | P167: 38 | Q167: 43 | R167: 53 | S167: 43 | T167: 46 | U167: 49 | V167: 38 | W167: 44 | X167: 44 | Y167: 51 | Z167: 583
A168: 113381303 | B168: Cornwall-Lebanon SD | C168: SD | D168: Lebanon | E168: 0 | F168: 0 | G168: 0 | H168: 0 | I168: 0 | J168: 0 | K168: 129 | L168: 102 | M168: 86 | N168: 338 | O168: 361 | P168: 401 | Q168: 370 | R168: 408 | S168: 377 | T168: 398 | U168: 394 | V168: 377 | W168: 388 | X168: 369 | Y168: 405 | Z168: 4903
A169: 105251453 | B169: Corry Area SD | C169: SD | D169: Erie | E169: 0 | F169: 0 | G169: 40 | H169: 0 | I169: 0 | J169: 0 | K169: 0 | L169: 0 | M169: 143 | N169: 134 | O169: 140 | P169: 153 | Q169: 145 | R169: 124 | S169: 164 | T169: 167 | U169: 167 | V169: 147 | W169: 151 | X169: 155 | Y169: 158 | Z169: 1988
A170: 109531304 | B170: Coudersport Area SD | C170: SD | D170: Potter | E170: 0 | F170: 0 | G170: 0 | H170: 0 | I170: 0 | J170: 0 | K170: 0 | L170: 0 | M170: 50 | N170: 52 | O170: 50 | P170: 77 | Q170: 65 | R170: 45 | S170: 61 | T170: 62 | U170: 69 | V170: 58 | W170: 60 | X170: 60 | Y170: 56 | Z170: 765
A171: 122092353 | B171: Council Rock SD | C171: SD | D171: Bucks | E171: 0 | F171: 0 | G171: 0 | H171: 0 | I171: 0 | J171: 0 | K171: 286 | L171: 202 | M171: 11 | N171: 732 | O171: 771 | P171: 800 | Q171: 866 | R171: 845 | S171: 868 | T171: 890 | U171: 875 | V171: 886 | W171: 930 | X171: 906 | Y171: 910 | Z171: 10778
A172: 106611303 | B172: Cranberry Area SD | C172: SD | D172: Venango | E172: 0 | F172: 0 | G172: 0 | H172: 0 | I172: 0 | J172: 0 | K172: 0 | L172: 0 | M172: 73 | N172: 88 | O172: 78 | P172: 102 | Q172: 86 | R172: 110 | S172: 99 | T172: 88 | U172: 88 | V172: 96 | W172: 79 | X172: 75 | Y172: 89 | Z172: 1151
A173: 105201352 | B173: Crawford Central SD | C173: SD | D173: Crawford | E173: 0 | F173: 0 | G173: 0 | H173: 0 | I173: 0 | J173: 0 | K173: 0 | L173: 0 | M173: 259 | N173: 283 | O173: 244 | P173: 223 | Q173: 244 | R173: 268 | S173: 255 | T173: 299 | U173: 287 | V173: 244 | W173: 270 | X173: 273 | Y173: 288 | Z173: 3437
A174: 105201407 | B174: Crawford County CTC | C174: OCCCTC | D174: Crawford | E174: 0 | F174: 0 | G174: 0 | H174: 0 | I174: 0 | J174: 0 | K174: 0 | L174: 0 | M174: 0 | N174: 0 | O174: 0 | P174: 0 | Q174: 0 | R174: 0 | S174: 0 | T174: 0 | U174: 0 | V174: 0 | W174: 134 | X174: 171 | Y174: 190 | Z174: 495
A175: 118401403 | B175: Crestwood SD | C175: SD | D175: Luzerne | E175: 0 | F175: 0 | G175: 0 | H175: 0 | I175: 0 | J175: 0 | K175: 0 | L175: 0 | M175: 208 | N175: 215 | O175: 195 | P175: 198 | Q175: 201 | R175: 239 | S175: 205 | T175: 250 | U175: 198 | V175: 252 | W175: 242 | X175: 224 | Y175: 218 | Z175: 2845
A176: 112673300 | B176: Crispus Attucks CS | C176: CS | D176: York | E176: 0 | F176: 0 | G176: 0 | H176: 0 | I176: 0 | J176: 0 | K176: 0 | L176: 0 | M176: 0 | N176: 0 | O176: 0 | P176: 0 | Q176: 0 | R176: 0 | S176: 0 | T176: 0 | U176: 0 | V176: 0 | W176: 0 | X176: 0 | Y176: 97 | Z176: 97
A177: 115211657 | B177: Cumberland Perry AVTS | C177: OCCCTC | D177: Cumberland | E177: 0 | F177: 0 | G177: 0 | H177: 0 | I177: 0 | J177: 0 | K177: 0 | L177: 0 | M177: 0 | N177: 0 | O177: 0 | P177: 0 | Q177: 0 | R177: 0 | S177: 0 | T177: 0 | U177: 0 | V177: 77 | W177: 389 | X177: 355 | Y177: 311 | Z177: 1132
A178: 115211603 | B178: Cumberland Valley SD | C178: SD | D178: Cumberland | E178: 0 | F178: 0 | G178: 0 | H178: 0 | I178: 0 | J178: 0 | K178: 419 | L178: 241 | M178: 0 | N178: 686 | O178: 727 | P178: 779 | Q178: 744 | R178: 764 | S178: 753 | T178: 755 | U178: 745 | V178: 745 | W178: 752 | X178: 660 | Y178: 666 | Z178: 9436
A179: 110171803 | B179: Curwensville Area SD | C179: SD | D179: Clearfield | E179: 0 | F179: 0 | G179: 0 | H179: 0 | I179: 0 | J179: 0 | K179: 0 | L179: 0 | M179: 94 | N179: 95 | O179: 85 | P179: 56 | Q179: 56 | R179: 85 | S179: 78 | T179: 88 | U179: 70 | V179: 87 | W179: 94 | X179: 77 | Y179: 73 | Z179: 1038
A180: 118401603 | B180: Dallas SD | C180: SD | D180: Luzerne | E180: 0 | F180: 0 | G180: 0 | H180: 0 | I180: 0 | J180: 0 | K180: 85 | L180: 77 | M180: 4 | N180: 162 | O180: 198 | P180: 189 | Q180: 210 | R180: 201 | S180: 190 | T180: 197 | U180: 202 | V180: 208 | W180: 181 | X180: 204 | Y180: 203 | Z180: 2511
A181: 112671603 | B181: Dallastown Area SD | C181: SD | D181: York | E181: 0 | F181: 0 | G181: 0 | H181: 0 | I181: 0 | J181: 0 | K181: 0 | L181: 0 | M181: 476 | N181: 480 | O181: 453 | P181: 486 | Q181: 483 | R181: 510 | S181: 557 | T181: 563 | U181: 497 | V181: 530 | W181: 484 | X181: 479 | Y181: 471 | Z181: 6469
A182: 114061503 | B182: Daniel Boone Area SD | C182: SD | D182: Berks | E182: 0 | F182: 0 | G182: 0 | H182: 0 | I182: 0 | J182: 0 | K182: 82 | L182: 76 | M182: 31 | N182: 211 | O182: 217 | P182: 236 | Q182: 226 | R182: 241 | S182: 277 | T182: 249 | U182: 295 | V182: 277 | W182: 274 | X182: 289 | Y182: 273 | Z182: 3254
A183: 116471803 | B183: Danville Area SD | C183: SD | D183: Montour | E183: 0 | F183: 0 | G183: 0 | H183: 0 | I183: 0 | J183: 0 | K183: 0 | L183: 0 | M183: 189 | N183: 188 | O183: 174 | P183: 189 | Q183: 176 | R183: 164 | S183: 179 | T183: 173 | U183: 178 | V183: 151 | W183: 168 | X183: 182 | Y183: 160 | Z183: 2271
A184: 116471111 | B184: Danville Ctr Adolescent Female | C184: SJCI | D184: Montour | E184: 0 | F184: 0 | G184: 0 | H184: 0 | I184: 0 | J184: 0 | K184: 0 | L184: 0 | M184: 0 | N184: 0 | O184: 0 | P184: 0 | Q184: 0 | R184: 0 | S184: 0 | T184: 4 | U184: 1 | V184: 8 | W184: 10 | X184: 4 | Y184: 5 | Z184: 32
A185: 115221607 | B185: Dauphin County Technical School | C185: COMCTC | D185: Dauphin | E185: 0 | F185: 0 | G185: 0 | H185: 0 | I185: 0 | J185: 0 | K185: 0 | L185: 0 | M185: 0 | N185: 0 | O185: 0 | P185: 0 | Q185: 0 | R185: 0 | S185: 0 | T185: 0 | U185: 0 | V185: 266 | W185: 251 | X185: 247 | Y185: 248 | Z185: 1012
A186: 126516724 | B186: Deep Roots Charter School | C186: CS | D186: Philadelphia | E186: 0 | F186: 0 | G186: 0 | H186: 0 | I186: 0 | J186: 0 | K186: 0 | L186: 0 | M186: 42 | N186: 59 | O186: 59 | P186: 57 | Q186: 54 | R186: 53 | S186: 0 | T186: 0 | U186: 0 | V186: 0 | W186: 0 | X186: 0 | Y186: 0 | Z186: 324
A187: 103022253 | B187: Deer Lakes SD | C187: SD | D187: Allegheny | E187: 0 | F187: 0 | G187: 0 | H187: 0 | I187: 0 | J187: 0 | K187: 0 | L187: 0 | M187: 110 | N187: 130 | O187: 139 | P187: 129 | Q187: 156 | R187: 146 | S187: 168 | T187: 131 | U187: 165 | V187: 147 | W187: 167 | X187: 157 | Y187: 126 | Z187: 1871
A188: 125000000 | B188: Delaware County IU 25 | C188: IU | D188: Delaware | E188: 0 | F188: 0 | G188: 1 | H188: 0 | I188: 0 | J188: 0 | K188: 0 | L188: 0 | M188: 4 | N188: 15 | O188: 17 | P188: 19 | Q188: 20 | R188: 22 | S188: 18 | T188: 27 | U188: 25 | V188: 32 | W188: 28 | X188: 42 | Y188: 111 | Z188: 381
A189: 125232407 | B189: Delaware County Technical High School | C189: OCCCTC | D189: Delaware | E189: 0 | F189: 0 | G189: 0 | H189: 0 | I189: 0 | J189: 0 | K189: 0 | L189: 0 | M189: 0 | N189: 0 | O189: 0 | P189: 0 | Q189: 0 | R189: 0 | S189: 0 | T189: 0 | U189: 0 | V189: 7 | W189: 105 | X189: 421 | Y189: 611 | Z189: 1144
A190: 120522003 | B190: Delaware Valley SD | C190: SD | D190: Pike | E190: 39 | F190: 15 | G190: 4 | H190: 0 | I190: 0 | J190: 0 | K190: 0 | L190: 0 | M190: 270 | N190: 287 | O190: 309 | P190: 298 | Q190: 311 | R190: 342 | S190: 330 | T190: 370 | U190: 368 | V190: 365 | W190: 350 | X190: 406 | Y190: 397 | Z190: 4461
A191: 107651603 | B191: Derry Area SD | C191: SD | D191: Westmoreland | E191: 0 | F191: 0 | G191: 0 | H191: 0 | I191: 0 | J191: 0 | K191: 0 | L191: 0 | M191: 119 | N191: 147 | O191: 140 | P191: 153 | Q191: 142 | R191: 164 | S191: 154 | T191: 172 | U191: 155 | V191: 139 | W191: 148 | X191: 150 | Y191: 141 | Z191: 1924
A192: 115221753 | B192: Derry Township SD | C192: SD | D192: Dauphin | E192: 0 | F192: 0 | G192: 0 | H192: 0 | I192: 0 | J192: 0 | K192: 2 | L192: 0 | M192: 236 | N192: 239 | O192: 241 | P192: 231 | Q192: 239 | R192: 259 | S192: 282 | T192: 269 | U192: 291 | V192: 289 | W192: 301 | X192: 341 | Y192: 303 | Z192: 3523
A193: 126510011 | B193: Discovery Charter School | C193: CS | D193: Philadelphia | E193: 0 | F193: 0 | G193: 0 | H193: 0 | I193: 0 | J193: 0 | K193: 0 | L193: 0 | M193: 40 | N193: 30 | O193: 71 | P193: 56 | Q193: 77 | R193: 83 | S193: 100 | T193: 58 | U193: 67 | V193: 0 | W193: 0 | X193: 0 | Y193: 0 | Z193: 582
A194: 113362203 | B194: Donegal SD | C194: SD | D194: Lancaster | E194: 0 | F194: 0 | G194: 0 | H194: 0 | I194: 0 | J194: 0 | K194: 107 | L194: 93 | M194: 3 | N194: 232 | O194: 214 | P194: 228 | Q194: 243 | R194: 232 | S194: 253 | T194: 235 | U194: 229 | V194: 241 | W194: 253 | X194: 216 | Y194: 214 | Z194: 2993
A195: 112671803 | B195: Dover Area SD | C195: SD | D195: York | E195: 0 | F195: 0 | G195: 0 | H195: 0 | I195: 0 | J195: 0 | K195: 0 | L195: 0 | M195: 240 | N195: 272 | O195: 262 | P195: 246 | Q195: 303 | R195: 304 | S195: 295 | T195: 280 | U195: 285 | V195: 295 | W195: 265 | X195: 230 | Y195: 216 | Z195: 3493
A196: 124152003 | B196: Downingtown Area SD | C196: SD | D196: Chester | E196: 0 | F196: 0 | G196: 0 | H196: 0 | I196: 0 | J196: 0 | K196: 359 | L196: 255 | M196: 119 | N196: 870 | O196: 946 | P196: 962 | Q196: 972 | R196: 1038 | S196: 1044 | T196: 1079 | U196: 1154 | V196: 1087 | W196: 1052 | X196: 1078 | Y196: 1064 | Z196: 13079
A197: 107653040 | B197: Dr Robert Ketterer CS Inc | C197: CS | D197: Westmoreland | E197: 0 | F197: 0 | G197: 0 | H197: 0 | I197: 0 | J197: 0 | K197: 0 | L197: 0 | M197: 0 | N197: 0 | O197: 0 | P197: 0 | Q197: 0 | R197: 0 | S197: 3 | T197: 15 | U197: 16 | V197: 28 | W197: 36 | X197: 39 | Y197: 40 | Z197: 177
A198: 106172003 | B198: Dubois Area SD | C198: SD | D198: Clearfield | E198: 0 | F198: 0 | G198: 0 | H198: 0 | I198: 0 | J198: 0 | K198: 0 | L198: 0 | M198: 280 | N198: 260 | O198: 252 | P198: 251 | Q198: 270 | R198: 270 | S198: 288 | T198: 302 | U198: 271 | V198: 257 | W198: 256 | X198: 268 | Y198: 266 | Z198: 3491
A199: 119352203 | B199: Dunmore SD | C199: SD | D199: Lackawanna | E199: 0 | F199: 0 | G199: 0 | H199: 0 | I199: 0 | J199: 0 | K199: 0 | L199: 0 | M199: 98 | N199: 101 | O199: 123 | P199: 133 | Q199: 83 | R199: 118 | S199: 133 | T199: 124 | U199: 106 | V199: 114 | W199: 116 | X199: 123 | Y199: 120 | Z199: 1492
A200: 103022503 | B200: Duquesne City SD | C200: SD | D200: Allegheny | E200: 0 | F200: 0 | G200: 41 | H200: 0 | I200: 0 | J200: 0 | K200: 0 | L200: 0 | M200: 62 | N200: 58 | O200: 53 | P200: 54 | Q200: 56 | R200: 40 | S200: 46 | T200: 0 | U200: 0 | V200: 0 | W200: 0 | X200: 0 | Y200: 0 | Z200: 410
A201: 103022803 | B201: East Allegheny SD | C201: SD | D201: Allegheny | E201: 0 | F201: 0 | G201: 0 | H201: 0 | I201: 0 | J201: 0 | K201: 0 | L201: 0 | M201: 130 | N201: 92 | O201: 123 | P201: 111 | Q201: 115 | R201: 98 | S201: 123 | T201: 135 | U201: 124 | V201: 141 | W201: 133 | X201: 111 | Y201: 119 | Z201: 1555
A202: 117412003 | B202: East Lycoming SD | C202: SD | D202: Lycoming | E202: 0 | F202: 0 | G202: 37 | H202: 0 | I202: 0 | J202: 0 | K202: 0 | L202: 0 | M202: 121 | N202: 134 | O202: 114 | P202: 134 | Q202: 130 | R202: 117 | S202: 132 | T202: 130 | U202: 139 | V202: 129 | W202: 110 | X202: 121 | Y202: 132 | Z202: 1680
... 592 more rows

Sheet Enrollments LEA_18_19 (hidden)
A1: October 1 Enrollment by LEA
A3: Year: 2018-2019
A5: AUN | B5: LEA Name | C5: LEA Type | D5: County | E5: PKA | F5: PKP | G5: PKF | H5: K4A | I5: K4P | J5: K4F | K5: K5A | L5: K5P | M5: K5F | N5: 001 | O5: 002 | P5: 003 | Q5: 004 | R5: 005 | S5: 006 | T5: 007 | U5: 008 | V5: 009 | W5: 010 | X5: 011 | Y5: 012 | Z5: Total
A6: 124150002 | B6: 21st Century Cyber CS | C6: CS | D6: Chester | E6: 0 | F6: 0 | G6: 0 | H6: 0 | I6: 0 | J6: 0 | K6: 0 | L6: 0 | M6: 0 | N6: 0 | O6: 0 | P6: 0 | Q6: 0 | R6: 0 | S6: 73 | T6: 115 | U6: 161 | V6: 256 | W6: 214 | X6: 257 | Y6: 159 | Z6: 1235
A7: 103020407 | B7: A W Beattie Career Center | C7: OCCCTC | D7: Allegheny | E7: 0 | F7: 0 | G7: 0 | H7: 0 | I7: 0 | J7: 0 | K7: 0 | L7: 0 | M7: 0 | N7: 0 | O7: 0 | P7: 0 | Q7: 0 | R7: 0 | S7: 0 | T7: 0 | U7: 0 | V7: 0 | W7: 183 | X7: 309 | Y7: 287 | Z7: 779
A8: 126514368 | B8: ACT Academy Cyber CS | C8: CS | D8: Philadelphia | E8: 0 | F8: 0 | G8: 0 | H8: 0 | I8: 0 | J8: 0 | K8: 0 | L8: 0 | M8: 0 | N8: 0 | O8: 0 | P8: 0 | Q8: 0 | R8: 0 | S8: 0 | T8: 0 | U8: 0 | V8: 19 | W8: 26 | X8: 19 | Y8: 12 | Z8: 76
A9: 128000000 | B9: ARIN IU 28 | C9: IU | D9: Indiana | E9: 0 | F9: 0 | G9: 0 | H9: 0 | I9: 0 | J9: 0 | K9: 0 | L9: 0 | M9: 2 | N9: 1 | O9: 3 | P9: 0 | Q9: 3 | R9: 2 | S9: 4 | T9: 1 | U9: 7 | V9: 5 | W9: 6 | X9: 7 | Y9: 16 | Z9: 57
A10: 181519176 | B10: ASPIRA Bilingual Cyber Charter School | C10: CS | D10: Philadelphia | E10: 0 | F10: 0 | G10: 0 | H10: 0 | I10: 0 | J10: 0 | K10: 0 | L10: 0 | M10: 6 | N10: 8 | O10: 16 | P10: 11 | Q10: 17 | R10: 19 | S10: 13 | T10: 41 | U10: 27 | V10: 44 | W10: 44 | X10: 55 | Y10: 64 | Z10: 365
A11: 119350303 | B11: Abington Heights SD | C11: SD | D11: Lackawanna | E11: 0 | F11: 0 | G11: 0 | H11: 0 | I11: 0 | J11: 0 | K11: 110 | L11: 102 | M11: 0 | N11: 230 | O11: 279 | P11: 244 | Q11: 242 | R11: 287 | S11: 264 | T11: 265 | U11: 304 | V11: 262 | W11: 268 | X11: 258 | Y11: 251 | Z11: 3366
A12: 123460302 | B12: Abington SD | C12: SD | D12: Montgomery | E12: 0 | F12: 0 | G12: 0 | H12: 0 | I12: 0 | J12: 0 | K12: 0 | L12: 0 | M12: 635 | N12: 643 | O12: 690 | P12: 613 | Q12: 658 | R12: 673 | S12: 657 | T12: 663 | U12: 654 | V12: 643 | W12: 613 | X12: 604 | Y12: 591 | Z12: 8337
A13: 125230001 | B13: Achievement House CS | C13: CS | D13: Chester | E13: 0 | F13: 0 | G13: 0 | H13: 0 | I13: 0 | J13: 0 | K13: 0 | L13: 0 | M13: 0 | N13: 0 | O13: 0 | P13: 0 | Q13: 0 | R13: 0 | S13: 0 | T13: 20 | U13: 49 | V13: 80 | W13: 107 | X13: 111 | Y13: 127 | Z13: 494
A14: 126510015 | B14: Ad Prima CS | C14: CS | D14: Philadelphia | E14: 0 | F14: 0 | G14: 0 | H14: 0 | I14: 0 | J14: 0 | K14: 0 | L14: 0 | M14: 57 | N14: 55 | O14: 60 | P14: 87 | Q14: 99 | R14: 74 | S14: 82 | T14: 65 | U14: 55 | V14: 0 | W14: 0 | X14: 0 | Y14: 0 | Z14: 634
A15: 108110307 | B15: Admiral Peary AVTS | C15: OCCCTC | D15: Cambria | E15: 0 | F15: 0 | G15: 0 | H15: 0 | I15: 0 | J15: 0 | K15: 0 | L15: 0 | M15: 0 | N15: 0 | O15: 0 | P15: 0 | Q15: 0 | R15: 0 | S15: 0 | T15: 0 | U15: 0 | V15: 7 | W15: 122 | X15: 206 | Y15: 196 | Z15: 531
A16: 126510020 | B16: Agora Cyber CS | C16: CS | D16: Montgomery | E16: 0 | F16: 0 | G16: 0 | H16: 0 | I16: 0 | J16: 0 | K16: 0 | L16: 0 | M16: 135 | N16: 174 | O16: 169 | P16: 181 | Q16: 250 | R16: 328 | S16: 415 | T16: 455 | U16: 536 | V16: 758 | W16: 724 | X16: 718 | Y16: 662 | Z16: 5505
A17: 101260303 | B17: Albert Gallatin Area SD | C17: SD | D17: Fayette | E17: 0 | F17: 0 | G17: 0 | H17: 0 | I17: 0 | J17: 0 | K17: 0 | L17: 0 | M17: 277 | N17: 222 | O17: 248 | P17: 242 | Q17: 260 | R17: 239 | S17: 226 | T17: 264 | U17: 283 | V17: 250 | W17: 282 | X17: 250 | Y17: 270 | Z17: 3313
A18: 127040503 | B18: Aliquippa SD | C18: SD | D18: Beaver | E18: 0 | F18: 0 | G18: 0 | H18: 0 | I18: 0 | J18: 0 | K18: 0 | L18: 0 | M18: 86 | N18: 102 | O18: 75 | P18: 93 | Q18: 75 | R18: 84 | S18: 76 | T18: 68 | U18: 82 | V18: 65 | W18: 77 | X18: 56 | Y18: 71 | Z18: 1010
A19: 103000000 | B19: Allegheny IU 3 | C19: IU | D19: Allegheny | E19: 0 | F19: 0 | G19: 0 | H19: 0 | I19: 0 | J19: 0 | K19: 0 | L19: 78 | M19: 6 | N19: 17 | O19: 6 | P19: 13 | Q19: 22 | R19: 14 | S19: 19 | T19: 25 | U19: 28 | V19: 45 | W19: 51 | X19: 50 | Y19: 122 | Z19: 496
A20: 103020603 | B20: Allegheny Valley SD | C20: SD | D20: Allegheny | E20: 0 | F20: 0 | G20: 0 | H20: 0 | I20: 0 | J20: 0 | K20: 0 | L20: 0 | M20: 79 | N20: 60 | O20: 77 | P20: 73 | Q20: 66 | R20: 81 | S20: 72 | T20: 72 | U20: 56 | V20: 81 | W20: 78 | X20: 69 | Y20: 68 | Z20: 932
A21: 106160303 | B21: Allegheny-Clarion Valley SD | C21: SD | D21: Clarion | E21: 0 | F21: 0 | G21: 0 | H21: 0 | I21: 0 | J21: 0 | K21: 0 | L21: 0 | M21: 58 | N21: 51 | O21: 49 | P21: 50 | Q21: 66 | R21: 40 | S21: 45 | T21: 57 | U21: 38 | V21: 57 | W21: 55 | X21: 58 | Y21: 67 | Z21: 691
A22: 121390302 | B22: Allentown City SD | C22: SD | D22: Lehigh | E22: 0 | F22: 0 | G22: 0 | H22: 0 | I22: 0 | J22: 0 | K22: 0 | L22: 0 | M22: 1287 | N22: 1288 | O22: 1303 | P22: 1387 | Q22: 1395 | R22: 1436 | S22: 1326 | T22: 1234 | U22: 1173 | V22: 1577 | W22: 1303 | X22: 1159 | Y22: 1078 | Z22: 16946
A23: 126512990 | B23: Alliance for Progress CS | C23: CS | D23: Philadelphia | E23: 0 | F23: 0 | G23: 0 | H23: 0 | I23: 0 | J23: 0 | K23: 0 | L23: 0 | M23: 70 | N23: 77 | O23: 57 | P23: 57 | Q23: 53 | R23: 53 | S23: 55 | T23: 49 | U23: 58 | V23: 0 | W23: 0 | X23: 0 | Y23: 0 | Z23: 529
A24: 108070502 | B24: Altoona Area SD | C24: SD | D24: Blair | E24: 0 | F24: 0 | G24: 0 | H24: 0 | I24: 0 | J24: 0 | K24: 0 | L24: 0 | M24: 554 | N24: 565 | O24: 582 | P24: 566 | Q24: 615 | R24: 622 | S24: 564 | T24: 618 | U24: 568 | V24: 574 | W24: 655 | X24: 521 | Y24: 513 | Z24: 7517
A25: 127040703 | B25: Ambridge Area SD | C25: SD | D25: Beaver | E25: 0 | F25: 0 | G25: 62 | H25: 0 | I25: 0 | J25: 0 | K25: 0 | L25: 0 | M25: 181 | N25: 156 | O25: 157 | P25: 163 | Q25: 159 | R25: 175 | S25: 184 | T25: 186 | U25: 201 | V25: 178 | W25: 192 | X25: 210 | Y25: 193 | Z25: 2397
A26: 113380303 | B26: Annville-Cleona SD | C26: SD | D26: Lebanon | E26: 0 | F26: 0 | G26: 0 | H26: 0 | I26: 0 | J26: 0 | K26: 41 | L26: 51 | M26: 0 | N26: 113 | O26: 99 | P26: 97 | Q26: 114 | R26: 115 | S26: 118 | T26: 104 | U26: 139 | V26: 114 | W26: 120 | X26: 107 | Y26: 119 | Z26: 1451
A27: 114060503 | B27: Antietam SD | C27: SD | D27: Berks | E27: 0 | F27: 0 | G27: 0 | H27: 0 | I27: 0 | J27: 0 | K27: 0 | L27: 0 | M27: 74 | N27: 99 | O27: 91 | P27: 93 | Q27: 93 | R27: 108 | S27: 94 | T27: 99 | U27: 94 | V27: 94 | W27: 79 | X27: 74 | Y27: 68 | Z27: 1160
A28: 104510394 | B28: Antonia Pantoja Community Charter School | C28: CS | D28: Philadelphia | E28: 0 | F28: 0 | G28: 0 | H28: 0 | I28: 0 | J28: 0 | K28: 0 | L28: 0 | M28: 90 | N28: 103 | O28: 67 | P28: 95 | Q28: 89 | R28: 72 | S28: 59 | T28: 67 | U28: 73 | V28: 0 | W28: 0 | X28: 0 | Y28: 0 | Z28: 715
A29: 128030603 | B29: Apollo-Ridge SD | C29: SD | D29: Armstrong | E29: 0 | F29: 0 | G29: 20 | H29: 0 | I29: 0 | J29: 0 | K29: 0 | L29: 0 | M29: 90 | N29: 67 | O29: 86 | P29: 83 | Q29: 91 | R29: 89 | S29: 93 | T29: 95 | U29: 80 | V29: 106 | W29: 112 | X29: 74 | Y29: 84 | Z29: 1170
A30: 108000000 | B30: Appalachia IU 8 | C30: IU | D30: Blair | E30: 0 | F30: 0 | G30: 0 | H30: 0 | I30: 0 | J30: 0 | K30: 0 | L30: 0 | M30: 2 | N30: 6 | O30: 4 | P30: 7 | Q30: 11 | R30: 12 | S30: 10 | T30: 7 | U30: 15 | V30: 15 | W30: 18 | X30: 19 | Y30: 55 | Z30: 181
A31: 128030852 | B31: Armstrong SD | C31: SD | D31: Armstrong | E31: 0 | F31: 0 | G31: 0 | H31: 0 | I31: 0 | J31: 0 | K31: 0 | L31: 0 | M31: 401 | N31: 385 | O31: 414 | P31: 418 | Q31: 368 | R31: 405 | S31: 440 | T31: 450 | U31: 390 | V31: 423 | W31: 429 | X31: 256 | Y31: 304 | Z31: 5083
A32: 121395927 | B32: Arts Academy CS | C32: CS | D32: Lehigh | E32: 0 | F32: 0 | G32: 0 | H32: 0 | I32: 0 | J32: 0 | K32: 0 | L32: 0 | M32: 0 | N32: 0 | O32: 0 | P32: 0 | Q32: 0 | R32: 35 | S32: 93 | T32: 120 | U32: 110 | V32: 0 | W32: 0 | X32: 0 | Y32: 0 | Z32: 358
A33: 121399898 | B33: Arts Academy Elementary Charter School | C33: CS | D33: Lehigh | E33: 0 | F33: 0 | G33: 0 | H33: 0 | I33: 0 | J33: 0 | K33: 0 | L33: 0 | M33: 78 | N33: 67 | O33: 68 | P33: 73 | Q33: 80 | R33: 57 | S33: 0 | T33: 0 | U33: 0 | V33: 0 | W33: 0 | X33: 0 | Y33: 0 | Z33: 423
A34: 117080503 | B34: Athens Area SD | C34: SD | D34: Bradford | E34: 0 | F34: 0 | G34: 0 | H34: 0 | I34: 0 | J34: 0 | K34: 0 | L34: 0 | M34: 148 | N34: 154 | O34: 150 | P34: 135 | Q34: 152 | R34: 165 | S34: 170 | T34: 167 | U34: 169 | V34: 177 | W34: 147 | X34: 152 | Y34: 153 | Z34: 2039
A35: 109530304 | B35: Austin Area SD | C35: SD | D35: Potter | E35: 0 | F35: 0 | G35: 0 | H35: 0 | I35: 0 | J35: 16 | K35: 0 | L35: 0 | M35: 16 | N35: 10 | O35: 10 | P35: 14 | Q35: 11 | R35: 14 | S35: 18 | T35: 11 | U35: 16 | V35: 12 | W35: 15 | X35: 15 | Y35: 16 | Z35: 194
A36: 101630504 | B36: Avella Area SD | C36: SD | D36: Washington | E36: 0 | F36: 0 | G36: 0 | H36: 0 | I36: 0 | J36: 0 | K36: 0 | L36: 0 | M36: 38 | N36: 33 | O36: 38 | P36: 46 | Q36: 33 | R36: 41 | S36: 32 | T36: 45 | U36: 45 | V36: 44 | W36: 46 | X36: 34 | Y36: 45 | Z36: 520
A37: 124150003 | B37: Avon Grove CS | C37: CS | D37: Chester | E37: 0 | F37: 0 | G37: 0 | H37: 0 | I37: 0 | J37: 0 | K37: 0 | L37: 0 | M37: 177 | N37: 183 | O37: 183 | P37: 184 | Q37: 175 | R37: 149 | S37: 151 | T37: 134 | U37: 146 | V37: 125 | W37: 80 | X37: 87 | Y37: 78 | Z37: 1852
A38: 124150503 | B38: Avon Grove SD | C38: SD | D38: Chester | E38: 0 | F38: 0 | G38: 0 | H38: 0 | I38: 0 | J38: 0 | K38: 0 | L38: 0 | M38: 296 | N38: 319 | O38: 290 | P38: 338 | Q38: 363 | R38: 395 | S38: 392 | T38: 428 | U38: 405 | V38: 440 | W38: 421 | X38: 436 | Y38: 430 | Z38: 4953
A39: 103020753 | B39: Avonworth SD | C39: SD | D39: Allegheny | E39: 0 | F39: 0 | G39: 0 | H39: 0 | I39: 0 | J39: 0 | K39: 0 | L39: 0 | M39: 167 | N39: 147 | O39: 138 | P39: 155 | Q39: 142 | R39: 141 | S39: 136 | T39: 154 | U39: 119 | V39: 122 | W39: 127 | X39: 120 | Y39: 131 | Z39: 1799
A40: 117000000 | B40: BLaST IU 17 | C40: IU | D40: Lycoming | E40: 0 | F40: 0 | G40: 0 | H40: 0 | I40: 0 | J40: 0 | K40: 19 | L40: 0 | M40: 16 | N40: 21 | O40: 19 | P40: 26 | Q40: 28 | R40: 32 | S40: 22 | T40: 22 | U40: 31 | V40: 29 | W40: 42 | X40: 23 | Y40: 20 | Z40: 350
A41: 127046517 | B41: Baden Academy CS | C41: CS | D41: Beaver | E41: 0 | F41: 0 | G41: 0 | H41: 0 | I41: 0 | J41: 0 | K41: 0 | L41: 0 | M41: 88 | N41: 88 | O41: 84 | P41: 88 | Q41: 82 | R41: 79 | S41: 65 | T41: 0 | U41: 0 | V41: 0 | W41: 0 | X41: 0 | Y41: 0 | Z41: 574
A42: 110141003 | B42: Bald Eagle Area SD | C42: SD | D42: Centre | E42: 0 | F42: 0 | G42: 0 | H42: 0 | I42: 0 | J42: 0 | K42: 0 | L42: 0 | M42: 117 | N42: 111 | O42: 109 | P42: 114 | Q42: 104 | R42: 123 | S42: 121 | T42: 134 | U42: 116 | V42: 132 | W42: 126 | X42: 128 | Y42: 145 | Z42: 1580
A43: 103021102 | B43: Baldwin-Whitehall SD | C43: SD | D43: Allegheny | E43: 0 | F43: 0 | G43: 0 | H43: 0 | I43: 0 | J43: 0 | K43: 0 | L43: 0 | M43: 367 | N43: 341 | O43: 311 | P43: 325 | Q43: 330 | R43: 300 | S43: 296 | T43: 323 | U43: 318 | V43: 376 | W43: 361 | X43: 375 | Y43: 341 | Z43: 4364
A44: 120480803 | B44: Bangor Area SD | C44: SD | D44: Northampton | E44: 0 | F44: 0 | G44: 0 | H44: 0 | I44: 0 | J44: 0 | K44: 0 | L44: 0 | M44: 198 | N44: 205 | O44: 211 | P44: 219 | Q44: 219 | R44: 229 | S44: 242 | T44: 229 | U44: 226 | V44: 263 | W44: 247 | X44: 240 | Y44: 245 | Z44: 2973
A45: 118400001 | B45: Bear Creek Community CS | C45: CS | D45: Luzerne | E45: 0 | F45: 0 | G45: 0 | H45: 0 | I45: 0 | J45: 0 | K45: 0 | L45: 0 | M45: 52 | N45: 52 | O45: 52 | P45: 52 | Q45: 52 | R45: 52 | S45: 52 | T45: 52 | U45: 50 | V45: 0 | W45: 0 | X45: 0 | Y45: 0 | Z45: 466
A46: 127041203 | B46: Beaver Area SD | C46: SD | D46: Beaver | E46: 0 | F46: 0 | G46: 0 | H46: 0 | I46: 0 | J46: 0 | K46: 0 | L46: 0 | M46: 153 | N46: 132 | O46: 136 | P46: 157 | Q46: 143 | R46: 146 | S46: 135 | T46: 150 | U46: 168 | V46: 196 | W46: 164 | X46: 146 | Y46: 179 | Z46: 2005
A47: 127041307 | B47: Beaver County CTC | C47: OCCCTC | D47: Beaver | E47: 0 | F47: 0 | G47: 0 | H47: 0 | I47: 0 | J47: 0 | K47: 0 | L47: 0 | M47: 0 | N47: 0 | O47: 0 | P47: 0 | Q47: 0 | R47: 0 | S47: 0 | T47: 0 | U47: 0 | V47: 0 | W47: 72 | X47: 293 | Y47: 253 | Z47: 618
A48: 127000000 | B48: Beaver Valley IU 27 | C48: IU | D48: Beaver | E48: 0 | F48: 0 | G48: 0 | H48: 0 | I48: 0 | J48: 0 | K48: 20 | L48: 0 | M48: 1 | N48: 11 | O48: 9 | P48: 4 | Q48: 7 | R48: 10 | S48: 8 | T48: 10 | U48: 8 | V48: 10 | W48: 7 | X48: 6 | Y48: 38 | Z48: 149
A49: 108051003 | B49: Bedford Area SD | C49: SD | D49: Bedford | E49: 0 | F49: 0 | G49: 0 | H49: 0 | I49: 0 | J49: 0 | K49: 0 | L49: 0 | M49: 124 | N49: 119 | O49: 139 | P49: 129 | Q49: 118 | R49: 122 | S49: 153 | T49: 154 | U49: 150 | V49: 140 | W49: 132 | X49: 157 | Y49: 143 | Z49: 1780
A50: 108051307 | B50: Bedford County Technical Center | C50: OCCCTC | D50: Bedford | E50: 0 | F50: 0 | G50: 0 | H50: 0 | I50: 0 | J50: 0 | K50: 0 | L50: 0 | M50: 0 | N50: 0 | O50: 0 | P50: 0 | Q50: 0 | R50: 0 | S50: 0 | T50: 0 | U50: 0 | V50: 0 | W50: 148 | X50: 125 | Y50: 89 | Z50: 362
A51: 107650603 | B51: Belle Vernon Area SD | C51: SD | D51: Westmoreland | E51: 0 | F51: 0 | G51: 0 | H51: 0 | I51: 0 | J51: 0 | K51: 0 | L51: 0 | M51: 206 | N51: 186 | O51: 179 | P51: 178 | Q51: 160 | R51: 171 | S51: 191 | T51: 199 | U51: 171 | V51: 218 | W51: 194 | X51: 173 | Y51: 192 | Z51: 2418
A52: 110141103 | B52: Bellefonte Area SD | C52: SD | D52: Centre | E52: 0 | F52: 0 | G52: 0 | H52: 0 | I52: 0 | J52: 0 | K52: 0 | L52: 0 | M52: 174 | N52: 229 | O52: 168 | P52: 191 | Q52: 189 | R52: 178 | S52: 228 | T52: 202 | U52: 208 | V52: 236 | W52: 226 | X52: 193 | Y52: 214 | Z52: 2636
A53: 108071003 | B53: Bellwood-Antis SD | C53: SD | D53: Blair | E53: 0 | F53: 0 | G53: 0 | H53: 0 | I53: 0 | J53: 0 | K53: 0 | L53: 0 | M53: 91 | N53: 86 | O53: 104 | P53: 99 | Q53: 98 | R53: 99 | S53: 107 | T53: 100 | U53: 102 | V53: 90 | W53: 103 | X53: 96 | Y53: 97 | Z53: 1272
A54: 126510010 | B54: Belmont Charter School | C54: CS | D54: Philadelphia | E54: 0 | F54: 0 | G54: 0 | H54: 0 | I54: 0 | J54: 0 | K54: 0 | L54: 0 | M54: 88 | N54: 86 | O54: 73 | P54: 93 | Q54: 68 | R54: 74 | S54: 82 | T54: 61 | U54: 41 | V54: 72 | W54: 70 | X54: 0 | Y54: 0 | Z54: 808
A55: 122091002 | B55: Bensalem Township SD | C55: SD | D55: Bucks | E55: 0 | F55: 0 | G55: 0 | H55: 0 | I55: 0 | J55: 0 | K55: 0 | L55: 0 | M55: 444 | N55: 467 | O55: 479 | P55: 466 | Q55: 558 | R55: 524 | S55: 510 | T55: 506 | U55: 524 | V55: 483 | W55: 491 | X55: 489 | Y55: 564 | Z55: 6505
A56: 116191004 | B56: Benton Area SD | C56: SD | D56: Columbia | E56: 0 | F56: 0 | G56: 0 | H56: 0 | I56: 0 | J56: 0 | K56: 0 | L56: 0 | M56: 39 | N56: 56 | O56: 56 | P56: 58 | Q56: 44 | R56: 65 | S56: 44 | T56: 59 | U56: 43 | V56: 47 | W56: 38 | X56: 55 | Y56: 40 | Z56: 644
A57: 101630903 | B57: Bentworth SD | C57: SD | D57: Washington | E57: 0 | F57: 0 | G57: 0 | H57: 0 | I57: 0 | J57: 0 | K57: 0 | L57: 0 | M57: 66 | N57: 87 | O57: 70 | P57: 85 | Q57: 95 | R57: 97 | S57: 89 | T57: 103 | U57: 92 | V57: 84 | W57: 90 | X57: 91 | Y57: 89 | Z57: 1138
A58: 114060557 | B58: Berks CTC | C58: OCCCTC | D58: Berks | E58: 0 | F58: 0 | G58: 0 | H58: 0 | I58: 0 | J58: 0 | K58: 0 | L58: 0 | M58: 0 | N58: 0 | O58: 0 | P58: 0 | Q58: 0 | R58: 0 | S58: 0 | T58: 0 | U58: 0 | V58: 45 | W58: 456 | X58: 525 | Y58: 578 | Z58: 1604
A59: 114000000 | B59: Berks County IU 14 | C59: IU | D59: Berks | E59: 0 | F59: 0 | G59: 0 | H59: 0 | I59: 0 | J59: 0 | K59: 0 | L59: 0 | M59: 39 | N59: 0 | O59: 1 | P59: 0 | Q59: 2 | R59: 2 | S59: 0 | T59: 2 | U59: 19 | V59: 11 | W59: 29 | X59: 8 | Y59: 43 | Z59: 156
A60: 108561003 | B60: Berlin Brothersvalley SD | C60: SD | D60: Somerset | E60: 0 | F60: 0 | G60: 0 | H60: 0 | I60: 0 | J60: 0 | K60: 0 | L60: 0 | M60: 63 | N60: 56 | O60: 42 | P60: 59 | Q60: 65 | R60: 53 | S60: 51 | T60: 51 | U60: 47 | V60: 54 | W60: 77 | X60: 43 | Y60: 58 | Z60: 719
A61: 112011103 | B61: Bermudian Springs SD | C61: SD | D61: Adams | E61: 0 | F61: 0 | G61: 0 | H61: 0 | I61: 0 | J61: 0 | K61: 0 | L61: 0 | M61: 138 | N61: 134 | O61: 152 | P61: 148 | Q61: 121 | R61: 152 | S61: 150 | T61: 167 | U61: 130 | V61: 167 | W61: 150 | X61: 144 | Y61: 168 | Z61: 1921
A62: 116191103 | B62: Berwick Area SD | C62: SD | D62: Columbia | E62: 24 | F62: 0 | G62: 0 | H62: 0 | I62: 0 | J62: 0 | K62: 0 | L62: 0 | M62: 219 | N62: 199 | O62: 212 | P62: 215 | Q62: 208 | R62: 242 | S62: 248 | T62: 247 | U62: 235 | V62: 157 | W62: 206 | X62: 183 | Y62: 186 | Z62: 2781
A63: 103021252 | B63: Bethel Park SD | C63: SD | D63: Allegheny | E63: 0 | F63: 0 | G63: 0 | H63: 0 | I63: 0 | J63: 0 | K63: 153 | L63: 115 | M63: 0 | N63: 282 | O63: 296 | P63: 238 | Q63: 277 | R63: 336 | S63: 294 | T63: 349 | U63: 334 | V63: 330 | W63: 371 | X63: 345 | Y63: 345 | Z63: 4065
A64: 120481107 | B64: Bethlehem AVTS | C64: OCCCTC | D64: Northampton | E64: 0 | F64: 0 | G64: 0 | H64: 0 | I64: 0 | J64: 0 | K64: 0 | L64: 0 | M64: 0 | N64: 0 | O64: 0 | P64: 0 | Q64: 0 | R64: 0 | S64: 0 | T64: 0 | U64: 0 | V64: 0 | W64: 408 | X64: 446 | Y64: 471 | Z64: 1325
A65: 120481002 | B65: Bethlehem Area SD | C65: SD | D65: Northampton | E65: 0 | F65: 0 | G65: 100 | H65: 0 | I65: 0 | J65: 0 | K65: 0 | L65: 0 | M65: 927 | N65: 928 | O65: 967 | P65: 932 | Q65: 1013 | R65: 974 | S65: 1063 | T65: 1029 | U65: 1062 | V65: 1256 | W65: 1181 | X65: 1032 | Y65: 1180 | Z65: 13644
A66: 101631003 | B66: Bethlehem-Center SD | C66: SD | D66: Washington | E66: 0 | F66: 0 | G66: 0 | H66: 0 | I66: 0 | J66: 0 | K66: 0 | L66: 0 | M66: 75 | N66: 81 | O66: 81 | P66: 92 | Q66: 81 | R66: 87 | S66: 89 | T66: 77 | U66: 78 | V66: 104 | W66: 88 | X66: 116 | Y66: 106 | Z66: 1155
A67: 127041503 | B67: Big Beaver Falls Area SD | C67: SD | D67: Beaver | E67: 0 | F67: 0 | G67: 41 | H67: 0 | I67: 0 | J67: 0 | K67: 0 | L67: 0 | M67: 148 | N67: 122 | O67: 147 | P67: 139 | Q67: 145 | R67: 132 | S67: 113 | T67: 126 | U67: 117 | V67: 121 | W67: 127 | X67: 123 | Y67: 109 | Z67: 1710
A68: 115210503 | B68: Big Spring SD | C68: SD | D68: Cumberland | E68: 0 | F68: 0 | G68: 0 | H68: 0 | I68: 0 | J68: 0 | K68: 0 | L68: 0 | M68: 185 | N68: 170 | O68: 185 | P68: 188 | Q68: 223 | R68: 179 | S68: 206 | T68: 189 | U68: 185 | V68: 223 | W68: 185 | X68: 204 | Y68: 209 | Z68: 2531
A69: 127041603 | B69: Blackhawk SD | C69: SD | D69: Beaver | E69: 0 | F69: 0 | G69: 0 | H69: 0 | I69: 0 | J69: 0 | K69: 0 | L69: 0 | M69: 177 | N69: 164 | O69: 168 | P69: 153 | Q69: 182 | R69: 188 | S69: 210 | T69: 178 | U69: 175 | V69: 189 | W69: 192 | X69: 189 | Y69: 157 | Z69: 2322
A70: 108110603 | B70: Blacklick Valley SD | C70: SD | D70: Cambria | E70: 9 | F70: 11 | G70: 0 | H70: 0 | I70: 0 | J70: 0 | K70: 0 | L70: 0 | M70: 38 | N70: 52 | O70: 46 | P70: 32 | Q70: 53 | R70: 49 | S70: 60 | T70: 59 | U70: 60 | V70: 51 | W70: 35 | X70: 46 | Y70: 40 | Z70: 641
A71: 128321103 | B71: Blairsville-Saltsburg SD | C71: SD | D71: Indiana | E71: 0 | F71: 0 | G71: 40 | H71: 0 | I71: 0 | J71: 0 | K71: 0 | L71: 0 | M71: 124 | N71: 120 | O71: 106 | P71: 114 | Q71: 94 | R71: 122 | S71: 119 | T71: 114 | U71: 122 | V71: 103 | W71: 121 | X71: 108 | Y71: 123 | Z71: 1530
A72: 116191203 | B72: Bloomsburg Area SD | C72: SD | D72: Columbia | E72: 0 | F72: 0 | G72: 0 | H72: 0 | I72: 0 | J72: 0 | K72: 0 | L72: 0 | M72: 130 | N72: 114 | O72: 127 | P72: 113 | Q72: 104 | R72: 123 | S72: 126 | T72: 128 | U72: 128 | V72: 108 | W72: 117 | X72: 96 | Y72: 75 | Z72: 1489
A73: 129540803 | B73: Blue Mountain SD | C73: SD | D73: Schuylkill | E73: 0 | F73: 0 | G73: 0 | H73: 0 | I73: 0 | J73: 0 | K73: 0 | L73: 0 | M73: 176 | N73: 166 | O73: 166 | P73: 170 | Q73: 193 | R73: 206 | S73: 171 | T73: 234 | U73: 211 | V73: 215 | W73: 247 | X73: 205 | Y73: 225 | Z73: 2585
A74: 119581003 | B74: Blue Ridge SD | C74: SD | D74: Susquehanna | E74: 0 | F74: 0 | G74: 0 | H74: 0 | I74: 33 | J74: 0 | K74: 0 | L74: 0 | M74: 72 | N74: 75 | O74: 59 | P74: 78 | Q74: 84 | R74: 69 | S74: 72 | T74: 81 | U74: 68 | V74: 61 | W74: 77 | X74: 68 | Y74: 61 | Z74: 958
A75: 114060753 | B75: Boyertown Area SD | C75: SD | D75: Berks | E75: 18 | F75: 23 | G75: 0 | H75: 0 | I75: 0 | J75: 0 | K75: 222 | L75: 232 | M75: 0 | N75: 503 | O75: 483 | P75: 480 | Q75: 552 | R75: 558 | S75: 538 | T75: 585 | U75: 554 | V75: 568 | W75: 548 | X75: 487 | Y75: 516 | Z75: 6867
A76: 185515523 | B76: Boys Latin of Philadelphia CS | C76: CS | D76: Philadelphia | E76: 0 | F76: 0 | G76: 0 | H76: 0 | I76: 0 | J76: 0 | K76: 0 | L76: 0 | M76: 0 | N76: 0 | O76: 0 | P76: 0 | Q76: 0 | R76: 0 | S76: 119 | T76: 119 | U76: 124 | V76: 160 | W76: 110 | X76: 99 | Y76: 76 | Z76: 807
A77: 109420803 | B77: Bradford Area SD | C77: SD | D77: McKean | E77: 0 | F77: 0 | G77: 121 | H77: 0 | I77: 0 | J77: 0 | K77: 0 | L77: 0 | M77: 173 | N77: 174 | O77: 186 | P77: 185 | Q77: 193 | R77: 205 | S77: 174 | T77: 204 | U77: 189 | V77: 190 | W77: 192 | X77: 181 | Y77: 188 | Z77: 2555
A78: 114060853 | B78: Brandywine Heights Area SD | C78: SD | D78: Berks | E78: 0 | F78: 0 | G78: 0 | H78: 0 | I78: 0 | J78: 0 | K78: 0 | L78: 0 | M78: 100 | N78: 92 | O78: 104 | P78: 103 | Q78: 105 | R78: 84 | S78: 116 | T78: 106 | U78: 122 | V78: 130 | W78: 97 | X78: 120 | Y78: 118 | Z78: 1397
A79: 103021453 | B79: Brentwood Borough SD | C79: SD | D79: Allegheny | E79: 0 | F79: 0 | G79: 0 | H79: 0 | I79: 0 | J79: 0 | K79: 0 | L79: 0 | M79: 100 | N79: 92 | O79: 97 | P79: 101 | Q79: 100 | R79: 79 | S79: 85 | T79: 107 | U79: 108 | V79: 90 | W79: 93 | X79: 91 | Y79: 83 | Z79: 1226
A80: 122091303 | B80: Bristol Borough SD | C80: SD | D80: Bucks | E80: 0 | F80: 0 | G80: 0 | H80: 0 | I80: 0 | J80: 0 | K80: 0 | L80: 0 | M80: 88 | N80: 95 | O80: 100 | P80: 114 | Q80: 102 | R80: 113 | S80: 117 | T80: 113 | U80: 110 | V80: 86 | W80: 63 | X80: 54 | Y80: 70 | Z80: 1225
A81: 122091352 | B81: Bristol Township SD | C81: SD | D81: Bucks | E81: 0 | F81: 0 | G81: 0 | H81: 0 | I81: 0 | J81: 0 | K81: 0 | L81: 0 | M81: 501 | N81: 513 | O81: 509 | P81: 513 | Q81: 568 | R81: 543 | S81: 557 | T81: 542 | U81: 490 | V81: 477 | W81: 418 | X81: 375 | Y81: 352 | Z81: 6358
A82: 106330703 | B82: Brockway Area SD | C82: SD | D82: Jefferson | E82: 0 | F82: 0 | G82: 0 | H82: 0 | I82: 0 | J82: 0 | K82: 0 | L82: 0 | M82: 52 | N82: 80 | O82: 66 | P82: 79 | Q82: 70 | R82: 85 | S82: 82 | T82: 71 | U82: 78 | V82: 79 | W82: 76 | X82: 72 | Y82: 66 | Z82: 956
A83: 106330803 | B83: Brookville Area SD | C83: SD | D83: Jefferson | E83: 0 | F83: 0 | G83: 0 | H83: 0 | I83: 0 | J83: 0 | K83: 0 | L83: 0 | M83: 116 | N83: 119 | O83: 108 | P83: 119 | Q83: 93 | R83: 136 | S83: 120 | T83: 102 | U83: 138 | V83: 111 | W83: 104 | X83: 113 | Y83: 121 | Z83: 1500
A84: 101260803 | B84: Brownsville Area SD | C84: SD | D84: Fayette | E84: 0 | F84: 0 | G84: 0 | H84: 0 | I84: 0 | J84: 0 | K84: 0 | L84: 0 | M84: 143 | N84: 124 | O84: 105 | P84: 112 | Q84: 137 | R84: 119 | S84: 124 | T84: 109 | U84: 139 | V84: 142 | W84: 111 | X84: 110 | Y84: 104 | Z84: 1579
A85: 122000000 | B85: Bucks County IU 22 | C85: IU | D85: Bucks | E85: 0 | F85: 0 | G85: 0 | H85: 0 | I85: 0 | J85: 0 | K85: 0 | L85: 0 | M85: 26 | N85: 46 | O85: 40 | P85: 44 | Q85: 36 | R85: 64 | S85: 48 | T85: 33 | U85: 59 | V85: 48 | W85: 51 | X85: 51 | Y85: 153 | Z85: 699
A86: 122093460 | B86: Bucks County Montessori CS | C86: CS | D86: Bucks | E86: 0 | F86: 0 | G86: 0 | H86: 0 | I86: 0 | J86: 0 | K86: 0 | L86: 0 | M86: 26 | N86: 32 | O86: 29 | P86: 39 | Q86: 29 | R86: 28 | S86: 13 | T86: 0 | U86: 0 | V86: 0 | W86: 0 | X86: 0 | Y86: 0 | Z86: 196
A87: 122091457 | B87: Bucks County Technical High School | C87: COMCTC | D87: Bucks | E87: 0 | F87: 0 | G87: 0 | H87: 0 | I87: 0 | J87: 0 | K87: 0 | L87: 0 | M87: 0 | N87: 0 | O87: 0 | P87: 0 | Q87: 0 | R87: 0 | S87: 0 | T87: 0 | U87: 0 | V87: 375 | W87: 341 | X87: 346 | Y87: 362 | Z87: 1424
A88: 101631203 | B88: Burgettstown Area SD | C88: SD | D88: Washington | E88: 0 | F88: 0 | G88: 0 | H88: 0 | I88: 0 | J88: 0 | K88: 0 | L88: 0 | M88: 80 | N88: 75 | O88: 95 | P88: 80 | Q88: 70 | R88: 82 | S88: 80 | T88: 89 | U88: 85 | V88: 85 | W88: 84 | X88: 85 | Y88: 76 | Z88: 1066
A89: 107650703 | B89: Burrell SD | C89: SD | D89: Westmoreland | E89: 0 | F89: 0 | G89: 0 | H89: 0 | I89: 0 | J89: 0 | K89: 0 | L89: 0 | M89: 119 | N89: 120 | O89: 141 | P89: 132 | Q89: 126 | R89: 134 | S89: 135 | T89: 158 | U89: 146 | V89: 154 | W89: 146 | X89: 150 | Y89: 142 | Z89: 1803
A90: 104101252 | B90: Butler Area SD | C90: SD | D90: Butler | E90: 0 | F90: 0 | G90: 0 | H90: 0 | I90: 0 | J90: 0 | K90: 4 | L90: 0 | M90: 423 | N90: 455 | O90: 393 | P90: 449 | Q90: 478 | R90: 526 | S90: 518 | T90: 495 | U90: 503 | V90: 538 | W90: 506 | X90: 476 | Y90: 527 | Z90: 6291
A91: 104101307 | B91: Butler County AVTS | C91: OCCCTC | D91: Butler | E91: 0 | F91: 0 | G91: 0 | H91: 0 | I91: 0 | J91: 0 | K91: 0 | L91: 0 | M91: 0 | N91: 0 | O91: 0 | P91: 0 | Q91: 0 | R91: 0 | S91: 0 | T91: 0 | U91: 0 | V91: 0 | W91: 253 | X91: 339 | Y91: 340 | Z91: 932
A92: 119354207 | B92: CTC of Lackawanna County | C92: OCCCTC | D92: Lackawanna | E92: 0 | F92: 0 | G92: 0 | H92: 0 | I92: 0 | J92: 0 | K92: 0 | L92: 0 | M92: 0 | N92: 0 | O92: 0 | P92: 0 | Q92: 0 | R92: 0 | S92: 0 | T92: 0 | U92: 0 | V92: 0 | W92: 251 | X92: 219 | Y92: 189 | Z92: 659
A93: 101631503 | B93: California Area SD | C93: SD | D93: Washington | E93: 0 | F93: 0 | G93: 0 | H93: 0 | I93: 0 | J93: 0 | K93: 0 | L93: 0 | M93: 56 | N93: 71 | O93: 65 | P93: 55 | Q93: 72 | R93: 74 | S93: 55 | T93: 67 | U93: 73 | V93: 73 | W93: 61 | X93: 76 | Y93: 54 | Z93: 852
A94: 108111203 | B94: Cambria Heights SD | C94: SD | D94: Cambria | E94: 0 | F94: 0 | G94: 0 | H94: 0 | I94: 0 | J94: 0 | K94: 0 | L94: 0 | M94: 83 | N94: 72 | O94: 97 | P94: 98 | Q94: 104 | R94: 94 | S94: 124 | T94: 101 | U94: 106 | V94: 100 | W94: 112 | X94: 108 | Y94: 114 | Z94: 1313
A95: 109122703 | B95: Cameron County SD | C95: SD | D95: Cameron | E95: 0 | F95: 0 | G95: 0 | H95: 0 | I95: 0 | J95: 0 | K95: 0 | L95: 0 | M95: 40 | N95: 54 | O95: 41 | P95: 34 | Q95: 46 | R95: 44 | S95: 43 | T95: 38 | U95: 29 | V95: 41 | W95: 37 | X95: 40 | Y95: 47 | Z95: 534
A96: 115211003 | B96: Camp Hill SD | C96: SD | D96: Cumberland | E96: 0 | F96: 0 | G96: 0 | H96: 0 | I96: 0 | J96: 0 | K96: 44 | L96: 43 | M96: 0 | N96: 86 | O96: 107 | P96: 90 | Q96: 87 | R96: 116 | S96: 126 | T96: 110 | U96: 107 | V96: 109 | W96: 117 | X96: 110 | Y96: 83 | Z96: 1335
A97: 101631703 | B97: Canon-McMillan SD | C97: SD | D97: Washington | E97: 0 | F97: 0 | G97: 0 | H97: 0 | I97: 0 | J97: 0 | K97: 205 | L97: 154 | M97: 38 | N97: 395 | O97: 430 | P97: 376 | Q97: 406 | R97: 443 | S97: 409 | T97: 417 | U97: 410 | V97: 441 | W97: 451 | X97: 390 | Y97: 376 | Z97: 5341
A98: 117081003 | B98: Canton Area SD | C98: SD | D98: Bradford | E98: 0 | F98: 0 | G98: 0 | H98: 0 | I98: 0 | J98: 0 | K98: 0 | L98: 0 | M98: 66 | N98: 71 | O98: 67 | P98: 53 | Q98: 68 | R98: 59 | S98: 67 | T98: 72 | U98: 89 | V98: 64 | W98: 70 | X98: 83 | Y98: 56 | Z98: 885
A99: 115000000 | B99: Capital Area IU 15 | C99: IU | D99: Cumberland | E99: 0 | F99: 0 | G99: 0 | H99: 0 | I99: 0 | J99: 0 | K99: 77 | L99: 0 | M99: 14 | N99: 17 | O99: 9 | P99: 22 | Q99: 10 | R99: 24 | S99: 9 | T99: 14 | U99: 21 | V99: 20 | W99: 36 | X99: 32 | Y99: 36 | Z99: 341
A100: 115227010 | B100: Capital Area School for the Arts Charter | C100: CS | D100: Dauphin | E100: 0 | F100: 0 | G100: 0 | H100: 0 | I100: 0 | J100: 0 | K100: 0 | L100: 0 | M100: 0 | N100: 0 | O100: 0 | P100: 0 | Q100: 0 | R100: 0 | S100: 0 | T100: 0 | U100: 0 | V100: 37 | W100: 49 | X100: 51 | Y100: 49 | Z100: 186
A101: 121131507 | B101: Carbon Career & Technical Institute | C101: COMCTC | D101: Carbon | E101: 0 | F101: 0 | G101: 0 | H101: 0 | I101: 0 | J101: 0 | K101: 0 | L101: 0 | M101: 0 | N101: 0 | O101: 0 | P101: 0 | Q101: 0 | R101: 0 | S101: 0 | T101: 0 | U101: 0 | V101: 60 | W101: 112 | X101: 115 | Y101: 106 | Z101: 393
A102: 121000000 | B102: Carbon-Lehigh IU 21 | C102: IU | D102: Lehigh | E102: 0 | F102: 0 | G102: 0 | H102: 0 | I102: 0 | J102: 0 | K102: 42 | L102: 0 | M102: 23 | N102: 22 | O102: 21 | P102: 33 | Q102: 28 | R102: 33 | S102: 38 | T102: 27 | U102: 34 | V102: 48 | W102: 47 | X102: 35 | Y102: 115 | Z102: 546
A103: 119351303 | B103: Carbondale Area SD | C103: SD | D103: Lackawanna | E103: 0 | F103: 0 | G103: 40 | H103: 0 | I103: 0 | J103: 0 | K103: 0 | L103: 0 | M103: 54 | N103: 100 | O103: 124 | P103: 121 | Q103: 127 | R103: 117 | S103: 130 | T103: 127 | U103: 120 | V103: 141 | W103: 112 | X103: 99 | Y103: 96 | Z103: 1508
A104: 120483007 | B104: Career Institute of Technology | C104: OCCCTC | D104: Northampton | E104: 0 | F104: 0 | G104: 0 | H104: 0 | I104: 0 | J104: 0 | K104: 0 | L104: 0 | M104: 0 | N104: 0 | O104: 0 | P104: 0 | Q104: 0 | R104: 0 | S104: 0 | T104: 0 | U104: 0 | V104: 10 | W104: 210 | X104: 239 | Y104: 203 | Z104: 662
A105: 115211103 | B105: Carlisle Area SD | C105: SD | D105: Cumberland | E105: 0 | F105: 0 | G105: 0 | H105: 0 | I105: 0 | J105: 0 | K105: 0 | L105: 0 | M105: 414 | N105: 371 | O105: 392 | P105: 374 | Q105: 382 | R105: 401 | S105: 400 | T105: 399 | U105: 411 | V105: 391 | W105: 410 | X105: 380 | Y105: 366 | Z105: 5091
A106: 103021603 | B106: Carlynton SD | C106: SD | D106: Allegheny | E106: 0 | F106: 0 | G106: 0 | H106: 0 | I106: 0 | J106: 0 | K106: 0 | L106: 0 | M106: 100 | N106: 106 | O106: 98 | P106: 116 | Q106: 111 | R106: 114 | S106: 103 | T106: 111 | U106: 99 | V106: 93 | W106: 97 | X106: 97 | Y106: 92 | Z106: 1337
A107: 101301303 | B107: Carmichaels Area SD | C107: SD | D107: Greene | E107: 0 | F107: 0 | G107: 34 | H107: 0 | I107: 0 | J107: 0 | K107: 0 | L107: 0 | M107: 87 | N107: 75 | O107: 82 | P107: 91 | Q107: 78 | R107: 71 | S107: 78 | T107: 71 | U107: 84 | V107: 73 | W107: 99 | X107: 94 | Y107: 66 | Z107: 1083
A108: 121391303 | B108: Catasauqua Area SD | C108: SD | D108: Lehigh | E108: 0 | F108: 0 | G108: 0 | H108: 0 | I108: 0 | J108: 0 | K108: 0 | L108: 0 | M108: 101 | N108: 109 | O108: 120 | P108: 105 | Q108: 93 | R108: 125 | S108: 124 | T108: 125 | U108: 120 | V108: 132 | W108: 119 | X108: 95 | Y108: 114 | Z108: 1482
A109: 122092002 | B109: Centennial SD | C109: SD | D109: Bucks | E109: 0 | F109: 0 | G109: 0 | H109: 0 | I109: 0 | J109: 0 | K109: 0 | L109: 0 | M109: 341 | N109: 397 | O109: 399 | P109: 387 | Q109: 401 | R109: 398 | S109: 424 | T109: 468 | U109: 409 | V109: 477 | W109: 437 | X109: 420 | Y109: 461 | Z109: 5419
A110: 122090001 | B110: Center for Student Learning CS at Pennsb | C110: CS | D110: Bucks | E110: 0 | F110: 0 | G110: 0 | H110: 0 | I110: 0 | J110: 0 | K110: 0 | L110: 0 | M110: 0 | N110: 0 | O110: 0 | P110: 0 | Q110: 0 | R110: 0 | S110: 11 | T110: 14 | U110: 13 | V110: 16 | W110: 27 | X110: 28 | Y110: 36 | Z110: 145
A111: 122092102 | B111: Central Bucks SD | C111: SD | D111: Bucks | E111: 0 | F111: 0 | G111: 0 | H111: 0 | I111: 0 | J111: 0 | K111: 512 | L111: 343 | M111: 57 | N111: 1232 | O111: 1259 | P111: 1261 | Q111: 1293 | R111: 1399 | S111: 1473 | T111: 1488 | U111: 1527 | V111: 1572 | W111: 1574 | X111: 1554 | Y111: 1680 | Z111: 18224
A112: 108111303 | B112: Central Cambria SD | C112: SD | D112: Cambria | E112: 0 | F112: 0 | G112: 0 | H112: 0 | I112: 0 | J112: 0 | K112: 0 | L112: 0 | M112: 114 | N112: 106 | O112: 108 | P112: 122 | Q112: 120 | R112: 111 | S112: 124 | T112: 127 | U112: 139 | V112: 149 | W112: 118 | X112: 137 | Y112: 137 | Z112: 1612
A113: 116191503 | B113: Central Columbia SD | C113: SD | D113: Columbia | E113: 0 | F113: 0 | G113: 0 | H113: 0 | I113: 0 | J113: 0 | K113: 0 | L113: 0 | M113: 162 | N113: 121 | O113: 122 | P113: 157 | Q113: 139 | R113: 141 | S113: 158 | T113: 157 | U113: 157 | V113: 149 | W113: 154 | X113: 130 | Y113: 137 | Z113: 1884
A114: 115221402 | B114: Central Dauphin SD | C114: SD | D114: Dauphin | E114: 0 | F114: 0 | G114: 0 | H114: 0 | I114: 0 | J114: 0 | K114: 468 | L114: 393 | M114: 0 | N114: 931 | O114: 926 | P114: 945 | Q114: 980 | R114: 1061 | S114: 988 | T114: 966 | U114: 974 | V114: 869 | W114: 819 | X114: 840 | Y114: 836 | Z114: 11996
A115: 111291304 | B115: Central Fulton SD | C115: SD | D115: Fulton | E115: 0 | F115: 0 | G115: 0 | H115: 0 | I115: 0 | J115: 67 | K115: 0 | L115: 0 | M115: 84 | N115: 72 | O115: 59 | P115: 86 | Q115: 75 | R115: 83 | S115: 84 | T115: 78 | U115: 85 | V115: 60 | W115: 59 | X115: 74 | Y115: 60 | Z115: 1026
A116: 101301403 | B116: Central Greene SD | C116: SD | D116: Greene | E116: 0 | F116: 0 | G116: 0 | H116: 0 | I116: 0 | J116: 0 | K116: 0 | L116: 0 | M116: 126 | N116: 107 | O116: 121 | P116: 123 | Q116: 124 | R116: 137 | S116: 130 | T116: 131 | U116: 133 | V116: 138 | W116: 142 | X116: 132 | Y116: 123 | Z116: 1667
A117: 110000000 | B117: Central IU 10 | C117: IU | D117: Clearfield | E117: 0 | F117: 0 | G117: 0 | H117: 0 | I117: 0 | J117: 0 | K117: 19 | L117: 3 | M117: 6 | N117: 6 | O117: 0 | P117: 0 | Q117: 0 | R117: 0 | S117: 1 | T117: 0 | U117: 0 | V117: 2 | W117: 3 | X117: 3 | Y117: 6 | Z117: 49
A118: 123460957 | B118: Central Montco Technical High School | C118: OCCCTC | D118: Montgomery | E118: 0 | F118: 0 | G118: 0 | H118: 0 | I118: 0 | J118: 0 | K118: 0 | L118: 0 | M118: 0 | N118: 0 | O118: 0 | P118: 0 | Q118: 0 | R118: 0 | S118: 0 | T118: 0 | U118: 0 | V118: 0 | W118: 211 | X118: 288 | Y118: 220 | Z118: 719
A119: 108070001 | B119: Central PA Digital Learning Foundation C | C119: CS | D119: Blair | E119: 0 | F119: 0 | G119: 0 | H119: 0 | I119: 0 | J119: 0 | K119: 0 | L119: 0 | M119: 2 | N119: 1 | O119: 4 | P119: 1 | Q119: 6 | R119: 5 | S119: 8 | T119: 8 | U119: 14 | V119: 19 | W119: 19 | X119: 35 | Y119: 17 | Z119: 139
A120: 110141607 | B120: Central PA Institute of Science & Techno | C120: OCCCTC | D120: Centre | E120: 0 | F120: 0 | G120: 0 | H120: 0 | I120: 0 | J120: 0 | K120: 0 | L120: 0 | M120: 0 | N120: 0 | O120: 0 | P120: 0 | Q120: 0 | R120: 0 | S120: 0 | T120: 0 | U120: 0 | V120: 46 | W120: 112 | X120: 132 | Y120: 135 | Z120: 425
A121: 116000000 | B121: Central Susquehanna IU 16 | C121: IU | D121: Union | E121: 0 | F121: 0 | G121: 42 | H121: 0 | I121: 0 | J121: 0 | K121: 0 | L121: 0 | M121: 20 | N121: 5 | O121: 3 | P121: 10 | Q121: 10 | R121: 10 | S121: 8 | T121: 21 | U121: 18 | V121: 29 | W121: 33 | X121: 31 | Y121: 53 | Z121: 293
A122: 127042003 | B122: Central Valley SD | C122: SD | D122: Beaver | E122: 0 | F122: 0 | G122: 0 | H122: 0 | I122: 0 | J122: 0 | K122: 78 | L122: 88 | M122: 0 | N122: 175 | O122: 173 | P122: 177 | Q122: 186 | R122: 178 | S122: 185 | T122: 184 | U122: 198 | V122: 191 | W122: 155 | X122: 178 | Y122: 156 | Z122: 2302
A123: 107651207 | B123: Central Westmoreland CTC | C123: OCCCTC | D123: Westmoreland | E123: 0 | F123: 0 | G123: 0 | H123: 0 | I123: 0 | J123: 0 | K123: 0 | L123: 0 | M123: 0 | N123: 0 | O123: 0 | P123: 0 | Q123: 0 | R123: 0 | S123: 0 | T123: 0 | U123: 0 | V123: 1 | W123: 390 | X123: 358 | Y123: 284 | Z123: 1033
A124: 112671303 | B124: Central York SD | C124: SD | D124: York | E124: 0 | F124: 0 | G124: 0 | H124: 0 | I124: 0 | J124: 0 | K124: 0 | L124: 0 | M124: 414 | N124: 390 | O124: 422 | P124: 414 | Q124: 419 | R124: 470 | S124: 465 | T124: 465 | U124: 427 | V124: 509 | W124: 437 | X124: 448 | Y124: 465 | Z124: 5745
A125: 110143060 | B125: Centre Learning Community CS | C125: CS | D125: Centre | E125: 0 | F125: 0 | G125: 0 | H125: 0 | I125: 0 | J125: 0 | K125: 0 | L125: 0 | M125: 0 | N125: 0 | O125: 0 | P125: 0 | Q125: 0 | R125: 13 | S125: 29 | T125: 23 | U125: 23 | V125: 0 | W125: 0 | X125: 0 | Y125: 0 | Z125: 88
A126: 112281302 | B126: Chambersburg Area SD | C126: SD | D126: Franklin | E126: 0 | F126: 0 | G126: 0 | H126: 0 | I126: 0 | J126: 0 | K126: 0 | L126: 0 | M126: 697 | N126: 732 | O126: 702 | P126: 723 | Q126: 717 | R126: 750 | S126: 765 | T126: 731 | U126: 733 | V126: 700 | W126: 674 | X126: 671 | Y126: 766 | Z126: 9361
A127: 101631803 | B127: Charleroi SD | C127: SD | D127: Washington | E127: 0 | F127: 0 | G127: 0 | H127: 0 | I127: 0 | J127: 0 | K127: 2 | L127: 0 | M127: 103 | N127: 101 | O127: 109 | P127: 108 | Q127: 128 | R127: 131 | S127: 108 | T127: 132 | U127: 129 | V127: 110 | W127: 114 | X127: 119 | Y127: 98 | Z127: 1492
A128: 126513190 | B128: Charter High School for Architecture and | C128: CS | D128: Philadelphia | E128: 0 | F128: 0 | G128: 0 | H128: 0 | I128: 0 | J128: 0 | K128: 0 | L128: 0 | M128: 0 | N128: 0 | O128: 0 | P128: 0 | Q128: 0 | R128: 0 | S128: 0 | T128: 0 | U128: 0 | V128: 175 | W128: 187 | X128: 152 | Y128: 100 | Z128: 614
A129: 103021752 | B129: Chartiers Valley SD | C129: SD | D129: Allegheny | E129: 0 | F129: 0 | G129: 0 | H129: 0 | I129: 0 | J129: 0 | K129: 0 | L129: 0 | M129: 294 | N129: 284 | O129: 262 | P129: 269 | Q129: 224 | R129: 238 | S129: 222 | T129: 246 | U129: 254 | V129: 242 | W129: 242 | X129: 260 | Y129: 246 | Z129: 3283
A130: 101631903 | B130: Chartiers-Houston SD | C130: SD | D130: Washington | E130: 0 | F130: 0 | G130: 0 | H130: 0 | I130: 0 | J130: 0 | K130: 0 | L130: 0 | M130: 85 | N130: 96 | O130: 87 | P130: 101 | Q130: 73 | R130: 80 | S130: 90 | T130: 94 | U130: 74 | V130: 97 | W130: 93 | X130: 83 | Y130: 75 | Z130: 1128
A131: 123461302 | B131: Cheltenham SD | C131: SD | D131: Montgomery | E131: 0 | F131: 0 | G131: 0 | H131: 0 | I131: 0 | J131: 0 | K131: 0 | L131: 0 | M131: 282 | N131: 318 | O131: 300 | P131: 339 | Q131: 344 | R131: 385 | S131: 350 | T131: 348 | U131: 327 | V131: 356 | W131: 323 | X131: 335 | Y131: 301 | Z131: 4308
A132: 125236827 | B132: Chester CS for the Arts | C132: CS | D132: Delaware | E132: 0 | F132: 0 | G132: 0 | H132: 0 | I132: 0 | J132: 0 | K132: 0 | L132: 0 | M132: 46 | N132: 50 | O132: 49 | P132: 49 | Q132: 52 | R132: 51 | S132: 52 | T132: 49 | U132: 52 | V132: 47 | W132: 48 | X132: 48 | Y132: 45 | Z132: 638
A133: 124152880 | B133: Chester Co Family Academy CS | C133: CS | D133: Chester | E133: 0 | F133: 0 | G133: 0 | H133: 0 | I133: 0 | J133: 0 | K133: 0 | L133: 0 | M133: 32 | N133: 31 | O133: 30 | P133: 0 | Q133: 0 | R133: 0 | S133: 0 | T133: 0 | U133: 0 | V133: 0 | W133: 0 | X133: 0 | Y133: 0 | Z133: 93
A134: 125232950 | B134: Chester Community CS | C134: CS | D134: Delaware | E134: 0 | F134: 0 | G134: 0 | H134: 0 | I134: 0 | J134: 0 | K134: 0 | L134: 0 | M134: 535 | N134: 526 | O134: 566 | P134: 544 | Q134: 583 | R134: 541 | S134: 425 | T134: 351 | U134: 269 | V134: 0 | W134: 0 | X134: 0 | Y134: 0 | Z134: 4340
A135: 124000000 | B135: Chester County IU 24 | C135: IU | D135: Chester | E135: 0 | F135: 0 | G135: 0 | H135: 0 | I135: 0 | J135: 0 | K135: 0 | L135: 0 | M135: 122 | N135: 13 | O135: 23 | P135: 37 | Q135: 36 | R135: 36 | S135: 39 | T135: 47 | U135: 54 | V135: 69 | W135: 111 | X135: 105 | Y135: 246 | Z135: 938
A136: 124151607 | B136: Chester County Technical College HS | C136: OCCCTC | D136: Chester | E136: 0 | F136: 0 | G136: 0 | H136: 0 | I136: 0 | J136: 0 | K136: 0 | L136: 0 | M136: 0 | N136: 0 | O136: 0 | P136: 0 | Q136: 0 | R136: 0 | S136: 0 | T136: 0 | U136: 0 | V136: 48 | W136: 531 | X136: 660 | Y136: 1001 | Z136: 2240
A137: 125231232 | B137: Chester-Upland SD | C137: SD | D137: Delaware | E137: 0 | F137: 0 | G137: 120 | H137: 0 | I137: 0 | J137: 0 | K137: 0 | L137: 0 | M137: 158 | N137: 169 | O137: 171 | P137: 145 | Q137: 170 | R137: 133 | S137: 151 | T137: 168 | U137: 181 | V137: 420 | W137: 369 | X137: 305 | Y137: 282 | Z137: 2942
A138: 108051503 | B138: Chestnut Ridge SD | C138: SD | D138: Bedford | E138: 0 | F138: 0 | G138: 38 | H138: 0 | I138: 0 | J138: 0 | K138: 0 | L138: 0 | M138: 76 | N138: 91 | O138: 85 | P138: 94 | Q138: 91 | R138: 114 | S138: 106 | T138: 119 | U138: 107 | V138: 104 | W138: 105 | X138: 113 | Y138: 118 | Z138: 1361
A139: 125231303 | B139: Chichester SD | C139: SD | D139: Delaware | E139: 0 | F139: 0 | G139: 0 | H139: 0 | I139: 0 | J139: 0 | K139: 0 | L139: 0 | M139: 241 | N139: 228 | O139: 247 | P139: 265 | Q139: 276 | R139: 256 | S139: 263 | T139: 255 | U139: 245 | V139: 261 | W139: 228 | X139: 240 | Y139: 225 | Z139: 3230
A140: 126513160 | B140: Christopher Columbus CS | C140: CS | D140: Philadelphia | E140: 0 | F140: 0 | G140: 0 | H140: 0 | I140: 0 | J140: 0 | K140: 0 | L140: 0 | M140: 103 | N140: 98 | O140: 111 | P140: 104 | Q140: 103 | R140: 101 | S140: 103 | T140: 93 | U140: 83 | V140: 0 | W140: 0 | X140: 0 | Y140: 0 | Z140: 899
A141: 121394017 | B141: Circle of Seasons Charter School | C141: CS | D141: Lehigh | E141: 0 | F141: 0 | G141: 0 | H141: 0 | I141: 0 | J141: 0 | K141: 0 | L141: 0 | M141: 43 | N141: 51 | O141: 52 | P141: 51 | Q141: 51 | R141: 52 | S141: 48 | T141: 20 | U141: 0 | V141: 0 | W141: 0 | X141: 0 | Y141: 0 | Z141: 368
A142: 102020001 | B142: City CHS | C142: CS | D142: Allegheny | E142: 0 | F142: 0 | G142: 0 | H142: 0 | I142: 0 | J142: 0 | K142: 0 | L142: 0 | M142: 0 | N142: 0 | O142: 0 | P142: 0 | Q142: 0 | R142: 0 | S142: 0 | T142: 0 | U142: 0 | V142: 171 | W142: 124 | X142: 130 | Y142: 131 | Z142: 556
A143: 103021903 | B143: Clairton City SD | C143: SD | D143: Allegheny | E143: 0 | F143: 0 | G143: 0 | H143: 0 | I143: 0 | J143: 0 | K143: 0 | L143: 0 | M143: 83 | N143: 76 | O143: 65 | P143: 65 | Q143: 65 | R143: 69 | S143: 67 | T143: 63 | U143: 58 | V143: 67 | W143: 52 | X143: 40 | Y143: 43 | Z143: 813
A144: 106161203 | B144: Clarion Area SD | C144: SD | D144: Clarion | E144: 0 | F144: 0 | G144: 0 | H144: 0 | I144: 0 | J144: 0 | K144: 0 | L144: 0 | M144: 50 | N144: 45 | O144: 66 | P144: 58 | Q144: 62 | R144: 68 | S144: 59 | T144: 66 | U144: 39 | V144: 61 | W144: 73 | X144: 56 | Y144: 78 | Z144: 781
A145: 106161357 | B145: Clarion County Career Center | C145: OCCCTC | D145: Clarion | E145: 0 | F145: 0 | G145: 0 | H145: 0 | I145: 0 | J145: 0 | K145: 0 | L145: 0 | M145: 0 | N145: 0 | O145: 0 | P145: 0 | Q145: 0 | R145: 0 | S145: 0 | T145: 0 | U145: 0 | V145: 2 | W145: 145 | X145: 82 | Y145: 115 | Z145: 344
A146: 106161703 | B146: Clarion-Limestone Area SD | C146: SD | D146: Clarion | E146: 0 | F146: 0 | G146: 0 | H146: 0 | I146: 0 | J146: 0 | K146: 0 | L146: 0 | M146: 81 | N146: 74 | O146: 62 | P146: 66 | Q146: 55 | R146: 61 | S146: 57 | T146: 68 | U146: 51 | V146: 78 | W146: 74 | X146: 54 | Y146: 56 | Z146: 837
A147: 108071504 | B147: Claysburg-Kimmel SD | C147: SD | D147: Blair | E147: 0 | F147: 0 | G147: 0 | H147: 0 | I147: 0 | J147: 0 | K147: 0 | L147: 0 | M147: 55 | N147: 50 | O147: 48 | P147: 73 | Q147: 54 | R147: 63 | S147: 67 | T147: 51 | U147: 73 | V147: 76 | W147: 68 | X147: 61 | Y147: 72 | Z147: 811
A148: 110171003 | B148: Clearfield Area SD | C148: SD | D148: Clearfield | E148: 0 | F148: 0 | G148: 0 | H148: 0 | I148: 0 | J148: 0 | K148: 0 | L148: 0 | M148: 152 | N148: 143 | O148: 171 | P148: 153 | Q148: 178 | R148: 171 | S148: 177 | T148: 179 | U148: 172 | V148: 172 | W148: 164 | X148: 161 | Y148: 165 | Z148: 2158
A149: 110171607 | B149: Clearfield County CTC | C149: OCCCTC | D149: Clearfield | E149: 0 | F149: 0 | G149: 0 | H149: 0 | I149: 0 | J149: 0 | K149: 0 | L149: 0 | M149: 0 | N149: 0 | O149: 0 | P149: 0 | Q149: 0 | R149: 0 | S149: 0 | T149: 0 | U149: 0 | V149: 6 | W149: 33 | X149: 162 | Y149: 162 | Z149: 363
A150: 124151902 | B150: Coatesville Area SD | C150: SD | D150: Chester | E150: 0 | F150: 0 | G150: 50 | H150: 0 | I150: 0 | J150: 0 | K150: 0 | L150: 0 | M150: 401 | N150: 417 | O150: 409 | P150: 393 | Q150: 411 | R150: 422 | S150: 395 | T150: 393 | U150: 449 | V150: 502 | W150: 456 | X150: 491 | Y150: 470 | Z150: 5659
A151: 113361303 | B151: Cocalico SD | C151: SD | D151: Lancaster | E151: 15 | F151: 11 | G151: 0 | H151: 0 | I151: 0 | J151: 0 | K151: 94 | L151: 121 | M151: 0 | N151: 186 | O151: 195 | P151: 228 | Q151: 256 | R151: 252 | S151: 229 | T151: 256 | U151: 255 | V151: 255 | W151: 245 | X151: 203 | Y151: 272 | Z151: 3073
A152: 124153320 | B152: Collegium CS | C152: CS | D152: Chester | E152: 0 | F152: 0 | G152: 0 | H152: 0 | I152: 0 | J152: 0 | K152: 0 | L152: 0 | M152: 343 | N152: 276 | O152: 315 | P152: 297 | Q152: 308 | R152: 296 | S152: 240 | T152: 207 | U152: 190 | V152: 170 | W152: 124 | X152: 105 | Y152: 82 | Z152: 2953
A153: 120000000 | B153: Colonial IU 20 | C153: IU | D153: Northampton | E153: 22 | F153: 10 | G153: 0 | H153: 0 | I153: 0 | J153: 0 | K153: 0 | L153: 0 | M153: 82 | N153: 146 | O153: 148 | P153: 112 | Q153: 136 | R153: 130 | S153: 105 | T153: 115 | U153: 132 | V153: 132 | W153: 127 | X153: 125 | Y153: 193 | Z153: 1715
A154: 123461602 | B154: Colonial SD | C154: SD | D154: Montgomery | E154: 0 | F154: 0 | G154: 0 | H154: 0 | I154: 0 | J154: 0 | K154: 0 | L154: 0 | M154: 397 | N154: 417 | O154: 466 | P154: 387 | Q154: 382 | R154: 410 | S154: 425 | T154: 352 | U154: 365 | V154: 365 | W154: 383 | X154: 391 | Y154: 381 | Z154: 5121
A155: 113361503 | B155: Columbia Borough SD | C155: SD | D155: Lancaster | E155: 0 | F155: 0 | G155: 0 | H155: 0 | I155: 0 | J155: 0 | K155: 0 | L155: 0 | M155: 108 | N155: 111 | O155: 106 | P155: 114 | Q155: 101 | R155: 98 | S155: 106 | T155: 95 | U155: 88 | V155: 122 | W155: 92 | X155: 105 | Y155: 60 | Z155: 1306
A156: 116191757 | B156: Columbia-Montour AVTS | C156: COMCTC | D156: Columbia | E156: 0 | F156: 0 | G156: 0 | H156: 0 | I156: 0 | J156: 0 | K156: 0 | L156: 0 | M156: 0 | N156: 0 | O156: 0 | P156: 0 | Q156: 0 | R156: 0 | S156: 0 | T156: 0 | U156: 0 | V156: 171 | W156: 166 | X156: 160 | Y156: 140 | Z156: 637
A157: 104431304 | B157: Commodore Perry SD | C157: SD | D157: Mercer | E157: 0 | F157: 0 | G157: 0 | H157: 0 | I157: 0 | J157: 0 | K157: 0 | L157: 0 | M157: 40 | N157: 28 | O157: 34 | P157: 39 | Q157: 33 | R157: 40 | S157: 27 | T157: 34 | U157: 21 | V157: 36 | W157: 42 | X157: 45 | Y157: 33 | Z157: 452
A158: 115220002 | B158: Commonwealth Charter Academy CS | C158: CS | D158: Dauphin | E158: 0 | F158: 0 | G158: 0 | H158: 0 | I158: 0 | J158: 0 | K158: 0 | L158: 0 | M158: 236 | N158: 315 | O158: 334 | P158: 384 | Q158: 412 | R158: 472 | S158: 683 | T158: 703 | U158: 854 | V158: 1292 | W158: 1040 | X158: 1027 | Y158: 1009 | Z158: 8761
A159: 126512840 | B159: Community Academy of Philadelphia CS | C159: CS | D159: Philadelphia | E159: 0 | F159: 0 | G159: 0 | H159: 0 | I159: 0 | J159: 0 | K159: 0 | L159: 0 | M159: 53 | N159: 90 | O159: 91 | P159: 63 | Q159: 61 | R159: 63 | S159: 63 | T159: 61 | U159: 63 | V159: 159 | W159: 161 | X159: 142 | Y159: 148 | Z159: 1218
A160: 108561803 | B160: Conemaugh Township Area SD | C160: SD | D160: Somerset | E160: 0 | F160: 0 | G160: 0 | H160: 0 | I160: 0 | J160: 0 | K160: 0 | L160: 0 | M160: 50 | N160: 66 | O160: 65 | P160: 63 | Q160: 62 | R160: 78 | S160: 75 | T160: 62 | U160: 64 | V160: 86 | W160: 75 | X160: 72 | Y160: 96 | Z160: 914
A161: 108111403 | B161: Conemaugh Valley SD | C161: SD | D161: Cambria | E161: 0 | F161: 0 | G161: 0 | H161: 0 | I161: 0 | J161: 0 | K161: 0 | L161: 0 | M161: 53 | N161: 62 | O161: 45 | P161: 56 | Q161: 49 | R161: 53 | S161: 55 | T161: 55 | U161: 49 | V161: 41 | W161: 57 | X161: 48 | Y161: 83 | Z161: 706
A162: 113361703 | B162: Conestoga Valley SD | C162: SD | D162: Lancaster | E162: 0 | F162: 0 | G162: 0 | H162: 0 | I162: 0 | J162: 0 | K162: 0 | L162: 0 | M162: 297 | N162: 306 | O162: 299 | P162: 302 | Q162: 351 | R162: 337 | S162: 325 | T162: 308 | U162: 315 | V162: 352 | W162: 332 | X162: 336 | Y162: 325 | Z162: 4185
A163: 112011603 | B163: Conewago Valley SD | C163: SD | D163: Adams | E163: 0 | F163: 0 | G163: 0 | H163: 0 | I163: 0 | J163: 0 | K163: 0 | L163: 0 | M163: 297 | N163: 280 | O163: 278 | P163: 282 | Q163: 302 | R163: 308 | S163: 298 | T163: 322 | U163: 287 | V163: 329 | W163: 293 | X163: 298 | Y163: 296 | Z163: 3870
A164: 105201033 | B164: Conneaut SD | C164: SD | D164: Crawford | E164: 0 | F164: 0 | G164: 0 | H164: 0 | I164: 0 | J164: 0 | K164: 0 | L164: 0 | M164: 103 | N164: 141 | O164: 136 | P164: 145 | Q164: 143 | R164: 148 | S164: 158 | T164: 144 | U164: 158 | V164: 154 | W164: 163 | X164: 157 | Y164: 161 | Z164: 1911
A165: 101266007 | B165: Connellsville Area Career & Technical Ce | C165: COMCTC | D165: Fayette | E165: 0 | F165: 0 | G165: 0 | H165: 0 | I165: 0 | J165: 0 | K165: 0 | L165: 0 | M165: 0 | N165: 0 | O165: 0 | P165: 0 | Q165: 0 | R165: 0 | S165: 0 | T165: 0 | U165: 0 | V165: 148 | W165: 141 | X165: 75 | Y165: 76 | Z165: 440
A166: 101261302 | B166: Connellsville Area SD | C166: SD | D166: Fayette | E166: 0 | F166: 0 | G166: 0 | H166: 0 | I166: 0 | J166: 0 | K166: 0 | L166: 0 | M166: 330 | N166: 293 | O166: 303 | P166: 313 | Q166: 287 | R166: 336 | S166: 338 | T166: 333 | U166: 368 | V166: 339 | W166: 347 | X166: 264 | Y166: 250 | Z166: 4101
A167: 114061103 | B167: Conrad Weiser Area SD | C167: SD | D167: Berks | E167: 0 | F167: 0 | G167: 0 | H167: 0 | I167: 0 | J167: 0 | K167: 0 | L167: 0 | M167: 171 | N167: 156 | O167: 167 | P167: 198 | Q167: 169 | R167: 208 | S167: 215 | T167: 204 | U167: 198 | V167: 221 | W167: 233 | X167: 236 | Y167: 213 | Z167: 2589
A168: 103022103 | B168: Cornell SD | C168: SD | D168: Allegheny | E168: 0 | F168: 0 | G168: 0 | H168: 0 | I168: 0 | J168: 0 | K168: 0 | L168: 0 | M168: 38 | N168: 52 | O168: 39 | P168: 44 | Q168: 53 | R168: 34 | S168: 44 | T168: 50 | U168: 38 | V168: 40 | W168: 43 | X168: 51 | Y168: 41 | Z168: 567
A169: 113381303 | B169: Cornwall-Lebanon SD | C169: SD | D169: Lebanon | E169: 0 | F169: 0 | G169: 0 | H169: 0 | I169: 0 | J169: 0 | K169: 129 | L169: 90 | M169: 89 | N169: 359 | O169: 383 | P169: 364 | Q169: 396 | R169: 378 | S169: 392 | T169: 380 | U169: 369 | V169: 392 | W169: 372 | X169: 414 | Y169: 391 | Z169: 4898
A170: 105251453 | B170: Corry Area SD | C170: SD | D170: Erie | E170: 0 | F170: 0 | G170: 40 | H170: 0 | I170: 0 | J170: 0 | K170: 0 | L170: 0 | M170: 134 | N170: 149 | O170: 153 | P170: 147 | Q170: 127 | R170: 164 | S170: 174 | T170: 166 | U170: 142 | V170: 157 | W170: 159 | X170: 161 | Y170: 148 | Z170: 2021
A171: 109531304 | B171: Coudersport Area SD | C171: SD | D171: Potter | E171: 0 | F171: 0 | G171: 0 | H171: 0 | I171: 0 | J171: 0 | K171: 0 | L171: 0 | M171: 48 | N171: 50 | O171: 68 | P171: 66 | Q171: 40 | R171: 58 | S171: 55 | T171: 73 | U171: 57 | V171: 60 | W171: 55 | X171: 58 | Y171: 65 | Z171: 753
A172: 122092353 | B172: Council Rock SD | C172: SD | D172: Bucks | E172: 0 | F172: 0 | G172: 0 | H172: 0 | I172: 0 | J172: 0 | K172: 279 | L172: 203 | M172: 11 | N172: 728 | O172: 759 | P172: 833 | Q172: 823 | R172: 865 | S172: 875 | T172: 875 | U172: 905 | V172: 923 | W172: 906 | X172: 881 | Y172: 976 | Z172: 10842
A173: 106611303 | B173: Cranberry Area SD | C173: SD | D173: Venango | E173: 0 | F173: 0 | G173: 0 | H173: 0 | I173: 0 | J173: 0 | K173: 0 | L173: 0 | M173: 90 | N173: 76 | O173: 98 | P173: 82 | Q173: 102 | R173: 95 | S173: 78 | T173: 91 | U173: 96 | V173: 76 | W173: 85 | X173: 89 | Y173: 72 | Z173: 1130
A174: 105201352 | B174: Crawford Central SD | C174: SD | D174: Crawford | E174: 0 | F174: 0 | G174: 0 | H174: 0 | I174: 0 | J174: 0 | K174: 0 | L174: 0 | M174: 285 | N174: 248 | O174: 231 | P174: 256 | Q174: 276 | R174: 256 | S174: 294 | T174: 276 | U174: 251 | V174: 271 | W174: 291 | X174: 286 | Y174: 295 | Z174: 3516
A175: 105201407 | B175: Crawford County CTC | C175: OCCCTC | D175: Crawford | E175: 0 | F175: 0 | G175: 0 | H175: 0 | I175: 0 | J175: 0 | K175: 0 | L175: 0 | M175: 0 | N175: 0 | O175: 0 | P175: 0 | Q175: 0 | R175: 0 | S175: 0 | T175: 0 | U175: 0 | V175: 0 | W175: 121 | X175: 199 | Y175: 191 | Z175: 511
A176: 118401403 | B176: Crestwood SD | C176: SD | D176: Luzerne | E176: 0 | F176: 0 | G176: 0 | H176: 0 | I176: 0 | J176: 0 | K176: 0 | L176: 0 | M176: 202 | N176: 196 | O176: 193 | P176: 192 | Q176: 231 | R176: 198 | S176: 234 | T176: 198 | U176: 246 | V176: 243 | W176: 220 | X176: 221 | Y176: 223 | Z176: 2797
A177: 112673300 | B177: Crispus Attucks CS | C177: CS | D177: York | E177: 0 | F177: 0 | G177: 0 | H177: 0 | I177: 0 | J177: 0 | K177: 0 | L177: 0 | M177: 0 | N177: 0 | O177: 0 | P177: 0 | Q177: 0 | R177: 0 | S177: 0 | T177: 0 | U177: 0 | V177: 0 | W177: 0 | X177: 0 | Y177: 105 | Z177: 105
A178: 115211657 | B178: Cumberland Perry AVTS | C178: OCCCTC | D178: Cumberland | E178: 0 | F178: 0 | G178: 0 | H178: 0 | I178: 0 | J178: 0 | K178: 0 | L178: 0 | M178: 0 | N178: 0 | O178: 0 | P178: 0 | Q178: 0 | R178: 0 | S178: 0 | T178: 0 | U178: 0 | V178: 35 | W178: 340 | X178: 332 | Y178: 274 | Z178: 981
A179: 115211603 | B179: Cumberland Valley SD | C179: SD | D179: Cumberland | E179: 0 | F179: 0 | G179: 0 | H179: 0 | I179: 0 | J179: 0 | K179: 392 | L179: 198 | M179: 0 | N179: 706 | O179: 749 | P179: 715 | Q179: 713 | R179: 721 | S179: 737 | T179: 734 | U179: 738 | V179: 751 | W179: 667 | X179: 656 | Y179: 674 | Z179: 9151
A180: 110171803 | B180: Curwensville Area SD | C180: SD | D180: Clearfield | E180: 0 | F180: 0 | G180: 0 | H180: 0 | I180: 0 | J180: 0 | K180: 0 | L180: 0 | M180: 96 | N180: 87 | O180: 57 | P180: 54 | Q180: 83 | R180: 74 | S180: 85 | T180: 72 | U180: 90 | V180: 92 | W180: 78 | X180: 77 | Y180: 71 | Z180: 1016
A181: 118401603 | B181: Dallas SD | C181: SD | D181: Luzerne | E181: 0 | F181: 0 | G181: 0 | H181: 0 | I181: 0 | J181: 0 | K181: 78 | L181: 59 | M181: 0 | N181: 191 | O181: 189 | P181: 203 | Q181: 201 | R181: 188 | S181: 197 | T181: 197 | U181: 212 | V181: 181 | W181: 198 | X181: 197 | Y181: 225 | Z181: 2516
A182: 112671603 | B182: Dallastown Area SD | C182: SD | D182: York | E182: 0 | F182: 0 | G182: 0 | H182: 0 | I182: 0 | J182: 0 | K182: 0 | L182: 0 | M182: 448 | N182: 451 | O182: 454 | P182: 458 | Q182: 488 | R182: 521 | S182: 541 | T182: 497 | U182: 556 | V182: 477 | W182: 479 | X182: 480 | Y182: 510 | Z182: 6360
A183: 114061503 | B183: Daniel Boone Area SD | C183: SD | D183: Berks | E183: 0 | F183: 0 | G183: 0 | H183: 0 | I183: 0 | J183: 0 | K183: 82 | L183: 79 | M183: 30 | N183: 200 | O183: 231 | P183: 226 | Q183: 238 | R183: 270 | S183: 258 | T183: 291 | U183: 262 | V183: 275 | W183: 291 | X183: 277 | Y183: 296 | Z183: 3306
A184: 116471803 | B184: Danville Area SD | C184: SD | D184: Montour | E184: 0 | F184: 0 | G184: 0 | H184: 0 | I184: 0 | J184: 0 | K184: 0 | L184: 0 | M184: 198 | N184: 185 | O184: 187 | P184: 174 | Q184: 170 | R184: 176 | S184: 174 | T184: 181 | U184: 186 | V184: 169 | W184: 175 | X184: 160 | Y184: 167 | Z184: 2302
A185: 116471111 | B185: Danville Ctr Adolescent Female | C185: SJCI | D185: Montour | E185: 0 | F185: 0 | G185: 0 | H185: 0 | I185: 0 | J185: 0 | K185: 0 | L185: 0 | M185: 0 | N185: 0 | O185: 0 | P185: 0 | Q185: 0 | R185: 0 | S185: 0 | T185: 1 | U185: 5 | V185: 10 | W185: 11 | X185: 11 | Y185: 7 | Z185: 45
A186: 115221607 | B186: Dauphin County Technical School | C186: COMCTC | D186: Dauphin | E186: 0 | F186: 0 | G186: 0 | H186: 0 | I186: 0 | J186: 0 | K186: 0 | L186: 0 | M186: 0 | N186: 0 | O186: 0 | P186: 0 | Q186: 0 | R186: 0 | S186: 0 | T186: 0 | U186: 0 | V186: 231 | W186: 263 | X186: 253 | Y186: 269 | Z186: 1016
A187: 126516724 | B187: Deep Roots Charter School | C187: CS | D187: Philadelphia | E187: 0 | F187: 0 | G187: 0 | H187: 0 | I187: 0 | J187: 0 | K187: 0 | L187: 0 | M187: 61 | N187: 59 | O187: 52 | P187: 51 | Q187: 58 | R187: 0 | S187: 0 | T187: 0 | U187: 0 | V187: 0 | W187: 0 | X187: 0 | Y187: 0 | Z187: 281
A188: 103022253 | B188: Deer Lakes SD | C188: SD | D188: Allegheny | E188: 0 | F188: 0 | G188: 0 | H188: 0 | I188: 0 | J188: 0 | K188: 0 | L188: 0 | M188: 129 | N188: 135 | O188: 132 | P188: 151 | Q188: 146 | R188: 170 | S188: 133 | T188: 167 | U188: 133 | V188: 166 | W188: 162 | X188: 124 | Y188: 143 | Z188: 1891
A189: 125000000 | B189: Delaware County IU 25 | C189: IU | D189: Delaware | E189: 0 | F189: 0 | G189: 0 | H189: 0 | I189: 0 | J189: 0 | K189: 0 | L189: 0 | M189: 7 | N189: 12 | O189: 15 | P189: 16 | Q189: 22 | R189: 16 | S189: 25 | T189: 23 | U189: 24 | V189: 23 | W189: 43 | X189: 58 | Y189: 87 | Z189: 371
A190: 125232407 | B190: Delaware County Technical High School | C190: OCCCTC | D190: Delaware | E190: 0 | F190: 0 | G190: 0 | H190: 0 | I190: 0 | J190: 0 | K190: 0 | L190: 0 | M190: 0 | N190: 0 | O190: 0 | P190: 0 | Q190: 0 | R190: 0 | S190: 0 | T190: 0 | U190: 0 | V190: 7 | W190: 114 | X190: 420 | Y190: 630 | Z190: 1171
A191: 120522003 | B191: Delaware Valley SD | C191: SD | D191: Pike | E191: 34 | F191: 16 | G191: 4 | H191: 0 | I191: 0 | J191: 0 | K191: 0 | L191: 0 | M191: 273 | N191: 301 | O191: 285 | P191: 300 | Q191: 348 | R191: 330 | S191: 359 | T191: 359 | U191: 343 | V191: 365 | W191: 410 | X191: 393 | Y191: 382 | Z191: 4502
A192: 107651603 | B192: Derry Area SD | C192: SD | D192: Westmoreland | E192: 0 | F192: 0 | G192: 0 | H192: 0 | I192: 0 | J192: 0 | K192: 0 | L192: 0 | M192: 147 | N192: 140 | O192: 146 | P192: 148 | Q192: 162 | R192: 163 | S192: 170 | T192: 155 | U192: 151 | V192: 153 | W192: 153 | X192: 142 | Y192: 155 | Z192: 1985
A193: 115221753 | B193: Derry Township SD | C193: SD | D193: Dauphin | E193: 0 | F193: 0 | G193: 0 | H193: 0 | I193: 0 | J193: 0 | K193: 9 | L193: 0 | M193: 221 | N193: 231 | O193: 233 | P193: 236 | Q193: 246 | R193: 261 | S193: 255 | T193: 286 | U193: 277 | V193: 300 | W193: 334 | X193: 309 | Y193: 294 | Z193: 3492
A194: 126510011 | B194: Discovery Charter School | C194: CS | D194: Philadelphia | E194: 0 | F194: 0 | G194: 0 | H194: 0 | I194: 0 | J194: 0 | K194: 0 | L194: 0 | M194: 26 | N194: 67 | O194: 58 | P194: 72 | Q194: 99 | R194: 107 | S194: 59 | T194: 63 | U194: 73 | V194: 0 | W194: 0 | X194: 0 | Y194: 0 | Z194: 624
A195: 113362203 | B195: Donegal SD | C195: SD | D195: Lancaster | E195: 0 | F195: 0 | G195: 0 | H195: 0 | I195: 0 | J195: 0 | K195: 126 | L195: 99 | M195: 6 | N195: 217 | O195: 223 | P195: 237 | Q195: 235 | R195: 256 | S195: 223 | T195: 229 | U195: 230 | V195: 272 | W195: 217 | X195: 227 | Y195: 229 | Z195: 3026
A196: 112671803 | B196: Dover Area SD | C196: SD | D196: York | E196: 0 | F196: 0 | G196: 0 | H196: 0 | I196: 0 | J196: 0 | K196: 0 | L196: 0 | M196: 262 | N196: 258 | O196: 259 | P196: 299 | Q196: 289 | R196: 298 | S196: 278 | T196: 275 | U196: 288 | V196: 306 | W196: 254 | X196: 217 | Y196: 233 | Z196: 3516
A197: 124152003 | B197: Downingtown Area SD | C197: SD | D197: Chester | E197: 0 | F197: 0 | G197: 0 | H197: 0 | I197: 0 | J197: 0 | K197: 370 | L197: 278 | M197: 98 | N197: 888 | O197: 913 | P197: 940 | Q197: 1007 | R197: 982 | S197: 1054 | T197: 1138 | U197: 1056 | V197: 1055 | W197: 1087 | X197: 1044 | Y197: 1028 | Z197: 12938
A198: 107653040 | B198: Dr Robert Ketterer CS Inc | C198: CS | D198: Westmoreland | E198: 0 | F198: 0 | G198: 0 | H198: 0 | I198: 0 | J198: 0 | K198: 0 | L198: 0 | M198: 0 | N198: 0 | O198: 0 | P198: 0 | Q198: 0 | R198: 0 | S198: 2 | T198: 10 | U198: 21 | V198: 38 | W198: 52 | X198: 33 | Y198: 44 | Z198: 200
A199: 106172003 | B199: Dubois Area SD | C199: SD | D199: Clearfield | E199: 0 | F199: 0 | G199: 0 | H199: 0 | I199: 0 | J199: 0 | K199: 0 | L199: 0 | M199: 262 | N199: 251 | O199: 258 | P199: 280 | Q199: 277 | R199: 296 | S199: 300 | T199: 269 | U199: 283 | V199: 259 | W199: 266 | X199: 254 | Y199: 245 | Z199: 3500
A200: 119352203 | B200: Dunmore SD | C200: SD | D200: Lackawanna | E200: 0 | F200: 0 | G200: 0 | H200: 0 | I200: 0 | J200: 0 | K200: 0 | L200: 0 | M200: 99 | N200: 113 | O200: 126 | P200: 86 | Q200: 110 | R200: 122 | S200: 121 | T200: 103 | U200: 115 | V200: 118 | W200: 121 | X200: 120 | Y200: 116 | Z200: 1470
A201: 103022503 | B201: Duquesne City SD | C201: SD | D201: Allegheny | E201: 0 | F201: 0 | G201: 33 | H201: 0 | I201: 0 | J201: 0 | K201: 0 | L201: 0 | M201: 57 | N201: 45 | O201: 46 | P201: 48 | Q201: 36 | R201: 36 | S201: 58 | T201: 0 | U201: 0 | V201: 0 | W201: 0 | X201: 0 | Y201: 0 | Z201: 359
A202: 103022803 | B202: East Allegheny SD | C202: SD | D202: Allegheny | E202: 0 | F202: 0 | G202: 0 | H202: 0 | I202: 0 | J202: 0 | K202: 0 | L202: 0 | M202: 98 | N202: 128 | O202: 108 | P202: 111 | Q202: 108 | R202: 125 | S202: 127 | T202: 124 | U202: 138 | V202: 134 | W202: 115 | X202: 122 | Y202: 108 | Z202: 1546
... 593 more rows

Sheet Enrollments LEA_17_18 (hidden)
A1: October 1 Enrollment by LEA
A3: Year: 2017-2018
A5: AUN | B5: LEA Name | C5: LEA Type | D5: County | E5: PKA | F5: PKP | G5: PKF | H5: K4A | I5: K4P | J5: K4F | K5: K5A | L5: K5P | M5: K5F | N5: 001 | O5: 002 | P5: 003 | Q5: 004 | R5: 005 | S5: 006 | T5: 007 | U5: 008 | V5: 009 | W5: 010 | X5: 011 | Y5: 012 | Z5: Total
A6: 124150002 | B6: 21st Century Cyber CS | C6: CS | D6: Chester | E6: 0 | F6: 0 | G6: 0 | H6: 0 | I6: 0 | J6: 0 | K6: 0 | L6: 0 | M6: 0 | N6: 0 | O6: 0 | P6: 0 | Q6: 0 | R6: 0 | S6: 59 | T6: 88 | U6: 155 | V6: 216 | W6: 196 | X6: 176 | Y6: 149 | Z6: 1039
A7: 103020407 | B7: A W Beattie Career Center | C7: OCCCTC | D7: Allegheny | E7: 0 | F7: 0 | G7: 0 | H7: 0 | I7: 0 | J7: 0 | K7: 0 | L7: 0 | M7: 0 | N7: 0 | O7: 0 | P7: 0 | Q7: 0 | R7: 0 | S7: 0 | T7: 0 | U7: 0 | V7: 0 | W7: 162 | X7: 304 | Y7: 283 | Z7: 749
A8: 126514368 | B8: ACT Academy Cyber CS | C8: CS | D8: Philadelphia | E8: 0 | F8: 0 | G8: 0 | H8: 0 | I8: 0 | J8: 0 | K8: 0 | L8: 0 | M8: 0 | N8: 0 | O8: 0 | P8: 0 | Q8: 0 | R8: 0 | S8: 0 | T8: 0 | U8: 0 | V8: 27 | W8: 28 | X8: 27 | Y8: 22 | Z8: 104
A9: 128000000 | B9: ARIN IU 28 | C9: IU | D9: Indiana | E9: 0 | F9: 0 | G9: 0 | H9: 0 | I9: 0 | J9: 0 | K9: 0 | L9: 0 | M9: 1 | N9: 3 | O9: 0 | P9: 3 | Q9: 2 | R9: 4 | S9: 2 | T9: 8 | U9: 3 | V9: 11 | W9: 3 | X9: 6 | Y9: 14 | Z9: 60
A10: 181519176 | B10: ASPIRA Bilingual Cyber Charter School | C10: CS | D10: Philadelphia | E10: 0 | F10: 0 | G10: 0 | H10: 0 | I10: 0 | J10: 0 | K10: 0 | L10: 0 | M10: 7 | N10: 10 | O10: 6 | P10: 11 | Q10: 12 | R10: 7 | S10: 28 | T10: 27 | U10: 25 | V10: 30 | W10: 29 | X10: 44 | Y10: 25 | Z10: 261
A11: 119350303 | B11: Abington Heights SD | C11: SD | D11: Lackawanna | E11: 0 | F11: 0 | G11: 0 | H11: 0 | I11: 0 | J11: 0 | K11: 106 | L11: 94 | M11: 0 | N11: 263 | O11: 251 | P11: 241 | Q11: 270 | R11: 264 | S11: 267 | T11: 308 | U11: 265 | V11: 275 | W11: 258 | X11: 255 | Y11: 271 | Z11: 3388
A12: 123460302 | B12: Abington SD | C12: SD | D12: Montgomery | E12: 0 | F12: 0 | G12: 0 | H12: 0 | I12: 0 | J12: 0 | K12: 0 | L12: 0 | M12: 598 | N12: 670 | O12: 596 | P12: 642 | Q12: 661 | R12: 637 | S12: 646 | T12: 649 | U12: 665 | V12: 614 | W12: 608 | X12: 576 | Y12: 597 | Z12: 8159
A13: 102020003 | B13: Academy CS | C13: CS | D13: Allegheny | E13: 0 | F13: 0 | G13: 0 | H13: 0 | I13: 0 | J13: 0 | K13: 0 | L13: 0 | M13: 0 | N13: 0 | O13: 0 | P13: 0 | Q13: 0 | R13: 0 | S13: 0 | T13: 0 | U13: 8 | V13: 21 | W13: 35 | X13: 23 | Y13: 17 | Z13: 104
A14: 125230001 | B14: Achievement House CS | C14: CS | D14: Chester | E14: 0 | F14: 0 | G14: 0 | H14: 0 | I14: 0 | J14: 0 | K14: 0 | L14: 0 | M14: 0 | N14: 0 | O14: 0 | P14: 0 | Q14: 0 | R14: 0 | S14: 0 | T14: 29 | U14: 37 | V14: 80 | W14: 77 | X14: 129 | Y14: 95 | Z14: 447
A15: 126510015 | B15: Ad Prima CS | C15: CS | D15: Philadelphia | E15: 0 | F15: 0 | G15: 0 | H15: 0 | I15: 0 | J15: 0 | K15: 0 | L15: 0 | M15: 35 | N15: 42 | O15: 85 | P15: 98 | Q15: 81 | R15: 79 | S15: 54 | T15: 59 | U15: 56 | V15: 0 | W15: 0 | X15: 0 | Y15: 0 | Z15: 589
A16: 108110307 | B16: Admiral Peary AVTS | C16: OCCCTC | D16: Cambria | E16: 0 | F16: 0 | G16: 0 | H16: 0 | I16: 0 | J16: 0 | K16: 0 | L16: 0 | M16: 0 | N16: 0 | O16: 0 | P16: 0 | Q16: 0 | R16: 0 | S16: 0 | T16: 0 | U16: 0 | V16: 23 | W16: 130 | X16: 188 | Y16: 203 | Z16: 544
A17: 126510020 | B17: Agora Cyber CS | C17: CS | D17: Montgomery | E17: 0 | F17: 0 | G17: 0 | H17: 0 | I17: 0 | J17: 0 | K17: 0 | L17: 0 | M17: 147 | N17: 178 | O17: 181 | P17: 265 | Q17: 313 | R17: 342 | S17: 410 | T17: 476 | U17: 577 | V17: 852 | W17: 847 | X17: 741 | Y17: 700 | Z17: 6029
A18: 101260303 | B18: Albert Gallatin Area SD | C18: SD | D18: Fayette | E18: 0 | F18: 0 | G18: 0 | H18: 0 | I18: 0 | J18: 0 | K18: 0 | L18: 0 | M18: 248 | N18: 247 | O18: 238 | P18: 255 | Q18: 233 | R18: 227 | S18: 261 | T18: 276 | U18: 240 | V18: 276 | W18: 271 | X18: 271 | Y18: 255 | Z18: 3298
A19: 127040503 | B19: Aliquippa SD | C19: SD | D19: Beaver | E19: 0 | F19: 0 | G19: 0 | H19: 0 | I19: 0 | J19: 0 | K19: 0 | L19: 0 | M19: 99 | N19: 78 | O19: 102 | P19: 78 | Q19: 86 | R19: 83 | S19: 70 | T19: 89 | U19: 72 | V19: 84 | W19: 68 | X19: 76 | Y19: 66 | Z19: 1051
A20: 103000000 | B20: Allegheny IU 3 | C20: IU | D20: Allegheny | E20: 0 | F20: 0 | G20: 0 | H20: 0 | I20: 0 | J20: 0 | K20: 0 | L20: 81 | M20: 17 | N20: 13 | O20: 10 | P20: 16 | Q20: 13 | R20: 20 | S20: 22 | T20: 26 | U20: 33 | V20: 62 | W20: 47 | X20: 45 | Y20: 110 | Z20: 515
A21: 103020603 | B21: Allegheny Valley SD | C21: SD | D21: Allegheny | E21: 0 | F21: 0 | G21: 0 | H21: 0 | I21: 0 | J21: 0 | K21: 0 | L21: 0 | M21: 63 | N21: 76 | O21: 68 | P21: 62 | Q21: 76 | R21: 73 | S21: 75 | T21: 62 | U21: 76 | V21: 74 | W21: 64 | X21: 66 | Y21: 92 | Z21: 927
A22: 106160303 | B22: Allegheny-Clarion Valley SD | C22: SD | D22: Clarion | E22: 0 | F22: 0 | G22: 0 | H22: 0 | I22: 0 | J22: 0 | K22: 0 | L22: 0 | M22: 54 | N22: 51 | O22: 54 | P22: 67 | Q22: 44 | R22: 47 | S22: 62 | T22: 40 | U22: 50 | V22: 56 | W22: 56 | X22: 62 | Y22: 58 | Z22: 701
A23: 121390302 | B23: Allentown City SD | C23: SD | D23: Lehigh | E23: 0 | F23: 0 | G23: 0 | H23: 0 | I23: 0 | J23: 0 | K23: 0 | L23: 0 | M23: 1207 | N23: 1280 | O23: 1290 | P23: 1306 | Q23: 1318 | R23: 1331 | S23: 1123 | T23: 1126 | U23: 1110 | V23: 1669 | W23: 1252 | X23: 1140 | Y23: 1082 | Z23: 16234
A24: 126512990 | B24: Alliance for Progress CS | C24: CS | D24: Philadelphia | E24: 0 | F24: 0 | G24: 0 | H24: 0 | I24: 0 | J24: 0 | K24: 0 | L24: 0 | M24: 70 | N24: 54 | O24: 52 | P24: 49 | Q24: 51 | R24: 45 | S24: 51 | T24: 45 | U24: 51 | V24: 0 | W24: 0 | X24: 0 | Y24: 0 | Z24: 468
A25: 108070502 | B25: Altoona Area SD | C25: SD | D25: Blair | E25: 0 | F25: 0 | G25: 0 | H25: 0 | I25: 0 | J25: 0 | K25: 0 | L25: 0 | M25: 575 | N25: 601 | O25: 560 | P25: 626 | Q25: 621 | R25: 560 | S25: 596 | T25: 585 | U25: 586 | V25: 592 | W25: 621 | X25: 528 | Y25: 555 | Z25: 7606
A26: 127040703 | B26: Ambridge Area SD | C26: SD | D26: Beaver | E26: 0 | F26: 0 | G26: 63 | H26: 0 | I26: 0 | J26: 0 | K26: 0 | L26: 0 | M26: 146 | N26: 156 | O26: 170 | P26: 155 | Q26: 176 | R26: 174 | S26: 176 | T26: 204 | U26: 174 | V26: 196 | W26: 209 | X26: 197 | Y26: 175 | Z26: 2371
A27: 113380303 | B27: Annville-Cleona SD | C27: SD | D27: Lebanon | E27: 0 | F27: 0 | G27: 0 | H27: 0 | I27: 0 | J27: 0 | K27: 41 | L27: 51 | M27: 7 | N27: 96 | O27: 97 | P27: 104 | Q27: 116 | R27: 116 | S27: 101 | T27: 138 | U27: 114 | V27: 110 | W27: 115 | X27: 122 | Y27: 122 | Z27: 1450
A28: 114060503 | B28: Antietam SD | C28: SD | D28: Berks | E28: 0 | F28: 0 | G28: 0 | H28: 0 | I28: 0 | J28: 0 | K28: 0 | L28: 0 | M28: 99 | N28: 86 | O28: 91 | P28: 85 | Q28: 107 | R28: 93 | S28: 86 | T28: 92 | U28: 96 | V28: 72 | W28: 76 | X28: 69 | Y28: 92 | Z28: 1144
A29: 104510394 | B29: Antonia Pantoja Community Charter School | C29: CS | D29: Philadelphia | E29: 0 | F29: 0 | G29: 0 | H29: 0 | I29: 0 | J29: 0 | K29: 0 | L29: 0 | M29: 103 | N29: 70 | O29: 97 | P29: 85 | Q29: 70 | R29: 63 | S29: 70 | T29: 77 | U29: 62 | V29: 0 | W29: 0 | X29: 0 | Y29: 0 | Z29: 697
A30: 128030603 | B30: Apollo-Ridge SD | C30: SD | D30: Armstrong | E30: 0 | F30: 0 | G30: 0 | H30: 0 | I30: 0 | J30: 0 | K30: 0 | L30: 0 | M30: 80 | N30: 87 | O30: 84 | P30: 88 | Q30: 96 | R30: 89 | S30: 99 | T30: 80 | U30: 104 | V30: 114 | W30: 102 | X30: 84 | Y30: 84 | Z30: 1191
A31: 108000000 | B31: Appalachia IU 8 | C31: IU | D31: Blair | E31: 0 | F31: 0 | G31: 0 | H31: 0 | I31: 0 | J31: 0 | K31: 0 | L31: 0 | M31: 5 | N31: 5 | O31: 7 | P31: 12 | Q31: 9 | R31: 11 | S31: 12 | T31: 13 | U31: 17 | V31: 16 | W31: 12 | X31: 19 | Y31: 44 | Z31: 182
A32: 128030852 | B32: Armstrong SD | C32: SD | D32: Armstrong | E32: 0 | F32: 0 | G32: 0 | H32: 0 | I32: 0 | J32: 0 | K32: 0 | L32: 0 | M32: 379 | N32: 411 | O32: 412 | P32: 368 | Q32: 405 | R32: 438 | S32: 437 | T32: 399 | U32: 412 | V32: 423 | W32: 413 | X32: 304 | Y32: 283 | Z32: 5084
A33: 121395927 | B33: Arts Academy CS | C33: CS | D33: Lehigh | E33: 0 | F33: 0 | G33: 0 | H33: 0 | I33: 0 | J33: 0 | K33: 0 | L33: 0 | M33: 0 | N33: 0 | O33: 0 | P33: 0 | Q33: 0 | R33: 41 | S33: 109 | T33: 106 | U33: 107 | V33: 0 | W33: 0 | X33: 0 | Y33: 0 | Z33: 363
A34: 121399898 | B34: Arts Academy Elementary Charter School | C34: CS | D34: Lehigh | E34: 0 | F34: 0 | G34: 0 | H34: 0 | I34: 0 | J34: 0 | K34: 0 | L34: 0 | M34: 63 | N34: 66 | O34: 72 | P34: 80 | Q34: 74 | R34: 55 | S34: 0 | T34: 0 | U34: 0 | V34: 0 | W34: 0 | X34: 0 | Y34: 0 | Z34: 410
A35: 117080503 | B35: Athens Area SD | C35: SD | D35: Bradford | E35: 0 | F35: 0 | G35: 0 | H35: 0 | I35: 0 | J35: 0 | K35: 0 | L35: 0 | M35: 158 | N35: 154 | O35: 128 | P35: 153 | Q35: 161 | R35: 179 | S35: 162 | T35: 162 | U35: 180 | V35: 156 | W35: 149 | X35: 136 | Y35: 166 | Z35: 2044
A36: 109530304 | B36: Austin Area SD | C36: SD | D36: Potter | E36: 0 | F36: 0 | G36: 0 | H36: 0 | I36: 0 | J36: 18 | K36: 0 | L36: 0 | M36: 9 | N36: 9 | O36: 15 | P36: 11 | Q36: 13 | R36: 17 | S36: 12 | T36: 12 | U36: 11 | V36: 12 | W36: 14 | X36: 17 | Y36: 13 | Z36: 183
A37: 101630504 | B37: Avella Area SD | C37: SD | D37: Washington | E37: 0 | F37: 0 | G37: 0 | H37: 0 | I37: 0 | J37: 0 | K37: 0 | L37: 0 | M37: 36 | N37: 40 | O37: 48 | P37: 32 | Q37: 40 | R37: 34 | S37: 52 | T37: 45 | U37: 47 | V37: 50 | W37: 37 | X37: 47 | Y37: 35 | Z37: 543
A38: 124150003 | B38: Avon Grove CS | C38: CS | D38: Chester | E38: 0 | F38: 0 | G38: 0 | H38: 0 | I38: 0 | J38: 0 | K38: 0 | L38: 0 | M38: 167 | N38: 169 | O38: 177 | P38: 167 | Q38: 135 | R38: 143 | S38: 144 | T38: 141 | U38: 139 | V38: 99 | W38: 94 | X38: 79 | Y38: 69 | Z38: 1723
A39: 124150503 | B39: Avon Grove SD | C39: SD | D39: Chester | E39: 0 | F39: 0 | G39: 0 | H39: 0 | I39: 0 | J39: 0 | K39: 0 | L39: 0 | M39: 295 | N39: 266 | O39: 316 | P39: 360 | Q39: 373 | R39: 381 | S39: 390 | T39: 408 | U39: 411 | V39: 424 | W39: 436 | X39: 449 | Y39: 429 | Z39: 4938
A40: 103020753 | B40: Avonworth SD | C40: SD | D40: Allegheny | E40: 0 | F40: 0 | G40: 0 | H40: 0 | I40: 0 | J40: 0 | K40: 0 | L40: 0 | M40: 136 | N40: 133 | O40: 154 | P40: 134 | Q40: 137 | R40: 125 | S40: 152 | T40: 118 | U40: 125 | V40: 126 | W40: 115 | X40: 127 | Y40: 103 | Z40: 1685
A41: 117000000 | B41: BLaST IU 17 | C41: IU | D41: Lycoming | E41: 0 | F41: 0 | G41: 0 | H41: 0 | I41: 0 | J41: 0 | K41: 0 | L41: 0 | M41: 18 | N41: 18 | O41: 19 | P41: 25 | Q41: 25 | R41: 29 | S41: 19 | T41: 25 | U41: 37 | V41: 26 | W41: 32 | X41: 30 | Y41: 17 | Z41: 320
A42: 127046517 | B42: Baden Academy CS | C42: CS | D42: Beaver | E42: 0 | F42: 0 | G42: 0 | H42: 0 | I42: 0 | J42: 0 | K42: 0 | L42: 0 | M42: 89 | N42: 87 | O42: 87 | P42: 88 | Q42: 88 | R42: 86 | S42: 42 | T42: 0 | U42: 0 | V42: 0 | W42: 0 | X42: 0 | Y42: 0 | Z42: 567
A43: 110141003 | B43: Bald Eagle Area SD | C43: SD | D43: Centre | E43: 0 | F43: 0 | G43: 0 | H43: 0 | I43: 0 | J43: 0 | K43: 0 | L43: 0 | M43: 111 | N43: 104 | O43: 114 | P43: 106 | Q43: 125 | R43: 117 | S43: 133 | T43: 115 | U43: 130 | V43: 133 | W43: 130 | X43: 144 | Y43: 151 | Z43: 1613
A44: 103021102 | B44: Baldwin-Whitehall SD | C44: SD | D44: Allegheny | E44: 0 | F44: 0 | G44: 0 | H44: 0 | I44: 0 | J44: 0 | K44: 0 | L44: 0 | M44: 332 | N44: 309 | O44: 328 | P44: 327 | Q44: 310 | R44: 286 | S44: 325 | T44: 318 | U44: 336 | V44: 361 | W44: 370 | X44: 328 | Y44: 355 | Z44: 4285
A45: 120480803 | B45: Bangor Area SD | C45: SD | D45: Northampton | E45: 0 | F45: 0 | G45: 0 | H45: 0 | I45: 0 | J45: 0 | K45: 0 | L45: 0 | M45: 199 | N45: 205 | O45: 208 | P45: 207 | Q45: 225 | R45: 248 | S45: 223 | T45: 220 | U45: 258 | V45: 257 | W45: 241 | X45: 248 | Y45: 229 | Z45: 2968
A46: 118400001 | B46: Bear Creek Community CS | C46: CS | D46: Luzerne | E46: 0 | F46: 0 | G46: 0 | H46: 0 | I46: 0 | J46: 0 | K46: 0 | L46: 0 | M46: 52 | N46: 52 | O46: 52 | P46: 52 | Q46: 52 | R46: 52 | S46: 52 | T46: 52 | U46: 52 | V46: 0 | W46: 0 | X46: 0 | Y46: 0 | Z46: 468
A47: 127041203 | B47: Beaver Area SD | C47: SD | D47: Beaver | E47: 0 | F47: 0 | G47: 0 | H47: 0 | I47: 0 | J47: 0 | K47: 0 | L47: 0 | M47: 119 | N47: 139 | O47: 168 | P47: 117 | Q47: 145 | R47: 140 | S47: 154 | T47: 162 | U47: 176 | V47: 172 | W47: 144 | X47: 180 | Y47: 176 | Z47: 1992
A48: 127041307 | B48: Beaver County CTC | C48: OCCCTC | D48: Beaver | E48: 0 | F48: 0 | G48: 0 | H48: 0 | I48: 0 | J48: 0 | K48: 0 | L48: 0 | M48: 0 | N48: 0 | O48: 0 | P48: 0 | Q48: 0 | R48: 0 | S48: 0 | T48: 0 | U48: 0 | V48: 1 | W48: 58 | X48: 269 | Y48: 264 | Z48: 592
A49: 127000000 | B49: Beaver Valley IU 27 | C49: IU | D49: Beaver | E49: 0 | F49: 0 | G49: 0 | H49: 0 | I49: 0 | J49: 0 | K49: 29 | L49: 0 | M49: 3 | N49: 8 | O49: 4 | P49: 4 | Q49: 9 | R49: 5 | S49: 6 | T49: 11 | U49: 9 | V49: 7 | W49: 4 | X49: 15 | Y49: 34 | Z49: 148
A50: 108051003 | B50: Bedford Area SD | C50: SD | D50: Bedford | E50: 0 | F50: 0 | G50: 0 | H50: 0 | I50: 0 | J50: 0 | K50: 0 | L50: 0 | M50: 111 | N50: 129 | O50: 120 | P50: 112 | Q50: 119 | R50: 144 | S50: 149 | T50: 148 | U50: 136 | V50: 140 | W50: 158 | X50: 151 | Y50: 150 | Z50: 1767
A51: 108051307 | B51: Bedford County Technical Center | C51: OCCCTC | D51: Bedford | E51: 0 | F51: 0 | G51: 0 | H51: 0 | I51: 0 | J51: 0 | K51: 0 | L51: 0 | M51: 0 | N51: 0 | O51: 0 | P51: 0 | Q51: 0 | R51: 0 | S51: 0 | T51: 0 | U51: 0 | V51: 0 | W51: 165 | X51: 124 | Y51: 99 | Z51: 388
A52: 107650603 | B52: Belle Vernon Area SD | C52: SD | D52: Westmoreland | E52: 0 | F52: 0 | G52: 0 | H52: 0 | I52: 0 | J52: 0 | K52: 0 | L52: 0 | M52: 195 | N52: 183 | O52: 179 | P52: 167 | Q52: 164 | R52: 194 | S52: 194 | T52: 166 | U52: 213 | V52: 211 | W52: 184 | X52: 199 | Y52: 182 | Z52: 2431
A53: 110141103 | B53: Bellefonte Area SD | C53: SD | D53: Centre | E53: 0 | F53: 0 | G53: 0 | H53: 0 | I53: 0 | J53: 0 | K53: 0 | L53: 0 | M53: 235 | N53: 179 | O53: 197 | P53: 191 | Q53: 178 | R53: 215 | S53: 202 | T53: 215 | U53: 232 | V53: 231 | W53: 197 | X53: 215 | Y53: 206 | Z53: 2693
A54: 108071003 | B54: Bellwood-Antis SD | C54: SD | D54: Blair | E54: 0 | F54: 0 | G54: 0 | H54: 0 | I54: 0 | J54: 0 | K54: 0 | L54: 0 | M54: 81 | N54: 101 | O54: 98 | P54: 98 | Q54: 98 | R54: 114 | S54: 96 | T54: 106 | U54: 87 | V54: 104 | W54: 100 | X54: 97 | Y54: 90 | Z54: 1270
A55: 126510010 | B55: Belmont Charter School | C55: CS | D55: Philadelphia | E55: 0 | F55: 0 | G55: 0 | H55: 0 | I55: 0 | J55: 0 | K55: 0 | L55: 0 | M55: 92 | N55: 79 | O55: 84 | P55: 63 | Q55: 79 | R55: 92 | S55: 72 | T55: 47 | U55: 58 | V55: 77 | W55: 0 | X55: 0 | Y55: 0 | Z55: 743
A56: 122091002 | B56: Bensalem Township SD | C56: SD | D56: Bucks | E56: 0 | F56: 0 | G56: 0 | H56: 0 | I56: 0 | J56: 0 | K56: 0 | L56: 0 | M56: 447 | N56: 471 | O56: 474 | P56: 540 | Q56: 530 | R56: 505 | S56: 497 | T56: 509 | U56: 507 | V56: 458 | W56: 474 | X56: 513 | Y56: 506 | Z56: 6431
A57: 116191004 | B57: Benton Area SD | C57: SD | D57: Columbia | E57: 0 | F57: 0 | G57: 0 | H57: 0 | I57: 0 | J57: 0 | K57: 0 | L57: 0 | M57: 59 | N57: 60 | O57: 52 | P57: 49 | Q57: 64 | R57: 47 | S57: 58 | T57: 43 | U57: 61 | V57: 39 | W57: 56 | X57: 39 | Y57: 41 | Z57: 668
A58: 101630903 | B58: Bentworth SD | C58: SD | D58: Washington | E58: 0 | F58: 0 | G58: 0 | H58: 0 | I58: 0 | J58: 0 | K58: 0 | L58: 0 | M58: 84 | N58: 78 | O58: 83 | P58: 96 | Q58: 91 | R58: 84 | S58: 96 | T58: 92 | U58: 85 | V58: 84 | W58: 87 | X58: 93 | Y58: 85 | Z58: 1138
A59: 114060557 | B59: Berks CTC | C59: OCCCTC | D59: Berks | E59: 0 | F59: 0 | G59: 0 | H59: 0 | I59: 0 | J59: 0 | K59: 0 | L59: 0 | M59: 0 | N59: 0 | O59: 0 | P59: 0 | Q59: 0 | R59: 0 | S59: 0 | T59: 0 | U59: 0 | V59: 48 | W59: 487 | X59: 537 | Y59: 593 | Z59: 1665
A60: 114000000 | B60: Berks County IU 14 | C60: IU | D60: Berks | E60: 0 | F60: 0 | G60: 0 | H60: 0 | I60: 0 | J60: 0 | K60: 0 | L60: 0 | M60: 0 | N60: 0 | O60: 0 | P60: 0 | Q60: 4 | R60: 3 | S60: 1 | T60: 3 | U60: 7 | V60: 8 | W60: 23 | X60: 17 | Y60: 45 | Z60: 111
A61: 108561003 | B61: Berlin Brothersvalley SD | C61: SD | D61: Somerset | E61: 0 | F61: 0 | G61: 0 | H61: 0 | I61: 0 | J61: 0 | K61: 0 | L61: 0 | M61: 53 | N61: 41 | O61: 60 | P61: 63 | Q61: 53 | R61: 47 | S61: 50 | T61: 48 | U61: 54 | V61: 75 | W61: 41 | X61: 55 | Y61: 70 | Z61: 710
A62: 112011103 | B62: Bermudian Springs SD | C62: SD | D62: Adams | E62: 0 | F62: 0 | G62: 0 | H62: 0 | I62: 0 | J62: 0 | K62: 0 | L62: 0 | M62: 141 | N62: 141 | O62: 143 | P62: 126 | Q62: 147 | R62: 149 | S62: 173 | T62: 137 | U62: 172 | V62: 160 | W62: 143 | X62: 165 | Y62: 148 | Z62: 1945
A63: 116191103 | B63: Berwick Area SD | C63: SD | D63: Columbia | E63: 0 | F63: 0 | G63: 32 | H63: 0 | I63: 0 | J63: 0 | K63: 0 | L63: 0 | M63: 203 | N63: 217 | O63: 210 | P63: 210 | Q63: 240 | R63: 239 | S63: 253 | T63: 231 | U63: 230 | V63: 207 | W63: 183 | X63: 181 | Y63: 180 | Z63: 2816
A64: 103021252 | B64: Bethel Park SD | C64: SD | D64: Allegheny | E64: 0 | F64: 0 | G64: 0 | H64: 0 | I64: 0 | J64: 0 | K64: 168 | L64: 100 | M64: 0 | N64: 291 | O64: 241 | P64: 267 | Q64: 318 | R64: 280 | S64: 349 | T64: 341 | U64: 298 | V64: 376 | W64: 349 | X64: 355 | Y64: 417 | Z64: 4150
A65: 120481107 | B65: Bethlehem AVTS | C65: OCCCTC | D65: Northampton | E65: 0 | F65: 0 | G65: 0 | H65: 0 | I65: 0 | J65: 0 | K65: 0 | L65: 0 | M65: 0 | N65: 0 | O65: 0 | P65: 0 | Q65: 0 | R65: 0 | S65: 0 | T65: 0 | U65: 0 | V65: 0 | W65: 416 | X65: 478 | Y65: 489 | Z65: 1383
A66: 120481002 | B66: Bethlehem Area SD | C66: SD | D66: Northampton | E66: 0 | F66: 0 | G66: 79 | H66: 0 | I66: 0 | J66: 0 | K66: 0 | L66: 0 | M66: 908 | N66: 969 | O66: 929 | P66: 976 | Q66: 944 | R66: 1029 | S66: 1012 | T66: 1043 | U66: 1081 | V66: 1242 | W66: 1136 | X66: 1135 | Y66: 1153 | Z66: 13636
A67: 101631003 | B67: Bethlehem-Center SD | C67: SD | D67: Washington | E67: 0 | F67: 0 | G67: 0 | H67: 0 | I67: 0 | J67: 0 | K67: 0 | L67: 0 | M67: 82 | N67: 76 | O67: 94 | P67: 82 | Q67: 90 | R67: 82 | S67: 81 | T67: 80 | U67: 104 | V67: 89 | W67: 115 | X67: 111 | Y67: 78 | Z67: 1164
A68: 127041503 | B68: Big Beaver Falls Area SD | C68: SD | D68: Beaver | E68: 0 | F68: 0 | G68: 36 | H68: 0 | I68: 0 | J68: 0 | K68: 0 | L68: 0 | M68: 143 | N68: 168 | O68: 149 | P68: 139 | Q68: 131 | R68: 122 | S68: 122 | T68: 120 | U68: 116 | V68: 125 | W68: 126 | X68: 121 | Y68: 86 | Z68: 1704
A69: 115210503 | B69: Big Spring SD | C69: SD | D69: Cumberland | E69: 0 | F69: 0 | G69: 0 | H69: 0 | I69: 0 | J69: 0 | K69: 0 | L69: 0 | M69: 172 | N69: 181 | O69: 185 | P69: 219 | Q69: 175 | R69: 196 | S69: 191 | T69: 181 | U69: 217 | V69: 188 | W69: 210 | X69: 210 | Y69: 218 | Z69: 2543
A70: 127041603 | B70: Blackhawk SD | C70: SD | D70: Beaver | E70: 0 | F70: 0 | G70: 0 | H70: 0 | I70: 0 | J70: 0 | K70: 0 | L70: 0 | M70: 168 | N70: 164 | O70: 153 | P70: 181 | Q70: 190 | R70: 210 | S70: 181 | T70: 173 | U70: 181 | V70: 191 | W70: 192 | X70: 160 | Y70: 220 | Z70: 2364
A71: 108110603 | B71: Blacklick Valley SD | C71: SD | D71: Cambria | E71: 12 | F71: 10 | G71: 0 | H71: 0 | I71: 0 | J71: 0 | K71: 0 | L71: 0 | M71: 48 | N71: 48 | O71: 34 | P71: 52 | Q71: 53 | R71: 61 | S71: 62 | T71: 63 | U71: 50 | V71: 37 | W71: 50 | X71: 42 | Y71: 49 | Z71: 671
A72: 128321103 | B72: Blairsville-Saltsburg SD | C72: SD | D72: Indiana | E72: 0 | F72: 0 | G72: 40 | H72: 0 | I72: 0 | J72: 0 | K72: 0 | L72: 0 | M72: 122 | N72: 111 | O72: 119 | P72: 100 | Q72: 125 | R72: 118 | S72: 116 | T72: 123 | U72: 109 | V72: 129 | W72: 108 | X72: 117 | Y72: 121 | Z72: 1558
A73: 116191203 | B73: Bloomsburg Area SD | C73: SD | D73: Columbia | E73: 0 | F73: 0 | G73: 0 | H73: 0 | I73: 0 | J73: 0 | K73: 0 | L73: 0 | M73: 117 | N73: 133 | O73: 110 | P73: 110 | Q73: 115 | R73: 122 | S73: 128 | T73: 130 | U73: 130 | V73: 121 | W73: 96 | X73: 79 | Y73: 116 | Z73: 1507
A74: 129540803 | B74: Blue Mountain SD | C74: SD | D74: Schuylkill | E74: 0 | F74: 0 | G74: 0 | H74: 0 | I74: 0 | J74: 0 | K74: 0 | L74: 0 | M74: 176 | N74: 168 | O74: 166 | P74: 191 | Q74: 206 | R74: 176 | S74: 232 | T74: 207 | U74: 221 | V74: 243 | W74: 201 | X74: 225 | Y74: 232 | Z74: 2644
A75: 119581003 | B75: Blue Ridge SD | C75: SD | D75: Susquehanna | E75: 0 | F75: 0 | G75: 0 | H75: 30 | I75: 30 | J75: 0 | K75: 0 | L75: 0 | M75: 72 | N75: 65 | O75: 78 | P75: 86 | Q75: 71 | R75: 71 | S75: 84 | T75: 70 | U75: 65 | V75: 75 | W75: 66 | X75: 62 | Y75: 70 | Z75: 995
A76: 114060753 | B76: Boyertown Area SD | C76: SD | D76: Berks | E76: 0 | F76: 0 | G76: 0 | H76: 0 | I76: 0 | J76: 0 | K76: 211 | L76: 242 | M76: 0 | N76: 484 | O76: 465 | P76: 537 | Q76: 546 | R76: 526 | S76: 588 | T76: 559 | U76: 558 | V76: 582 | W76: 531 | X76: 503 | Y76: 546 | Z76: 6878
A77: 185515523 | B77: Boys Latin of Philadelphia CS | C77: CS | D77: Philadelphia | E77: 0 | F77: 0 | G77: 0 | H77: 0 | I77: 0 | J77: 0 | K77: 0 | L77: 0 | M77: 0 | N77: 0 | O77: 0 | P77: 0 | Q77: 0 | R77: 0 | S77: 129 | T77: 128 | U77: 113 | V77: 172 | W77: 110 | X77: 82 | Y77: 92 | Z77: 826
A78: 109420803 | B78: Bradford Area SD | C78: SD | D78: McKean | E78: 0 | F78: 0 | G78: 120 | H78: 0 | I78: 0 | J78: 0 | K78: 0 | L78: 0 | M78: 170 | N78: 176 | O78: 181 | P78: 196 | Q78: 209 | R78: 171 | S78: 198 | T78: 192 | U78: 170 | V78: 191 | W78: 201 | X78: 198 | Y78: 180 | Z78: 2553
A79: 114060853 | B79: Brandywine Heights Area SD | C79: SD | D79: Berks | E79: 0 | F79: 0 | G79: 0 | H79: 0 | I79: 0 | J79: 0 | K79: 0 | L79: 0 | M79: 84 | N79: 101 | O79: 105 | P79: 103 | Q79: 81 | R79: 114 | S79: 107 | T79: 118 | U79: 124 | V79: 101 | W79: 121 | X79: 120 | Y79: 114 | Z79: 1393
A80: 103021453 | B80: Brentwood Borough SD | C80: SD | D80: Allegheny | E80: 0 | F80: 0 | G80: 0 | H80: 0 | I80: 0 | J80: 0 | K80: 0 | L80: 0 | M80: 89 | N80: 91 | O80: 100 | P80: 97 | Q80: 79 | R80: 82 | S80: 98 | T80: 102 | U80: 93 | V80: 94 | W80: 92 | X80: 76 | Y80: 108 | Z80: 1201
A81: 122091303 | B81: Bristol Borough SD | C81: SD | D81: Bucks | E81: 0 | F81: 0 | G81: 0 | H81: 0 | I81: 0 | J81: 0 | K81: 0 | L81: 0 | M81: 89 | N81: 101 | O81: 114 | P81: 101 | Q81: 111 | R81: 117 | S81: 126 | T81: 119 | U81: 105 | V81: 81 | W81: 66 | X81: 61 | Y81: 72 | Z81: 1263
A82: 122091352 | B82: Bristol Township SD | C82: SD | D82: Bucks | E82: 0 | F82: 0 | G82: 0 | H82: 0 | I82: 0 | J82: 0 | K82: 0 | L82: 0 | M82: 517 | N82: 528 | O82: 516 | P82: 563 | Q82: 566 | R82: 560 | S82: 539 | T82: 502 | U82: 534 | V82: 466 | W82: 382 | X82: 357 | Y82: 390 | Z82: 6420
A83: 106330703 | B83: Brockway Area SD | C83: SD | D83: Jefferson | E83: 0 | F83: 0 | G83: 0 | H83: 0 | I83: 0 | J83: 0 | K83: 0 | L83: 0 | M83: 83 | N83: 63 | O83: 79 | P83: 75 | Q83: 89 | R83: 77 | S83: 72 | T83: 74 | U83: 86 | V83: 74 | W83: 71 | X83: 63 | Y83: 65 | Z83: 971
A84: 106330803 | B84: Brookville Area SD | C84: SD | D84: Jefferson | E84: 0 | F84: 0 | G84: 0 | H84: 0 | I84: 0 | J84: 0 | K84: 0 | L84: 0 | M84: 121 | N84: 113 | O84: 116 | P84: 90 | Q84: 135 | R84: 122 | S84: 105 | T84: 135 | U84: 127 | V84: 104 | W84: 112 | X84: 122 | Y84: 83 | Z84: 1485
A85: 101260803 | B85: Brownsville Area SD | C85: SD | D85: Fayette | E85: 0 | F85: 0 | G85: 0 | H85: 0 | I85: 0 | J85: 0 | K85: 0 | L85: 0 | M85: 136 | N85: 108 | O85: 121 | P85: 125 | Q85: 116 | R85: 119 | S85: 107 | T85: 145 | U85: 130 | V85: 131 | W85: 119 | X85: 111 | Y85: 110 | Z85: 1578
A86: 122000000 | B86: Bucks County IU 22 | C86: IU | D86: Bucks | E86: 0 | F86: 0 | G86: 0 | H86: 0 | I86: 0 | J86: 0 | K86: 1 | L86: 0 | M86: 39 | N86: 40 | O86: 45 | P86: 40 | Q86: 74 | R86: 60 | S86: 36 | T86: 64 | U86: 50 | V86: 43 | W86: 35 | X86: 47 | Y86: 157 | Z86: 731
A87: 122093460 | B87: Bucks County Montessori CS | C87: CS | D87: Bucks | E87: 0 | F87: 0 | G87: 0 | H87: 0 | I87: 0 | J87: 0 | K87: 0 | L87: 0 | M87: 25 | N87: 29 | O87: 37 | P87: 28 | Q87: 30 | R87: 26 | S87: 20 | T87: 0 | U87: 0 | V87: 0 | W87: 0 | X87: 0 | Y87: 0 | Z87: 195
A88: 122091457 | B88: Bucks County Technical High School | C88: COMCTC | D88: Bucks | E88: 0 | F88: 0 | G88: 0 | H88: 0 | I88: 0 | J88: 0 | K88: 0 | L88: 0 | M88: 0 | N88: 0 | O88: 0 | P88: 0 | Q88: 0 | R88: 0 | S88: 0 | T88: 0 | U88: 0 | V88: 351 | W88: 370 | X88: 353 | Y88: 322 | Z88: 1396
A89: 101631203 | B89: Burgettstown Area SD | C89: SD | D89: Washington | E89: 0 | F89: 0 | G89: 0 | H89: 0 | I89: 0 | J89: 0 | K89: 0 | L89: 0 | M89: 76 | N89: 96 | O89: 85 | P89: 68 | Q89: 82 | R89: 87 | S89: 85 | T89: 94 | U89: 81 | V89: 82 | W89: 96 | X89: 76 | Y89: 107 | Z89: 1115
A90: 107650703 | B90: Burrell SD | C90: SD | D90: Westmoreland | E90: 0 | F90: 0 | G90: 0 | H90: 0 | I90: 0 | J90: 0 | K90: 0 | L90: 0 | M90: 116 | N90: 150 | O90: 130 | P90: 124 | Q90: 138 | R90: 133 | S90: 155 | T90: 146 | U90: 142 | V90: 147 | W90: 159 | X90: 140 | Y90: 126 | Z90: 1806
A91: 104101252 | B91: Butler Area SD | C91: SD | D91: Butler | E91: 0 | F91: 0 | G91: 0 | H91: 0 | I91: 0 | J91: 0 | K91: 255 | L91: 168 | M91: 1 | N91: 401 | O91: 437 | P91: 479 | Q91: 518 | R91: 514 | S91: 489 | T91: 508 | U91: 527 | V91: 511 | W91: 527 | X91: 546 | Y91: 578 | Z91: 6459
A92: 104101307 | B92: Butler County AVTS | C92: OCCCTC | D92: Butler | E92: 0 | F92: 0 | G92: 0 | H92: 0 | I92: 0 | J92: 0 | K92: 0 | L92: 0 | M92: 0 | N92: 0 | O92: 0 | P92: 0 | Q92: 0 | R92: 0 | S92: 0 | T92: 0 | U92: 0 | V92: 0 | W92: 151 | X92: 393 | Y92: 374 | Z92: 918
A93: 119354207 | B93: CTC of Lackawanna County | C93: OCCCTC | D93: Lackawanna | E93: 0 | F93: 0 | G93: 0 | H93: 0 | I93: 0 | J93: 0 | K93: 0 | L93: 0 | M93: 0 | N93: 0 | O93: 0 | P93: 0 | Q93: 0 | R93: 0 | S93: 0 | T93: 0 | U93: 0 | V93: 0 | W93: 262 | X93: 211 | Y93: 170 | Z93: 643
A94: 101631503 | B94: California Area SD | C94: SD | D94: Washington | E94: 0 | F94: 0 | G94: 0 | H94: 0 | I94: 0 | J94: 0 | K94: 0 | L94: 0 | M94: 69 | N94: 69 | O94: 53 | P94: 73 | Q94: 75 | R94: 57 | S94: 62 | T94: 71 | U94: 72 | V94: 62 | W94: 81 | X94: 56 | Y94: 86 | Z94: 886
A95: 108111203 | B95: Cambria Heights SD | C95: SD | D95: Cambria | E95: 0 | F95: 0 | G95: 0 | H95: 0 | I95: 0 | J95: 0 | K95: 0 | L95: 0 | M95: 72 | N95: 94 | O95: 97 | P95: 106 | Q95: 93 | R95: 122 | S95: 101 | T95: 101 | U95: 96 | V95: 115 | W95: 110 | X95: 117 | Y95: 117 | Z95: 1341
A96: 109122703 | B96: Cameron County SD | C96: SD | D96: Cameron | E96: 0 | F96: 0 | G96: 0 | H96: 0 | I96: 0 | J96: 0 | K96: 0 | L96: 0 | M96: 52 | N96: 38 | O96: 32 | P96: 47 | Q96: 45 | R96: 43 | S96: 37 | T96: 29 | U96: 45 | V96: 39 | W96: 39 | X96: 49 | Y96: 57 | Z96: 552
A97: 115211003 | B97: Camp Hill SD | C97: SD | D97: Cumberland | E97: 0 | F97: 0 | G97: 0 | H97: 0 | I97: 0 | J97: 0 | K97: 36 | L97: 36 | M97: 0 | N97: 98 | O97: 84 | P97: 88 | Q97: 110 | R97: 117 | S97: 109 | T97: 104 | U97: 114 | V97: 115 | W97: 100 | X97: 88 | Y97: 98 | Z97: 1297
A98: 101631703 | B98: Canon-McMillan SD | C98: SD | D98: Washington | E98: 0 | F98: 0 | G98: 0 | H98: 0 | I98: 0 | J98: 0 | K98: 171 | L98: 153 | M98: 33 | N98: 433 | O98: 364 | P98: 412 | Q98: 429 | R98: 415 | S98: 410 | T98: 408 | U98: 434 | V98: 449 | W98: 396 | X98: 384 | Y98: 406 | Z98: 5297
A99: 117081003 | B99: Canton Area SD | C99: SD | D99: Bradford | E99: 0 | F99: 0 | G99: 0 | H99: 0 | I99: 0 | J99: 0 | K99: 0 | L99: 0 | M99: 71 | N99: 72 | O99: 56 | P99: 70 | Q99: 60 | R99: 74 | S99: 70 | T99: 91 | U99: 67 | V99: 69 | W99: 81 | X99: 56 | Y99: 73 | Z99: 910
A100: 115000000 | B100: Capital Area IU 15 | C100: IU | D100: Cumberland | E100: 0 | F100: 0 | G100: 0 | H100: 0 | I100: 0 | J100: 0 | K100: 0 | L100: 0 | M100: 8 | N100: 6 | O100: 19 | P100: 13 | Q100: 11 | R100: 10 | S100: 15 | T100: 14 | U100: 19 | V100: 31 | W100: 24 | X100: 21 | Y100: 42 | Z100: 233
A101: 115227010 | B101: Capital Area School for the Arts Charter | C101: CS | D101: Dauphin | E101: 0 | F101: 0 | G101: 0 | H101: 0 | I101: 0 | J101: 0 | K101: 0 | L101: 0 | M101: 0 | N101: 0 | O101: 0 | P101: 0 | Q101: 0 | R101: 0 | S101: 0 | T101: 0 | U101: 0 | V101: 41 | W101: 55 | X101: 52 | Y101: 51 | Z101: 199
A102: 121131507 | B102: Carbon Career & Technical Institute | C102: COMCTC | D102: Carbon | E102: 0 | F102: 0 | G102: 0 | H102: 0 | I102: 0 | J102: 0 | K102: 0 | L102: 0 | M102: 0 | N102: 0 | O102: 0 | P102: 0 | Q102: 0 | R102: 0 | S102: 0 | T102: 0 | U102: 0 | V102: 53 | W102: 130 | X102: 122 | Y102: 101 | Z102: 406
A103: 121000000 | B103: Carbon-Lehigh IU 21 | C103: IU | D103: Lehigh | E103: 0 | F103: 0 | G103: 0 | H103: 0 | I103: 0 | J103: 0 | K103: 34 | L103: 2 | M103: 13 | N103: 28 | O103: 30 | P103: 24 | Q103: 36 | R103: 40 | S103: 26 | T103: 36 | U103: 40 | V103: 45 | W103: 42 | X103: 57 | Y103: 97 | Z103: 550
A104: 119351303 | B104: Carbondale Area SD | C104: SD | D104: Lackawanna | E104: 0 | F104: 0 | G104: 40 | H104: 0 | I104: 0 | J104: 0 | K104: 0 | L104: 0 | M104: 110 | N104: 125 | O104: 122 | P104: 125 | Q104: 122 | R104: 131 | S104: 121 | T104: 123 | U104: 123 | V104: 117 | W104: 104 | X104: 104 | Y104: 121 | Z104: 1588
A105: 120483007 | B105: Career Institute of Technology | C105: OCCCTC | D105: Northampton | E105: 0 | F105: 0 | G105: 0 | H105: 0 | I105: 0 | J105: 0 | K105: 0 | L105: 0 | M105: 0 | N105: 0 | O105: 0 | P105: 0 | Q105: 0 | R105: 0 | S105: 0 | T105: 0 | U105: 0 | V105: 14 | W105: 210 | X105: 231 | Y105: 211 | Z105: 666
A106: 115211103 | B106: Carlisle Area SD | C106: SD | D106: Cumberland | E106: 0 | F106: 0 | G106: 0 | H106: 0 | I106: 0 | J106: 0 | K106: 14 | L106: 0 | M106: 345 | N106: 403 | O106: 368 | P106: 364 | Q106: 397 | R106: 399 | S106: 401 | T106: 417 | U106: 371 | V106: 401 | W106: 390 | X106: 379 | Y106: 388 | Z106: 5037
A107: 103021603 | B107: Carlynton SD | C107: SD | D107: Allegheny | E107: 0 | F107: 0 | G107: 0 | H107: 0 | I107: 0 | J107: 0 | K107: 0 | L107: 0 | M107: 101 | N107: 99 | O107: 125 | P107: 111 | Q107: 116 | R107: 98 | S107: 108 | T107: 105 | U107: 87 | V107: 98 | W107: 99 | X107: 102 | Y107: 102 | Z107: 1351
A108: 101301303 | B108: Carmichaels Area SD | C108: SD | D108: Greene | E108: 0 | F108: 0 | G108: 34 | H108: 0 | I108: 0 | J108: 0 | K108: 0 | L108: 0 | M108: 87 | N108: 86 | O108: 91 | P108: 79 | Q108: 74 | R108: 76 | S108: 75 | T108: 85 | U108: 70 | V108: 95 | W108: 97 | X108: 69 | Y108: 76 | Z108: 1094
A109: 121391303 | B109: Catasauqua Area SD | C109: SD | D109: Lehigh | E109: 0 | F109: 0 | G109: 0 | H109: 0 | I109: 0 | J109: 0 | K109: 58 | L109: 51 | M109: 0 | N109: 109 | O109: 107 | P109: 92 | Q109: 126 | R109: 123 | S109: 120 | T109: 124 | U109: 122 | V109: 116 | W109: 103 | X109: 115 | Y109: 139 | Z109: 1505
A110: 122092002 | B110: Centennial SD | C110: SD | D110: Bucks | E110: 0 | F110: 0 | G110: 0 | H110: 0 | I110: 0 | J110: 0 | K110: 0 | L110: 0 | M110: 373 | N110: 379 | O110: 384 | P110: 403 | Q110: 402 | R110: 436 | S110: 470 | T110: 417 | U110: 485 | V110: 431 | W110: 420 | X110: 465 | Y110: 431 | Z110: 5496
A111: 122090001 | B111: Center for Student Learning CS at Pennsb | C111: CS | D111: Bucks | E111: 0 | F111: 0 | G111: 0 | H111: 0 | I111: 0 | J111: 0 | K111: 0 | L111: 0 | M111: 0 | N111: 0 | O111: 0 | P111: 0 | Q111: 0 | R111: 0 | S111: 4 | T111: 5 | U111: 22 | V111: 17 | W111: 22 | X111: 36 | Y111: 37 | Z111: 143
A112: 122092102 | B112: Central Bucks SD | C112: SD | D112: Bucks | E112: 0 | F112: 0 | G112: 0 | H112: 0 | I112: 0 | J112: 0 | K112: 511 | L112: 345 | M112: 29 | N112: 1205 | O112: 1217 | P112: 1256 | Q112: 1376 | R112: 1426 | S112: 1451 | T112: 1503 | U112: 1583 | V112: 1557 | W112: 1549 | X112: 1631 | Y112: 1618 | Z112: 18257
A113: 108111303 | B113: Central Cambria SD | C113: SD | D113: Cambria | E113: 0 | F113: 0 | G113: 0 | H113: 0 | I113: 0 | J113: 0 | K113: 0 | L113: 0 | M113: 109 | N113: 109 | O113: 128 | P113: 126 | Q113: 112 | R113: 115 | S113: 127 | T113: 139 | U113: 148 | V113: 114 | W113: 141 | X113: 134 | Y113: 145 | Z113: 1647
A114: 116191503 | B114: Central Columbia SD | C114: SD | D114: Columbia | E114: 0 | F114: 0 | G114: 0 | H114: 0 | I114: 0 | J114: 0 | K114: 0 | L114: 0 | M114: 121 | N114: 128 | O114: 151 | P114: 136 | Q114: 141 | R114: 155 | S114: 154 | T114: 154 | U114: 138 | V114: 144 | W114: 131 | X114: 140 | Y114: 134 | Z114: 1827
A115: 115221402 | B115: Central Dauphin SD | C115: SD | D115: Dauphin | E115: 0 | F115: 0 | G115: 0 | H115: 0 | I115: 0 | J115: 0 | K115: 456 | L115: 400 | M115: 0 | N115: 904 | O115: 930 | P115: 959 | Q115: 1010 | R115: 972 | S115: 937 | T115: 950 | U115: 887 | V115: 853 | W115: 848 | X115: 768 | Y115: 801 | Z115: 11675
A116: 111291304 | B116: Central Fulton SD | C116: SD | D116: Fulton | E116: 0 | F116: 0 | G116: 0 | H116: 0 | I116: 0 | J116: 72 | K116: 0 | L116: 0 | M116: 74 | N116: 62 | O116: 84 | P116: 76 | Q116: 79 | R116: 87 | S116: 83 | T116: 78 | U116: 56 | V116: 74 | W116: 75 | X116: 61 | Y116: 72 | Z116: 1033
A117: 101301403 | B117: Central Greene SD | C117: SD | D117: Greene | E117: 0 | F117: 0 | G117: 0 | H117: 0 | I117: 0 | J117: 0 | K117: 0 | L117: 0 | M117: 109 | N117: 126 | O117: 127 | P117: 127 | Q117: 134 | R117: 135 | S117: 141 | T117: 136 | U117: 146 | V117: 146 | W117: 143 | X117: 136 | Y117: 124 | Z117: 1730
A118: 110000000 | B118: Central IU 10 | C118: IU | D118: Clearfield | E118: 0 | F118: 0 | G118: 0 | H118: 0 | I118: 0 | J118: 0 | K118: 21 | L118: 0 | M118: 2 | N118: 0 | O118: 0 | P118: 0 | Q118: 0 | R118: 0 | S118: 0 | T118: 1 | U118: 1 | V118: 1 | W118: 4 | X118: 4 | Y118: 11 | Z118: 45
A119: 123460957 | B119: Central Montco Technical High School | C119: OCCCTC | D119: Montgomery | E119: 0 | F119: 0 | G119: 0 | H119: 0 | I119: 0 | J119: 0 | K119: 0 | L119: 0 | M119: 0 | N119: 0 | O119: 0 | P119: 0 | Q119: 0 | R119: 0 | S119: 0 | T119: 0 | U119: 0 | V119: 0 | W119: 178 | X119: 231 | Y119: 183 | Z119: 592
A120: 108070001 | B120: Central PA Digital Learning Foundation C | C120: CS | D120: Blair | E120: 0 | F120: 0 | G120: 0 | H120: 0 | I120: 0 | J120: 0 | K120: 0 | L120: 0 | M120: 3 | N120: 4 | O120: 1 | P120: 5 | Q120: 2 | R120: 12 | S120: 4 | T120: 20 | U120: 14 | V120: 25 | W120: 37 | X120: 24 | Y120: 19 | Z120: 170
A121: 110141607 | B121: Central PA Institute of Science & Techno | C121: OCCCTC | D121: Centre | E121: 0 | F121: 0 | G121: 0 | H121: 0 | I121: 0 | J121: 0 | K121: 0 | L121: 0 | M121: 0 | N121: 0 | O121: 0 | P121: 0 | Q121: 0 | R121: 0 | S121: 0 | T121: 0 | U121: 0 | V121: 40 | W121: 131 | X121: 156 | Y121: 142 | Z121: 469
A122: 116000000 | B122: Central Susquehanna IU 16 | C122: IU | D122: Union | E122: 0 | F122: 0 | G122: 108 | H122: 0 | I122: 0 | J122: 0 | K122: 0 | L122: 0 | M122: 18 | N122: 2 | O122: 5 | P122: 12 | Q122: 5 | R122: 11 | S122: 12 | T122: 8 | U122: 34 | V122: 30 | W122: 27 | X122: 36 | Y122: 52 | Z122: 360
A123: 127042003 | B123: Central Valley SD | C123: SD | D123: Beaver | E123: 0 | F123: 0 | G123: 0 | H123: 0 | I123: 0 | J123: 0 | K123: 80 | L123: 83 | M123: 20 | N123: 169 | O123: 183 | P123: 184 | Q123: 184 | R123: 188 | S123: 194 | T123: 203 | U123: 198 | V123: 157 | W123: 179 | X123: 163 | Y123: 172 | Z123: 2357
A124: 107651207 | B124: Central Westmoreland CTC | C124: OCCCTC | D124: Westmoreland | E124: 0 | F124: 0 | G124: 0 | H124: 0 | I124: 0 | J124: 0 | K124: 0 | L124: 0 | M124: 0 | N124: 0 | O124: 0 | P124: 0 | Q124: 0 | R124: 0 | S124: 0 | T124: 0 | U124: 0 | V124: 29 | W124: 340 | X124: 332 | Y124: 307 | Z124: 1008
A125: 112671303 | B125: Central York SD | C125: SD | D125: York | E125: 0 | F125: 0 | G125: 0 | H125: 0 | I125: 0 | J125: 0 | K125: 0 | L125: 0 | M125: 367 | N125: 421 | O125: 396 | P125: 414 | Q125: 462 | R125: 451 | S125: 453 | T125: 431 | U125: 484 | V125: 475 | W125: 480 | X125: 466 | Y125: 447 | Z125: 5747
A126: 110143060 | B126: Centre Learning Community CS | C126: CS | D126: Centre | E126: 0 | F126: 0 | G126: 0 | H126: 0 | I126: 0 | J126: 0 | K126: 0 | L126: 0 | M126: 0 | N126: 0 | O126: 0 | P126: 0 | Q126: 0 | R126: 21 | S126: 25 | T126: 22 | U126: 24 | V126: 0 | W126: 0 | X126: 0 | Y126: 0 | Z126: 92
A127: 112281302 | B127: Chambersburg Area SD | C127: SD | D127: Franklin | E127: 0 | F127: 0 | G127: 0 | H127: 0 | I127: 0 | J127: 0 | K127: 0 | L127: 0 | M127: 731 | N127: 700 | O127: 705 | P127: 716 | Q127: 755 | R127: 770 | S127: 735 | T127: 745 | U127: 678 | V127: 663 | W127: 668 | X127: 713 | Y127: 741 | Z127: 9320
A128: 101631803 | B128: Charleroi SD | C128: SD | D128: Washington | E128: 0 | F128: 0 | G128: 0 | H128: 0 | I128: 0 | J128: 0 | K128: 0 | L128: 0 | M128: 102 | N128: 111 | O128: 112 | P128: 125 | Q128: 137 | R128: 110 | S128: 132 | T128: 123 | U128: 106 | V128: 118 | W128: 119 | X128: 112 | Y128: 101 | Z128: 1508
A129: 126513190 | B129: Charter High School for Architecture and | C129: CS | D129: Philadelphia | E129: 0 | F129: 0 | G129: 0 | H129: 0 | I129: 0 | J129: 0 | K129: 0 | L129: 0 | M129: 0 | N129: 0 | O129: 0 | P129: 0 | Q129: 0 | R129: 0 | S129: 0 | T129: 0 | U129: 0 | V129: 195 | W129: 185 | X129: 118 | Y129: 121 | Z129: 619
A130: 103021752 | B130: Chartiers Valley SD | C130: SD | D130: Allegheny | E130: 0 | F130: 0 | G130: 0 | H130: 0 | I130: 0 | J130: 0 | K130: 0 | L130: 0 | M130: 303 | N130: 262 | O130: 278 | P130: 225 | Q130: 243 | R130: 230 | S130: 250 | T130: 255 | U130: 232 | V130: 245 | W130: 254 | X130: 253 | Y130: 276 | Z130: 3306
A131: 101631903 | B131: Chartiers-Houston SD | C131: SD | D131: Washington | E131: 0 | F131: 0 | G131: 0 | H131: 0 | I131: 0 | J131: 0 | K131: 0 | L131: 0 | M131: 104 | N131: 80 | O131: 98 | P131: 79 | Q131: 76 | R131: 95 | S131: 93 | T131: 84 | U131: 94 | V131: 93 | W131: 87 | X131: 78 | Y131: 99 | Z131: 1160
A132: 123461302 | B132: Cheltenham SD | C132: SD | D132: Montgomery | E132: 0 | F132: 0 | G132: 0 | H132: 0 | I132: 0 | J132: 0 | K132: 0 | L132: 0 | M132: 333 | N132: 299 | O132: 344 | P132: 352 | Q132: 400 | R132: 377 | S132: 360 | T132: 343 | U132: 352 | V132: 368 | W132: 358 | X132: 318 | Y132: 341 | Z132: 4545
A133: 125236827 | B133: Chester CS for the Arts | C133: CS | D133: Delaware | E133: 0 | F133: 0 | G133: 0 | H133: 0 | I133: 0 | J133: 0 | K133: 0 | L133: 0 | M133: 44 | N133: 49 | O133: 50 | P133: 51 | Q133: 51 | R133: 50 | S133: 50 | T133: 51 | U133: 50 | V133: 51 | W133: 52 | X133: 48 | Y133: 0 | Z133: 597
A134: 124152880 | B134: Chester Co Family Academy CS | C134: CS | D134: Chester | E134: 0 | F134: 0 | G134: 0 | H134: 0 | I134: 0 | J134: 0 | K134: 0 | L134: 0 | M134: 35 | N134: 37 | O134: 36 | P134: 0 | Q134: 0 | R134: 0 | S134: 0 | T134: 0 | U134: 0 | V134: 0 | W134: 0 | X134: 0 | Y134: 0 | Z134: 108
A135: 125232950 | B135: Chester Community CS | C135: CS | D135: Delaware | E135: 0 | F135: 0 | G135: 0 | H135: 0 | I135: 0 | J135: 0 | K135: 0 | L135: 0 | M135: 551 | N135: 574 | O135: 528 | P135: 591 | Q135: 538 | R135: 467 | S135: 363 | T135: 285 | U135: 237 | V135: 0 | W135: 0 | X135: 0 | Y135: 0 | Z135: 4134
A136: 124000000 | B136: Chester County IU 24 | C136: IU | D136: Chester | E136: 0 | F136: 0 | G136: 0 | H136: 0 | I136: 0 | J136: 0 | K136: 0 | L136: 0 | M136: 58 | N136: 18 | O136: 26 | P136: 23 | Q136: 39 | R136: 37 | S136: 35 | T136: 46 | U136: 50 | V136: 89 | W136: 109 | X136: 121 | Y136: 255 | Z136: 906
A137: 124151607 | B137: Chester County Technical College High Sc | C137: OCCCTC | D137: Chester | E137: 0 | F137: 0 | G137: 0 | H137: 0 | I137: 0 | J137: 0 | K137: 0 | L137: 0 | M137: 0 | N137: 0 | O137: 0 | P137: 0 | Q137: 0 | R137: 0 | S137: 0 | T137: 0 | U137: 0 | V137: 43 | W137: 515 | X137: 703 | Y137: 963 | Z137: 2224
A138: 125231232 | B138: Chester-Upland SD | C138: SD | D138: Delaware | E138: 0 | F138: 0 | G138: 96 | H138: 0 | I138: 0 | J138: 0 | K138: 0 | L138: 0 | M138: 159 | N138: 179 | O138: 157 | P138: 165 | Q138: 162 | R138: 165 | S138: 186 | T138: 190 | U138: 206 | V138: 438 | W138: 347 | X138: 354 | Y138: 343 | Z138: 3147
A139: 108051503 | B139: Chestnut Ridge SD | C139: SD | D139: Bedford | E139: 0 | F139: 0 | G139: 38 | H139: 0 | I139: 0 | J139: 0 | K139: 0 | L139: 0 | M139: 93 | N139: 84 | O139: 102 | P139: 90 | Q139: 113 | R139: 103 | S139: 121 | T139: 111 | U139: 107 | V139: 111 | W139: 120 | X139: 122 | Y139: 122 | Z139: 1437
A140: 125231303 | B140: Chichester SD | C140: SD | D140: Delaware | E140: 0 | F140: 0 | G140: 0 | H140: 0 | I140: 0 | J140: 0 | K140: 0 | L140: 0 | M140: 231 | N140: 244 | O140: 260 | P140: 277 | Q140: 263 | R140: 264 | S140: 239 | T140: 248 | U140: 242 | V140: 250 | W140: 243 | X140: 249 | Y140: 187 | Z140: 3197
A141: 126513160 | B141: Christopher Columbus CS | C141: CS | D141: Philadelphia | E141: 0 | F141: 0 | G141: 0 | H141: 0 | I141: 0 | J141: 0 | K141: 0 | L141: 0 | M141: 105 | N141: 107 | O141: 101 | P141: 95 | Q141: 98 | R141: 92 | S141: 89 | T141: 86 | U141: 86 | V141: 0 | W141: 0 | X141: 0 | Y141: 0 | Z141: 859
A142: 121394017 | B142: Circle of Seasons Charter School | C142: CS | D142: Lehigh | E142: 0 | F142: 0 | G142: 0 | H142: 0 | I142: 0 | J142: 0 | K142: 0 | L142: 0 | M142: 46 | N142: 52 | O142: 52 | P142: 51 | Q142: 52 | R142: 51 | S142: 26 | T142: 0 | U142: 0 | V142: 0 | W142: 0 | X142: 0 | Y142: 0 | Z142: 330
A143: 102020001 | B143: City CHS | C143: CS | D143: Allegheny | E143: 0 | F143: 0 | G143: 0 | H143: 0 | I143: 0 | J143: 0 | K143: 0 | L143: 0 | M143: 0 | N143: 0 | O143: 0 | P143: 0 | Q143: 0 | R143: 0 | S143: 0 | T143: 0 | U143: 0 | V143: 137 | W143: 147 | X143: 149 | Y143: 140 | Z143: 573
A144: 103021903 | B144: Clairton City SD | C144: SD | D144: Allegheny | E144: 0 | F144: 0 | G144: 0 | H144: 0 | I144: 0 | J144: 0 | K144: 0 | L144: 0 | M144: 76 | N144: 72 | O144: 69 | P144: 69 | Q144: 67 | R144: 66 | S144: 55 | T144: 55 | U144: 62 | V144: 53 | W144: 42 | X144: 42 | Y144: 47 | Z144: 775
A145: 106161203 | B145: Clarion Area SD | C145: SD | D145: Clarion | E145: 0 | F145: 0 | G145: 0 | H145: 0 | I145: 0 | J145: 0 | K145: 0 | L145: 0 | M145: 54 | N145: 62 | O145: 56 | P145: 56 | Q145: 66 | R145: 62 | S145: 61 | T145: 36 | U145: 60 | V145: 70 | W145: 57 | X145: 76 | Y145: 75 | Z145: 791
A146: 106161357 | B146: Clarion County Career Center | C146: OCCCTC | D146: Clarion | E146: 0 | F146: 0 | G146: 0 | H146: 0 | I146: 0 | J146: 0 | K146: 0 | L146: 0 | M146: 0 | N146: 0 | O146: 0 | P146: 0 | Q146: 0 | R146: 0 | S146: 0 | T146: 0 | U146: 0 | V146: 4 | W146: 89 | X146: 127 | Y146: 103 | Z146: 323
A147: 106161703 | B147: Clarion-Limestone Area SD | C147: SD | D147: Clarion | E147: 14 | F147: 13 | G147: 0 | H147: 0 | I147: 0 | J147: 0 | K147: 0 | L147: 0 | M147: 80 | N147: 68 | O147: 65 | P147: 56 | Q147: 61 | R147: 55 | S147: 64 | T147: 60 | U147: 85 | V147: 72 | W147: 58 | X147: 60 | Y147: 63 | Z147: 874
A148: 108071504 | B148: Claysburg-Kimmel SD | C148: SD | D148: Blair | E148: 0 | F148: 0 | G148: 0 | H148: 0 | I148: 0 | J148: 0 | K148: 0 | L148: 0 | M148: 48 | N148: 45 | O148: 72 | P148: 59 | Q148: 63 | R148: 67 | S148: 51 | T148: 68 | U148: 73 | V148: 77 | W148: 60 | X148: 71 | Y148: 49 | Z148: 803
A149: 110171003 | B149: Clearfield Area SD | C149: SD | D149: Clearfield | E149: 0 | F149: 0 | G149: 0 | H149: 0 | I149: 0 | J149: 0 | K149: 0 | L149: 0 | M149: 146 | N149: 166 | O149: 165 | P149: 173 | Q149: 168 | R149: 177 | S149: 174 | T149: 170 | U149: 179 | V149: 175 | W149: 165 | X149: 173 | Y149: 188 | Z149: 2219
A150: 110171607 | B150: Clearfield County CTC | C150: OCCCTC | D150: Clearfield | E150: 0 | F150: 0 | G150: 0 | H150: 0 | I150: 0 | J150: 0 | K150: 0 | L150: 0 | M150: 0 | N150: 0 | O150: 0 | P150: 0 | Q150: 0 | R150: 0 | S150: 0 | T150: 0 | U150: 0 | V150: 9 | W150: 33 | X150: 190 | Y150: 154 | Z150: 386
A151: 124151902 | B151: Coatesville Area SD | C151: SD | D151: Chester | E151: 0 | F151: 0 | G151: 0 | H151: 0 | I151: 0 | J151: 0 | K151: 0 | L151: 0 | M151: 434 | N151: 446 | O151: 422 | P151: 446 | Q151: 464 | R151: 451 | S151: 436 | T151: 462 | U151: 483 | V151: 526 | W151: 476 | X151: 529 | Y151: 449 | Z151: 6024
A152: 113361303 | B152: Cocalico SD | C152: SD | D152: Lancaster | E152: 0 | F152: 0 | G152: 0 | H152: 0 | I152: 0 | J152: 0 | K152: 97 | L152: 87 | M152: 0 | N152: 201 | O152: 214 | P152: 249 | Q152: 242 | R152: 229 | S152: 244 | T152: 245 | U152: 241 | V152: 247 | W152: 207 | X152: 269 | Y152: 275 | Z152: 3047
A153: 124153320 | B153: Collegium CS | C153: CS | D153: Chester | E153: 0 | F153: 0 | G153: 0 | H153: 0 | I153: 0 | J153: 0 | K153: 0 | L153: 0 | M153: 379 | N153: 332 | O153: 315 | P153: 320 | Q153: 294 | R153: 259 | S153: 220 | T153: 183 | U153: 178 | V153: 132 | W153: 116 | X153: 87 | Y153: 73 | Z153: 2888
A154: 120000000 | B154: Colonial IU 20 | C154: IU | D154: Northampton | E154: 20 | F154: 11 | G154: 0 | H154: 0 | I154: 0 | J154: 0 | K154: 0 | L154: 0 | M154: 80 | N154: 141 | O154: 126 | P154: 131 | Q154: 153 | R154: 99 | S154: 110 | T154: 111 | U154: 134 | V154: 118 | W154: 132 | X154: 134 | Y154: 194 | Z154: 1694
A155: 123461602 | B155: Colonial SD | C155: SD | D155: Montgomery | E155: 0 | F155: 0 | G155: 0 | H155: 0 | I155: 0 | J155: 0 | K155: 0 | L155: 0 | M155: 400 | N155: 438 | O155: 383 | P155: 364 | Q155: 408 | R155: 414 | S155: 352 | T155: 359 | U155: 340 | V155: 378 | W155: 384 | X155: 386 | Y155: 360 | Z155: 4966
A156: 113361503 | B156: Columbia Borough SD | C156: SD | D156: Lancaster | E156: 0 | F156: 0 | G156: 0 | H156: 0 | I156: 0 | J156: 0 | K156: 0 | L156: 0 | M156: 103 | N156: 102 | O156: 115 | P156: 105 | Q156: 102 | R156: 106 | S156: 89 | T156: 97 | U156: 99 | V156: 124 | W156: 99 | X156: 86 | Y156: 58 | Z156: 1285
A157: 116191757 | B157: Columbia-Montour AVTS | C157: COMCTC | D157: Columbia | E157: 0 | F157: 0 | G157: 0 | H157: 0 | I157: 0 | J157: 0 | K157: 0 | L157: 0 | M157: 0 | N157: 0 | O157: 0 | P157: 0 | Q157: 0 | R157: 0 | S157: 0 | T157: 0 | U157: 0 | V157: 169 | W157: 172 | X157: 146 | Y157: 158 | Z157: 645
A158: 104431304 | B158: Commodore Perry SD | C158: SD | D158: Mercer | E158: 0 | F158: 0 | G158: 0 | H158: 0 | I158: 0 | J158: 0 | K158: 0 | L158: 0 | M158: 27 | N158: 37 | O158: 36 | P158: 33 | Q158: 39 | R158: 29 | S158: 33 | T158: 19 | U158: 31 | V158: 43 | W158: 43 | X158: 34 | Y158: 45 | Z158: 449
A159: 115220002 | B159: Commonwealth Charter Academy CS | C159: CS | D159: Dauphin | E159: 0 | F159: 0 | G159: 0 | H159: 0 | I159: 0 | J159: 0 | K159: 0 | L159: 0 | M159: 232 | N159: 319 | O159: 323 | P159: 362 | Q159: 417 | R159: 516 | S159: 588 | T159: 685 | U159: 888 | V159: 1119 | W159: 1087 | X159: 1073 | Y159: 983 | Z159: 8592
A160: 126512840 | B160: Community Academy of Philadelphia CS | C160: CS | D160: Philadelphia | E160: 0 | F160: 0 | G160: 0 | H160: 0 | I160: 0 | J160: 0 | K160: 0 | L160: 0 | M160: 61 | N160: 83 | O160: 61 | P160: 60 | Q160: 63 | R160: 65 | S160: 63 | T160: 64 | U160: 91 | V160: 156 | W160: 159 | X160: 150 | Y160: 144 | Z160: 1220
A161: 108561803 | B161: Conemaugh Township Area SD | C161: SD | D161: Somerset | E161: 0 | F161: 0 | G161: 0 | H161: 0 | I161: 0 | J161: 0 | K161: 0 | L161: 0 | M161: 74 | N161: 66 | O161: 67 | P161: 64 | Q161: 75 | R161: 76 | S161: 64 | T161: 63 | U161: 86 | V161: 77 | W161: 67 | X161: 94 | Y161: 75 | Z161: 948
A162: 108111403 | B162: Conemaugh Valley SD | C162: SD | D162: Cambria | E162: 0 | F162: 0 | G162: 0 | H162: 0 | I162: 0 | J162: 0 | K162: 0 | L162: 0 | M162: 60 | N162: 45 | O162: 53 | P162: 51 | Q162: 53 | R162: 60 | S162: 57 | T162: 53 | U162: 46 | V162: 54 | W162: 51 | X162: 84 | Y162: 77 | Z162: 744
A163: 113361703 | B163: Conestoga Valley SD | C163: SD | D163: Lancaster | E163: 0 | F163: 0 | G163: 0 | H163: 0 | I163: 0 | J163: 0 | K163: 0 | L163: 0 | M163: 298 | N163: 305 | O163: 304 | P163: 358 | Q163: 340 | R163: 354 | S163: 317 | T163: 313 | U163: 344 | V163: 334 | W163: 337 | X163: 356 | Y163: 305 | Z163: 4265
A164: 112011603 | B164: Conewago Valley SD | C164: SD | D164: Adams | E164: 0 | F164: 0 | G164: 0 | H164: 0 | I164: 0 | J164: 0 | K164: 0 | L164: 0 | M164: 286 | N164: 265 | O164: 282 | P164: 288 | Q164: 314 | R164: 298 | S164: 306 | T164: 292 | U164: 317 | V164: 300 | W164: 301 | X164: 304 | Y164: 304 | Z164: 3857
A165: 105201033 | B165: Conneaut SD | C165: SD | D165: Crawford | E165: 0 | F165: 0 | G165: 0 | H165: 0 | I165: 0 | J165: 0 | K165: 0 | L165: 0 | M165: 126 | N165: 131 | O165: 131 | P165: 145 | Q165: 139 | R165: 165 | S165: 155 | T165: 161 | U165: 152 | V165: 175 | W165: 166 | X165: 163 | Y165: 180 | Z165: 1989
A166: 101266007 | B166: Connellsville Area Career & Technical Ce | C166: COMCTC | D166: Fayette | E166: 0 | F166: 0 | G166: 0 | H166: 0 | I166: 0 | J166: 0 | K166: 0 | L166: 0 | M166: 0 | N166: 0 | O166: 0 | P166: 0 | Q166: 0 | R166: 0 | S166: 0 | T166: 0 | U166: 0 | V166: 192 | W166: 132 | X166: 109 | Y166: 129 | Z166: 562
A167: 101261302 | B167: Connellsville Area SD | C167: SD | D167: Fayette | E167: 0 | F167: 0 | G167: 0 | H167: 0 | I167: 0 | J167: 0 | K167: 0 | L167: 0 | M167: 290 | N167: 303 | O167: 325 | P167: 292 | Q167: 329 | R167: 345 | S167: 333 | T167: 351 | U167: 335 | V167: 385 | W167: 360 | X167: 275 | Y167: 231 | Z167: 4154
A168: 114061103 | B168: Conrad Weiser Area SD | C168: SD | D168: Berks | E168: 0 | F168: 0 | G168: 0 | H168: 0 | I168: 0 | J168: 0 | K168: 0 | L168: 0 | M168: 161 | N168: 176 | O168: 191 | P168: 162 | Q168: 199 | R168: 217 | S168: 197 | T168: 193 | U168: 179 | V168: 244 | W168: 242 | X168: 214 | Y168: 254 | Z168: 2629
A169: 103022103 | B169: Cornell SD | C169: SD | D169: Allegheny | E169: 0 | F169: 0 | G169: 0 | H169: 0 | I169: 0 | J169: 0 | K169: 0 | L169: 0 | M169: 60 | N169: 38 | O169: 44 | P169: 56 | Q169: 35 | R169: 47 | S169: 48 | T169: 36 | U169: 45 | V169: 45 | W169: 55 | X169: 40 | Y169: 49 | Z169: 598
A170: 113381303 | B170: Cornwall-Lebanon SD | C170: SD | D170: Lebanon | E170: 0 | F170: 0 | G170: 0 | H170: 0 | I170: 0 | J170: 0 | K170: 138 | L170: 108 | M170: 91 | N170: 380 | O170: 349 | P170: 388 | Q170: 367 | R170: 392 | S170: 373 | T170: 378 | U170: 383 | V170: 371 | W170: 408 | X170: 386 | Y170: 304 | Z170: 4816
A171: 105251453 | B171: Corry Area SD | C171: SD | D171: Erie | E171: 0 | F171: 0 | G171: 40 | H171: 0 | I171: 0 | J171: 0 | K171: 0 | L171: 0 | M171: 147 | N171: 163 | O171: 148 | P171: 130 | Q171: 158 | R171: 172 | S171: 158 | T171: 145 | U171: 148 | V171: 164 | W171: 164 | X171: 141 | Y171: 169 | Z171: 2047
A172: 109531304 | B172: Coudersport Area SD | C172: SD | D172: Potter | E172: 0 | F172: 0 | G172: 0 | H172: 0 | I172: 0 | J172: 0 | K172: 0 | L172: 0 | M172: 52 | N172: 69 | O172: 62 | P172: 43 | Q172: 57 | R172: 54 | S172: 73 | T172: 59 | U172: 58 | V172: 65 | W172: 62 | X172: 62 | Y172: 64 | Z172: 780
A173: 122092353 | B173: Council Rock SD | C173: SD | D173: Bucks | E173: 0 | F173: 0 | G173: 0 | H173: 0 | I173: 0 | J173: 0 | K173: 297 | L173: 230 | M173: 8 | N173: 743 | O173: 816 | P173: 810 | Q173: 834 | R173: 863 | S173: 857 | T173: 890 | U173: 907 | V173: 905 | W173: 891 | X173: 949 | Y173: 989 | Z173: 10989
A174: 106611303 | B174: Cranberry Area SD | C174: SD | D174: Venango | E174: 0 | F174: 0 | G174: 0 | H174: 0 | I174: 0 | J174: 0 | K174: 0 | L174: 0 | M174: 75 | N174: 96 | O174: 88 | P174: 110 | Q174: 101 | R174: 80 | S174: 91 | T174: 98 | U174: 79 | V174: 91 | W174: 92 | X174: 71 | Y174: 93 | Z174: 1165
A175: 105201352 | B175: Crawford Central SD | C175: SD | D175: Crawford | E175: 0 | F175: 0 | G175: 0 | H175: 0 | I175: 0 | J175: 0 | K175: 0 | L175: 0 | M175: 260 | N175: 238 | O175: 263 | P175: 283 | Q175: 267 | R175: 300 | S175: 272 | T175: 257 | U175: 279 | V175: 304 | W175: 299 | X175: 296 | Y175: 320 | Z175: 3638
A176: 105201407 | B176: Crawford County CTC | C176: OCCCTC | D176: Crawford | E176: 0 | F176: 0 | G176: 0 | H176: 0 | I176: 0 | J176: 0 | K176: 0 | L176: 0 | M176: 0 | N176: 0 | O176: 0 | P176: 0 | Q176: 0 | R176: 0 | S176: 0 | T176: 0 | U176: 0 | V176: 0 | W176: 138 | X176: 211 | Y176: 220 | Z176: 569
A177: 118401403 | B177: Crestwood SD | C177: SD | D177: Luzerne | E177: 0 | F177: 0 | G177: 0 | H177: 0 | I177: 0 | J177: 0 | K177: 0 | L177: 0 | M177: 187 | N177: 184 | O177: 193 | P177: 235 | Q177: 194 | R177: 232 | S177: 197 | T177: 252 | U177: 246 | V177: 225 | W177: 218 | X177: 224 | Y177: 222 | Z177: 2809
A178: 112673300 | B178: Crispus Attucks CS | C178: CS | D178: York | E178: 0 | F178: 0 | G178: 0 | H178: 0 | I178: 0 | J178: 0 | K178: 0 | L178: 0 | M178: 0 | N178: 0 | O178: 0 | P178: 0 | Q178: 0 | R178: 0 | S178: 0 | T178: 0 | U178: 0 | V178: 0 | W178: 0 | X178: 0 | Y178: 94 | Z178: 94
A179: 115211657 | B179: Cumberland Perry AVTS | C179: OCCCTC | D179: Cumberland | E179: 0 | F179: 0 | G179: 0 | H179: 0 | I179: 0 | J179: 0 | K179: 0 | L179: 0 | M179: 0 | N179: 0 | O179: 0 | P179: 0 | Q179: 0 | R179: 0 | S179: 0 | T179: 0 | U179: 0 | V179: 51 | W179: 343 | X179: 334 | Y179: 253 | Z179: 981
A180: 115211603 | B180: Cumberland Valley SD | C180: SD | D180: Cumberland | E180: 0 | F180: 0 | G180: 0 | H180: 0 | I180: 0 | J180: 0 | K180: 427 | L180: 193 | M180: 0 | N180: 703 | O180: 687 | P180: 679 | Q180: 711 | R180: 727 | S180: 729 | T180: 720 | U180: 741 | V180: 672 | W180: 660 | X180: 665 | Y180: 649 | Z180: 8963
A181: 110171803 | B181: Curwensville Area SD | C181: SD | D181: Clearfield | E181: 0 | F181: 0 | G181: 0 | H181: 0 | I181: 0 | J181: 0 | K181: 0 | L181: 0 | M181: 92 | N181: 62 | O181: 49 | P181: 85 | Q181: 81 | R181: 87 | S181: 72 | T181: 86 | U181: 91 | V181: 80 | W181: 77 | X181: 74 | Y181: 88 | Z181: 1024
A182: 118401603 | B182: Dallas SD | C182: SD | D182: Luzerne | E182: 0 | F182: 0 | G182: 0 | H182: 0 | I182: 0 | J182: 0 | K182: 76 | L182: 71 | M182: 0 | N182: 183 | O182: 196 | P182: 189 | Q182: 181 | R182: 199 | S182: 202 | T182: 221 | U182: 191 | V182: 209 | W182: 211 | X182: 220 | Y182: 235 | Z182: 2584
A183: 112671603 | B183: Dallastown Area SD | C183: SD | D183: York | E183: 0 | F183: 0 | G183: 0 | H183: 0 | I183: 0 | J183: 0 | K183: 0 | L183: 0 | M183: 413 | N183: 447 | O183: 448 | P183: 474 | Q183: 492 | R183: 536 | S183: 487 | T183: 553 | U183: 480 | V183: 480 | W183: 466 | X183: 524 | Y183: 488 | Z183: 6288
A184: 114061503 | B184: Daniel Boone Area SD | C184: SD | D184: Berks | E184: 0 | F184: 0 | G184: 0 | H184: 0 | I184: 0 | J184: 0 | K184: 84 | L184: 79 | M184: 30 | N184: 219 | O184: 214 | P184: 239 | Q184: 266 | R184: 251 | S184: 284 | T184: 265 | U184: 283 | V184: 279 | W184: 282 | X184: 286 | Y184: 296 | Z184: 3357
A185: 116471803 | B185: Danville Area SD | C185: SD | D185: Montour | E185: 0 | F185: 0 | G185: 0 | H185: 0 | I185: 0 | J185: 0 | K185: 0 | L185: 0 | M185: 190 | N185: 191 | O185: 172 | P185: 165 | Q185: 172 | R185: 170 | S185: 185 | T185: 184 | U185: 198 | V185: 183 | W185: 160 | X185: 166 | Y185: 158 | Z185: 2294
A186: 116471111 | B186: Danville Ctr Adolescent Female | C186: SJCI | D186: Montour | E186: 0 | F186: 0 | G186: 0 | H186: 0 | I186: 0 | J186: 0 | K186: 0 | L186: 0 | M186: 0 | N186: 0 | O186: 0 | P186: 0 | Q186: 0 | R186: 0 | S186: 0 | T186: 0 | U186: 5 | V186: 1 | W186: 9 | X186: 6 | Y186: 8 | Z186: 29
A187: 115221607 | B187: Dauphin County Technical School | C187: COMCTC | D187: Dauphin | E187: 0 | F187: 0 | G187: 0 | H187: 0 | I187: 0 | J187: 0 | K187: 0 | L187: 0 | M187: 0 | N187: 0 | O187: 0 | P187: 0 | Q187: 0 | R187: 0 | S187: 0 | T187: 0 | U187: 0 | V187: 266 | W187: 275 | X187: 285 | Y187: 242 | Z187: 1068
A188: 103022253 | B188: Deer Lakes SD | C188: SD | D188: Allegheny | E188: 0 | F188: 0 | G188: 0 | H188: 0 | I188: 0 | J188: 0 | K188: 0 | L188: 0 | M188: 140 | N188: 136 | O188: 152 | P188: 149 | Q188: 171 | R188: 130 | S188: 169 | T188: 131 | U188: 157 | V188: 150 | W188: 123 | X188: 137 | Y188: 172 | Z188: 1917
A189: 125000000 | B189: Delaware County IU 25 | C189: IU | D189: Delaware | E189: 0 | F189: 0 | G189: 0 | H189: 0 | I189: 0 | J189: 0 | K189: 0 | L189: 0 | M189: 8 | N189: 13 | O189: 16 | P189: 20 | Q189: 17 | R189: 26 | S189: 22 | T189: 18 | U189: 16 | V189: 29 | W189: 43 | X189: 51 | Y189: 98 | Z189: 377
A190: 125232407 | B190: Delaware County Technical High School | C190: OCCCTC | D190: Delaware | E190: 0 | F190: 0 | G190: 0 | H190: 0 | I190: 0 | J190: 0 | K190: 0 | L190: 0 | M190: 0 | N190: 0 | O190: 0 | P190: 0 | Q190: 0 | R190: 0 | S190: 0 | T190: 0 | U190: 0 | V190: 9 | W190: 124 | X190: 464 | Y190: 516 | Z190: 1113
A191: 120522003 | B191: Delaware Valley SD | C191: SD | D191: Pike | E191: 33 | F191: 20 | G191: 0 | H191: 0 | I191: 0 | J191: 0 | K191: 0 | L191: 0 | M191: 300 | N191: 281 | O191: 290 | P191: 342 | Q191: 326 | R191: 349 | S191: 358 | T191: 345 | U191: 363 | V191: 423 | W191: 374 | X191: 364 | Y191: 411 | Z191: 4579
A192: 107651603 | B192: Derry Area SD | C192: SD | D192: Westmoreland | E192: 0 | F192: 0 | G192: 0 | H192: 0 | I192: 0 | J192: 0 | K192: 0 | L192: 0 | M192: 148 | N192: 143 | O192: 141 | P192: 155 | Q192: 157 | R192: 168 | S192: 156 | T192: 147 | U192: 143 | V192: 163 | W192: 137 | X192: 153 | Y192: 160 | Z192: 1971
A193: 115221753 | B193: Derry Township SD | C193: SD | D193: Dauphin | E193: 0 | F193: 0 | G193: 0 | H193: 0 | I193: 0 | J193: 0 | K193: 105 | L193: 85 | M193: 8 | N193: 220 | O193: 229 | P193: 238 | Q193: 247 | R193: 245 | S193: 279 | T193: 278 | U193: 291 | V193: 322 | W193: 292 | X193: 288 | Y193: 280 | Z193: 3407
A194: 126510011 | B194: Discovery Charter School | C194: CS | D194: Philadelphia | E194: 0 | F194: 0 | G194: 0 | H194: 0 | I194: 0 | J194: 0 | K194: 0 | L194: 0 | M194: 69 | N194: 66 | O194: 78 | P194: 111 | Q194: 123 | R194: 69 | S194: 74 | T194: 74 | U194: 70 | V194: 0 | W194: 0 | X194: 0 | Y194: 0 | Z194: 734
A195: 113362203 | B195: Donegal SD | C195: SD | D195: Lancaster | E195: 0 | F195: 0 | G195: 0 | H195: 0 | I195: 0 | J195: 0 | K195: 105 | L195: 88 | M195: 30 | N195: 225 | O195: 246 | P195: 222 | Q195: 256 | R195: 229 | S195: 223 | T195: 232 | U195: 262 | V195: 227 | W195: 242 | X195: 240 | Y195: 216 | Z195: 3043
A196: 112671803 | B196: Dover Area SD | C196: SD | D196: York | E196: 0 | F196: 0 | G196: 0 | H196: 0 | I196: 0 | J196: 0 | K196: 0 | L196: 0 | M196: 253 | N196: 254 | O196: 282 | P196: 285 | Q196: 291 | R196: 279 | S196: 282 | T196: 280 | U196: 303 | V196: 276 | W196: 256 | X196: 238 | Y196: 229 | Z196: 3508
A197: 124152003 | B197: Downingtown Area SD | C197: SD | D197: Chester | E197: 0 | F197: 0 | G197: 0 | H197: 0 | I197: 0 | J197: 0 | K197: 355 | L197: 271 | M197: 89 | N197: 878 | O197: 897 | P197: 971 | Q197: 947 | R197: 1029 | S197: 1099 | T197: 1051 | U197: 1040 | V197: 1080 | W197: 1048 | X197: 1014 | Y197: 1025 | Z197: 12794
A198: 107653040 | B198: Dr Robert Ketterer CS Inc. | C198: CS | D198: Westmoreland | E198: 0 | F198: 0 | G198: 0 | H198: 0 | I198: 0 | J198: 0 | K198: 0 | L198: 0 | M198: 0 | N198: 0 | O198: 0 | P198: 0 | Q198: 0 | R198: 0 | S198: 2 | T198: 12 | U198: 16 | V198: 27 | W198: 43 | X198: 32 | Y198: 36 | Z198: 168
A199: 106172003 | B199: Dubois Area SD | C199: SD | D199: Clearfield | E199: 0 | F199: 0 | G199: 0 | H199: 0 | I199: 0 | J199: 0 | K199: 0 | L199: 0 | M199: 251 | N199: 258 | O199: 278 | P199: 270 | Q199: 301 | R199: 298 | S199: 265 | T199: 289 | U199: 285 | V199: 270 | W199: 254 | X199: 221 | Y199: 283 | Z199: 3523
A200: 119352203 | B200: Dunmore SD | C200: SD | D200: Lackawanna | E200: 0 | F200: 0 | G200: 0 | H200: 0 | I200: 0 | J200: 0 | K200: 0 | L200: 0 | M200: 105 | N200: 133 | O200: 81 | P200: 111 | Q200: 128 | R200: 125 | S200: 104 | T200: 116 | U200: 131 | V200: 121 | W200: 123 | X200: 111 | Y200: 126 | Z200: 1515
A201: 103022503 | B201: Duquesne City SD | C201: SD | D201: Allegheny | E201: 0 | F201: 0 | G201: 27 | H201: 0 | I201: 0 | J201: 0 | K201: 0 | L201: 0 | M201: 41 | N201: 46 | O201: 47 | P201: 38 | Q201: 35 | R201: 54 | S201: 40 | T201: 0 | U201: 0 | V201: 0 | W201: 0 | X201: 0 | Y201: 0 | Z201: 328
A202: 103022803 | B202: East Allegheny SD | C202: SD | D202: Allegheny | E202: 0 | F202: 0 | G202: 21 | H202: 0 | I202: 0 | J202: 0 | K202: 0 | L202: 0 | M202: 129 | N202: 104 | O202: 112 | P202: 109 | Q202: 121 | R202: 120 | S202: 126 | T202: 132 | U202: 130 | V202: 111 | W202: 127 | X202: 114 | Y202: 101 | Z202: 1557
... 592 more rows

Sheet Enrollments LEA_16_17 (hidden)
A1: October 1 Enrollment by LEA
A3: Year: 2016-2017
A5: AUN | B5: LEA Name | C5: LEA Type | D5: County | E5: PKA | F5: PKP | G5: PKF | H5: K4A | I5: K4P | J5: K4F | K5: K5A | L5: K5P | M5: K5F | N5: 001 | O5: 002 | P5: 003 | Q5: 004 | R5: 005 | S5: 006 | T5: 007 | U5: 008 | V5: 009 | W5: 010 | X5: 011 | Y5: 012 | Z5: Total
A6: 124150002 | B6: 21st Century Cyber CS | C6: CS | D6: Chester | E6: 0 | F6: 0 | G6: 0 | H6: 0 | I6: 0 | J6: 0 | K6: 0 | L6: 0 | M6: 0 | N6: 0 | O6: 0 | P6: 0 | Q6: 0 | R6: 0 | S6: 48 | T6: 107 | U6: 140 | V6: 167 | W6: 189 | X6: 172 | Y6: 141 | Z6: 964
A7: 103020407 | B7: A W Beattie Career Center | C7: OCCCTC | D7: Allegheny | E7: 0 | F7: 0 | G7: 0 | H7: 0 | I7: 0 | J7: 0 | K7: 0 | L7: 0 | M7: 0 | N7: 0 | O7: 0 | P7: 0 | Q7: 0 | R7: 0 | S7: 0 | T7: 0 | U7: 0 | V7: 0 | W7: 128 | X7: 268 | Y7: 280 | Z7: 676
A8: 126514368 | B8: ACT Academy Cyber CS | C8: CS | D8: Philadelphia | E8: 0 | F8: 0 | G8: 0 | H8: 0 | I8: 0 | J8: 0 | K8: 0 | L8: 0 | M8: 0 | N8: 0 | O8: 0 | P8: 0 | Q8: 0 | R8: 0 | S8: 0 | T8: 0 | U8: 0 | V8: 35 | W8: 39 | X8: 39 | Y8: 33 | Z8: 146
A9: 128000000 | B9: ARIN IU 28 | C9: IU | D9: Indiana | E9: 0 | F9: 0 | G9: 0 | H9: 0 | I9: 0 | J9: 0 | K9: 0 | L9: 0 | M9: 19 | N9: 1 | O9: 3 | P9: 4 | Q9: 3 | R9: 0 | S9: 3 | T9: 3 | U9: 5 | V9: 10 | W9: 4 | X9: 14 | Y9: 17 | Z9: 86
A10: 181519176 | B10: ASPIRA Bilingual Cyber Charter School | C10: CS | D10: Philadelphia | E10: 0 | F10: 0 | G10: 0 | H10: 0 | I10: 0 | J10: 0 | K10: 0 | L10: 0 | M10: 7 | N10: 4 | O10: 6 | P10: 8 | Q10: 4 | R10: 15 | S10: 23 | T10: 24 | U10: 28 | V10: 44 | W10: 38 | X10: 28 | Y10: 32 | Z10: 261
A11: 119350303 | B11: Abington Heights SD | C11: SD | D11: Lackawanna | E11: 0 | F11: 0 | G11: 0 | H11: 0 | I11: 0 | J11: 0 | K11: 107 | L11: 104 | M11: 0 | N11: 235 | O11: 235 | P11: 252 | Q11: 251 | R11: 259 | S11: 291 | T11: 256 | U11: 273 | V11: 248 | W11: 264 | X11: 263 | Y11: 267 | Z11: 3305
A12: 123460302 | B12: Abington SD | C12: SD | D12: Montgomery | E12: 0 | F12: 0 | G12: 0 | H12: 0 | I12: 0 | J12: 0 | K12: 0 | L12: 0 | M12: 633 | N12: 589 | O12: 626 | P12: 644 | Q12: 620 | R12: 621 | S12: 634 | T12: 637 | U12: 611 | V12: 607 | W12: 572 | X12: 591 | Y12: 585 | Z12: 7970
A13: 102020003 | B13: Academy CS | C13: CS | D13: Allegheny | E13: 0 | F13: 0 | G13: 0 | H13: 0 | I13: 0 | J13: 0 | K13: 0 | L13: 0 | M13: 0 | N13: 0 | O13: 0 | P13: 0 | Q13: 0 | R13: 0 | S13: 0 | T13: 0 | U13: 12 | V13: 29 | W13: 24 | X13: 25 | Y13: 20 | Z13: 110
A14: 125230001 | B14: Achievement House CS | C14: CS | D14: Chester | E14: 0 | F14: 0 | G14: 0 | H14: 0 | I14: 0 | J14: 0 | K14: 0 | L14: 0 | M14: 0 | N14: 0 | O14: 0 | P14: 0 | Q14: 0 | R14: 0 | S14: 0 | T14: 12 | U14: 65 | V14: 75 | W14: 106 | X14: 69 | Y14: 131 | Z14: 458
A15: 126510015 | B15: Ad Prima CS | C15: CS | D15: Philadelphia | E15: 0 | F15: 0 | G15: 0 | H15: 0 | I15: 0 | J15: 0 | K15: 0 | L15: 0 | M15: 40 | N15: 91 | O15: 120 | P15: 88 | Q15: 99 | R15: 67 | S15: 64 | T15: 60 | U15: 43 | V15: 0 | W15: 0 | X15: 0 | Y15: 0 | Z15: 672
A16: 108110307 | B16: Admiral Peary AVTS | C16: OCCCTC | D16: Cambria | E16: 0 | F16: 0 | G16: 0 | H16: 0 | I16: 0 | J16: 0 | K16: 0 | L16: 0 | M16: 0 | N16: 0 | O16: 0 | P16: 0 | Q16: 0 | R16: 0 | S16: 0 | T16: 0 | U16: 0 | V16: 32 | W16: 108 | X16: 201 | Y16: 153 | Z16: 494
A17: 126510020 | B17: Agora Cyber CS | C17: CS | D17: Chester | E17: 0 | F17: 0 | G17: 0 | H17: 0 | I17: 0 | J17: 0 | K17: 0 | L17: 0 | M17: 135 | N17: 161 | O17: 247 | P17: 291 | Q17: 326 | R17: 305 | S17: 405 | T17: 466 | U17: 606 | V17: 776 | W17: 804 | X17: 708 | Y17: 653 | Z17: 5883
A18: 101260303 | B18: Albert Gallatin Area SD | C18: SD | D18: Fayette | E18: 0 | F18: 0 | G18: 0 | H18: 0 | I18: 0 | J18: 0 | K18: 0 | L18: 0 | M18: 277 | N18: 238 | O18: 261 | P18: 243 | Q18: 227 | R18: 270 | S18: 275 | T18: 247 | U18: 275 | V18: 279 | W18: 287 | X18: 270 | Y18: 264 | Z18: 3413
A19: 127040503 | B19: Aliquippa SD | C19: SD | D19: Beaver | E19: 0 | F19: 0 | G19: 0 | H19: 0 | I19: 0 | J19: 0 | K19: 0 | L19: 0 | M19: 92 | N19: 102 | O19: 94 | P19: 96 | Q19: 85 | R19: 84 | S19: 84 | T19: 73 | U19: 81 | V19: 73 | W19: 73 | X19: 65 | Y19: 77 | Z19: 1079
A20: 103000000 | B20: Allegheny IU 3 | C20: IU | D20: Allegheny | E20: 0 | F20: 84 | G20: 5 | H20: 0 | I20: 0 | J20: 0 | K20: 0 | L20: 0 | M20: 7 | N20: 13 | O20: 15 | P20: 11 | Q20: 15 | R20: 16 | S20: 24 | T20: 24 | U20: 34 | V20: 61 | W20: 51 | X20: 46 | Y20: 116 | Z20: 522
A21: 103020603 | B21: Allegheny Valley SD | C21: SD | D21: Allegheny | E21: 0 | F21: 0 | G21: 0 | H21: 0 | I21: 0 | J21: 0 | K21: 0 | L21: 0 | M21: 77 | N21: 69 | O21: 60 | P21: 80 | Q21: 72 | R21: 73 | S21: 68 | T21: 77 | U21: 76 | V21: 70 | W21: 66 | X21: 89 | Y21: 84 | Z21: 961
A22: 106160303 | B22: Allegheny-Clarion Valley SD | C22: SD | D22: Clarion | E22: 0 | F22: 0 | G22: 0 | H22: 0 | I22: 0 | J22: 0 | K22: 0 | L22: 0 | M22: 55 | N22: 53 | O22: 67 | P22: 43 | Q22: 44 | R22: 58 | S22: 38 | T22: 54 | U22: 54 | V22: 63 | W22: 68 | X22: 66 | Y22: 51 | Z22: 714
A23: 121390302 | B23: Allentown City SD | C23: SD | D23: Lehigh | E23: 0 | F23: 0 | G23: 0 | H23: 0 | I23: 0 | J23: 0 | K23: 0 | L23: 0 | M23: 1200 | N23: 1280 | O23: 1366 | P23: 1415 | Q23: 1409 | R23: 1306 | S23: 1158 | T23: 1140 | U23: 1123 | V23: 1736 | W23: 1289 | X23: 1103 | Y23: 1103 | Z23: 16628
A24: 126512990 | B24: Alliance for Progress CS | C24: CS | D24: Philadelphia | E24: 0 | F24: 0 | G24: 0 | H24: 0 | I24: 0 | J24: 0 | K24: 0 | L24: 0 | M24: 50 | N24: 53 | O24: 53 | P24: 50 | Q24: 51 | R24: 47 | S24: 48 | T24: 49 | U24: 45 | V24: 0 | W24: 0 | X24: 0 | Y24: 0 | Z24: 446
A25: 108070502 | B25: Altoona Area SD | C25: SD | D25: Blair | E25: 0 | F25: 0 | G25: 0 | H25: 0 | I25: 0 | J25: 0 | K25: 0 | L25: 0 | M25: 592 | N25: 577 | O25: 620 | P25: 620 | Q25: 583 | R25: 588 | S25: 582 | T25: 617 | U25: 606 | V25: 593 | W25: 640 | X25: 593 | Y25: 553 | Z25: 7764
A26: 127040703 | B26: Ambridge Area SD | C26: SD | D26: Beaver | E26: 0 | F26: 0 | G26: 0 | H26: 0 | I26: 0 | J26: 0 | K26: 0 | L26: 0 | M26: 156 | N26: 180 | O26: 165 | P26: 181 | Q26: 180 | R26: 189 | S26: 196 | T26: 186 | U26: 206 | V26: 213 | W26: 208 | X26: 169 | Y26: 189 | Z26: 2418
A27: 113380303 | B27: Annville-Cleona SD | C27: SD | D27: Lebanon | E27: 0 | F27: 0 | G27: 0 | H27: 0 | I27: 0 | J27: 0 | K27: 33 | L27: 49 | M27: 9 | N27: 88 | O27: 95 | P27: 106 | Q27: 118 | R27: 92 | S27: 139 | T27: 114 | U27: 110 | V27: 111 | W27: 121 | X27: 122 | Y27: 131 | Z27: 1438
A28: 114060503 | B28: Antietam SD | C28: SD | D28: Berks | E28: 0 | F28: 0 | G28: 0 | H28: 0 | I28: 0 | J28: 0 | K28: 0 | L28: 0 | M28: 81 | N28: 88 | O28: 81 | P28: 103 | Q28: 93 | R28: 84 | S28: 90 | T28: 92 | U28: 65 | V28: 65 | W28: 70 | X28: 85 | Y28: 65 | Z28: 1062
A29: 104510394 | B29: Antonia Pantoja Community Charter School | C29: CS | D29: Philadelphia | E29: 0 | F29: 0 | G29: 0 | H29: 0 | I29: 0 | J29: 0 | K29: 0 | L29: 0 | M29: 71 | N29: 91 | O29: 82 | P29: 73 | Q29: 65 | R29: 73 | S29: 82 | T29: 73 | U29: 103 | V29: 0 | W29: 0 | X29: 0 | Y29: 0 | Z29: 713
A30: 128030603 | B30: Apollo-Ridge SD | C30: SD | D30: Armstrong | E30: 0 | F30: 0 | G30: 0 | H30: 0 | I30: 0 | J30: 0 | K30: 0 | L30: 0 | M30: 83 | N30: 90 | O30: 84 | P30: 89 | Q30: 90 | R30: 103 | S30: 84 | T30: 107 | U30: 110 | V30: 101 | W30: 112 | X30: 77 | Y30: 79 | Z30: 1209
A31: 108000000 | B31: Appalachia IU 8 | C31: IU | D31: Cambria | E31: 0 | F31: 0 | G31: 0 | H31: 0 | I31: 0 | J31: 0 | K31: 0 | L31: 0 | M31: 3 | N31: 7 | O31: 9 | P31: 10 | Q31: 9 | R31: 11 | S31: 8 | T31: 16 | U31: 11 | V31: 15 | W31: 15 | X31: 29 | Y31: 51 | Z31: 194
A32: 128030852 | B32: Armstrong SD | C32: SD | D32: Armstrong | E32: 0 | F32: 0 | G32: 0 | H32: 0 | I32: 0 | J32: 0 | K32: 0 | L32: 0 | M32: 406 | N32: 417 | O32: 375 | P32: 412 | Q32: 435 | R32: 426 | S32: 387 | T32: 411 | U32: 417 | V32: 404 | W32: 444 | X32: 283 | Y32: 298 | Z32: 5115
A33: 121395927 | B33: Arts Academy CS | C33: CS | D33: Lehigh | E33: 0 | F33: 0 | G33: 0 | H33: 0 | I33: 0 | J33: 0 | K33: 0 | L33: 0 | M33: 0 | N33: 0 | O33: 0 | P33: 0 | Q33: 0 | R33: 62 | S33: 100 | T33: 108 | U33: 113 | V33: 0 | W33: 0 | X33: 0 | Y33: 0 | Z33: 383
A34: 121399898 | B34: Arts Academy Elementary Charter School | C34: CS | D34: Lehigh | E34: 0 | F34: 0 | G34: 0 | H34: 0 | I34: 0 | J34: 0 | K34: 0 | L34: 0 | M34: 58 | N34: 77 | O34: 74 | P34: 71 | Q34: 73 | R34: 56 | S34: 0 | T34: 0 | U34: 0 | V34: 0 | W34: 0 | X34: 0 | Y34: 0 | Z34: 409
A35: 117080503 | B35: Athens Area SD | C35: SD | D35: Bradford | E35: 0 | F35: 0 | G35: 0 | H35: 0 | I35: 0 | J35: 0 | K35: 0 | L35: 0 | M35: 152 | N35: 128 | O35: 146 | P35: 159 | Q35: 171 | R35: 150 | S35: 157 | T35: 176 | U35: 149 | V35: 147 | W35: 151 | X35: 169 | Y35: 162 | Z35: 2017
A36: 109530304 | B36: Austin Area SD | C36: SD | D36: Potter | E36: 0 | F36: 0 | G36: 0 | H36: 0 | I36: 0 | J36: 10 | K36: 0 | L36: 0 | M36: 8 | N36: 15 | O36: 14 | P36: 14 | Q36: 18 | R36: 14 | S36: 13 | T36: 17 | U36: 14 | V36: 17 | W36: 17 | X36: 13 | Y36: 15 | Z36: 199
A37: 101630504 | B37: Avella Area SD | C37: SD | D37: Washington | E37: 0 | F37: 0 | G37: 0 | H37: 0 | I37: 0 | J37: 0 | K37: 0 | L37: 0 | M37: 41 | N37: 51 | O37: 35 | P37: 39 | Q37: 37 | R37: 50 | S37: 40 | T37: 48 | U37: 49 | V37: 36 | W37: 49 | X37: 40 | Y37: 39 | Z37: 554
A38: 124150003 | B38: Avon Grove CS | C38: CS | D38: Chester | E38: 0 | F38: 0 | G38: 0 | H38: 0 | I38: 0 | J38: 0 | K38: 0 | L38: 0 | M38: 175 | N38: 173 | O38: 174 | P38: 140 | Q38: 140 | R38: 139 | S38: 146 | T38: 144 | U38: 118 | V38: 103 | W38: 78 | X38: 78 | Y38: 77 | Z38: 1685
A39: 124150503 | B39: Avon Grove SD | C39: SD | D39: Chester | E39: 0 | F39: 0 | G39: 0 | H39: 0 | I39: 0 | J39: 0 | K39: 128 | L39: 119 | M39: 0 | N39: 289 | O39: 308 | P39: 337 | Q39: 377 | R39: 389 | S39: 394 | T39: 416 | U39: 395 | V39: 435 | W39: 462 | X39: 443 | Y39: 455 | Z39: 4947
A40: 103020753 | B40: Avonworth SD | C40: SD | D40: Allegheny | E40: 0 | F40: 0 | G40: 0 | H40: 0 | I40: 0 | J40: 0 | K40: 0 | L40: 0 | M40: 130 | N40: 156 | O40: 131 | P40: 137 | Q40: 122 | R40: 151 | S40: 115 | T40: 131 | U40: 134 | V40: 115 | W40: 134 | X40: 100 | Y40: 126 | Z40: 1682
A41: 117000000 | B41: BLaST IU 17 | C41: IU | D41: Lycoming | E41: 0 | F41: 0 | G41: 0 | H41: 0 | I41: 0 | J41: 0 | K41: 0 | L41: 0 | M41: 8 | N41: 18 | O41: 23 | P41: 18 | Q41: 28 | R41: 19 | S41: 27 | T41: 25 | U41: 28 | V41: 26 | W41: 36 | X41: 24 | Y41: 25 | Z41: 305
A42: 127046517 | B42: Baden Academy CS | C42: CS | D42: Beaver | E42: 0 | F42: 0 | G42: 0 | H42: 0 | I42: 0 | J42: 0 | K42: 0 | L42: 0 | M42: 99 | N42: 76 | O42: 101 | P42: 90 | Q42: 87 | R42: 47 | S42: 41 | T42: 0 | U42: 0 | V42: 0 | W42: 0 | X42: 0 | Y42: 0 | Z42: 541
A43: 110141003 | B43: Bald Eagle Area SD | C43: SD | D43: Centre | E43: 0 | F43: 0 | G43: 0 | H43: 0 | I43: 0 | J43: 0 | K43: 0 | L43: 0 | M43: 105 | N43: 121 | O43: 105 | P43: 126 | Q43: 115 | R43: 131 | S43: 116 | T43: 126 | U43: 130 | V43: 132 | W43: 146 | X43: 146 | Y43: 148 | Z43: 1647
A44: 103021102 | B44: Baldwin-Whitehall SD | C44: SD | D44: Allegheny | E44: 0 | F44: 0 | G44: 0 | H44: 0 | I44: 0 | J44: 0 | K44: 0 | L44: 0 | M44: 308 | N44: 323 | O44: 321 | P44: 311 | Q44: 282 | R44: 312 | S44: 309 | T44: 329 | U44: 337 | V44: 368 | W44: 330 | X44: 354 | Y44: 356 | Z44: 4240
A45: 120480803 | B45: Bangor Area SD | C45: SD | D45: Northampton | E45: 0 | F45: 0 | G45: 0 | H45: 0 | I45: 0 | J45: 0 | K45: 0 | L45: 0 | M45: 207 | N45: 204 | O45: 199 | P45: 220 | Q45: 244 | R45: 217 | S45: 225 | T45: 273 | U45: 264 | V45: 244 | W45: 273 | X45: 246 | Y45: 279 | Z45: 3095
A46: 118400001 | B46: Bear Creek Community CS | C46: CS | D46: Luzerne | E46: 0 | F46: 0 | G46: 0 | H46: 0 | I46: 0 | J46: 0 | K46: 0 | L46: 0 | M46: 52 | N46: 52 | O46: 52 | P46: 52 | Q46: 52 | R46: 52 | S46: 52 | T46: 52 | U46: 50 | V46: 0 | W46: 0 | X46: 0 | Y46: 0 | Z46: 466
